Workbook

Sheet Instructions (hidden)
A1: LM5164 Low IQ DC/DC Converter Design Tool
B4: Design Regulator tab
B5: Start with Step 1, and then work down towards the bottom of the worksheet.
B7: Step 1. Operating Specifications
B8: First, enter the values in the yellow shaded cells to define the power supply parameters. If a particular specification is not known, enter an estimate. It can be changed later, if necessary, to optimize component values. Cells with a red mark in the upper right corner have a comment to provide additional information. Hold the cursor over the cell to read the comment. A red font indicates an erroneous entry and requires an adjustment to the entry. Consult the entry's comments for the entry specific requirements.
B12: Second, select a desired mode of operation. PFM mode requires the fewest external components and the lowest inductance. As a result, it can provide the smallest solution size. At light loads, a PFM converter has a relatively longer sleep time interval and thus operates at lower input quiescent current levels. COT mode offers nearly constant switching frequency, relatively higher conversion efficiencies at medium to heavy loads, and enables the lowest output voltage ripple. Options COT1, COT2, and COT3 enable you to select a ripple generation method (a requirement for the stable operation in COT mode):
B17: -COT1: | C17: Type 1 ripple generation method requires a single resistor in series with the output capacitor. It is the simplest, the most compact, and the most economical method that works with fixed and adjustable device options, however, the output voltage ripple is the highest.
B19: -COT2: | C19: Type 2 ripple generation method requires a feedforward capacitor in addition to the series resistor. The feedforward capacitor reduces the required minimum value of the series resistor and ultimately the output voltage ripple by the VOUT / 1.223V factor. It only works with an adjustable device option (i.e. external feedback resistor network).
B21: -COT3: | C21: Type 3 ripple generation method three external components to generate and inject required voltage ripple into the FB node. In return, it provides the lowest output voltage ripple. It also only works with an adjustable device option (i.e. external feedback resistor network).
B24: Step 2. Filter Inductor
B25: First, select an inductor current limit level. In PFM Mode, 1.25A, 0.75A, 0.5A, and 1.25A - MOD options are available. For the 500mA max load, select either 1.25A or 1.25A - MOD option. The 1.25A - MOD option enables higher efficiency at the expense of slightly worse transient operation. For the 300mA and 200mA max loads, select 0.75A and 0.5A options respectively. In COT Mode, 0.75A and 0.5A options are available. For the 500mA and 300mA max loads, select 0.75A and 0.5A options respectively.
B29: Second, select the filter inductance value based on the suggested value. Enter the inductor RDC for accurate efficiency estimates.
B30: In PFM mode, selected inductance defines the switching frequency. You may select lower or higher inductance to increase or decrease the switching frequency. Watch the minimum output capacitance. At very low switching frequencies, the required minimum capacitance may become excessive.
B34: In COT mode, the suggested inductance is derived based on the target inductor (peak-to-peak) ripple current of 40% of the DC full load output current at nominal input voltage. It may be acceptable to use higher ripple current with the proviso that peak inductor current remains below the ILIM setting. Pk-to-Pk Ripple Current value will turn red if this is violated. If this happens, increase the selected inductance or decrease the Input Voltage (max) or both.
B38: Step 3. Output Capacitors and Ripple Generation
B39: First, select the output capacitance based on the minimum recommended value. Make sure that the nominal capacitance is appropriately derated for applied voltage, especially with ceramics. For PFM and COT3 modes, ensure that the capacitor ESR does not exceed the maximum allowable value.
B42: Second, for COT modes, select the values for the ripple generation components based on the minimum recommended values. Ensure that the output voltage ripple meets any of your minimum ripple requirements by reviewing the VOUT Ripple vs. IOUT plot in the fSW&Ripple tab. For accurate output voltage ripple estimates in COT3 mode, ensure that the Output Capacitor ESR is set to the levels of a typical ceramic capacitor ESR (e.g. 10 mW).
B46: Step 4. Input Capacitors
B47: Select the input capacitance based on the minimum recommended value. Make sure that the nominal capacitance is appropriately derated for applied voltage, especially with ceramics.
B50: Step 5. Feedback, Soft-Start, UVLO
B51: First, review the feedback resistor network. With an adjustable device option, an external feedback resistor network is required. The resistor values are automatically calculated based on the selected VOUT in Step 1. For lowering the leakage current through the resistors, adjust the upper FB resistor (R1) until the lower FB resistor (R2) reaches its upper end of the range (100kW). Keeping the upper FB resistor below 1MW is recommended.
B55: Second, select one out of three soft-start configurations. If the external soft-start option is selected, enter a desired soft start time.
B57: Third, select one out of the two UVLO options. If the external UVLO option is selected, define desired UVLO thresholds and hysteresis. Keeping the upper UVLO resistor at 1MW or higher is recommended for the minimum leakage current.
B60: Step 6. Efficiency and Thermals
B61: Enter the LM5166's junction-to-ambient thermal impedance (dependent on your PCB design, air flow, etc.) and ambient temperature. Device power dissipation and junction temperature are derived at the maximum load. Ensure that the junction temperature is within the recommended range.
B65: BOM & Schematic tab
B66: This tab summarizes the converter schematic and BOM. It also helps you estimate the total solution size. Select a package size for each external component (i.e. inductor, capacitors, and resistors) for accurate solution size estimates.
B69: Design EMI Filter tab
B70: In case an EMI filter is needed, a simple EMI filter design aid is given in this tab. It is based on the guidelines documented in TI's literature number SNVA489C (aka AN-2162). Suggest reviewing the note before using the design aid.
B73: fSW & Ripple tab
B74: In this tab, the switching/burst frequency (COT/PFM mode) and the output voltage ripple as a function of the load current are plotted.

Sheet Design Converter
A1: LM5168/9 Low IQ DC/DC Converter Design Tool
O2: http://www.ti.com/ww/en/analog/power_management/widevin
A3: About | C3: xx | F3: = Input Box | O3: Terms Of Use
A5: Step 1: Operating Specifications
D6: Input Voltage - Min, VIN(min) | E6: 18 | F6: V
D7: Input Voltage - Nom, VIN(nom) | E7: 48 | F7: V
D8: Input Voltage - Max, VIN(max) | E8: 60 | F8: V
D9: Output Voltage, VOUT | E9: 12 | F9: V
D10: Full Load Current, IOUT | E10: 0.3 | F10: =IF('Variable Mgmt'!B84>'Variable Mgmt'!B86,"CURRENT LIMIT","A") -> A
D11: Mode of Operation | G11: =MODE -> 2
D12: Switching Frequency at VIN(nom) | E12: 600 | F12: kHz
D13: Timing Resistance, RT | E13: ='Standard Value Calculator'!J4/1000 -> 49.9 | F13: kΩ
A15: Step 2: Buck Inductor
D16: Recommended Buck Inductance | E16: =Lopt*1000000 -> 125 | F16: µH
D17: Inductance, LF | E17: 100 | F17: µH
D18: Inductor DCR | E18: 170 | F18: mΩ
D19: =CHOOSE(MODE, "Pk-to-Pk Ripple Current","Pk-to-Pk Ripple Current","Pk-to-Pk Ripple Current", "Resulting PFM Switching Frequency") -> Pk-to-Pk Ripple Current | E19: =Iripple_Vinnom*1000 -> 150.2423927 | F19: mApk-pk
D20: =CHOOSE(MODE, 'Variable Mgmt'!H88,'Variable Mgmt'!H88,'Variable Mgmt'!H88, 'Variable Mgmt'!H89) -> % Ripple Current at Nom VIN | E20: =IF(OR(MODE=1,MODE=2,MODE=3), 'Variable Mgmt'!B96*100, Ilim/2*1000) -> 50.08079755 | F20: =IF(OR(MODE=1,MODE=2,MODE=3), "%", "mA") -> %
A22: =IF(MODE=4, "Step 3: Output Capacitors", "Step 3: Output Capacitors, Ripple Generation") -> Step 3: Output Capacitors, Ripple Generation
D23: Minimum Output Capacitance | E23: ='Variable Mgmt'!B116 -> 2.2 | F23: µF
D24: Output Capacitance, COUT | E24: 12 | F24: µF
D25: =IF(OR(MODE=1,MODE=2),"Recommended Series Resistance",IF(MODE=3,"Maximum Allowable ESR","*Higher Cout Improves Light-Load Eff")) -> Recommended Series Resistance | E25: ='Variable Mgmt'!B272 -> >0.133 | F25: Ω
D26: =IF(OR(MODE=1,MODE=2),"Total ESR & Series Resistance, Rser",IF(MODE=3,"Output Capacitor ESR","*PFM Hysteresis Sets Output Ripple")) -> Total ESR & Series Resistance, Rser | E26: 1 | F26: Ω
D27: =CHOOSE(MODE, "Resulting Output Voltage Ripple","Resulting Output Voltage Ripple", "Output Voltage Ripple","Output Voltage Ripple") -> Resulting Output Voltage Ripple | E27: =CHOOSE(MODE, Vripple2*1000,Vripple2*1000,Vripple2*1000, PFM_Ripple) -> 150.2650331 | F27: mVpk-pk
D28: =IF(MODE=1,"",IF(MODE=2,"Minimum Feedforward Capacitance", IF(MODE=3,"Minimum Coupling Capacitance",""))) -> Minimum Feedforward Capacitance | E28: ='Variable Mgmt'!B140 -> >47 | F28: pF
D29: =IF(MODE=1,"",IF(MODE=2,"Feedforward Capacitance, Cff", IF(MODE=3,"Coupling Capacitance, Cb",""))) -> Feedforward Capacitance, Cff | E29: 56 | F29: pF
D30: =IF(MODE=3,"Minimum Ripple Generation Capacitance","") ->  | E30: ='Variable Mgmt'!B144 ->  | F30: pF
D31: =IF(MODE=3,"Ripple Generation Capacitance, Ca","") ->  | E31: 3300 | F31: pF
D32: =IF(MODE=3,"Ripple Generation Resistance, Ra","") ->  | E32: =Ra -> 226 | F32: kΩ
D33: =IF(MODE=3,"Amplitude of Injected Ripple","") ->  | E33: 20 | F33: mVpk-pk
A35: Step 4: Input Capacitors
D36: Minimum Input Capacitance | E36: ='Variable Mgmt'!B157 -> 2.2 | F36: µF
D37: Input Capacitance, CIN | E37: 2.2 | F37: µF
D38: Maximum Allowable ESR | E38: ='Variable Mgmt'!B159 -> 6.283033803 | F38: Ω
D39: Input Capacitor ESR | E39: 3 | F39: mΩ
D40: Resulting Input Voltage Ripple | E40: =CHOOSE(MODE, Vinripple2*1000,Vinripple2*1000,Vinripple2*1000, 'Variable Mgmt'!B165*1000) -> 44.22620684 | F40: mVpk-pk
A42: Step 5: Feedback, PGOOD, UVLO
D43: Upper Feedback Resistor, RFB1 | E43: 453 | F43: kΩ
D44: Lower Feedback Resistor, RFB2 | E44: =IF(Vout=Vref,"OPEN",Rfb2_u/1000) -> 49.9 | F44: =IF(Vout=Vref,"","kΩ") -> kΩ
D45: Acutal Output Voltage Setpoint | E45: ='Variable Mgmt'!B201 -> 12.09378758 | F45: V
D46: PGOOD Pull-up Resistance | E46: 20 | F46: ="kΩ" -> kΩ
D47: BST Capacitance, CBST | E47: 2.2 | F47: nF
D48: ="Required Input Voltage UVLO Turn-on" -> Required Input Voltage UVLO Turn-on | E48: 6 | F48: V
D49: Upper UVLO Resistor, RUV1 | E49: 1 | F49: MΩ
D50: Lower UVLO Resistor, RUV2 | E50: ='Variable Mgmt'!F276 -> 332 | F50: ='Variable Mgmt'!G276 -> kΩ
D51: Actual UVLO Turn-on Threshold | E51: ='Variable Mgmt'!B186 -> 6.018072289 | F51: V
D52: Actual UVLO Turn-off Threshold | E52: ='Variable Mgmt'!B187 -> 5.61686747 | F52: V
A54: Step 6: Efficiency & Thermals
D55: Estimated Thermal Impedance, JJA | E55: 33 | F55: °C/W
D56: Ambient Temp, TA | E56: 25 | F56: °C
D57: IC Power Dissipation at Full Load, PD | E57: ='Variable Mgmt'!B26 -> 0.5436508596 | F57: W
D58: IC Junction Temp at Full Load, TJ | E58: =E56+E55*'Variable Mgmt'!B26 -> 42.94047837 | F58: °C

Sheet Fsw & Ripple (hidden)
A1: LM5164 Low IQ DC/DC Converter Design Tool

Sheet Losses (hidden)
A1: LM5166 Low IQ DC/DC Converter Design Tool
D5: Load Current | E5: 500 | F5: mA
D42: Inductor Core Loss Constant | E42: 0

Sheet Variable Mgmt (hidden)
A1: EXCEL Variables Names/Calculations | L1: LM5166
B2: Input from user =
B3: Output =
B4: Constant
A5: Variable Name | B5: Value | C5: STD Units | E5: Notes | I5: Iteration
A6: Step 1: Operational Specs
A7: VIN_min | B7: ='Design Converter'!E6 -> 18 | C7: V | D7: Minimum input voltage | I7: 1
A8: VIN_nom | B8: ='Design Converter'!E7 -> 48 | C8: V | D8: Nominal input voltage
A9: VIN_max | B9: ='Design Converter'!E8 -> 60 | C9: V | D9: Maximum input voltage
A11: Vout | B11: ='Design Converter'!E9 -> 12 | C11: V | D11: Output Voltage | I11: 1
A12: Iout | B12: ='Design Converter'!E10 -> 0.3 | C12: A | D12: Maximum Output Current | I12: 1
A13: Rout | B13: =Vout/Iout -> 40 | C13: W | D13: Load resistance
A14: Pout | B14: =Vout*Iout -> 3.6 | C14: W | D14: Output power
A16: Efficiency | B16: 0.9 | D16: Estimate of efficiency
A17: Pin | B17: =Pout/Efficiency -> 4 | C17: W | D17: Calculate input power assuming 90% efficiency
A18: Iin_Vinmin | B18: =Pin/VIN_min -> 0.2222222222 | C18: A
A19: Iin_Vinnom | B19: =Pin/VIN_nom -> 0.08333333333 | C19: A | D19: Input currents at min, nom, max Vin
A20: Iin_Vinmax | B20: =Pin/VIN_max -> 0.06666666667 | C20: A
A22: Fsw | B22: ='Design Converter'!E12*1000 -> 600000 | C22: Hz | D22: Nominal Switching Frequency | I22: 1
A23: Vref | B23: 1.2 | C23: V | D23: Reference Voltage
A24: Rt | B24: =Vout*2500000000/Fsw -> 50000 | C24: W | D24: Frequency Set Resistor
K25: =B34&"_"&F35&"_"&F39&"_"&I41&"_"&I36 -> COT2_VOUTadj_UVLOadj_SSAdj_RsetGND | Q25: Vout<5V | R25: 100 | S25: 1
A26: Internal PD at Full Load | B26: =IF(OR(MODE=1,MODE=2,MODE=3), Efficiency!AZ106,#REF!) -> 0.5436508596 | C26: W | Q26: Vout<=8V | R26: 47 | S26: 2
K27: ="SCH_"&B34&"_"&B41 -> SCH_COT2_LM5168 | Q27: Vout<=12V | R27: 22 | S27: 3
Q28: Vout<=20V | R28: 22 | S28: 4
A29: Step 2: Circuit Configuration for COT / PFM, Fixed / Adj Vout, ILIM, UVLO, SS | Q29: Vout>20V | R29: 10 | S29: 5
B30: COT Type I | C30: 1 | Q30: Cout Capacitance | R30: =CHOOSE(S30,"100", "47","22","22","10") -> 22 | S30: =IF(Vout<5, 1, IF(Vout<=8, 2, IF(Vout<=12, 3, IF(Vout<=20, 4, 5)))) -> 3
B31: COT Type II | C31: 2
A32: COT/PFM | B32: COT Type III | C32: 3
E33: VOUT Fixed/Adjustable | F33: Fixed | G33: 1 | I33: ILIM shorted | J33: 1 | K33: =B34&", "&F35&", "&I36&", "&F39&", "&I41 -> COT2, VOUTadj, RsetGND, UVLOadj, SSAdj | Q33: Vout<=5V | R33: 6.3V | S33: 1
A34: MODE | B34: =CHOOSE(C34, "COT1", "COT2","COT3") -> COT2 | C34: 2 | F34: Adjustable | G34: 2 | I34: ILIM resistor needed | J34: 2 | K34: =C34&", "&G35&", "&J36&", "&G39&", "&J41 -> 2, 2, 1, 1, 1 | Q34: Vout<=8V | R34: 10V | S34: 2
B35: =IF(MODE=4, "PFM", "COT") -> COT | E35: MODE_VOUT | F35: =CHOOSE(G35, "VOUTfixed", "VOUTadj") -> VOUTadj | G35: =IF(AND(OR(MODE=1,MODE=4),OR(Vout=3.3,Vout=5)),1,2) -> 2 | K35: =C34&G35&J36&G39&J41 -> 22111 | Q35: Vout<=12V | R35: 16V | S35: 3
H36: MODE_RSET | I36: =CHOOSE(J36, "RsetGND","Rset") -> RsetGND | J36: 1 | Q36: Vout<=20V | R36: 25V | S36: 4
E37: UVLO | F37: Adjustable | G37: 1 | Q37: Vout>20V | R37: 50V | S37: 5
F38: Internal | G38: 2 | H38: Soft Start | I38: Adjustable | J38: 1 | L38: Iout Linear Axis | M38: 1 | Q38: Cout Voltage Rating | R38: =CHOOSE(S38,"6.3V", "10V","16V","25V","50V") -> 16V | S38: =IF(Vout<=5, 1, IF(Vout<=8, 2, IF(Vout<=12, 3, IF(Vout<=20, 4, 5)))) -> 3
B39: LM5168 | C39: 1 | E39: MODE_UVLO | F39: =CHOOSE(G39, "UVLOadj", "UVLOint") -> UVLOadj | G39: 1 | I39: 3ms Fixed | J39: 2 | L39: Iout Log Axis | M39: 2
B40: LM5169 | C40: 2 | L40: PLOT_TYPE | M40: 1
A41: VARIANT | B41: =CHOOSE(VARIANT, "LM5168", "LM5169") -> LM5168 | C41: 1 | E41: ESR | F41: NO | G41: 1 | H41: MODE_SS | I41: =CHOOSE(J41, "SSAdj", "SSfix") -> SSAdj | J41: 1 | R41: 0402 | S41: 1 | T41: 1.0 x 0.5 | U41: 0.5
F42: YES | G42: 2 | R42: 0603 | S42: 2 | T42: 1.6 x 0.8 | U42: 1.3
E43: MODE_ESR | G43: 2 | R43: 0805 | S43: 3 | T43: 2.0 x 1.25 | U43: 2.5
F44: =CHOOSE(G44, "", "_ESR") ->  | G44: =IF(MODE=2, 1, MODE_ESR) -> 1 | R44: 1206 | S44: 4 | T44: 3.2 x 1.6 | U44: 5.1
R45: 1210 | S45: 5 | T45: 3.2 x 2.5 | U45: 8
A46: Step 3: Buck Inductor | Q46: Component Size | R46: =CHOOSE(S46,"0402", "0603","0805","1206","1210") -> 1210 | S46: 5 | T46: =CHOOSE(S46,T41,T42,T43,T44,T45) -> 3.2 x 2.5
A47: Don1 | B47: =Vout/VIN_nom -> 0.25 | C47: =(Vout-VIN_nom)/Vout -> -3 | E47: Ideal Duty Cycle at VIN(nom) | I47: 1
A48: Doff1 | B48: =1-47:47 -> 0.75 | E48: Ideal 1- Duty Cycle at VIN(nom) | I48: 1
A50: Don_Vinmin | B50: =Vout/VIN_min -> 0.6666666667 | C50: =IF(VIN_min>Vout, "BUCK", "BOOST") -> BUCK | R50: 3mm x 3mm | S50: 1 | T50: 3.0 x 3.0 | U50: 9
A51: Don_Vinnom | B51: =Vout/VIN_nom -> 0.25 | C51: =IF(VIN_nom>Vout, "BUCK", "BOOST") -> BUCK | R51: 4mm x 4mm | S51: 2 | T51: 4.0 x 4.0 | U51: 16
A52: Don_Vinmax | B52: =Vout/VIN_max -> 0.2 | C52: =IF(VIN_max>Vout, "BUCK", "BOOST") -> BUCK | R52: 5mm x 5mm | S52: 3 | T52: 5.0 x 5.0 | U52: 25
R53: 6mm x 6mm | S53: 4 | T53: 6.0 x 6.0 | U53: 36
A54: Lf_Vinmin | B54: =(VIN_min-Vout)*Don_Vinmin/(Fsw*Iout*0.4) -> 5.555555556e-05 | C54: H | D54: COT | R54: 7mm x 7mm | S54: 5 | T54: 7.0 x 7.0 | U54: 49
A55: Lf_Vinnom | B55: =(VIN_nom-Vout)*Don_Vinnom/(Fsw*Iout*0.4) -> 0.000125 | C55: H | D55: COT | I55: 1 | Q55: Inductor Size | R55: 8mm x 8mm | S55: 6 | T55: 8.0 x 8.0 | U55: 64
A56: Lf_Vinmax | B56: =(VIN_max-Vout)*Don_Vinmax/(Fsw*Iout*0.7) -> 7.619047619e-05 | C56: H | D56: COT | R56: 10mm x 10mm | S56: 7 | T56: 10.0 x 10.0 | U56: 100
A58: L_Vinmin_COT | B58: =(VIN_min-Vout)*Don_Vinmin/(Fsw*Iout*0.3) -> 7.407407407e-05 | C58: H | D58: COT | E58: Calculated Inductance for 30% ripple at VIN(min)
A59: L_Vinnom_COT | B59: =(VIN_nom-Vout)*Don_Vinnom/(Fsw*Iout*0.4) -> 0.000125 | C59: H | D59: COT | E59: Calculated Inductance for 40% ripple at VIN(nom) | K59: Pk-to-Pk Ripple Current at VIN(nom), DIL
A60: L_Vinmax_COT | B60: =(VIN_max-Vout)*Don_Vinmax/(Fsw*Iout*0.7) -> 7.619047619e-05 | C60: H | D60: COT | E60: Calculated Inductance for 70% ripple at VIN(max)
A63: Lopt | B63: =B59 -> 0.000125 | C63: H
A65: Lf | B65: ='Design Converter'!E17/1000000 -> 0.0001 | C65: H | E65: Chosen Inductance
A66: Rdcr | B66: ='Design Converter'!E18/1000 -> 0.17 | C66: W | E66: Chosen Inductor DCR
A68: Don2 | B68: =(Vout+Iout*Rdcr)/Vin -> 0.2510625 | E68: **Edit to add Rdson**
A69: Doff2 | B69: =1-_Don2 -> 0.7489375
A71: Rdson1 | B71: 1.85 | C71: W
A72: Rdson2 | B72: 0.7 | C72: W
A74: Don_Vinmin_2 | B74: =(Vout+Iout*(Rdcr+Rdson2))/(VIN_min+Iout*Rdson2) -> 0.6733113674 | E74: Duty cycles adjusted for DCR and shunt voltage drops
A75: Don_Vinnom_2 | B75: =(Vout+Iout*(Rdcr+Rdson2))/(VIN_nom+Iout*Rdson2) -> 0.2543248289 | E75: need to include RDS(on) later
A76: Don_Vinmax_2 | B76: =(Vout+Iout*(Rdcr+Rdson2))/(VIN_max+Iout*Rdson2) -> 0.2036372696
A78: Iripple_Vinmin | B78: =(VIN_min-Vout-Rdson1*Iout)*Don_Vinmin_2/(Fsw*Lf) -> 0.06110300659 | C78: A | D78: COT
A79: Iripple_Vinnom | B79: =(VIN_nom-Vout-Rdson1*Iout)*Don_Vinnom_2/(Fsw*Lf) -> 0.1502423927 | C79: A | D79: COT
A80: Iripple_Vinmax | B80: =(VIN_max-Vout)*Don_Vinmax_2/(Fsw*Lf) -> 0.1629098156 | C80: A | D80: COT
A82: ILpk_Vinmin | B82: =Iout+Iripple_Vinmin/2 -> 0.3305515033 | C82: A | D82: COT
A83: ILpk_Vinnom | B83: =Iout+Iripple_Vinnom/2 -> 0.3751211963 | C83: A | D83: COT
A84: ILpk_Vinmax | B84: =Iout+Iripple_Vinmax/2 -> 0.3814549078 | C84: A | D84: COT
A86: ILIM_Typ | B86: =CHOOSE(VARIANT, 0.42, 0.84) -> 0.42 | C86: A | E86: Isat_min | F86: =B86*1.2 -> 0.504
A88: Ripple current | B88: =IF(OR(MODE=1,MODE=2,MODE=3), Iripple_Vinnom, Iripple) -> 0.1502423927 | C88: A | H88: % Ripple Current at Nom VIN
H89: Maximum Load Current
A90: Max inductor ripple current | B90: =MAX(B78:B80) -> 0.1629098156 | C90: A
F91: Ripple I | G91: Iin
A92: % Ripple Current | B92: =B78/Iout -> 0.2036766886 | D92: COT | F92: =B78 -> 0.06110300659 | G92: =Iin_Vinmin -> 0.2222222222
B93: =B79/Iout -> 0.5008079755 | D93: COT | F93: =B79 -> 0.1502423927 | G93: =Iin_Vinnom -> 0.08333333333
B94: =B80/Iout -> 0.5430327188 | D94: COT | F94: =B80 -> 0.1629098156 | G94: =Iin_Vinmax -> 0.06666666667
B96: =IF(OR(MODE=1, MODE=2,MODE=3), B93, Ilim/Iout) -> 0.5008079755
A98: Iripple1 | B98: =(Vin-Vout)*Don_Vinnom_2/(Fsw*Lf) -> 0.1525948973 | C98: A | D98: inductor ripple current with chosen inductance (pk-pk) | I98: 1
A99: Temp | B99: 100
A100: DCR at hot | B100: =Rdcr*(1+0.0039*(B99-25)) -> 0.219725 | C100: W
A101: Ipk based on line 100 | B101: ='Design Converter'!E10+0.5*Iripple1 -> 0.3762974487
A104: Step 4: Output Capacitor
A105: Icoutrms_VINmin | B105: =Iripple_Vinmin/SQRT(12) -> 0.01763891865 | C105: A | D105: Output Cap RMS current
A106: Icoutrms_VINnom | B106: =Iripple_Vinnom/SQRT(12) -> 0.04337124292 | C106: A
A107: Icoutrms_VINmax | B107: =Iripple_Vinmax/SQRT(12) -> 0.04702801296 | C107: A | G107: =Vripple1 -> 0.06
A109: Output Ripple Spec (pk-pk) | B109: =Vout*0.005 -> 0.06 | C109: V | D109: Vout capacitive ripple spec at Vin(nom) = Vripple1
A111: Coutmin
A112: COT | B112: =Iripple_Vinnom/(Fsw*8*Vripple1) -> 5.216749745e-07 | C112: F | D112: COT | E112: Min recommended Cout based on ripple spec above | I112: 1
B113: =Lf*B83^2/((1.05*Vout)^2-Vout^2) -> 9.53359837e-07 | C113: F | D113: COT | E113: Min recommended Cout based on 5% load-off transient spec
A114: CoutMinCOT | B114: =MAX(B112:B113, 0.0000022) -> 2.2e-06 | C114: F | D114: COT | E114: max of 2 results and 2.2uF
A116: Reported Countmin | B116: =CoutMinCOT*1000000 -> 2.2 | C116: µF
A118: Cout | B118: ='Design Converter'!E24/1000000 -> 1.2e-05 | C118: F | D118: Chosen Output Capacitance | I118: 1
A119: Resrmax | B119: =SQRT((Vripple1/Iripple_Vinnom)^2-(1/(Fsw*Cout*8))^2) -> 0.3989771149 | C119: W | D119: Max ESR before ripple exceeds Vripple1 | I119: 1
A120: Type1 ESR for sufficient (20mV) COT ripple at FB pin | B120: =0.02*Vout/Vref/Iripple_Vinnom -> 1.331182208 | C120: W | D120: (a)
A121: Type2 ESR for sufficient (20mV) COT ripple at FB pin | B121: =0.02/Iripple_Vinnom -> 0.1331182208 | C121: W | D121: (b)
A123: Type 1 Output Cap RC Time Constant | B123: =Cout*B130*1000000 -> 0 | C123: µs
A124: Type 2 Output Cap RC Time Constant | B124: =Cout*B131*1000000 -> 1.59741865 | C124: µs
A125: Ton @ Vin(min) | B125: =Vout/VIN_min/(Fsw) -> 1.111111111e-06 | C125: s
A126: Ton @ Vin(nom) | B126: =Vout/VIN_nom/(Fsw) -> 4.166666667e-07 | C126: s
A127: ESR so that RC > Ton/2 | B127: =B125/2/Cout -> 0.0462962963 | C127: W | D127: (c)
A130: Type1: Need ESR of… | B130: =IF(MODE=1, MAX(B120,B127), 0) -> 0 | C130: W | D130: Max of (a) and (c)
A131: Type2: Need ESR of… | B131: =IF(MODE=2, MAX(B121,B127), 0) -> 0.1331182208 | C131: W | D131: Max of (b) and (c)
A133: Reported Cout ESR max | B133: =IF(OR(CoutEsrMax>0.5, CoutEsrMax<0, (ISERROR(CoutEsrMax))), "N/A", CoutEsrMax*1000) -> 398.9771149 | C133: mW
A135: CoutEsr | B135: ='Design Converter'!E26 -> 1 | C135: W | D135: Chosen ESR | I135: 1
A137: Actual Output Ripple | B137: =Iripple_Vinnom*SQRT(CoutEsr^2+(1/(8*Fsw*Cout))^2) -> 0.1502650331 | C137: Vp-p | D137: Vripple2
A139: Minimum Feedforward / Coupling Capacitance | B139: =MAX(1000000000000*0.00005/(3*Rfb1_),47) -> 47 | C139: pF | H139: =0.00005/3/Rfb1_ -> 3.679175865e-11
A140: Recommended Cff / Cb | B140: =IF(OR(MODE=2,MODE=3), ">"&ROUND(B139,0),"") -> >47 | C140: pF
A141: Selected Cff / Cb | B141: ='Design Converter'!$E$29 -> 56 | C141: pF
A143: Minimum Ripple Generation Capacitance | B143: =10/(Fsw*Rfb) -> 3.707930947e-10 | C143: F | D143: =1000000000000*B143 -> 370.7930947 | E143: pF | F143: =Rfb -> 44948.69755
A144: Recommended Ca | B144: =IF(MODE=3, ">"&ROUND(D143,0),"") ->  | C144: pF
A145: Selected Ca | B145: ='Design Converter'!E31 -> 3300 | C145: pF | D145: =B145/1000000000000 -> 3.3e-09 | E145: F
A147: Maximum Ripple Generation Resistance | B147: =(VIN_nom-Vout)*B126/((B149/1000)*Ca) -> 227272.7273 | C147: W | D147: =B147/1000 -> 227.2727273 | E147: kW
A148: Recommended Ra | B148: =IF(MODE=3, "<"&ROUND(D147,0),"") ->  | C148: kW | L148: Lf_emi | M148: ='Design EMI Filter'!$E$9 -> 22 | N148: uH | O148: =M148/1000000 -> 2.2e-05 | P148: H
A149: Ripple amplitude | B149: ='Design Converter'!E33 -> 20 | C149: mVp-p | L149: Cf_emi | M149: ='Design EMI Filter'!$E$11 -> 4.7 | N149: uF | O149: =M149/1000000 -> 4.7e-06 | P149: F
L150: Cd_emi | M150: ='Design EMI Filter'!$E$13 -> 10 | N150: uF | O150: =M150/1000000 -> 1e-05 | P150: F
L151: ESR_Cd | M151: ='Design EMI Filter'!$E$15 -> 3.3 | N151: Ω | O151: =M151 -> 3.3 | P151: Ω | Q151: =ESR_Cd&ohm -> 3.3Ω
A152: Step 5: Input Capacitor | L152: Min Noise | M152: ='Design EMI Filter'!$E$8 -> 50 | N152: dB | O152: noise limit
A153: Vinripple1 | B153: =0.05*VIN_nom -> 2.4 | C153: Vp-p | D153: Input voltage ripple spec (pk-pk) at Vin(nom) | L153: Duty Cycle | M153: =Vout/VIN_nom/Efficiency_COT_Full_Load -> 0.289017341 | O153: calculated duty cycle
L154: Target Atten. | M154: =20*LOG(Iout/(PI()^2*Fsw*Cin)*SIN(PI()*Duty_Cycle)/0.000001) - Min_Noise -> 35.17833182 | N154: dB | O154: calculated attenuation
A155: Icinrms | B155: =Iout*SQRT(Don_Vinnom_2*(1-Don_Vinnom_2)) -> 0.1306443031 | C155: A
A156: Cinmin | B156: =Iout*Don_Vinnom_2*(1-Don_Vinnom_2)/(Vinripple1*Fsw-Iout*RCinEsr)*1000000 -> 0.03950910634 | C156: µF
A157: Reported Cinmin | B157: =IF(Cinmin<2.2, 2.2,Cinmin) -> 2.2 | C157: µF | L157: Filter Inductor
A158: Cin | B158: ='Design Converter'!E37/1000000 -> 2.2e-06 | C158: F | D158: Input capacitance | L158: Irms rating | M158: =Iout*1.5 -> 0.45 | N158: A | O158: calculated suggested IRMS rating
A159: CinEsrMax | B159: =-(Iout*Don_Vinnom_2*(1-Don_Vinnom_2)/(Cin*Fsw)-Vinripple1)/(Iout+Iripple_Vinnom/2) -> 6.283033803 | C159: W
A160: RCinEsr | B160: ='Design Converter'!E39/1000 -> 0.003 | C160: W | D160: Input capacitance series resistance (ESR)
A161: Reported Cin ESR max | B161: =IF(OR(CinEsrMax>12, CinEsrMax<0), "N/A",CinEsrMax*1000) -> 6283.033803 | C161: mΩ | L161: Filter Capacitor
L162: Cfa calculation | M162: =Cin/(Cin*Lf_emi*0.000001*(2*PI()*Fsw/10)^2 - 1) / 0.000001 -> -2.200015133 | N162: uF | O162: calculated value
A163: COT input voltage ripple - Vinripple2 | B163: =Iout*Don_Vinnom_2*(1-Don_Vinnom_2)/(Cin*Fsw)+(Iout +Iripple_Vinnom/2)*RCinEsr -> 0.04422620684 | C163: Vp-p | E163: =Iout*Don_Vinmax_2*(1-Don_Vinmax_2)/(Cin*Fsw) -> 0.03685662091 | F163: Vp-p | L163: Cfb calculation | M163: =1/(Lf_emi)*(10^(Target_Att/40)/(2*PI()*Fsw))^2/0.000001 -> 0.1835826662 | N163: uF | O163: calculated value
L164: Cf | M164: =MAX(M162,M163) -> 0.1835826662 | N164: uF | O164: calculated value
L167: Damping Capacitor
A168: Step 6: Soft Start | L168: Cd ≥ | M168: =4*Cin*1000000 -> 8.8 | N168: uF | O168: calculated value
A169: Tss | B169: ='Design Converter'!#REF!/1000 ->  | C169: s | D169: Soft-start time | L169: Cd ESR ≥ | M169: =SQRT(Lf_emi/Cin) -> 3.16227766 | N169: Ω | O169: calculated value
A170: Iss | B170: 1e-05 | C170: A | D170: Soft-start current
A171: Css | B171: =8.16*Tss/1000000 ->  | C171: F | D171: Required soft-start cap
A172: Css_u | B172: ='Standard Value Calculator'!B4 ->  | C172: F | D172: User selected SS cap | L172: CIN and Cd Capacitors Current Sharing and Rating
L173: Cd impedance | M173: =1/(2*PI()*Fsw*Cd_emi) + ESR_Cd -> 3.326525824 | N173: Ω | O173: calculated Cd impedance at the sw. frequency
A174: Step 7: Other Components - UVLO, PGOOD | L174: Cin impedance | M174: =1/(2*PI()*Fsw*Cin) + RCinEsr -> 0.1235719266 | N174: Ω | O174: calculated CIN impedance at the sw. frequency
A176: Rising UVLO/EN Threshold | B176: 1.5 | C176: V | L176: IRMS Total Input Cap | M176: =Iout*SQRT(Duty_Cycle*(1-Duty_Cycle)) -> 0.135991796 | N176: A | O176: calculated total IRMS current for CIN and Cd combined
A177: Falling UVLO/EN Threshold | B177: 1.4 | C177: V | L177: IRMS Cd Act | M177: =IRMSTOT*(ZCIN/(ZCIN+ZCd)) -> 0.004870809307 | N177: A | O177: Calculated min IRMS current rating for Cd
A178: Voltage Hysteresis | B178: =B176-B177 -> 0.1 | C178: V | L178: IRMS CIN | M178: =IRMSTOT*(ZCd/(ZCIN+ZCd)) -> 0.1311209867 | N178: A | O178: Calculated min IRMS current rating for CIN
A180: VINUVLO_ON | B180: ='Design Converter'!E48 -> 6 | C180: V
A181: VINUVLO_OFF | C181: V
A183: RUV1 | B183: ='Design Converter'!E49*1000 -> 1000 | C183: kΩ | D183: ='Standard Value Calculator'!J16 -> 1000 | E183: kΩ | F183: =IF(Ruvlo1<0,"N/A",D183) -> 1000 | G183: =IF(Ruvlo1<0,"N/A",D183&"kΩ") -> 1000kΩ
A184: RUV2 | B184: =Vuvlo_on*Ruvlo1/(VINuvlo_on-Vuvlo_on) -> 333.3333333 | C184: kΩ | D184: ='Standard Value Calculator'!J17 -> 332 | E184: kΩ | F184: =IF(F183="N/A","N/A",D184) -> 332 | G184: =IF(G183="N/A","N/A",D184&"kΩ") -> 332kΩ
A186: VINUVLO_ON_ACTUAL | B186: =(D183+D184)/D184*Vuvlo_on -> 6.018072289 | C186: V
A187: VINUVLO_OFF_ACTUAL | B187: =(D183+D184)/D184*Vuvlo_off -> 5.61686747 | C187: V
A189: RPG | B189: 20 | C189: kΩ
A192: Step 8: FB Divider
A193: Pi | B193: 3.14159265 | D193: p
A194: Toff_Vinmax | B194: =(1-Don_Vinmax_2)/Fsw -> 1.327271217e-06 | C194: sec
A195: Ton_Vinmin | B195: =IF(VIN_min>Vout, (1-Don_Vinmin_2)/Fsw, Don_Vinmin_2/Fsw) -> 5.444810544e-07 | C195: sec
A197: Rfb1 | B197: ='Design Converter'!E43*1000 -> 453000 | C197: W | D197: Lower Feedback Resistance - chosen by user | I197: 1
A198: Rfb2 | B198: =IF(Vout=Vref,100000000,Vref*B197/((Vout-Vref))) -> 50333.33333 | C198: W | D198: Upper Feedback Resistance
A199: Rfb2_u | B199: =IF(Vout=Vref,"N/A",'Standard Value Calculator'!J10) -> 49900 | C199: W | D199: Std Value Upper Feedback Resistance
A200: Rfb | B200: =Rfb1_*Rfb2_u/(Rfb1_+Rfb2_u) -> 44948.69755 | C200: W | D200: Rfb1 || Rfb2_u
B201: =1.2/Rfb2_u*(Rfb2_u+Rfb1_) -> 12.09378758 | C201: V
A202: Ifb | B202: =CHOOSE(MODE_VOUT, IF(Vout=5, 0.000007, 0.0000038), Vout/(Rfb1_+Rfb2_u)) -> 2.38616027e-05
A204: Other Input Variables
A205: Rfets | B205: 0 | C205: W | D205: Series resistance due to FETs | H205: =_Don2*RdsonTop+Doff2*RdsonBot+B209*Vin^2*Fsw/2/(((Iripple1/SQRT(3))^2)) -> 446.2874851
A206: Diode loss eq res | B206: =0.00000002*Fsw*0.6*4/Iripple1 -> 0.1887350135
A207: Fet loss eq res | B207: =_Don2*RdsonTop+Doff2*RdsonBot -> 1.02616875
A208: cap loss eq res | B208: =B209*Vin^2*Fsw/2/(((Iripple1/SQRT(3))^2)) -> 445.2613163
A209: Sw cap | B209: 5e-09
A211: Step 8: Efficiency
A213: Design
A214: Ta | B214: 25 | C214: °C | D214: Ambient Temperature
A215: Components
A216: LTc | B216: =4000/1000000 -> 0.004 | C216: %/°C | D216: Inductor DCR Temp Co
A217: θCA | B217: 40 | C217: °C/W | D217: Inductor Core to Ambient Thermal Resistance
A218: RCinEsr | B218: =RCinEsr -> 0.003 | C218: W | D218: Input Capacitor ESR
A219: Part Characteristics
A220: Vcc | B220: =IF(Vin>7.7,7.5,Vin-0.2) -> 7.5 | C220: V
A221: Deadtime
A222: Deadtime | B222: 7e-09 | C222: s | D222: Total Deadtime | G222: 20ns for LM5166
A223: IQ
A224: IQ | B224: 1e-05 | C224: A | D224: Quiescent Current Of Controller (Not Switching!)
A227: IC Power Disipation | B227: Value | C227: Units
A228: Power Dis | B228: =Efficiency!AZ106 -> 0.5436508596 | C228: W
A229: Temp rise | B229: =B228*ThetaJA -> 22.34405033 | C229: °C
A230: Current (switching) | B230: =(Qg_Q1+Qg_Q2)*Fsw+Iq ->  | C230: A
A231: Qrr Current | B231: =Qrr_Q2*Fsw ->  | C231: A
A232: Diode Current | B232: =C232/Vin ->  | C232: =Deadtime*Fsw*(Ipp/2)*(Vsd_Q1+Vsd_Q2) -> 
A233: Total Application Switching IQ | B233: =SUM(B230:B232) ->  | C233: A
A236: SCHEMATIC LABELS
A239: ="RUV1 = "&'Design Converter'!E49&"MΩ" -> RUV1 = 1MΩ | B239: =C275 -> 1MΩ
A240: ="RUV2 = "&'Design Converter'!E50&"kΩ" -> RUV2 = 332kΩ | B240: =C276 -> 332kΩ
A241: ="Rhys = "&'Design Converter'!E52&"kΩ" -> Rhys = 5.61686746987952kΩ | B241: =C277 -> 
A243: ="LF = "&'Design Converter'!E17&"µH" -> LF = 100µH | B243: ='Design Converter'!E17&"µH" -> 100µH
A244: ="Rdcr = "&Rdcr*1000&"mΩ" -> Rdcr = 170mΩ | B244: =Rdcr*1000&"mΩ" -> 170mΩ
A245: ="Rt = "&'Design Converter'!I43&"kΩ" -> Rt = kΩ | B245: ='Design Converter'!I43&"kΩ" -> kΩ
A246: ="Css = "&ROUND(Css_u*1000000000,1)&"nF" ->  | B246: =ROUND(Css_u*1000000000,1)&"nF" -> 
A248: VIN | B248: =VIN_nom&"V" -> 48V
A249: VIN range | B249: =VIN_min&"V..."&VIN_max&"V" -> 18V...60V
A251: ="VOUT = "&'Design Converter'!E9&"V" -> VOUT = 12V | B251: ='Design Converter'!E9&"V" -> 12V
C252: =R30 -> 22 | D252: =ROUNDUP('Design Converter'!$E$24/C252,0) -> 1
A253: ="COUT = "&'Design Converter'!$E$24&"µF" -> COUT = 12µF | B253: ='Design Converter'!$E$24&"µF" -> 12µF | C253: =IF('Design Converter'!$E$24=OR(10, 22, 47, 100), 'Design Converter'!$E$24,C252) -> 22 | D253: =IF(D252=1, "",B255) ->  | E253: =D253&C253&"µF" -> 22µF | F253: =C253&"µF" -> 22µF
A254: Capacitance per component (Cout) | B254: =C252&"µF" -> 22µF
... 47 more rows

Sheet Standard Value Calculator (hidden)
A2: Capacitors | B2: Css | C2: Cout | D2: Cin | E2: Cb
A3: Inputs | B3: =Css ->  | C3: =Cout -> 1.2e-05 | D3: =Cin -> 2.2e-06 | E3: =Cb -> 0 | H3: Resistors | I3: inputs | J3: Standard Result
A4: Standard Result | B4: =SUM(B6:B158)/1000000000000 ->  | C4: =SUM(C6:C158)/1000000000000 -> 1.2e-05 | D4: =SUM(D6:D158)/1000000000000 -> 2.2e-06 | E4: =IF(E3="OPEN","OPEN",SUM(E6:E158)/1000000000000) -> 0 | H4: Rt | I4: =Rt -> 50000 | J4: =IF(I4>(INT(0.5+100*POWER(10,IF(96*(LOG(I4)-INT(LOG(I4)))-ROUND(96*(LOG(I4)-INT(LOG(I4))),0)<0,ROUND(96*(LOG(I4)-INT(LOG(I4))),0)-1,ROUND(96*(LOG(I4)-INT(LOG(I4))),0))/96))*POWER(10,INT(LOG(I4))-2)+INT(0.5+100*POWER(10,(IF(96*(LOG(I4)-INT(LOG(I4)))-ROUND(96*(LOG(I4)-INT(LOG(I4))),0)<0,ROUND(96*(LOG(I4)-INT(LOG(I4))),0)-1,ROUND(96*(LOG(I4)-INT(LOG(I4))),0))+1)/96))*POWER(10,INT(LOG(I4))-2))/2,INT(0.5+100*POWER(10,(IF(96*(LOG(I4)-INT(LOG(I4)))-ROUND(96*(LOG(I4)-INT(LOG(I4))),0)<0,ROUND(96*(LOG(I4)-INT(LOG(I4))),0)-1,ROUND(96*(LOG(I4)-INT(LOG(I4))),0))+1)/96))*POWER(10,INT(LOG(I4))-2),INT(0.5+100*POWER(10,IF(96*(LOG(I4)-INT(LOG(I4)))-ROUND(96*(LOG(I4)-INT(LOG(I4))),0)<0,ROUND(96*(LOG(I4)-INT(LOG(I4))),0)-1,ROUND(96*(LOG(I4)-INT(LOG(I4))),0))/96))*POWER(10,INT(LOG(I4))-2)) -> 49900 | K4: Ω
A5: (pF)
A6: 0.47 | B6: =IF(IF((B$3*10^12-$A7)*(B$3*10^12-$A6)*-1<0,0,1)*IF(ABS(B$3*10^12-$A7)>(B$3*10^12-$A6),$A6,$A7)=B7,0,IF((B$3*10^12-$A7)*(B$3*10^12-$A6)*-1<0,0,1)*IF(ABS(B$3*10^12-$A7)>(B$3*10^12-$A6),$A6,$A7)) ->  | C6: =IF(IF((C$3*10^12-$A7)*(C$3*10^12-$A6)*-1<0,0,1)*IF(ABS(C$3*10^12-$A7)>(C$3*10^12-$A6),$A6,$A7)=C7,0,IF((C$3*10^12-$A7)*(C$3*10^12-$A6)*-1<0,0,1)*IF(ABS(C$3*10^12-$A7)>(C$3*10^12-$A6),$A6,$A7)) -> 0 | D6: =IF(IF((D$3*10^12-$A7)*(D$3*10^12-$A6)*-1<0,0,1)*IF(ABS(D$3*10^12-$A7)>(D$3*10^12-$A6),$A6,$A7)=D7,0,IF((D$3*10^12-$A7)*(D$3*10^12-$A6)*-1<0,0,1)*IF(ABS(D$3*10^12-$A7)>(D$3*10^12-$A6),$A6,$A7)) -> 0 | E6: =IF(IF((E$3*10^12-$A7)*(E$3*10^12-$A6)*-1<0,0,1)*IF(ABS(E$3*10^12-$A7)>(E$3*10^12-$A6),$A6,$A7)=E7,0,IF((E$3*10^12-$A7)*(E$3*10^12-$A6)*-1<0,0,1)*IF(ABS(E$3*10^12-$A7)>(E$3*10^12-$A6),$A6,$A7)) -> 0 | H6: Rshunt | I6: =Rshunt ->  | K6: Ω
A7: 0.56 | B7: =IF(IF((B$3*10^12-$A8)*(B$3*10^12-$A7)*-1<0,0,1)*IF(ABS(B$3*10^12-$A8)>(B$3*10^12-$A7),$A7,$A8)=B8,0,IF((B$3*10^12-$A8)*(B$3*10^12-$A7)*-1<0,0,1)*IF(ABS(B$3*10^12-$A8)>(B$3*10^12-$A7),$A7,$A8)) ->  | C7: =IF(IF((C$3*10^12-$A8)*(C$3*10^12-$A7)*-1<0,0,1)*IF(ABS(C$3*10^12-$A8)>(C$3*10^12-$A7),$A7,$A8)=C8,0,IF((C$3*10^12-$A8)*(C$3*10^12-$A7)*-1<0,0,1)*IF(ABS(C$3*10^12-$A8)>(C$3*10^12-$A7),$A7,$A8)) -> 0 | D7: =IF(IF((D$3*10^12-$A8)*(D$3*10^12-$A7)*-1<0,0,1)*IF(ABS(D$3*10^12-$A8)>(D$3*10^12-$A7),$A7,$A8)=D8,0,IF((D$3*10^12-$A8)*(D$3*10^12-$A7)*-1<0,0,1)*IF(ABS(D$3*10^12-$A8)>(D$3*10^12-$A7),$A7,$A8)) -> 0 | E7: =IF(IF((E$3*10^12-$A8)*(E$3*10^12-$A7)*-1<0,0,1)*IF(ABS(E$3*10^12-$A8)>(E$3*10^12-$A7),$A7,$A8)=E8,0,IF((E$3*10^12-$A8)*(E$3*10^12-$A7)*-1<0,0,1)*IF(ABS(E$3*10^12-$A8)>(E$3*10^12-$A7),$A7,$A8)) -> 0 | H7: Rc1ea | I7: =Rcea1 ->  | K7: Ω
A8: 0.68 | C8: 0 | D8: 0 | E8: 0
A9: 0.82 | C9: 0 | D9: 0 | E9: 0 | H9: Rfb1 | I9: =Rfb1_ -> 453000 | J9: 453000 | K9: Ω
A10: 1 | C10: 0 | D10: 0 | E10: 0 | H10: Rfb2 | I10: =Rfb2_ -> 50333.33333 | J10: =IF(I10="OPEN","OPEN",IF(I10>(INT(0.5+100*POWER(10,IF(96*(LOG(I10)-INT(LOG(I10)))-ROUND(96*(LOG(I10)-INT(LOG(I10))),0)<0,ROUND(96*(LOG(I10)-INT(LOG(I10))),0)-1,ROUND(96*(LOG(I10)-INT(LOG(I10))),0))/96))*POWER(10,INT(LOG(I10))-2)+INT(0.5+100*POWER(10,(IF(96*(LOG(I10)-INT(LOG(I10)))-ROUND(96*(LOG(I10)-INT(LOG(I10))),0)<0,ROUND(96*(LOG(I10)-INT(LOG(I10))),0)-1,ROUND(96*(LOG(I10)-INT(LOG(I10))),0))+1)/96))*POWER(10,INT(LOG(I10))-2))/2,INT(0.5+100*POWER(10,(IF(96*(LOG(I10)-INT(LOG(I10)))-ROUND(96*(LOG(I10)-INT(LOG(I10))),0)<0,ROUND(96*(LOG(I10)-INT(LOG(I10))),0)-1,ROUND(96*(LOG(I10)-INT(LOG(I10))),0))+1)/96))*POWER(10,INT(LOG(I10))-2),INT(0.5+100*POWER(10,IF(96*(LOG(I10)-INT(LOG(I10)))-ROUND(96*(LOG(I10)-INT(LOG(I10))),0)<0,ROUND(96*(LOG(I10)-INT(LOG(I10))),0)-1,ROUND(96*(LOG(I10)-INT(LOG(I10))),0))/96))*POWER(10,INT(LOG(I10))-2))) -> 49900 | K10: Ω
A11: 1.2 | C11: 0 | D11: 0 | E11: 0
A12: 1.5 | C12: 0 | D12: 0 | E12: 0
A13: 1.8 | C13: 0 | D13: 0 | E13: 0 | H13: Rs | I13: =Rs_ideal*1000 ->  | J13: =IF(I13=0,0,IF(I13>(INT(0.5+100*POWER(10,IF(96*(LOG(I13)-INT(LOG(I13)))-ROUND(96*(LOG(I13)-INT(LOG(I13))),0)<0,ROUND(96*(LOG(I13)-INT(LOG(I13))),0)-1,ROUND(96*(LOG(I13)-INT(LOG(I13))),0))/96))*POWER(10,INT(LOG(I13))-2)+INT(0.5+100*POWER(10,(IF(96*(LOG(I13)-INT(LOG(I13)))-ROUND(96*(LOG(I13)-INT(LOG(I13))),0)<0,ROUND(96*(LOG(I13)-INT(LOG(I13))),0)-1,ROUND(96*(LOG(I13)-INT(LOG(I13))),0))+1)/96))*POWER(10,INT(LOG(I13))-2))/2,INT(0.5+100*POWER(10,(IF(96*(LOG(I13)-INT(LOG(I13)))-ROUND(96*(LOG(I13)-INT(LOG(I13))),0)<0,ROUND(96*(LOG(I13)-INT(LOG(I13))),0)-1,ROUND(96*(LOG(I13)-INT(LOG(I13))),0))+1)/96))*POWER(10,INT(LOG(I13))-2),INT(0.5+100*POWER(10,IF(96*(LOG(I13)-INT(LOG(I13)))-ROUND(96*(LOG(I13)-INT(LOG(I13))),0)<0,ROUND(96*(LOG(I13)-INT(LOG(I13))),0)-1,ROUND(96*(LOG(I13)-INT(LOG(I13))),0))/96))*POWER(10,INT(LOG(I13))-2))) ->  | K13: mΩ
A14: 2.2 | B14: =IF(IF((B$3*10^12-$A15)*(B$3*10^12-$A14)*-1<0,0,1)*IF(ABS(B$3*10^12-$A15)>(B$3*10^12-$A14),$A14,$A15)=B15,0,IF((B$3*10^12-$A15)*(B$3*10^12-$A14)*-1<0,0,1)*IF(ABS(B$3*10^12-$A15)>(B$3*10^12-$A14),$A14,$A15)) ->  | C14: =IF(IF((C$3*10^12-$A15)*(C$3*10^12-$A14)*-1<0,0,1)*IF(ABS(C$3*10^12-$A15)>(C$3*10^12-$A14),$A14,$A15)=C15,0,IF((C$3*10^12-$A15)*(C$3*10^12-$A14)*-1<0,0,1)*IF(ABS(C$3*10^12-$A15)>(C$3*10^12-$A14),$A14,$A15)) -> 0 | D14: =IF(IF((D$3*10^12-$A15)*(D$3*10^12-$A14)*-1<0,0,1)*IF(ABS(D$3*10^12-$A15)>(D$3*10^12-$A14),$A14,$A15)=D15,0,IF((D$3*10^12-$A15)*(D$3*10^12-$A14)*-1<0,0,1)*IF(ABS(D$3*10^12-$A15)>(D$3*10^12-$A14),$A14,$A15)) -> 0 | E14: =IF(IF((E$3*10^12-$A15)*(E$3*10^12-$A14)*-1<0,0,1)*IF(ABS(E$3*10^12-$A15)>(E$3*10^12-$A14),$A14,$A15)=E15,0,IF((E$3*10^12-$A15)*(E$3*10^12-$A14)*-1<0,0,1)*IF(ABS(E$3*10^12-$A15)>(E$3*10^12-$A14),$A14,$A15)) -> 0 | H14: Cslope_ideal | I14: =Cslope_ideal ->  | J14: =#REF!*1000000000000 ->  | K14: pF
A15: 2.7 | C15: 0 | D15: 0 | E15: 0
A16: 3.3 | C16: 0 | D16: 0 | E16: 0 | H16: Ruv1 | I16: =Ruvlo1 -> 1000 | J16: =IF(I16="OPEN","OPEN",IF(I16>(INT(0.5+100*POWER(10,IF(96*(LOG(I16)-INT(LOG(I16)))-ROUND(96*(LOG(I16)-INT(LOG(I16))),0)<0,ROUND(96*(LOG(I16)-INT(LOG(I16))),0)-1,ROUND(96*(LOG(I16)-INT(LOG(I16))),0))/96))*POWER(10,INT(LOG(I16))-2)+INT(0.5+100*POWER(10,(IF(96*(LOG(I16)-INT(LOG(I16)))-ROUND(96*(LOG(I16)-INT(LOG(I16))),0)<0,ROUND(96*(LOG(I16)-INT(LOG(I16))),0)-1,ROUND(96*(LOG(I16)-INT(LOG(I16))),0))+1)/96))*POWER(10,INT(LOG(I16))-2))/2,INT(0.5+100*POWER(10,(IF(96*(LOG(I16)-INT(LOG(I16)))-ROUND(96*(LOG(I16)-INT(LOG(I16))),0)<0,ROUND(96*(LOG(I16)-INT(LOG(I16))),0)-1,ROUND(96*(LOG(I16)-INT(LOG(I16))),0))+1)/96))*POWER(10,INT(LOG(I16))-2),INT(0.5+100*POWER(10,IF(96*(LOG(I16)-INT(LOG(I16)))-ROUND(96*(LOG(I16)-INT(LOG(I16))),0)<0,ROUND(96*(LOG(I16)-INT(LOG(I16))),0)-1,ROUND(96*(LOG(I16)-INT(LOG(I16))),0))/96))*POWER(10,INT(LOG(I16))-2))) -> 1000 | K16: kΩ
A17: 3.9 | C17: 0 | D17: 0 | E17: 0 | H17: Ruv2 | I17: =Ruvlo2 -> 333.3333333 | J17: =IF(I17="OPEN","OPEN",IF(I17>(INT(0.5+100*POWER(10,IF(96*(LOG(I17)-INT(LOG(I17)))-ROUND(96*(LOG(I17)-INT(LOG(I17))),0)<0,ROUND(96*(LOG(I17)-INT(LOG(I17))),0)-1,ROUND(96*(LOG(I17)-INT(LOG(I17))),0))/96))*POWER(10,INT(LOG(I17))-2)+INT(0.5+100*POWER(10,(IF(96*(LOG(I17)-INT(LOG(I17)))-ROUND(96*(LOG(I17)-INT(LOG(I17))),0)<0,ROUND(96*(LOG(I17)-INT(LOG(I17))),0)-1,ROUND(96*(LOG(I17)-INT(LOG(I17))),0))+1)/96))*POWER(10,INT(LOG(I17))-2))/2,INT(0.5+100*POWER(10,(IF(96*(LOG(I17)-INT(LOG(I17)))-ROUND(96*(LOG(I17)-INT(LOG(I17))),0)<0,ROUND(96*(LOG(I17)-INT(LOG(I17))),0)-1,ROUND(96*(LOG(I17)-INT(LOG(I17))),0))+1)/96))*POWER(10,INT(LOG(I17))-2),INT(0.5+100*POWER(10,IF(96*(LOG(I17)-INT(LOG(I17)))-ROUND(96*(LOG(I17)-INT(LOG(I17))),0)<0,ROUND(96*(LOG(I17)-INT(LOG(I17))),0)-1,ROUND(96*(LOG(I17)-INT(LOG(I17))),0))/96))*POWER(10,INT(LOG(I17))-2))) -> 332 | K17: kΩ
A18: 4.7 | C18: 0 | D18: 0 | E18: 0 | H18: Rhys | I18: =Rhys ->  | J18: =IF(I18="OPEN","OPEN",IF(I18>(INT(0.5+100*POWER(10,IF(96*(LOG(I18)-INT(LOG(I18)))-ROUND(96*(LOG(I18)-INT(LOG(I18))),0)<0,ROUND(96*(LOG(I18)-INT(LOG(I18))),0)-1,ROUND(96*(LOG(I18)-INT(LOG(I18))),0))/96))*POWER(10,INT(LOG(I18))-2)+INT(0.5+100*POWER(10,(IF(96*(LOG(I18)-INT(LOG(I18)))-ROUND(96*(LOG(I18)-INT(LOG(I18))),0)<0,ROUND(96*(LOG(I18)-INT(LOG(I18))),0)-1,ROUND(96*(LOG(I18)-INT(LOG(I18))),0))+1)/96))*POWER(10,INT(LOG(I18))-2))/2,INT(0.5+100*POWER(10,(IF(96*(LOG(I18)-INT(LOG(I18)))-ROUND(96*(LOG(I18)-INT(LOG(I18))),0)<0,ROUND(96*(LOG(I18)-INT(LOG(I18))),0)-1,ROUND(96*(LOG(I18)-INT(LOG(I18))),0))+1)/96))*POWER(10,INT(LOG(I18))-2),INT(0.5+100*POWER(10,IF(96*(LOG(I18)-INT(LOG(I18)))-ROUND(96*(LOG(I18)-INT(LOG(I18))),0)<0,ROUND(96*(LOG(I18)-INT(LOG(I18))),0)-1,ROUND(96*(LOG(I18)-INT(LOG(I18))),0))/96))*POWER(10,INT(LOG(I18))-2))) ->  | K18: kΩ
A19: 5.6 | C19: 0 | D19: 0 | E19: 0
A20: 6.8 | C20: 0 | D20: 0 | E20: 0 | H20: Ra | I20: ='Variable Mgmt'!D147 -> 227.2727273 | J20: =IF(I20="OPEN","OPEN",IF(I20>(INT(0.5+100*POWER(10,IF(96*(LOG(I20)-INT(LOG(I20)))-ROUND(96*(LOG(I20)-INT(LOG(I20))),0)<0,ROUND(96*(LOG(I20)-INT(LOG(I20))),0)-1,ROUND(96*(LOG(I20)-INT(LOG(I20))),0))/96))*POWER(10,INT(LOG(I20))-2)+INT(0.5+100*POWER(10,(IF(96*(LOG(I20)-INT(LOG(I20)))-ROUND(96*(LOG(I20)-INT(LOG(I20))),0)<0,ROUND(96*(LOG(I20)-INT(LOG(I20))),0)-1,ROUND(96*(LOG(I20)-INT(LOG(I20))),0))+1)/96))*POWER(10,INT(LOG(I20))-2))/2,INT(0.5+100*POWER(10,(IF(96*(LOG(I20)-INT(LOG(I20)))-ROUND(96*(LOG(I20)-INT(LOG(I20))),0)<0,ROUND(96*(LOG(I20)-INT(LOG(I20))),0)-1,ROUND(96*(LOG(I20)-INT(LOG(I20))),0))+1)/96))*POWER(10,INT(LOG(I20))-2),INT(0.5+100*POWER(10,IF(96*(LOG(I20)-INT(LOG(I20)))-ROUND(96*(LOG(I20)-INT(LOG(I20))),0)<0,ROUND(96*(LOG(I20)-INT(LOG(I20))),0)-1,ROUND(96*(LOG(I20)-INT(LOG(I20))),0))/96))*POWER(10,INT(LOG(I20))-2))) -> 226 | K20: kΩ
A21: 8.2 | C21: 0 | D21: 0 | E21: 0
A22: 10 | C22: 0 | D22: 0 | E22: 0
A23: 12 | C23: 0 | D23: 0 | E23: 0
A24: 15 | C24: 0 | D24: 0 | E24: 0
A25: 18 | C25: 0 | D25: 0 | E25: 0
A26: 22 | C26: 0 | D26: 0 | E26: 0
A27: 27 | C27: 0 | D27: 0 | E27: 0
A28: 33 | C28: 0 | D28: 0 | E28: 0
A29: 39 | C29: 0 | D29: 0 | E29: 0
A30: 47 | C30: 0 | D30: 0 | E30: 0
A31: 56 | C31: 0 | D31: 0 | E31: 0
A32: 68 | C32: 0 | D32: 0 | E32: 0
A33: 82 | C33: 0 | D33: 0 | E33: 0
A34: =A22*10 -> 100 | C34: 0 | D34: 0 | E34: 0
A35: =A23*10 -> 120 | C35: 0 | D35: 0 | E35: 0
A36: 150 | C36: 0 | D36: 0 | E36: 0
A37: 180 | C37: 0 | D37: 0 | E37: 0
A38: 220 | C38: 0 | D38: 0 | E38: =IF(IF((E$3*10^12-$A39)*(E$3*10^12-$A38)*-1<0,0,1)*IF(ABS(E$3*10^12-$A39)>(E$3*10^12-$A38),$A38,$A39)=E39,0,IF((E$3*10^12-$A39)*(E$3*10^12-$A38)*-1<0,0,1)*IF(ABS(E$3*10^12-$A39)>(E$3*10^12-$A38),$A38,$A39)) -> 0
A39: 270 | C39: 0 | D39: 0 | E39: 0
A40: 330 | C40: 0 | D40: 0 | E40: 0
A41: 390 | C41: 0 | D41: 0 | E41: 0
A42: 470 | C42: 0 | D42: 0 | E42: 0
A43: 560 | C43: 0 | D43: 0 | E43: 0
A44: 680 | C44: 0 | D44: 0 | E44: 0
A45: =A33*10 -> 820 | C45: 0 | D45: 0 | E45: 0
A46: 1000 | C46: 0 | D46: 0 | E46: 0
A47: 1200 | C47: 0 | D47: 0 | E47: 0
A48: 1500 | C48: 0 | D48: 0 | E48: 0
A49: 1800 | C49: 0 | D49: 0 | E49: 0
A50: 2200 | C50: 0 | D50: 0 | E50: 0
A51: 2700 | C51: 0 | D51: 0 | E51: 0
A52: 3300 | C52: 0 | D52: 0 | E52: 0
A53: 3900 | C53: 0 | D53: 0 | E53: 0
A54: 4700 | C54: 0 | D54: 0 | E54: 0
A55: 5600 | C55: 0 | D55: 0 | E55: 0
A56: 6800 | C56: 0 | D56: 0 | E56: 0
A57: 8200 | C57: 0 | D57: 0 | E57: 0
A58: 10000 | C58: 0 | D58: 0 | E58: 0
A59: 12000 | C59: 0 | D59: 0 | E59: 0
A60: 15000 | C60: 0 | D60: 0 | E60: 0
A61: 18000 | C61: 0 | D61: 0 | E61: 0
A62: 22000 | C62: 0 | D62: 0 | E62: 0
A63: 27000 | C63: 0 | D63: 0 | E63: 0
A64: 33000 | C64: 0 | D64: 0 | E64: 0
A65: 39000 | C65: 0 | D65: 0 | E65: 0
A66: 47000 | C66: 0 | D66: 0 | E66: 0
A67: 56000 | C67: 0 | D67: 0 | E67: 0
A68: 68000 | C68: 0 | D68: 0 | E68: 0
A69: 82000 | C69: 0 | D69: 0 | E69: 0
A70: 100000 | C70: =IF(IF((C$3*10^12-$A71)*(C$3*10^12-$A70)*-1<0,0,1)*IF(ABS(C$3*10^12-$A71)>(C$3*10^12-$A70),$A70,$A71)=C71,0,IF((C$3*10^12-$A71)*(C$3*10^12-$A70)*-1<0,0,1)*IF(ABS(C$3*10^12-$A71)>(C$3*10^12-$A70),$A70,$A71)) -> 0 | D70: =IF(IF((D$3*10^12-$A71)*(D$3*10^12-$A70)*-1<0,0,1)*IF(ABS(D$3*10^12-$A71)>(D$3*10^12-$A70),$A70,$A71)=D71,0,IF((D$3*10^12-$A71)*(D$3*10^12-$A70)*-1<0,0,1)*IF(ABS(D$3*10^12-$A71)>(D$3*10^12-$A70),$A70,$A71)) -> 0 | E70: =IF(IF((E$3*10^12-$A71)*(E$3*10^12-$A70)*-1<0,0,1)*IF(ABS(E$3*10^12-$A71)>(E$3*10^12-$A70),$A70,$A71)=E71,0,IF((E$3*10^12-$A71)*(E$3*10^12-$A70)*-1<0,0,1)*IF(ABS(E$3*10^12-$A71)>(E$3*10^12-$A70),$A70,$A71)) -> 0
A71: 120000 | B71: =IF(IF((B$3*10^12-$A72)*(B$3*10^12-$A71)*-1<0,0,1)*IF(ABS(B$3*10^12-$A72)>(B$3*10^12-$A71),$A71,$A72)=B72,0,IF((B$3*10^12-$A72)*(B$3*10^12-$A71)*-1<0,0,1)*IF(ABS(B$3*10^12-$A72)>(B$3*10^12-$A71),$A71,$A72)) ->  | C71: =IF(IF((C$3*10^12-$A72)*(C$3*10^12-$A71)*-1<0,0,1)*IF(ABS(C$3*10^12-$A72)>(C$3*10^12-$A71),$A71,$A72)=C72,0,IF((C$3*10^12-$A72)*(C$3*10^12-$A71)*-1<0,0,1)*IF(ABS(C$3*10^12-$A72)>(C$3*10^12-$A71),$A71,$A72)) -> 0 | D71: =IF(IF((D$3*10^12-$A72)*(D$3*10^12-$A71)*-1<0,0,1)*IF(ABS(D$3*10^12-$A72)>(D$3*10^12-$A71),$A71,$A72)=D72,0,IF((D$3*10^12-$A72)*(D$3*10^12-$A71)*-1<0,0,1)*IF(ABS(D$3*10^12-$A72)>(D$3*10^12-$A71),$A71,$A72)) -> 0 | E71: 0
A72: 150000 | C72: 0 | D72: 0 | E72: 0
A73: 180000 | C73: 0 | D73: 0 | E73: 0
A74: 220000 | C74: 0 | D74: 0 | E74: 0
A75: 270000 | C75: 0 | D75: 0 | E75: 0
A76: 330000 | C76: 0 | D76: 0 | E76: 0
A77: 390000 | C77: 0 | D77: 0 | E77: 0
A78: 470000 | C78: 0 | D78: 0 | E78: 0
A79: 560000 | C79: 0 | D79: 0 | E79: 0
A80: 680000 | C80: 0 | D80: 0 | E80: 0
A81: 820000 | C81: 0 | D81: 0 | E81: 0
A82: 1000000 | C82: 0 | D82: 0 | E82: 0
A83: 1200000 | C83: 0 | D83: 0 | E83: 0
A84: 1500000 | C84: 0 | D84: 0 | E84: 0
A85: 1800000 | C85: 0 | D85: 0 | E85: 0
A86: 2200000 | C86: 0 | D86: 2200000 | E86: 0
A87: 2700000 | C87: 0 | D87: 0 | E87: 0
A88: 3300000 | C88: 0 | D88: 0 | E88: 0
A89: 3900000 | C89: 0 | D89: 0 | E89: 0
A90: 4700000 | C90: 0 | D90: 0 | E90: 0
A91: 5600000 | C91: 0 | D91: 0 | E91: 0
A92: 6800000 | C92: 0 | D92: 0 | E92: 0
A93: 8200000 | C93: 0 | D93: 0 | E93: 0
A94: 10000000 | C94: 0 | D94: 0 | E94: 0
A95: 12000000 | C95: 12000000 | D95: 0 | E95: 0
A96: 15000000 | C96: 0 | D96: 0 | E96: 0
A97: 18000000 | C97: 0 | D97: 0 | E97: 0
A98: 22000000 | C98: 0 | D98: 0 | E98: 0
A99: =A87*10 -> 27000000 | C99: 0 | D99: 0 | E99: 0
A100: 33000000 | C100: 0 | D100: 0 | E100: 0
A101: 39000000 | C101: 0 | D101: 0 | E101: 0
A102: 47000000 | C102: 0 | D102: 0 | E102: =IF(IF((E$3*10^12-$A103)*(E$3*10^12-$A102)*-1<0,0,1)*IF(ABS(E$3*10^12-$A103)>(E$3*10^12-$A102),$A102,$A103)=E103,0,IF((E$3*10^12-$A103)*(E$3*10^12-$A102)*-1<0,0,1)*IF(ABS(E$3*10^12-$A103)>(E$3*10^12-$A102),$A102,$A103)) -> 0
A103: 56000000 | C103: 0 | D103: =IF(IF((D$3*10^12-$A104)*(D$3*10^12-$A103)*-1<0,0,1)*IF(ABS(D$3*10^12-$A104)>(D$3*10^12-$A103),$A103,$A104)=D104,0,IF((D$3*10^12-$A104)*(D$3*10^12-$A103)*-1<0,0,1)*IF(ABS(D$3*10^12-$A104)>(D$3*10^12-$A103),$A103,$A104)) -> 0 | E103: 0
A104: 68000000 | C104: 0 | D104: 0 | E104: 0
A105: 82000000 | C105: 0 | D105: 0 | E105: 0
A106: 100000000 | C106: 0 | D106: 0 | E106: 0
A107: 120000000 | C107: 0 | D107: 0 | E107: 0
A108: 150000000 | C108: 0 | D108: 0 | E108: 0
A109: 180000000 | C109: 0 | D109: 0 | E109: 0
A110: 220000000 | C110: 0 | D110: 0 | E110: 0
A111: 270000000 | C111: 0 | D111: 0 | E111: 0
A112: 330000000 | C112: 0 | D112: 0 | E112: 0
A113: 390000000 | C113: 0 | D113: 0 | E113: 0
A114: 470000000 | C114: 0 | D114: 0 | E114: 0
A115: 560000000 | C115: 0 | D115: 0 | E115: 0
A116: 680000000 | C116: 0 | D116: 0 | E116: 0
A117: 820000000 | C117: 0 | D117: 0 | E117: 0
A118: 1000000000 | C118: 0 | D118: 0 | E118: 0
A119: 1200000000 | C119: 0 | D119: 0 | E119: 0
A120: 1500000000 | C120: 0 | D120: 0 | E120: 0
A121: 1800000000 | C121: 0 | D121: 0 | E121: 0
A122: 2200000000 | C122: 0 | D122: 0 | E122: 0
A123: 2700000000 | C123: 0 | D123: 0 | E123: 0
A124: 3300000000 | C124: 0 | D124: 0 | E124: 0
A125: 3900000000 | C125: 0 | D125: 0 | E125: 0
A126: 4700000000 | C126: 0 | D126: 0 | E126: 0
A127: 5600000000 | C127: 0 | D127: 0 | E127: 0
A128: 6800000000 | C128: 0 | D128: 0 | E128: 0
A129: 8200000000 | C129: 0 | D129: 0 | E129: 0
A130: 10000000000 | C130: 0 | D130: 0 | E130: 0
A131: 12000000000 | C131: 0 | D131: 0 | E131: 0
A132: 15000000000 | C132: 0 | D132: 0 | E132: 0
A133: 18000000000 | C133: 0 | D133: 0 | E133: 0
A134: 22000000000 | C134: =IF(IF((C$3*10^12-$A135)*(C$3*10^12-$A134)*-1<0,0,1)*IF(ABS(C$3*10^12-$A135)>(C$3*10^12-$A134),$A134,$A135)=C135,0,IF((C$3*10^12-$A135)*(C$3*10^12-$A134)*-1<0,0,1)*IF(ABS(C$3*10^12-$A135)>(C$3*10^12-$A134),$A134,$A135)) -> 0 | D134: 0 | E134: =IF(IF((E$3*10^12-$A135)*(E$3*10^12-$A134)*-1<0,0,1)*IF(ABS(E$3*10^12-$A135)>(E$3*10^12-$A134),$A134,$A135)=E135,0,IF((E$3*10^12-$A135)*(E$3*10^12-$A134)*-1<0,0,1)*IF(ABS(E$3*10^12-$A135)>(E$3*10^12-$A134),$A134,$A135)) -> 0
A135: 27000000000 | B135: =IF(IF((B$3*10^12-$A136)*(B$3*10^12-$A135)*-1<0,0,1)*IF(ABS(B$3*10^12-$A136)>(B$3*10^12-$A135),$A135,$A136)=B136,0,IF((B$3*10^12-$A136)*(B$3*10^12-$A135)*-1<0,0,1)*IF(ABS(B$3*10^12-$A136)>(B$3*10^12-$A135),$A135,$A136)) ->  | C135: 0 | D135: 0 | E135: 0
A136: 33000000000 | C136: 0 | D136: 0 | E136: 0
A137: 39000000000 | C137: 0 | D137: 0 | E137: 0
A138: 47000000000 | C138: 0 | D138: 0 | E138: 0
A139: 56000000000 | C139: 0 | D139: 0 | E139: 0
A140: 68000000000 | C140: 0 | D140: 0 | E140: 0
A141: 82000000000 | C141: 0 | D141: 0 | E141: 0
A142: 100000000000 | C142: 0 | D142: 0 | E142: 0
A143: 120000000000 | C143: 0 | D143: 0 | E143: 0
A144: 150000000000 | C144: 0 | D144: 0 | E144: 0
A145: 180000000000 | C145: 0 | D145: 0 | E145: 0
A146: 220000000000 | C146: 0 | D146: 0 | E146: 0
A147: 270000000000 | C147: 0 | D147: 0 | E147: 0
A148: 330000000000 | C148: 0 | D148: 0 | E148: 0
A149: 390000000000 | C149: 0 | D149: 0 | E149: 0
A150: 470000000000 | C150: 0 | D150: 0 | E150: 0
A151: 560000000000 | C151: 0 | D151: 0 | E151: 0
A152: 680000000000 | C152: 0 | D152: 0 | E152: 0
A153: 820000000000 | C153: 0 | D153: 0 | E153: 0
A154: 1000000000000 | C154: 0 | D154: 0 | E154: 0
A155: 1200000000000 | C155: 0 | D155: 0 | E155: 0
A156: 1500000000000 | C156: 0 | D156: 0 | E156: 0
A157: 1800000000000 | C157: 0 | D157: 0 | E157: 0
A158: 2200000000000 | C158: 0 | D158: 0 | E158: 0
A159: 2700000000000 | C159: 2700000000000 | D159: 2700000000000 | E159: 2700000000000

Sheet Efficiency (hidden)
A1: LM5169 (COT) Efficiency Calculator
G2: TERMS OF USE | J2: =CoutEsr -> 1 | AW2: didn't include FB
H4: Currents | K4: Miscellaneous | W4: Inductor | AA4: Cout | AD4: Cin | AG4: High-side MOSFET Losses | AP4: Low-side MOSFET Losses | AS4: Diode | BA4: RESULTS
A5: Input Parameters | H5: Step | I5: Iout (A) | J5: Ripple Current pk-pk (A) | K5: Peak Current (A) | L5: Valley Current (A) | M5: VOUT Hysteresis +Undershoot (2us Delay) (mV) | N5: Vout Rise per Pulse (mV) | O5: Number of Pulses in DCM | P5: VOUT Ripple (mV) | Q5: Off Time (sec) | R5: Duty Cycle | S5: Switching Frequency (Hz) | T5: Active Mode Duration (sec) | U5: Sleep Mode Duration (sec) | V5: Operating Quiescent Current (A) | W5: Irms (A) | X5: Inductor DCR Loss @ 25°C (W) | Y5: Inductor Core Loss (W) | Z5: Total Inductor Loss (W) | AA5: Irms (A) | AB5: Cout ESR Loss (W) | AC5: Total Cout Loss (W) | AD5: Irms (A) | AE5: Cin ESR Loss (W) | AF5: Total Cin Loss (W) | AG5: Irms (A) | AH5: Rdson HS Loss @ 25°C (W) | AI5: HS Gate Qg Loss (W) | AJ5: SW Rise Time (ns) | AK5: SW Fall Time (ns) | AL5: HS Switching Loss (W) | AM5: Coss Loss (W) | AN5: Total HS FET AC Loss (W) | AO5: Total HS FET Loss (W) | AP5: Irms (A) | AQ5: Rdson LS Loss @ 25°C (W) | AR5: LS Gate Qg Loss (W) | AS5: Reverse Recovery & Leakage Losses | AT5: DeadTime Loss @ 25°C (W) | AU5: Total LS FET AC Loss (W) | AV5: Total LS FET Loss (W) | AW5: Quiescent Loss (W) | AX5: LDO + Quiescent Loss (W) | AY5: Total Gate Drive Loss (W) | AZ5: Total Power Loss in IC (W) | BA5: Total Converter Power Loss (W) | BB5: Pout (W) | BC5: EFF (%) | BD5: High-side MOSFET Rdson % | BE5: Low-side MOSFET Rdson % | BF5: Gate Drive (Qg) Loss from Vin % | BG5: High-side MOSFET AC Loss % | BH5: Reverse Recovery & Leakage Loss % | BI5: Deadtime Loss % | BJ5: Low-side MOSFET AC Loss % | BK5: Inductor Cu Loss % | BL5: Inductor Core Loss % | BM5: Cin ESR % | BN5: Cout ESR % | BO5: LDO + Quiescent Current Loss % | BP5: Total Loss % | BQ5: Overall Eff % | BR5: Overall Eff | BS5: Current (mA) | BT5: Keep for "previous" data series | BU5: Keep for "previous" data series | BV5: Frequency (kHz) | BX5: Coss | BZ5: Total Power Loss in IC (mW) | CA5: LDO + Quiescent Loss (mW) | CB5: Total Inductor Loss (mW) | CE5: Overall Eff | CF5: Total Power Loss in IC (W) | CG5: LDO + Quiescent Loss (mW) | CH5: Total Inductor Loss (mW) | CI5: Fsw (kHz) | CJ5: Ripple (mV)
A6: Design | B6: Input Value | C6: Units | D6: Std Units | E6: Description | H6: 0.04 | I6: =IF(PLOT_TYPE=1, H6/100*Iout, min_I*EXP(H6*rr/100)) -> 0.00012 | J6: =IF(I6<Icrit, (Vin-(Rdcr+RdsonTop)*Iripple/2-Vout)/L*OnTime, (Vin-(Rdcr+RdsonTop)*I6-Vout)/L*OnTime) -> 0.149379376 | K6: =IF(I6<Icrit, (Vin-(Rdcr+RdsonTop)*Iripple/2-Vout)/L*OnTime, I6+((Vin-(Rdcr+RdsonTop)*J6-Vout)/L*OnTime)/2) -> 0.149379376 | L6: =IF(I6<Icrit, 0, I6-((Vin-(Rdcr+RdsonTop)*K6-Vout)/L*OnTime)/2) -> 0 | M6: =1000*((((J6/2)-I6)*0.000002/Cout+Vout/306)) -> 51.64396761 | N6: =IF(I6<Icrit, 1000*SQRT((J6*CoutEsr)^2+(((J6/2)-I6)*(OnTime+OffTime)/Cout)^2), 1000*J6*SQRT(CoutEsr^2+(1/(8*Fsw*Cout))^2)) -> 149.7173666 | O6: =ROUNDUP(M6/N6,0) -> 1 | P6: =IF(I6<Icrit, 1000*((N6/1000)*O6), 1000*J6*SQRT(CoutEsr^2+(1/(8*Fsw*Cout))^2)) -> 149.7173666 | Q6: =IF(I6<Icrit, L*J6/(Vout+J6/2*(RdsonBot+Rdcr)), L*J6/(Vout+I6*(RdsonBot+Rdcr))) -> 1.237740572e-06 | R6: =OnTime*S6 -> 0.0004046382533 | S6: =IF(I6<Icrit,I6/((OnTime+Q6)*J6/2),1/(OnTime+Q6)) -> 971.131808 | T6: =IF(1/S6-OnTime-Q6>Tsleep, OnTime+Q6+Tsleep, 1/S6) -> 6.654407239e-06 | U6: =IF(1/S6-OnTime-Q6>Tsleep, 1/S6-OnTime-Q6-Tsleep, 0) -> 0.00102307193 | V6: =S6*(T6*Iq_active+U6*Iq_sleep) -> 1.420049925e-05 | W6: =IF(I6<Icrit,Iripple*SQRT((OnTime+OffTime)*S6/3), SQRT(I6^2+Iripple^2/12)) -> 0.003375090187 | X6: =W6^2*Rdcr -> 1.936509741e-06 | Y6: =Core_Loss/1000*S6/$S$106 -> 0 | Z6: =(Y6+X6*(1+Ltc*(Ta-25)))/(1-X6*Ltc*ThetaCa) -> 1.936510341e-06 | AA6: =Iripple/SQRT(12)*SQRT((OnTime+Q6)*S6) -> 0.001706428446 | AB6: =RCoutEsr*AA6^2 -> 2.911898041e-06 | AC6: =AB6 -> 2.911898041e-06 | AD6: =SQRT($R6)*SQRT($I6^2*(1-R6)+(Iripple^2)/12) -> 0.0008563730174 | AE6: =RCinEsr*AD6^2 -> 2.200124235e-09 | AF6: =AE6 -> 2.200124235e-09 | AG6: =IF(I6<Icrit,Iripple*SQRT((OnTime)*S6/3), SQRT(OnTime*S6*(I6^2+Iripple^2/12))) -> 0.001712739233 | AH6: =RdsonTop*AG6^2 -> 5.426930011e-06 | AI6: =QgTop*S6*Vdd -> 2.913395424e-06 | AJ6: =5*VIN_nom/24 -> 10 | AK6: =IF(I6<Icrit, Csw*Vin/Iripple*1000000000, Csw*Vin/(I6+Iripple/2)*1000000000) -> 52.07662316 | AL6: =IF(I6<Icrit, Vin*(I6+Iripple/2)*AK6/1000000000/2*S6, Vin*(I6-Iripple/2)*AJ6/1000000000/2*S6 + Vin*(I6+Iripple/2)*AK6/1000000000/2*S6) -> 8.964515843e-05 | AM6: =IF(I6<Icrit, Csw*(Vin)^2*S6/2, Csw*Vin^2*S6/2) -> 0.0001789990149 | AN6: =AI6+AL6+AM6 -> 0.0002715575687 | AO6: =(AI6+AL6+AM6+AH6*(1+RdsonTopTc*(Ta-25)))/(1-AH6*RdsonTopTc*ThetaJA) -> 0.0002769847953 | AP6: =IF(I6<Icrit,Iripple*SQRT((OffTime)*S6/3), SQRT(OffTime*S6*(I6^2+Iripple^2/12))) -> 0.002908222496 | AQ6: =RdsonBot*AP6^2 -> 6.343318565e-06 | AR6: =QgBot*S6*Vdd -> 7.866167645e-06 | AS6: =IF(I6<Icrit, Vin*Idss*R6, QrrBot*(I6-Iripple/2)/1*S6*Vin+Vin*Idss*R6) -> 0 | AT6: =IF(I6<Icrit, dead1*S6*(I6+Iripple/2)*((I6+Iripple/2)*BDserR+VSD), dead1*S6*(I6+Iripple/2)*((I6+Iripple/2)*BDserR+VSD)+dead2*S6*(I6-Iripple/2)*((I6-Iripple/2)*BDserR+VSD)) -> 4.053702775e-07 | AU6: =AR6+AS6+AT6 -> 8.271537922e-06 | AV6: =(AR6+AS6+AT6+AQ6*(1+RdsonBotTc*(Ta-25)))/(1-AQ6*RdsonBotTc*ThetaJA) -> 1.461487478e-05 | AW6: =Vin*V6+Vout*Ifb/0.8 -> 0.001039548004 | AX6: =(Vin-Vdd)*(S6*QgBot+S6*QgTop)+AW6 -> 0.001132252247 | AY6: =AI6+AR6 -> 1.077956307e-05 | AZ6: =AO6+AV6+AX6+AY6 -> 0.00143463148 | BA6: =SUM(Z6,AC6,AF6,AZ6) -> 0.001439482088 | BB6: =Vout*I6 -> 0.00144 | BC6: =BB6/(BB6+BA6) -> 0.5000899314 | BD6: =(AO6-AN6)/($BB6+$BA6) -> 0.001884792609 | BE6: =(AV6-AU6)/($BB6+$BA6) -> 0.002202943675 | BF6: =Vin*S6*(QgBot+QgTop)/($BB6+$BA6) -> 0.0359383397 | BG6: =AN6/($BB6+$BA6) -> 0.09430778188 | BH6: =AS6/(BA6+BB6) -> 0 | BI6: =AT6/($BB6+$BA6) -> 0.0001407788849 | BJ6: =AU6/($BB6+$BA6) -> 0.002872578356 | BK6: =X6/($BB6+$BA6) -> 0.0006725201551 | BL6: =Y6/($BB6+$BA6) -> 0 | BM6: =(AF6)/($BB6+$BA6) -> 7.640694288e-07 | BN6: =(AC6)/($BB6+$BA6) -> 0.001011257564 | BO6: =AX6/($BB6+$BA6) -> 0.3932138531 | BP6: =SUM(BD6:BO6) -> 0.5322456099 | BQ6: =BC6 -> 0.5000899314 | BR6: =100*BQ6 -> 50.00899314 | BS6: =I6*1000 -> 0.12 | BT6: 8.792422126 | BU6: =BT6/100 -> 0.08792422126 | BV6: =S6/1000 -> 0.971131808 | BX6: =AM6/($BB6+$BA6) -> 0.06216361462 | BZ6: =AZ6 -> 0.00143463148 | CA6: =AX6 -> 0.001132252247 | CB6: =Z6 -> 1.936510341e-06 | CE6: =IF(OR(MODE=1,MODE=2,MODE=3), BR6, IF(MODE_ILIM=4,#REF!,#REF!)) -> 50.00899314 | CF6: =IF(OR(MODE=1,MODE=2,MODE=3), BZ6, IF(MODE_ILIM=4,#REF!,#REF!)) -> 0.00143463148 | CG6: =IF(OR(MODE=1,MODE=2,MODE=3), CA6, IF(MODE_ILIM=4,#REF!,#REF!)) -> 0.001132252247 | CH6: =IF(OR(MODE=1,MODE=2,MODE=3), CB6, IF(MODE_ILIM=4,#REF!,#REF!)) -> 1.936510341e-06 | CI6: =(IF(OR(MODE=1,MODE=2,MODE=3), S6, IF(MODE_ILIM=4,#REF!,#REF!)))/1000 -> 0.971131808 | CJ6: =IF(OR(MODE=1,MODE=2,MODE=3), P6, IF(MODE_ILIM=4,#REF!,#REF!)) -> 149.7173666
H7: 1 | I7: 0.003 | J7: 0.149379376 | K7: 0.149379376 | L7: 0 | M7: =IF(I7<Icrit, 1000*((((J7/2)-I7)*0.000002/Cout+Vout/306)), 1000*J7*SQRT(CoutEsr^2+(1/(8*Fsw*Cout))^2)) -> 51.16396761 | N7: 149.69179 | O7: =ROUNDUP(M7/N7,0) -> 1 | P7: 149.69179 | Q7: 1.237740572e-06 | R7: =OnTime*S7 -> 0.01011595633 | S7: 24278.2952 | T7: =IF(1/S7-OnTime-Q7>Tsleep, OnTime+Q7+Tsleep, 1/S7) -> 6.654407239e-06 | U7: =IF(1/S7-OnTime-Q7>Tsleep, 1/S7-OnTime-Q7-Tsleep, 0) -> 3.453464627e-05 | V7: 0.0001150124812 | W7: =IF(I7<Icrit,Iripple*SQRT((OnTime+OffTime)*S7/3), SQRT(I7^2+Iripple^2/12)) -> 0.01687545093 | X7: 4.841274352e-05 | Y7: 0 | Z7: 4.841311853e-05 | AA7: =Iripple/SQRT(12)*SQRT((OnTime+Q7)*S7) -> 0.00853214223 | AB7: =RCoutEsr*AA7^2 -> 7.279745103e-05 | AC7: =AB7 -> 7.279745103e-05 | AD7: =SQRT($R7)*SQRT($I7^2*(1-R7)+(Iripple^2)/12) -> 0.004292358981 | AE7: =RCinEsr*AD7^2 -> 5.527303687e-08 | AF7: =AE7 -> 5.527303687e-08 | AG7: =IF(I7<Icrit,Iripple*SQRT((OnTime)*S7/3), SQRT(OnTime*S7*(I7^2+Iripple^2/12))) -> 0.008563696167 | AH7: =RdsonTop*AG7^2 -> 0.0001356732503 | AI7: =QgTop*S7*Vdd -> 7.28348856e-05 | AJ7: 10 | AK7: 52.07662316 | AL7: =IF(I7<Icrit, Vin*(I7+Iripple/2)*AK7/1000000000/2*S7, Vin*(I7-Iripple/2)*AJ7/1000000000/2*S7 + Vin*(I7+Iripple/2)*AK7/1000000000/2*S7) -> 0.002328519563 | AM7: =IF(I7<Icrit, Csw*(Vin)^2*S7/2, Csw*Vin^2*S7/2) -> 0.004474975371 | AN7: =AI7+AL7+AM7 -> 0.00687632982 | AO7: 0.007012190756 | AP7: 0.01454111248 | AQ7: =RdsonBot*AP7^2 -> 0.0001585829641 | AR7: 0.0001966541911 | AS7: 0 | AT7: 1.053318816e-05 | AU7: =AR7+AS7+AT7 -> 0.0002071873793 | AV7: 0.000365781787 | AW7: 0.005878523136 | AX7: 0.008196129196 | AY7: 0.0002694890767 | AZ7: =AO7+AV7+AX7+AY7 -> 0.01584359082 | BA7: 0.01596485666 | BB7: 0.036 | BC7: =BB7/(BB7+BA7) -> 0.6927758935 | BD7: =(AO7-AN7)/($BB7+$BA7) -> 0.002614477257 | BE7: =(AV7-AU7)/($BB7+$BA7) -> 0.003051955069 | BF7: 0.04978547624 | BG7: =AN7/($BB7+$BA7) -> 0.1323265426 | BH7: =AS7/(BA7+BB7) -> 0 | BI7: =AT7/($BB7+$BA7) -> 0.0002026983011 | BJ7: =AU7/($BB7+$BA7) -> 0.003987067272 | BK7: 0.0009316439346 | BL7: 0 | BM7: =(AF7)/($BB7+$BA7) -> 1.063661875e-06 | BN7: =(AC7)/($BB7+$BA7) -> 0.001400897755 | BO7: =AX7/($BB7+$BA7) -> 0.1577244646 | BP7: =SUM(BD7:BO7) -> 0.3520262868 | BQ7: 0.6927758935 | BR7: =100*BQ7 -> 69.27758935 | BS7: 3 | BT7: 9.572563582 | BU7: =BT7/100 -> 0.09572563582 | BV7: 24.2782952 | BX7: 0.08611541836 | BZ7: =AZ7 -> 0.01584359082 | CA7: =AX7 -> 0.008196129196 | CB7: =Z7 -> 4.841311853e-05 | CE7: =IF(OR(MODE=1,MODE=2,MODE=3), BR7, IF(MODE_ILIM=4,#REF!,#REF!)) -> 69.27758935 | CF7: =IF(OR(MODE=1,MODE=2,MODE=3), BZ7, IF(MODE_ILIM=4,#REF!,#REF!)) -> 0.01584359082 | CG7: =IF(OR(MODE=1,MODE=2,MODE=3), CA7, IF(MODE_ILIM=4,#REF!,#REF!)) -> 0.008196129196 | CH7: =IF(OR(MODE=1,MODE=2,MODE=3), CB7, IF(MODE_ILIM=4,#REF!,#REF!)) -> 4.841311853e-05 | CI7: =(IF(OR(MODE=1,MODE=2,MODE=3), S7, IF(MODE_ILIM=4,#REF!,#REF!)))/1000 -> 24.2782952 | CJ7: =IF(OR(MODE=1,MODE=2,MODE=3), P7, IF(MODE_ILIM=4,#REF!,#REF!)) -> 149.69179
A8: Vin | B8: =Vin -> 48 | C8: V | D8: =B8 -> 48 | E8: Vin | H8: 2 | I8: 0.006 | J8: 0.149379376 | K8: 0.149379376 | L8: 0 | M8: 50.66396761 | N8: 149.6662144 | O8: 1 | P8: 149.6662144 | Q8: 1.237740572e-06 | R8: =OnTime*S8 -> 0.02023191267 | S8: 48556.5904 | T8: 6.654407239e-06 | U8: 1.394011951e-05 | V8: 0.0002200249623 | W8: 0.02386549158 | X8: 9.682548703e-05 | Y8: 0 | Z8: 9.682698709e-05 | AA8: 0.01206627126 | AB8: 0.0001455949021 | AC8: =AB8 -> 0.0001455949021 | AD8: 0.00611408693 | AE8: 1.12146177e-07 | AF8: =AE8 -> 1.12146177e-07 | AG8: 0.01211089526 | AH8: 0.0002713465006 | AI8: 0.0001456697712 | AJ8: 10 | AK8: 52.07662316 | AL8: 0.004839102881 | AM8: 0.008949950743 | AN8: 0.01393472339 | AO8: 0.0142068304 | AP8: 0.02056423848 | AQ8: 0.0003171659283 | AR8: 0.0003933083822 | AS8: 0 | AT8: 2.189808261e-05 | AU8: 0.0004152064649 | AV8: 0.0007324182209 | AW8: 0.01091912223 | AX8: 0.01555433435 | AY8: 0.0005389781534 | AZ8: =AO8+AV8+AX8+AY8 -> 0.03103256113 | BA8: 0.03127509517 | BB8: 0.072 | BC8: =BB8/(BB8+BA8) -> 0.6971671136 | BD8: 0.002634778591 | BE8: 0.003071522283 | BF8: 0.0501010458 | BG8: 0.1349282068 | BH8: 0 | BI8: 0.0002120364312 | BJ8: 0.004020392953 | BK8: 0.0009375492405 | BL8: 0 | BM8: 1.08589759e-06 | BN8: 0.001409777467 | BO8: 0.1506106998 | BP8: 0.3479270952 | BQ8: 0.6971671136 | BR8: =100*BQ8 -> 69.71671136 | BS8: 6 | BT8: 10.50735744 | BU8: 0.1050735744 | BV8: 48.5565904 | BX8: 0.08666126841 | BZ8: 0.03103256113 | CA8: 0.01555433435 | CB8: 9.682698709e-05 | CE8: =IF(OR(MODE=1,MODE=2,MODE=3), BR8, IF(MODE_ILIM=4,#REF!,#REF!)) -> 69.71671136 | CF8: =IF(OR(MODE=1,MODE=2,MODE=3), BZ8, IF(MODE_ILIM=4,#REF!,#REF!)) -> 0.03103256113 | CG8: =IF(OR(MODE=1,MODE=2,MODE=3), CA8, IF(MODE_ILIM=4,#REF!,#REF!)) -> 0.01555433435 | CH8: =IF(OR(MODE=1,MODE=2,MODE=3), CB8, IF(MODE_ILIM=4,#REF!,#REF!)) -> 9.682698709e-05 | CI8: =(IF(OR(MODE=1,MODE=2,MODE=3), S8, IF(MODE_ILIM=4,#REF!,#REF!)))/1000 -> 48.5565904 | CJ8: =IF(OR(MODE=1,MODE=2,MODE=3), P8, IF(MODE_ILIM=4,#REF!,#REF!)) -> 149.6662144
A9: Vout | B9: =Vout -> 12 | C9: V | D9: =B9 -> 12 | E9: Vout | H9: 3 | I9: 0.009 | J9: 0.149379376 | K9: 0.149379376 | L9: 0 | M9: 50.16396761 | N9: 149.6417279 | O9: 1 | P9: 149.6417279 | Q9: 1.237740572e-06 | R9: 0.030347869 | S9: 72834.8856 | T9: 6.654407239e-06 | U9: 7.075277263e-06 | V9: 0.0003250374435 | W9: 0.02922913842 | X9: 0.0001452382306 | Y9: =Core_Loss/1000*S9/$S$106 -> 0 | Z9: 0.0001452416057 | AA9: 0.01477810384 | AB9: 0.0002183923531 | AC9: 0.0002183923531 | AD9: 0.007575371012 | AE9: 1.721587379e-07 | AF9: 1.721587379e-07 | AG9: 0.01483275686 | AH9: 0.0004070197508 | AI9: 0.0002185046568 | AJ9: =15*VIN_nom/24 -> 30 | AK9: 52.07662316 | AL9: 0.007531749953 | AM9: 0.01342492611 | AN9: 0.02117518072 | AO9: 0.0215839336 | AP9: 0.02518594562 | AQ9: 0.0004757488924 | AR9: 0.0005899625734 | AS9: 0 | AT9: 3.409560108e-05 | AU9: 0.0006240581745 | AV9: 0.0010999103 | AW9: 0.01595972133 | AX9: 0.02291253951 | AY9: 0.0008084672302 | AZ9: 0.04640485063 | BA9: 0.04676865675 | BB9: 0.108 | BC9: =BB9/(BB9+BA9) -> 0.6978157094 | BD9: 0.002641057184 | BE9: 0.00307460267 | BF9: 0.05014765633 | BG9: 0.1368182755 | BH9: 0 | BI9: 0.0002203004264 | BJ9: 0.004032199979 | BK9: 0.0009384214711 | BL9: 0 | BM9: 1.112361776e-06 | BN9: 0.001411089026 | BO9: 0.1480437964 | BP9: 0.3473285114 | BQ9: 0.6978157094 | BR9: 69.78157094 | BS9: 9 | BT9: 11.51666778 | BU9: 0.1151666778 | BV9: 72.8348856 | BX9: 0.08674189203 | BZ9: 0.04640485063 | CA9: 0.02291253951 | CB9: 0.0001452416057 | CE9: =IF(OR(MODE=1,MODE=2,MODE=3), BR9, IF(MODE_ILIM=4,#REF!,#REF!)) -> 69.78157094 | CF9: =IF(OR(MODE=1,MODE=2,MODE=3), BZ9, IF(MODE_ILIM=4,#REF!,#REF!)) -> 0.04640485063 | CG9: =IF(OR(MODE=1,MODE=2,MODE=3), CA9, IF(MODE_ILIM=4,#REF!,#REF!)) -> 0.02291253951 | CH9: =IF(OR(MODE=1,MODE=2,MODE=3), CB9, IF(MODE_ILIM=4,#REF!,#REF!)) -> 0.0001452416057 | CI9: =(IF(OR(MODE=1,MODE=2,MODE=3), S9, IF(MODE_ILIM=4,#REF!,#REF!)))/1000 -> 72.8348856 | CJ9: =IF(OR(MODE=1,MODE=2,MODE=3), P9, IF(MODE_ILIM=4,#REF!,#REF!)) -> 149.6417279
A10: Iout | B10: =Iout -> 0.3 | C10: A | D10: =B10 -> 0.3 | E10: Iout(max) | H10: 4 | I10: 0.012 | J10: 0.149379376 | K10: 0.149379376 | L10: 0 | M10: 49.66396761 | N10: 149.6183309 | O10: 1 | P10: 149.6183309 | Q10: 1.237740572e-06 | R10: 0.04046382533 | S10: 97113.1808 | T10: 6.654407239e-06 | U10: 3.642856137e-06 | V10: 0.0004300499246 | W10: 0.03375090187 | X10: 0.0001936509741 | Y10: 0 | Z10: 0.0001936569744 | AA10: 0.01706428446 | AB10: 0.0002911898041 | AC10: 0.0002911898041 | AD10: 0.008884138036 | AE10: 2.367837259e-07 | AF10: 2.367837259e-07 | AG10: 0.01712739233 | AH10: 0.0005426930011 | AI10: 0.0002913395424 | AJ10: 30 | AK10: 52.07662316 | AL10: 0.01040646078 | AM10: 0.01789990149 | AN10: 0.02859770181 | AO10: 0.02914351499 | AP10: 0.02908222496 | AQ10: 0.0006343318565 | AR10: 0.0007866167645 | AS10: 0 | AT10: 4.712666128e-05 | AU10: 0.0008337434258 | AV10: 0.001468259022 | AW10: 0.02100032042 | AX10: 0.03027074466 | AY10: 0.001077956307 | AZ10: 0.06196047498 | BA10: 0.06244555854 | BB10: 0.144 | BC10: 0.6975204554 | BD10: 0.002643860114 | BE10: 0.003073525051 | BF10: 0.05012643827 | BG10: 0.1385241805 | BH10: 0 | BI10: 0.00022827646 | BJ10: 0.004038563153 | BK10: 0.000938024414 | BL10: 0 | BM10: 1.146954808e-06 | BN10: 0.001410491978 | BO10: 0.1466282195 | BP10: 0.3476127263 | BQ10: 0.6975204554 | BR10: 69.75204554 | BS10: 12 | BT10: 12.60314452 | BU10: 0.1260314452 | BV10: 97.1131808 | BX10: 0.08670519052 | BZ10: 0.06196047498 | CA10: 0.03027074466 | CB10: 0.0001936569744 | CE10: =IF(OR(MODE=1,MODE=2,MODE=3), BR10, IF(MODE_ILIM=4,#REF!,#REF!)) -> 69.75204554 | CF10: =IF(OR(MODE=1,MODE=2,MODE=3), BZ10, IF(MODE_ILIM=4,#REF!,#REF!)) -> 0.06196047498 | CG10: =IF(OR(MODE=1,MODE=2,MODE=3), CA10, IF(MODE_ILIM=4,#REF!,#REF!)) -> 0.03027074466 | CH10: =IF(OR(MODE=1,MODE=2,MODE=3), CB10, IF(MODE_ILIM=4,#REF!,#REF!)) -> 0.0001936569744 | CI10: =(IF(OR(MODE=1,MODE=2,MODE=3), S10, IF(MODE_ILIM=4,#REF!,#REF!)))/1000 -> 97.1131808 | CJ10: =IF(OR(MODE=1,MODE=2,MODE=3), P10, IF(MODE_ILIM=4,#REF!,#REF!)) -> 149.6183309
A11: Rt | B11: =Vout*2500/(Fsw/1000) -> 50 | C11: kW | D11: =B11*1000 -> 50000 | E11: RT pin resistance to get Fsw | H11: 5 | I11: 0.015 | J11: 0.149379376 | K11: 0.149379376 | L11: 0 | M11: 49.16396761 | N11: 149.5960241 | O11: 1 | P11: 149.5960241 | Q11: 1.237740572e-06 | R11: 0.05057978167 | S11: 121391.476 | T11: 6.654407239e-06 | U11: 1.583403462e-06 | V11: 0.0005350624058 | W11: 0.03773465544 | X11: 0.0002420637176 | Y11: 0 | Z11: 0.0002420730931 | AA11: 0.01907845002 | AB11: 0.0003639872552 | AC11: 0.0003639872552 | AD11: 0.01012304031 | AE11: 3.074278356e-07 | AF11: 3.074278356e-07 | AG11: 0.01914900677 | AH11: 0.0006783662514 | AI11: 0.000364174428 | AJ11: 30 | AK11: 52.07662316 | AL11: 0.01346323536 | AM11: 0.02237487686 | AN11: 0.03620228665 | AO11: 0.03688558923 | AP11: 0.03251491598 | AQ11: 0.0007929148207 | AR11: 0.0009832709556 | AS11: 0 | AT11: 6.099218093e-05 | AU11: 0.001044263137 | AV11: 0.001837465385 | AW11: 0.02604091952 | AX11: 0.03762894982 | AY11: 0.001347445384 | AZ11: 0.07769944981 | BA11: 0.07830581759 | BB11: 0.18 | BC11: 0.6968484167 | BD11: 0.002645324003 | BE11: 0.003070787394 | BF11: 0.05007814305 | BG11: 0.1401528118 | BH11: 0 | BI11: 0.0002361239151 | BJ11: 0.004042739518 | BK11: 0.0009371206574 | BL11: 0 | BM11: 1.190170003e-06 | BN11: 0.001409133014 | BO11: 0.1456759672 | BP11: 0.3482493408 | BQ11: 0.6968484167 | BR11: 69.68484167 | BS11: 15 | BT11: 13.76888731 | BU11: 0.1376888731 | BV11: 121.391476 | BX11: 0.08662165284 | BZ11: 0.07769944981 | CA11: 0.03762894982 | CB11: 0.0002420730931 | CE11: =IF(OR(MODE=1,MODE=2,MODE=3), BR11, IF(MODE_ILIM=4,#REF!,#REF!)) -> 69.68484167 | CF11: =IF(OR(MODE=1,MODE=2,MODE=3), BZ11, IF(MODE_ILIM=4,#REF!,#REF!)) -> 0.07769944981 | CG11: =IF(OR(MODE=1,MODE=2,MODE=3), CA11, IF(MODE_ILIM=4,#REF!,#REF!)) -> 0.03762894982 | CH11: =IF(OR(MODE=1,MODE=2,MODE=3), CB11, IF(MODE_ILIM=4,#REF!,#REF!)) -> 0.0002420730931 | CI11: =(IF(OR(MODE=1,MODE=2,MODE=3), S11, IF(MODE_ILIM=4,#REF!,#REF!)))/1000 -> 121.391476 | CJ11: =IF(OR(MODE=1,MODE=2,MODE=3), P11, IF(MODE_ILIM=4,#REF!,#REF!)) -> 149.5960241
A12: Tamb | B12: ='Design Converter'!E56 -> 25 | C12: °C | D12: =B12 -> 25 | E12: Ambient temperature | H12: 6 | I12: 0.018 | J12: 0.149379376 | K12: 0.149379376 | L12: 0 | M12: 48.66396761 | N12: 149.5748078 | O12: 1 | P12: 149.5748078 | Q12: 1.237740572e-06 | R12: 0.060695738 | S12: 145669.7712 | T12: 6.654407239e-06 | U12: 2.104350121e-07 | V12: 0.000640074887 | W12: 0.04133624397 | X12: 0.0002904764611 | Y12: 0 | Z12: 0.000290489962 | AA12: 0.02089939488 | AB12: 0.0004367847062 | AC12: 0.0004367847062 | AD12: 0.01133477614 | AE12: 3.854314501e-07 | AF12: 3.854314501e-07 | AG12: 0.02097668592 | AH12: 0.0008140395017 | AI12: 0.0004370093136 | AJ12: 30 | AK12: 52.07662316 | AL12: 0.0167020737 | AM12: 0.02684985223 | AN12: 0.04398893524 | AO12: 0.04481017097 | AP12: 0.03561830587 | AQ12: 0.0009514977848 | AR12: 0.001179925147 | AS12: 0 | AT12: 7.569307775e-05 | AU12: 0.001255618224 | AV12: 0.002207530388 | AW12: 0.03108151861 | AX12: 0.04498715497 | AY12: 0.00161693446 | AZ12: 0.0936217908 | BA12: 0.0943494509 | BB12: 0.216 | BC12: 0.6959896316 | BD12: 0.002646164609 | BE12: 0.003067226834 | BF12: 0.05001642753 | BG12: 0.1417400131 | BH12: 0 | BI12: 0.0002438962838 | BJ12: 0.004045820674 | BK12: 0.0009359657646 | BL12: 0 | BM12: 1.241927282e-06 | BN12: 0.00140739642 | BO12: 0.144956451 | BP12: 0.3490606042 | BQ12: 0.6959896316 | BR12: 69.59896316 | BS12: 18 | BT12: 15.01531961 | BU12: 0.1501531961 | BV12: 145.6697712 | BX12: 0.08651490167 | BZ12: 0.0936217908 | CA12: 0.04498715497 | CB12: 0.000290489962 | CE12: =IF(OR(MODE=1,MODE=2,MODE=3), BR12, IF(MODE_ILIM=4,#REF!,#REF!)) -> 69.59896316 | CF12: =IF(OR(MODE=1,MODE=2,MODE=3), BZ12, IF(MODE_ILIM=4,#REF!,#REF!)) -> 0.0936217908 | CG12: =IF(OR(MODE=1,MODE=2,MODE=3), CA12, IF(MODE_ILIM=4,#REF!,#REF!)) -> 0.04498715497 | CH12: =IF(OR(MODE=1,MODE=2,MODE=3), CB12, IF(MODE_ILIM=4,#REF!,#REF!)) -> 0.000290489962 | CI12: =(IF(OR(MODE=1,MODE=2,MODE=3), S12, IF(MODE_ILIM=4,#REF!,#REF!)))/1000 -> 145.6697712 | CJ12: =IF(OR(MODE=1,MODE=2,MODE=3), P12, IF(MODE_ILIM=4,#REF!,#REF!)) -> 149.5748078
A13: VDD | B13: 5 | C13: V | D13: =B13 -> 5 | E13: Gate drive rail | H13: 7 | I13: 0.021 | J13: 0.149379376 | K13: 0.149379376 | L13: 0 | M13: 48.16396761 | N13: 149.5546825 | O13: 1 | P13: 149.5546825 | Q13: 1.237740572e-06 | R13: 0.07081169433 | S13: 169948.0664 | T13: 5.884150501e-06 | U13: 0 | V13: 0.00066 | W13: 0.04464824643 | X13: 0.0003388892046 | Y13: 0 | Z13: 0.000338907581 | AA13: 0.02257392649 | AB13: 0.0005095821572 | AC13: 0.0005095821572 | AD13: 0.01254417051 | AE13: 4.720686411e-07 | AF13: 4.720686411e-07 | AG13: 0.02265741036 | AH13: 0.0009497127519 | AI13: 0.0005098441992 | AJ13: 30 | AK13: 52.07662316 | AL13: 0.02012297579 | AM13: 0.0313248276 | AN13: 0.05195764759 | AO13: 0.05291727489 | AP13: 0.03847216741 | AQ13: 0.001110080749 | AR13: 0.001376579338 | AS13: 0 | AT13: 9.123026946e-05 | AU13: 0.001467809607 | AV13: 0.002578455029 | AW13: 0.03203792404 | AX13: 0.04826116646 | AY13: 0.001886423537 | AZ13: 0.1056433199 | BA13: 0.1064922817 | BB13: 0.252 | BC13: 0.7029440042 | BD13: 0.002676842281 | BE13: 0.003098101351 | BF13: 0.05051619485 | BG13: 0.144933797 | BH13: 0 | BI13: 0.000254483218 | BJ13: 0.004094396678 | BK13: 0.000945317994 | BL13: 0 | BM13: 1.31681675e-06 | BN13: 0.001421459215 | BO13: 0.1346226095 | BP13: 0.3425645189 | BQ13: 0.7029440042 | BR13: 70.29440042 | BS13: 21 | BT13: 16.34306117 | BU13: 0.1634306117 | BV13: 169.9480664 | BX13: 0.08737936407 | BZ13: 0.1056433199 | CA13: 0.04826116646 | CB13: 0.000338907581 | CE13: =IF(OR(MODE=1,MODE=2,MODE=3), BR13, IF(MODE_ILIM=4,#REF!,#REF!)) -> 70.29440042 | CF13: =IF(OR(MODE=1,MODE=2,MODE=3), BZ13, IF(MODE_ILIM=4,#REF!,#REF!)) -> 0.1056433199 | CG13: =IF(OR(MODE=1,MODE=2,MODE=3), CA13, IF(MODE_ILIM=4,#REF!,#REF!)) -> 0.04826116646 | CH13: =IF(OR(MODE=1,MODE=2,MODE=3), CB13, IF(MODE_ILIM=4,#REF!,#REF!)) -> 0.000338907581 | CI13: =(IF(OR(MODE=1,MODE=2,MODE=3), S13, IF(MODE_ILIM=4,#REF!,#REF!)))/1000 -> 169.9480664 | CJ13: =IF(OR(MODE=1,MODE=2,MODE=3), P13, IF(MODE_ILIM=4,#REF!,#REF!)) -> 149.5546825
A14: K1 | B14: 400 | C14: pC | D14: 4 | E14: RT constant | H14: 8 | I14: 0.024 | J14: 0.149379376 | K14: 0.149379376 | L14: 0 | M14: 47.66396761 | N14: 149.5356487 | O14: 1 | P14: 149.5356487 | Q14: 1.237740572e-06 | R14: 0.08092765067 | S14: 194226.3616 | T14: 5.148631688e-06 | U14: 0 | V14: 0.00066 | W14: 0.04773098316 | X14: 0.0003873019481 | Y14: 0 | Z14: 0.0003873259501 | AA14: 0.02413254252 | AB14: 0.0005823796083 | AC14: 0.0005823796083 | AD14: 0.01376647097 | AE14: 5.685471687e-07 | AF14: 5.685471687e-07 | AG14: 0.02422179053 | AH14: 0.001085386002 | AI14: 0.0005826790848 | AJ14: 30 | AK14: 52.07662316 | AL14: 0.02372594164 | AM14: 0.03579980297 | AN14: 0.06010842369 | AO14: 0.06120691562 | AP14: 0.04112847696 | AQ14: 0.001268663713 | AR14: 0.001573233529 | AS14: 0 | AT14: 0.0001076046738 | AU14: 0.001680838203 | AV14: 0.002950240308 | AW14: 0.03203792404 | AX14: 0.05057877252 | AY14: 0.002155912614 | AZ14: 0.1168918411 | BA14: 0.1178621152 | BB14: 0.288 | BC14: 0.7096005989 | BD14: 0.002706564345 | BE14: 0.003127668382 | BF14: 0.05099456273 | BG14: 0.1481006023 | BH14: 0 | BI14: 0.0002651261839 | BJ14: 0.004141402067 | BK14: 0.0009542697721 | BL14: 0 | BM14: 1.400838234e-06 | BN14: 0.001434919857 | BO14: 0.1246205808 | BP14: 0.3363470972 | BQ14: 0.7096005989 | BR14: 70.96005989 | BS14: 24 | BT14: 17.75180413 | BU14: 0.1775180413 | BV14: 194.2263616 | BX14: 0.08820681121 | BZ14: 0.1168918411 | CA14: 0.05057877252 | CB14: 0.0003873259501 | CE14: =IF(OR(MODE=1,MODE=2,MODE=3), BR14, IF(MODE_ILIM=4,#REF!,#REF!)) -> 70.96005989 | CF14: =IF(OR(MODE=1,MODE=2,MODE=3), BZ14, IF(MODE_ILIM=4,#REF!,#REF!)) -> 0.1168918411 | CG14: =IF(OR(MODE=1,MODE=2,MODE=3), CA14, IF(MODE_ILIM=4,#REF!,#REF!)) -> 0.05057877252 | CH14: =IF(OR(MODE=1,MODE=2,MODE=3), CB14, IF(MODE_ILIM=4,#REF!,#REF!)) -> 0.0003873259501 | CI14: =(IF(OR(MODE=1,MODE=2,MODE=3), S14, IF(MODE_ILIM=4,#REF!,#REF!)))/1000 -> 194.2263616 | CJ14: =IF(OR(MODE=1,MODE=2,MODE=3), P14, IF(MODE_ILIM=4,#REF!,#REF!)) -> 149.5356487
A15: Outputs | H15: 9 | I15: 0.027 | J15: 0.149379376 | K15: 0.149379376 | L15: 0 | M15: 47.16396761 | N15: 149.5177068 | O15: 1 | P15: 149.5177068 | Q15: 1.237740572e-06 | R15: 0.091043607 | S15: 218504.6568 | T15: 4.5765615e-06 | U15: 0 | V15: 0.00066 | W15: 0.0506263528 | X15: 0.0004357146917 | Y15: 0 | Z15: 0.0004357450693 | AA15: 0.02559642669 | AB15: 0.0006551770593 | AC15: 0.0006551770593 | AD15: 0.01501120117 | AE15: 6.760084816e-07 | AF15: 6.760084816e-07 | AG15: 0.0256910885 | AH15: 0.001221059252 | AI15: 0.0006555139704 | AJ15: 30 | AK15: 52.07662316 | AL15: 0.02751097124 | AM15: 0.04027477834 | AN15: 0.06844126355 | AO15: 0.06967910784 | AP15: 0.04362333744 | AQ15: 0.001427246677 | AR15: 0.00176988772 | AS15: 0 | AT15: 0.0001248172084 | AU15: 0.001894704929 | AV15: 0.003322887222 | AW15: 0.03203792404 | AX15: 0.05289637858 | AY15: 0.002425401691 | AZ15: 0.1283237753 | BA15: 0.1294153735 | BB15: 0.324 | BC15: 0.7145765648 | BD15: 0.002730044822 | BE15: 0.00314983209 | BF15: 0.05135215432 | BG15: 0.1509460586 | BH15: 0 | BI15: 0.0002752822594 | BJ15: 0.004178739936 | BK15: 0.0009609614432 | BL15: 0 | BM15: 1.490925366e-06 | BN15: 0.001444982013 | BO15: 0.1166620756 | BP15: 0.331701622 | BQ15: 0.7145765648 | BR15: 71.45765648 | BS15: 27 | BT15: 19.24019915 | BU15: 0.1924019915 | BV15: 218.5046568 | BX15: 0.08882534801 | BZ15: 0.1283237753 | CA15: 0.05289637858 | CB15: 0.0004357450693 | CE15: =IF(OR(MODE=1,MODE=2,MODE=3), BR15, IF(MODE_ILIM=4,#REF!,#REF!)) -> 71.45765648 | CF15: =IF(OR(MODE=1,MODE=2,MODE=3), BZ15, IF(MODE_ILIM=4,#REF!,#REF!)) -> 0.1283237753 | CG15: =IF(OR(MODE=1,MODE=2,MODE=3), CA15, IF(MODE_ILIM=4,#REF!,#REF!)) -> 0.05289637858 | CH15: =IF(OR(MODE=1,MODE=2,MODE=3), CB15, IF(MODE_ILIM=4,#REF!,#REF!)) -> 0.0004357450693 | CI15: =(IF(OR(MODE=1,MODE=2,MODE=3), S15, IF(MODE_ILIM=4,#REF!,#REF!)))/1000 -> 218.5046568 | CJ15: =IF(OR(MODE=1,MODE=2,MODE=3), P15, IF(MODE_ILIM=4,#REF!,#REF!)) -> 149.5177068
A16: Design | B16: Value | C16: Units | D16: Std Units | E16: Description | H16: 10 | I16: 0.03 | J16: 0.149379376 | K16: 0.149379376 | L16: 0 | M16: 46.66396761 | N16: 149.5008572 | O16: 1 | P16: 149.5008572 | Q16: 1.237740572e-06 | R16: 0.1011595633 | S16: 242782.952 | T16: 4.11890535e-06 | U16: 0 | V16: 0.00066 | W16: 0.05336486149 | X16: 0.0004841274352 | Y16: 0 | Z16: 0.0004841649388 | AA16: 0.02698100277 | AB16: 0.0007279745103 | AC16: 0.0007279745103 | AD16: 0.0162842226 | AE16: 7.955277167e-07 | AF16: 7.955277167e-07 | AG16: 0.02708078508 | AH16: 0.001356732503 | AI16: 0.000728348856 | AJ16: 30 | AK16: 52.07662316 | AL16: 0.03147806459 | AM16: 0.04474975371 | AN16: 0.07695616716 | AO16: 0.07833386621 | AP16: 0.04598303515 | AQ16: 0.001585829641 | AR16: 0.001966541911 | AS16: 0 | AT16: 0.0001428687911 | AU16: 0.002109410702 | AV16: 0.003696396771 | AW16: 0.03203792404 | AX16: 0.05521398464 | AY16: 0.002694890767 | AZ16: 0.1399391384 | BA16: 0.1411520734 | BB16: 0.36 | BC16: 0.7183448281 | BD16: 0.002749063847 | BE16: 0.003166675651 | BF16: 0.05162295587 | BG16: 0.153558513 | BH16: 0 | BI16: 0.0002850807145 | BJ16: 0.004209122968 | BK16: 0.0009660289978 | BL16: 0 | BM16: 1.587397836e-06 | BN16: 0.001452602012 | BO16: 0.110174112 | BP16: 0.3281857424 | BQ16: 0.7183448281 | BR16: 71.83448281 | BS16: 30 | BT16: 20.80575856 | BU16: 0.2080575856 | BV16: 242.782952 | BX16: 0.0892937615 | BZ16: 0.1399391384 | CA16: 0.05521398464 | CB16: 0.0004841649388 | CE16: =IF(OR(MODE=1,MODE=2,MODE=3), BR16, IF(MODE_ILIM=4,#REF!,#REF!)) -> 71.83448281 | CF16: =IF(OR(MODE=1,MODE=2,MODE=3), BZ16, IF(MODE_ILIM=4,#REF!,#REF!)) -> 0.1399391384 | CG16: =IF(OR(MODE=1,MODE=2,MODE=3), CA16, IF(MODE_ILIM=4,#REF!,#REF!)) -> 0.05521398464 | CH16: =IF(OR(MODE=1,MODE=2,MODE=3), CB16, IF(MODE_ILIM=4,#REF!,#REF!)) -> 0.0004841649388 | CI16: =(IF(OR(MODE=1,MODE=2,MODE=3), S16, IF(MODE_ILIM=4,#REF!,#REF!)))/1000 -> 242.782952 | CJ16: =IF(OR(MODE=1,MODE=2,MODE=3), P16, IF(MODE_ILIM=4,#REF!,#REF!)) -> 149.5008572
A17: On-Time | B17: =(Rt*k_RT/10000)/Vin -> 0.4166666667 | C17: µs | D17: =B17/1000000 -> 4.166666667e-07 | E17: On Time - fixed | H17: 11 | I17: 0.033 | J17: 0.149379376 | K17: 0.149379376 | L17: 0 | M17: 46.16396761 | N17: 149.4851003 | O17: 1 | P17: 149.4851003 | Q17: 1.237740572e-06 | R17: 0.1112755197 | S17: 267061.2472 | T17: 3.744459409e-06 | U17: 0 | V17: 0.00066 | W17: 0.05596953892 | X17: 0.0005325401787 | Y17: 0 | Z17: 0.0005325855584 | AA17: 0.02829791443 | AB17: 0.0008007719613 | AC17: 0.0008007719613 | AD17: 0.01758895202 | AE17: 9.281136998e-07 | AF17: 9.281136998e-07 | AG17: 0.028402567 | AH17: 0.001492405753 | AI17: 0.0008011837416 | AJ17: 30 | AK17: 52.07662316 | AL17: 0.0356272217 | AM17: 0.04922472908 | AN17: 0.08565313453 | AO17: 0.08717120539 | AP17: 0.04822741413 | AQ17: 0.001744412605 | AR17: 0.002163196102 | AS17: 0 | AT17: 0.0001617603396 | AU17: 0.002324956442 | AV17: 0.004070769953 | AW17: 0.03203792404 | AX17: 0.0575315907 | AY17: 0.002964379844 | AZ17: 0.1517379459 | BA17: 0.1530722315 | BB17: 0.396 | BC17: 0.7212165855 | BD17: 0.002764792626 | BE17: 0.003179569847 | BF17: 0.05182933113 | BG17: 0.1559961142 | BH17: 0 | BI17: 0.0002946066662 | BJ17: 0.004234336228 | BK17: 0.0009698909326 | BL17: 0 | BM17: 1.690330792e-06 | BN17: 0.001458409141 | BO17: 0.1047796399 | BP17: 0.325508381 | BQ17: 0.7212165855 | BR17: 72.12165855 | BS17: 33 | BT17: 22.44478406 | BU17: 0.2244478406 | BV17: 267.0612472 | BX17: 0.08965073493 | BZ17: 0.1517379459 | CA17: 0.0575315907 | CB17: 0.0005325855584 | CE17: =IF(OR(MODE=1,MODE=2,MODE=3), BR17, IF(MODE_ILIM=4,#REF!,#REF!)) -> 72.12165855 | CF17: =IF(OR(MODE=1,MODE=2,MODE=3), BZ17, IF(MODE_ILIM=4,#REF!,#REF!)) -> 0.1517379459 | CG17: =IF(OR(MODE=1,MODE=2,MODE=3), CA17, IF(MODE_ILIM=4,#REF!,#REF!)) -> 0.0575315907 | CH17: =IF(OR(MODE=1,MODE=2,MODE=3), CB17, IF(MODE_ILIM=4,#REF!,#REF!)) -> 0.0005325855584 | CI17: =(IF(OR(MODE=1,MODE=2,MODE=3), S17, IF(MODE_ILIM=4,#REF!,#REF!)))/1000 -> 267.0612472 | CJ17: =IF(OR(MODE=1,MODE=2,MODE=3), P17, IF(MODE_ILIM=4,#REF!,#REF!)) -> 149.4851003
A18: Off Time | B18: =L*Iripple*1000000/(Vout+(Rdcr+RdsonBot)*Iout) -> 1.201327794 | C18: µs | D18: =B18/1000000 -> 1.201327794e-06 | E18: Off Time - depends on Vout, L, Iout, DCR, etc. | H18: 12 | I18: 0.036 | J18: 0.149379376 | K18: 0.149379376 | L18: 0 | M18: 45.66396761 | N18: 149.4704363 | O18: 1 | P18: 149.4704363 | Q18: 1.237740572e-06 | R18: 0.121391476 | S18: 291339.5424 | T18: 3.432421125e-06 | U18: 0 | V18: 0.00066 | W18: 0.05845827684 | X18: 0.0005809529222 | Y18: 0 | Z18: 0.0005810069282 | AA18: 0.02955620768 | AB18: 0.0008735694124 | AC18: 0.0008735694124 | AD18: 0.01892713172 | AE18: 1.074708945e-06 | AF18: 1.074708945e-06 | AG18: 0.02966551372 | AH18: 0.001628079003 | AI18: 0.0008740186272 | AJ18: 30 | AK18: 52.07662316 | AL18: 0.03995844257 | AM18: 0.05369970446 | AN18: 0.09453216565 | AO18: 0.09619114004 | AP18: 0.05037189123 | AQ18: 0.00190299557 | AR18: 0.002359850293 | AS18: 0 | AT18: 0.0001814927716 | AU18: 0.002541343065 | AV18: 0.004446007768 | AW18: 0.03203792404 | AX18: 0.05984919676 | AY18: 0.003233868921 | AZ18: 0.1637202135 | BA18: 0.1651758645 | BB18: 0.432 | BC18: 0.7234049895 | BD18: 0.002778033217 | BE18: 0.003189453587 | BF18: 0.05198659806 | BG18: 0.1582987044 | BH18: 0 | BI18: 0.0003039184641 | BJ18: 0.004255602438 | BK18: 0.0009728338948 | BL18: 0 | BM18: 1.799652345e-06 | BN18: 0.001462834425 | BO18: 0.1002203879 | BP18: 0.323470166 | BQ18: 0.7234049895 | BR18: 72.34049895 | BS18: 36 | BT18: 24.15232609 | BU18: 0.2415232609 | BV18: 291.3395424 | BX18: 0.08992276421 | BZ18: 0.1637202135 | CA18: 0.05984919676 | CB18: 0.0005810069282 | CE18: =IF(OR(MODE=1,MODE=2,MODE=3), BR18, IF(MODE_ILIM=4,#REF!,#REF!)) -> 72.34049895 | CF18: =IF(OR(MODE=1,MODE=2,MODE=3), BZ18, IF(MODE_ILIM=4,#REF!,#REF!)) -> 0.1637202135 | CG18: =IF(OR(MODE=1,MODE=2,MODE=3), CA18, IF(MODE_ILIM=4,#REF!,#REF!)) -> 0.05984919676 | CH18: =IF(OR(MODE=1,MODE=2,MODE=3), CB18, IF(MODE_ILIM=4,#REF!,#REF!)) -> 0.0005810069282 | CI18: =(IF(OR(MODE=1,MODE=2,MODE=3), S18, IF(MODE_ILIM=4,#REF!,#REF!)))/1000 -> 291.3395424 | CJ18: =IF(OR(MODE=1,MODE=2,MODE=3), P18, IF(MODE_ILIM=4,#REF!,#REF!)) -> 149.4704363
A19: DIL | B19: =(Vin-Vout-(Rdcr+RdsonTop)*Iout)/L*OnTime*1000 -> 147.475 | C19: mA | D19: =B19/1000 -> 0.147475 | E19: Inductor pk-pk ripple current in CCM | H19: 13 | I19: 0.039 | J19: 0.149379376 | K19: 0.149379376 | L19: 0 | M19: 45.16396761 | N19: 149.4568657 | O19: 1 | P19: 149.4568657 | Q19: 1.237740572e-06 | R19: 0.1315074323 | S19: 315617.8376 | T19: 3.168388731e-06 | U19: 0 | V19: 0.00066 | W19: 0.06084530364 | X19: 0.0006293656657 | Y19: 0 | Z19: 0.0006294290483 | AA19: 0.0307630763 | AB19: 0.0009463668634 | AC19: 0.0009463668634 | AD19: 0.02029934034 | AE19: 1.236189655e-06 | AF19: 1.236189655e-06 | AG19: 0.03087684564 | AH19: 0.001763752254 | AI19: 0.0009468535128 | AJ19: 30 | AK19: 52.07662316 | AL19: 0.04447172719 | AM19: 0.05817467983 | AN19: 0.1035932605 | AO19: 0.1053936848 | AP19: 0.05242872665 | AQ19: 0.002061578534 | AR19: 0.002556504485 | AS19: 0 | AT19: 0.0002020670047 | AU19: 0.002758571489 | AV19: 0.004822111215 | AW19: 0.03203792404 | AX19: 0.06216680282 | AY19: 0.003503357997 | AZ19: 0.1758859569 | BA19: 0.177462989 | BB19: 0.468 | BC19: 0.7250609377 | BD19: 0.002789353283 | BE19: 0.003196991557 | BF19: 0.05210560071 | BG19: 0.1604945013 | BH19: 0 | BI19: 0.0003130574614 | BJ19: 0.004273787245 | BK19: 0.0009750608114 | BL19: 0 | BM19: 1.915198355e-06 | BN19: 0.001466183003 | BO19: 0.096313505 | BP19: 0.3219299556 | BQ19: 0.7250609377 | BR19: 72.50609377 | BS19: 39 | BT19: 25.92218153 | BU19: 0.2592218153 | BV19: 315.6178376 | BX19: 0.09012860663 | BZ19: 0.1758859569 | CA19: 0.06216680282 | CB19: 0.0006294290483 | CE19: =IF(OR(MODE=1,MODE=2,MODE=3), BR19, IF(MODE_ILIM=4,#REF!,#REF!)) -> 72.50609377 | CF19: =IF(OR(MODE=1,MODE=2,MODE=3), BZ19, IF(MODE_ILIM=4,#REF!,#REF!)) -> 0.1758859569 | CG19: =IF(OR(MODE=1,MODE=2,MODE=3), CA19, IF(MODE_ILIM=4,#REF!,#REF!)) -> 0.06216680282 | CH19: =IF(OR(MODE=1,MODE=2,MODE=3), CB19, IF(MODE_ILIM=4,#REF!,#REF!)) -> 0.0006294290483 | CI19: =(IF(OR(MODE=1,MODE=2,MODE=3), S19, IF(MODE_ILIM=4,#REF!,#REF!)))/1000 -> 315.6178376 | CJ19: =IF(OR(MODE=1,MODE=2,MODE=3), P19, IF(MODE_ILIM=4,#REF!,#REF!)) -> 149.4568657
A20: CCM Freq | B20: ='Design Converter'!E12 -> 600 | C20: kHz | D20: =B20*1000 -> 600000 | E20: Frequency in CCM | F20: =10000*Vout/(k_RT*Rt/1000+Vin*0.75) -> 508.4745763 | H20: 14 | I20: 0.042 | J20: 0.149379376 | K20: 0.149379376 | L20: 0 | M20: 44.66396761 | N20: 149.4443887 | O20: 1 | P20: 149.4443887 | Q20: 1.237740572e-06 | R20: 0.1416233887 | S20: 339896.1328 | T20: 2.94207525e-06 | U20: 0 | V20: 0.00066 | W20: 0.06314215564 | X20: 0.0006777784092 | Y20: 0 | Z20: 0.0006778519186 | AA20: 0.031924353 | AB20: 0.001019164314 | AC20: 0.001019164314 | AD20: 0.02170534282 | AE20: 1.41336572e-06 | AF20: 1.41336572e-06 | AG20: 0.03204241702 | AH20: 0.001899425504 | AI20: 0.001019688398 | AJ20: 30 | AK20: 52.07662316 | AL20: 0.04916707556 | AM20: 0.0626496552 | AN20: 0.1128364192 | AO20: 0.1147788544 | AP20: 0.05440786093 | AQ20: 0.002220161498 | AR20: 0.002753158676 | AS20: 0 | AT20: 0.0002234839568 | AU20: 0.002976642633 | AV20: 0.005199081294 | AW20: 0.03203792404 | AX20: 0.06448440888 | AY20: 0.003772847074 | AZ20: 0.1882351917 | BA20: 0.1899336213 | BB20: 0.504 | BC20: 0.7262942514 | BD20: 0.002799165833 | BE20: 0.003202667508 | BF20: 0.05219423126 | BG20: 0.1626040527 | BH20: 0 | BI20: 0.0003220537959 | BJ20: 0.004289520699 | BK20: 0.0009767193698 | BL20: 0 | BM20: 2.036744837e-06 | BN20: 0.00146867695 | BO20: 0.09292590372 | BP20: 0.3207850286 | BQ20: 0.7262942514 | BR20: 72.62942514 | BS20: 42 | BT20: 27.74693467 | BU20: 0.2774693467 | BV20: 339.8961328 | BX20: 0.09028191354 | BZ20: 0.1882351917 | CA20: 0.06448440888 | CB20: 0.0006778519186 | CE20: =IF(OR(MODE=1,MODE=2,MODE=3), BR20, IF(MODE_ILIM=4,#REF!,#REF!)) -> 72.62942514 | CF20: =IF(OR(MODE=1,MODE=2,MODE=3), BZ20, IF(MODE_ILIM=4,#REF!,#REF!)) -> 0.1882351917 | CG20: =IF(OR(MODE=1,MODE=2,MODE=3), CA20, IF(MODE_ILIM=4,#REF!,#REF!)) -> 0.06448440888 | CH20: =IF(OR(MODE=1,MODE=2,MODE=3), CB20, IF(MODE_ILIM=4,#REF!,#REF!)) -> 0.0006778519186 | CI20: =(IF(OR(MODE=1,MODE=2,MODE=3), S20, IF(MODE_ILIM=4,#REF!,#REF!)))/1000 -> 339.8961328 | CJ20: =IF(OR(MODE=1,MODE=2,MODE=3), P20, IF(MODE_ILIM=4,#REF!,#REF!)) -> 149.4443887
A21: Icrit_Skip | B21: =1000*Iripple/2 -> 73.7375 | C21: mA | D21: =Iripple/2 -> 0.0737375 | E21: CCM-DCM (critical conduction) boundary | H21: 15 | I21: 0.045 | J21: 0.149379376 | K21: 0.149379376 | L21: 0 | M21: 44.16396761 | N21: 149.4330056 | O21: 1 | P21: 149.4330056 | Q21: 1.237740572e-06 | R21: 0.151739345 | S21: 364174.428 | T21: 2.7459369e-06 | U21: 0 | V21: 0.00066 | W21: 0.06535834043 | X21: 0.0007261911528 | Y21: 0 | Z21: 0.0007262755391 | AA21: 0.03304484476 | AB21: 0.001091961765 | AC21: 0.001091961765 | AD21: 0.02314433495 | AE21: 1.606980721e-06 | AF21: 1.606980721e-06 | AG21: 0.03316705264 | AH21: 0.002035098754 | AI21: 0.001092523284 | AJ21: 30 | AK21: 52.07662316 | AL21: 0.05404448769 | AM21: 0.06712463057 | AN21: 0.1222616415 | AO21: 0.1243466635 | AP21: 0.05631748647 | AQ21: 0.002378744462 | AR21: 0.002949812867 | AS21: 0 | AT21: 0.0002457445456 | AU21: 0.003195557412 | AV21: 0.005576919004 | AW21: 0.03203792404 | AX21: 0.06680201494 | AY21: 0.004042336151 | AZ21: 0.2007679336 | BA21: 0.2025877779 | BB21: 0.54 | BC21: 0.7271867597 | BD21: 0.002807778484 | BE21: 0.003206841887 | BF21: 0.05225837026 | BG21: 0.1646426795 | BH21: 0 | BI21: 0.0003309299626 | BJ21: 0.004303272297 | BK21: 0.0009779196135 | BL21: 0 | BM21: 2.16402797e-06 | BN21: 0.001470481737 | BO21: 0.08995840886 | BP21: 0.3199588467 | BQ21: 0.7271867597 | BR21: 72.71867597 | BS21: 45 | BT21: 29.61804422 | BU21: 0.2961804422 | BV21: 364.174428 | BX21: 0.09039285667 | BZ21: 0.2007679336 | CA21: 0.06680201494 | CB21: 0.0007262755391 | CE21: =IF(OR(MODE=1,MODE=2,MODE=3), BR21, IF(MODE_ILIM=4,#REF!,#REF!)) -> 72.71867597 | CF21: =IF(OR(MODE=1,MODE=2,MODE=3), BZ21, IF(MODE_ILIM=4,#REF!,#REF!)) -> 0.2007679336 | CG21: =IF(OR(MODE=1,MODE=2,MODE=3), CA21, IF(MODE_ILIM=4,#REF!,#REF!)) -> 0.06680201494 | CH21: =IF(OR(MODE=1,MODE=2,MODE=3), CB21, IF(MODE_ILIM=4,#REF!,#REF!)) -> 0.0007262755391 | CI21: =(IF(OR(MODE=1,MODE=2,MODE=3), S21, IF(MODE_ILIM=4,#REF!,#REF!)))/1000 -> 364.174428 | CJ21: =IF(OR(MODE=1,MODE=2,MODE=3), P21, IF(MODE_ILIM=4,#REF!,#REF!)) -> 149.4330056
A22: Tr | C22: ns | D22: =B22/1000000000 -> 0 | E22: Switch rise time | H22: 16 | I22: 0.048 | J22: 0.149379376 | K22: 0.149379376 | L22: 0 | M22: 43.66396761 | N22: 149.4227166 | O22: 1 | P22: 149.4227166 | Q22: 1.237740572e-06 | R22: 0.1618553013 | S22: 388452.7232 | T22: 2.574315844e-06 | U22: 0 | V22: 0.00066 | W22: 0.06750180374 | X22: 0.0007746038963 | Y22: 0 | Z22: 0.00077469991 | AA22: 0.03412856892 | AB22: 0.001164759217 | AC22: 0.001164759217 | AD22: 0.0246151168 | AE22: 1.817711926e-06 | AF22: 1.817711926e-06 | AG22: 0.03425478467 | AH22: 0.002170772004 | AI22: 0.00116535817 | AJ22: 30 | AK22: 52.07662316 | AL22: 0.05910396358 | AM22: 0.07159960594 | AN22: 0.1318689277 | AO22: 0.1340971268 | AP22: 0.05816444992 | AQ22: 0.002537327426 | AR22: 0.003146467058 | AS22: 0 | AT22: 0.0002688496887 | AU22: 0.003415316747 | AV22: 0.005955625344 | AW22: 0.03203792404 | AX22: 0.069119621 | AY22: 0.004311825228 | AZ22: 0.2134841983 | BA22: 0.2154254752 | BB22: 0.576 | BC22: 0.7278006813 | BD22: 0.002815425022 | BE22: 0.003209788764 | BF22: 0.05230248897 | BG22: 0.1666220406 | BH22: 0 | BI22: 0.0003397031017 | BJ22: 0.004315399054 | BK22: 0.0009787452143 | BL22: 0 | BM22: 2.296756906e-06 | BN22: 0.001471723179 | BO22: 0.08733560287 | BP22: 0.3193932136 | BQ22: 0.7278006813 | BR22: 72.78006813 | BS22: 48 | BT22: 31.52597677 | BU22: 0.3152597677 | BV22: 388.4527232 | BX22: 0.09046917011 | BZ22: 0.2134841983 | CA22: 0.069119621 | CB22: 0.00077469991 | CE22: =IF(OR(MODE=1,MODE=2,MODE=3), BR22, IF(MODE_ILIM=4,#REF!,#REF!)) -> 72.78006813 | CF22: =IF(OR(MODE=1,MODE=2,MODE=3), BZ22, IF(MODE_ILIM=4,#REF!,#REF!)) -> 0.2134841983 | CG22: =IF(OR(MODE=1,MODE=2,MODE=3), CA22, IF(MODE_ILIM=4,#REF!,#REF!)) -> 0.069119621 | CH22: =IF(OR(MODE=1,MODE=2,MODE=3), CB22, IF(MODE_ILIM=4,#REF!,#REF!)) -> 0.00077469991 | CI22: =(IF(OR(MODE=1,MODE=2,MODE=3), S22, IF(MODE_ILIM=4,#REF!,#REF!)))/1000 -> 388.4527232 | CJ22: =IF(OR(MODE=1,MODE=2,MODE=3), P22, IF(MODE_ILIM=4,#REF!,#REF!)) -> 149.4227166
A23: Tf | C23: ns | D23: =B23/1000000000 -> 0 | E23: Switch fall time | H23: 17 | I23: 0.051 | J23: 0.149379376 | K23: 0.149379376 | L23: 0 | M23: 43.16396761 | N23: 149.4135221 | O23: 1 | P23: 149.4135221 | Q23: 1.237740572e-06 | R23: 0.1719712577 | S23: 412731.0184 | T23: 2.4228855e-06 | U23: 0 | V23: 0.00066 | W23: 0.06957926668 | X23: 0.0008230166398 | Y23: 0 | Z23: 0.0008231250311 | AA23: 0.03517892363 | AB23: 0.001237556668 | AC23: 0.001237556668 | AD23: 0.02611621648 | AE23: 2.04617029e-06 | AF23: 2.04617029e-06 | AG23: 0.03530902384 | AH23: 0.002306445255 | AI23: 0.001238193055 | AJ23: 30 | AK23: 52.07662316 | AL23: 0.06434550321 | AM23: 0.07607458131 | AN23: 0.1416582776 | AO23: 0.1440302588 | AP23: 0.05995454267 | AQ23: 0.00269591039 | AR23: 0.003343121249 | AS23: 0 | AT23: 0.0002928003039 | AU23: 0.003635921553 | AV23: 0.006335201315 | AW23: 0.03203792404 | AX23: 0.07143722706 | AY23: 0.004581314304 | AZ23: 0.2263840015 | BA23: 0.2284467294 | BB23: 0.612 | BC23: 0.7281841652 | BD23: 0.002822286261 | BE23: 0.003211720229 | BF23: 0.05233004756 | BG23: 0.1685511676 | BH23: 0 | BI23: 0.0003483865112 | BJ23: 0.004326177289 | BK23: 0.0009792609228 | BL23: 0 | BM23: 2.434622229e-06 | BN23: 0.001472498642 | BO23: 0.08499911364 | BP23: 0.3190430933 | BQ23: 0.7281841652 | BR23: 72.81841652 | BS23: 51 | BT23: 33.46038355 | BU23: 0.3346038355 | BV23: 412.7310184 | BX23: 0.09051683902 | BZ23: 0.2263840015 | CA23: 0.07143722706 | CB23: 0.0008231250311 | CE23: =IF(OR(MODE=1,MODE=2,MODE=3), BR23, IF(MODE_ILIM=4,#REF!,#REF!)) -> 72.81841652 | CF23: =IF(OR(MODE=1,MODE=2,MODE=3), BZ23, IF(MODE_ILIM=4,#REF!,#REF!)) -> 0.2263840015 | CG23: =IF(OR(MODE=1,MODE=2,MODE=3), CA23, IF(MODE_ILIM=4,#REF!,#REF!)) -> 0.07143722706 | CH23: =IF(OR(MODE=1,MODE=2,MODE=3), CB23, IF(MODE_ILIM=4,#REF!,#REF!)) -> 0.0008231250311 | CI23: =(IF(OR(MODE=1,MODE=2,MODE=3), S23, IF(MODE_ILIM=4,#REF!,#REF!)))/1000 -> 412.7310184 | CJ23: =IF(OR(MODE=1,MODE=2,MODE=3), P23, IF(MODE_ILIM=4,#REF!,#REF!)) -> 149.4135221
H24: 18 | I24: 0.054 | J24: 0.149379376 | K24: 0.149379376 | L24: 0 | M24: 42.66396761 | N24: 149.405422 | O24: 1 | P24: 149.405422 | Q24: 1.237740572e-06 | R24: 0.182087214 | S24: 437009.3136 | T24: 2.28828075e-06 | U24: 0 | V24: 0.00066 | W24: 0.07159647475 | X24: 0.0008714293833 | Y24: 0 | Z24: 0.0008715509025 | AA24: 0.03619881377 | AB24: 0.001310354119 | AC24: 0.001310354119 | AD24: 0.02764597897 | AE24: 2.292900459e-06 | AF24: 2.292900459e-06 | AG24: 0.03633268579 | AH24: 0.002442118505 | AI24: 0.001311027941 | AJ24: 30 | AK24: 52.07662316 | AL24: 0.06976910661 | AM24: 0.08054955668 | AN24: 0.1516296912 | AO24: 0.1541460744 | AP24: 0.06169271545 | AQ24: 0.002854493354 | AR24: 0.00353977544 | AS24: 0 | AT24: 0.0003175973089 | AU24: 0.003857372749 | AV24: 0.006715647916 | AW24: 0.03203792404 | AX24: 0.07375483312 | AY24: 0.004850803381 | AZ24: 0.2394673588 | BA24: 0.2416515567 | BB24: 0.648 | BC24: 0.7283750532 | BD24: 0.002828504213 | BE24: 0.003212802974 | BF24: 0.05234376549 | BG24: 0.1704371673 | BH24: 0 | BI24: 0.000356990674 | BJ24: 0.0043358242 | BK24: 0.0009795176288 | BL24: 0 | BM24: 2.577301688e-06 | BN24: 0.001472884646 | BO24: 0.08290305632 | BP24: 0.3188730908 | BQ24: 0.7283750532 | BR24: 72.83750532 | BS24: 54 | BT24: 35.4103147 | BU24: 0.354103147 | BV24: 437.0093136 | BX24: 0.09054056734 | BZ24: 0.2394673588 | CA24: 0.07375483312 | CB24: 0.0008715509025 | CE24: =IF(OR(MODE=1,MODE=2,MODE=3), BR24, IF(MODE_ILIM=4,#REF!,#REF!)) -> 72.83750532 | CF24: =IF(OR(MODE=1,MODE=2,MODE=3), BZ24, IF(MODE_ILIM=4,#REF!,#REF!)) -> 0.2394673588 | CG24: =IF(OR(MODE=1,MODE=2,MODE=3), CA24, IF(MODE_ILIM=4,#REF!,#REF!)) -> 0.07375483312 | CH24: =IF(OR(MODE=1,MODE=2,MODE=3), CB24, IF(MODE_ILIM=4,#REF!,#REF!)) -> 0.0008715509025 | CI24: =(IF(OR(MODE=1,MODE=2,MODE=3), S24, IF(MODE_ILIM=4,#REF!,#REF!)))/1000 -> 437.0093136 | CJ24: =IF(OR(MODE=1,MODE=2,MODE=3), P24, IF(MODE_ILIM=4,#REF!,#REF!)) -> 149.405422
A25: Components | B25: Input Value | C25: Units | D25: Std Units | E25: Description | H25: 19 | I25: 0.057 | J25: 0.149379376 | K25: 0.149379376 | L25: 0 | M25: 42.16396761 | N25: 149.3984168 | O25: 1 | P25: 149.3984168 | Q25: 1.237740572e-06 | R25: 0.1922031703 | S25: 461287.6088 | T25: 2.167844921e-06 | U25: 0 | V25: 0.00066 | W25: 0.07355838525 | X25: 0.0009198421268 | Y25: 0 | Z25: 0.0009199775243 | AA25: 0.03719074575 | AB25: 0.00138315157 | AC25: 0.00138315157 | AD25: 0.02920262983 | AE25: 2.558380767e-06 | AF25: 2.558380767e-06 | AG25: 0.03732828618 | AH25: 0.002577791755 | AI25: 0.001383862826 | AJ25: 30 | AK25: 52.07662316 | AL25: 0.07537477376 | AM25: 0.08502453206 | AN25: 0.1617831686 | AO25: 0.1644445882 | AP25: 0.06338323983 | AQ25: 0.003013076319 | AR25: 0.003736429631 | AS25: 0 | AT25: 0.0003432416214 | AU25: 0.004079671253 | AV25: 0.007096966148 | AW25: 0.03203792404 | AX25: 0.07607243918 | AY25: 0.005120292458 | AZ25: 0.2527342859 | BA25: 0.2550399734 | BB25: 0.684 | BC25: 0.7284034965 | BD25: 0.002834191933 | BE25: 0.003213169812 | BF25: 0.05234580954 | BG25: 0.1722857101 | BH25: 0 | BI25: 0.0003655239725 | BJ25: 0.004344512873 | BK25: 0.0009795558793 | BL25: 0 | BM25: 2.724464175e-06 | BN25: 0.001472942163 | BO25: 0.08101086357 | BP25: 0.3188550043 | BQ25: 0.7284034965 | BR25: 72.84034965 | BS25: 57 | BT25: 37.36446212 | BU25: 0.3736446212 | BV25: 461.2876088 | BX25: 0.09054410298 | BZ25: 0.2527342859 | CA25: 0.07607243918 | CB25: 0.0009199775243 | CE25: =IF(OR(MODE=1,MODE=2,MODE=3), BR25, IF(MODE_ILIM=4,#REF!,#REF!)) -> 72.84034965 | CF25: =IF(OR(MODE=1,MODE=2,MODE=3), BZ25, IF(MODE_ILIM=4,#REF!,#REF!)) -> 0.2527342859 | CG25: =IF(OR(MODE=1,MODE=2,MODE=3), CA25, IF(MODE_ILIM=4,#REF!,#REF!)) -> 0.07607243918 | CH25: =IF(OR(MODE=1,MODE=2,MODE=3), CB25, IF(MODE_ILIM=4,#REF!,#REF!)) -> 0.0009199775243 | CI25: =(IF(OR(MODE=1,MODE=2,MODE=3), S25, IF(MODE_ILIM=4,#REF!,#REF!)))/1000 -> 461.2876088 | CJ25: =IF(OR(MODE=1,MODE=2,MODE=3), P25, IF(MODE_ILIM=4,#REF!,#REF!)) -> 149.3984168
A26: L | B26: ='Design Converter'!E17 -> 100 | C26: µH | D26: =B26/1000000 -> 0.0001 | E26: Filter inductance | H26: 20 | I26: 0.06 | J26: 0.149379376 | K26: 0.149379376 | L26: 0 | M26: 41.66396761 | N26: 149.3925064 | O26: 1 | P26: 149.3925064 | Q26: 1.237740572e-06 | R26: 0.2023191267 | S26: 485565.904 | T26: 2.059452675e-06 | U26: 0 | V26: 0.00066 | W26: 0.07546931088 | X26: 0.0009682548703 | Y26: 0 | Z26: 0.0009684048964 | AA26: 0.03815690004 | AB26: 0.001455949021 | AC26: 0.001455949021 | AD26: 0.03078432088 | AE26: 2.843023235e-06 | AF26: 2.843023235e-06 | AG26: 0.03829801354 | AH26: 0.002713465006 | AI26: 0.001456697712 | AJ26: 30 | AK26: 52.07662316 | AL26: 0.08116250466 | AM26: 0.08949950743 | AN26: 0.1721187098 | AO26: 0.1749258148 | AP26: 0.06502983195 | AQ26: 0.003171659283 | AR26: 0.003933083822 | AS26: 0 | AT26: 0.0003697341592 | AU26: 0.004302817982 | AV26: 0.00747915701 | AW26: 0.03203792404 | AX26: 0.07839004524 | AY26: 0.005389781534 | AZ26: 0.2661847985 | BA26: 0.2686119955 | BB26: 0.72 | BC26: 0.7282938132 | BD26: 0.002839440521 | BE26: 0.003212927865 | BF26: 0.05233792728 | BG26: 0.1741013771 | BH26: 0 | BI26: 0.0003739931954 | BJ26: 0.004352382938 | BK26: 0.0009794083774 | BL26: 0 | BM26: 2.875772546e-06 | BN26: 0.001472720367 | BO26: 0.07929303467 | BP26: 0.3189660881 | BQ26: 0.7282938132 | BR26: 72.82938132 | BS26: 60 | BT26: 39.31141961 | BU26: 0.3931141961 | BV26: 485.565904 | BX26: 0.09053046881 | BZ26: 0.2661847985 | CA26: 0.07839004524 | CB26: 0.0009684048964 | CE26: =IF(OR(MODE=1,MODE=2,MODE=3), BR26, IF(MODE_ILIM=4,#REF!,#REF!)) -> 72.82938132 | CF26: =IF(OR(MODE=1,MODE=2,MODE=3), BZ26, IF(MODE_ILIM=4,#REF!,#REF!)) -> 0.2661847985 | CG26: =IF(OR(MODE=1,MODE=2,MODE=3), CA26, IF(MODE_ILIM=4,#REF!,#REF!)) -> 0.07839004524 | CH26: =IF(OR(MODE=1,MODE=2,MODE=3), CB26, IF(MODE_ILIM=4,#REF!,#REF!)) -> 0.0009684048964 | CI26: =(IF(OR(MODE=1,MODE=2,MODE=3), S26, IF(MODE_ILIM=4,#REF!,#REF!)))/1000 -> 485.565904 | CJ26: =IF(OR(MODE=1,MODE=2,MODE=3), P26, IF(MODE_ILIM=4,#REF!,#REF!)) -> 149.3925064
A27: Rdcr | B27: ='Design Converter'!E18 -> 170 | C27: mW | D27: =B27/1000 -> 0.17 | E27: Inductor DCR at 25°C | H27: 21 | I27: 0.063 | J27: 0.149379376 | K27: 0.149379376 | L27: 0 | M27: 41.16396761 | N27: 149.3876911 | O27: 1 | P27: 149.3876911 | Q27: 1.237740572e-06 | R27: 0.212435083 | S27: 509844.1992 | T27: 1.9613835e-06 | U27: 0 | V27: 0.00066 | W27: 0.07733303129 | X27: 0.001016667614 | Y27: 0 | Z27: 0.001016833019 | AA27: 0.03909918761 | AB27: 0.001528746472 | AC27: 0.001528746472 | AD27: 0.03238916267 | AE27: 3.147173575e-06 | AF27: 3.147173575e-06 | AG27: 0.03924378591 | AH27: 0.002849138256 | AI27: 0.001529532598 | AJ27: 30 | AK27: 52.07662316 | AL27: 0.08713229932 | AM27: 0.0939744828 | AN27: 0.1826363147 | AO27: 0.1855897689 | AP27: 0.06663574863 | AQ27: 0.003330242247 | AR27: 0.004129738014 | AS27: 0 | AT27: 0.0003970758399 | AU27: 0.004526813853 | AV27: 0.007862221503 | AW27: 0.03203792404 | AX27: 0.0807076513 | AY27: 0.005659270611 | AZ27: 0.2798189123 | BA27: 0.282367639 | BB27: 0.756 | BC27: 0.728065833 | BD27: 0.002844324178 | BE27: 0.003212164482 | BF27: 0.05232154377 | BG27: 0.1758879108 | BH27: 0 | BI27: 0.0003824039049 | BJ27: 0.004359548279 | BK27: 0.0009791017899 | BL27: 0 | BM27: 3.030885649e-06 | BN27: 0.001472259356 | BO27: 0.0777255071 | BP27: 0.3191877946 | BQ27: 0.728065833 | BR27: 72.8065833 | BS27: 63 | BT27: 41.23994795 | BU27: 0.4123994795 | BV27: 509.8441992 | BX27: 0.09050212976 | BZ27: 0.2798189123 | CA27: 0.0807076513 | CB27: 0.001016833019 | CE27: =IF(OR(MODE=1,MODE=2,MODE=3), BR27, IF(MODE_ILIM=4,#REF!,#REF!)) -> 72.8065833 | CF27: =IF(OR(MODE=1,MODE=2,MODE=3), BZ27, IF(MODE_ILIM=4,#REF!,#REF!)) -> 0.2798189123 | CG27: =IF(OR(MODE=1,MODE=2,MODE=3), CA27, IF(MODE_ILIM=4,#REF!,#REF!)) -> 0.0807076513 | CH27: =IF(OR(MODE=1,MODE=2,MODE=3), CB27, IF(MODE_ILIM=4,#REF!,#REF!)) -> 0.001016833019 | CI27: =(IF(OR(MODE=1,MODE=2,MODE=3), S27, IF(MODE_ILIM=4,#REF!,#REF!)))/1000 -> 509.8441992 | CJ27: =IF(OR(MODE=1,MODE=2,MODE=3), P27, IF(MODE_ILIM=4,#REF!,#REF!)) -> 149.3876911
A28: Kcore | B28: 0 | D28: =B28 -> 0 | E28: Core loss constant - consult inductor vendor | H28: 22 | I28: 0.066 | J28: 0.149379376 | K28: 0.149379376 | L28: 0 | M28: 40.66396761 | N28: 149.3839709 | O28: 1 | P28: 149.3839709 | Q28: 1.237740572e-06 | R28: 0.2225510393 | S28: 534122.4944 | T28: 1.872229705e-06 | U28: 0 | V28: 0.00066 | W28: 0.07915288101 | X28: 0.001065080357 | Y28: 0 | Z28: 0.001065261892 | AA28: 0.04001929438 | AB28: 0.001601543923 | AC28: 0.001601543923 | AD28: 0.03401524749 | AE28: 3.471111185e-06 | AF28: 3.471111185e-06 | AG28: 0.04016729546 | AH28: 0.002984811506 | AI28: 0.001602367483 | AJ28: 30 | AK28: 52.07662316 | AL28: 0.09328415773 | AM28: 0.09844945817 | AN28: 0.1933359834 | AO28: 0.1964364652 | AP28: 0.06820386314 | AQ28: 0.003488825211 | AR28: 0.004326392205 | AS28: 0 | AT28: 0.0004252675813 | AU28: 0.004751659786 | AV28: 0.008246160627 | AW28: 0.03203792404 | AX28: 0.08302525736 | AY28: 0.005928759688 | AZ28: 0.2936366429 | BA28: 0.2963069198 | BB28: 0.792 | BC28: 0.7277358855 | BD28: 0.002848903933 | BE28: 0.003210951596 | BF28: 0.0522978325 | BG28: 0.1776484003 | BH28: 0 | BI28: 0.0003907607069 | BJ28: 0.004366102704 | BK28: 0.000978658077 | BL28: 0 | BM28: 3.189459813e-06 | BN28: 0.001471592152 | BO28: 0.07628845856 | BP28: 0.31950485 | BQ28: 0.7277358855 | BR28: 72.77358855 | BS28: 66 | BT28: 43.13923173 | BU28: 0.4313923173 | BV28: 534.1224944 | BX28: 0.09046111568 | BZ28: 0.2936366429 | CA28: 0.08302525736 | CB28: 0.001065261892 | CE28: =IF(OR(MODE=1,MODE=2,MODE=3), BR28, IF(MODE_ILIM=4,#REF!,#REF!)) -> 72.77358855 | CF28: =IF(OR(MODE=1,MODE=2,MODE=3), BZ28, IF(MODE_ILIM=4,#REF!,#REF!)) -> 0.2936366429 | CG28: =IF(OR(MODE=1,MODE=2,MODE=3), CA28, IF(MODE_ILIM=4,#REF!,#REF!)) -> 0.08302525736 | CH28: =IF(OR(MODE=1,MODE=2,MODE=3), CB28, IF(MODE_ILIM=4,#REF!,#REF!)) -> 0.001065261892 | CI28: =(IF(OR(MODE=1,MODE=2,MODE=3), S28, IF(MODE_ILIM=4,#REF!,#REF!)))/1000 -> 534.1224944 | CJ28: =IF(OR(MODE=1,MODE=2,MODE=3), P28, IF(MODE_ILIM=4,#REF!,#REF!)) -> 149.3839709
A29: Cin | B29: ='Design Converter'!E37 -> 2.2 | C29: µF | D29: =B29/1000000 -> 2.2e-06 | E29: Input capacitance | H29: 23 | I29: 0.069 | J29: 0.149379376 | K29: 0.149379376 | L29: 0 | M29: 40.16396761 | N29: 149.3813459 | O29: 1 | P29: 149.3813459 | Q29: 1.237740572e-06 | R29: 0.2326669957 | S29: 558400.7896 | T29: 1.790828413e-06 | U29: 0 | V29: 0.00066 | W29: 0.08093181956 | X29: 0.001113493101 | Y29: 0 | Z29: 0.001113691515 | AA29: 0.04091871667 | AB29: 0.001674341374 | AC29: 0.001674341374 | AD29: 0.03566066532 | AE29: 3.815049152e-06 | AF29: 3.815049152e-06 | AG29: 0.04107004403 | AH29: 0.003120484756 | AI29: 0.001675202369 | AJ29: 30 | AK29: 52.07662316 | AL29: 0.09961807989 | AM29: 0.1029244335 | AN29: 0.2042177158 | AO29: 0.2074659185 | AP29: 0.06973672562 | AQ29: 0.003647408175 | AR29: 0.004523046396 | AS29: 0 | AT29: 0.0004543103012 | AU29: 0.004977356697 | AV29: 0.008630975383 | AW29: 0.03203792404 | AX29: 0.08534286342 | AY29: 0.006198248765 | AZ29: 0.3076380061 | BA29: 0.310429854 | BB29: 0.828 | BC29: 0.7273175392 | BD29: 0.002853230421 | BE29: 0.003209348976 | BF29: 0.05226776857 | BG29: 0.1793854185 | BH29: 0 | BI29: 0.000399067452 | BJ29: 0.004372124184 | BK29: 0.0009780954856 | BL29: 0 | BM29: 3.351149953e-06 | BN29: 0.001470746193 | BO29: 0.07496541233 | BP29: 0.3199045633 | BQ29: 0.7273175392 | BR29: 72.73175392 | BS29: 69 | BT29: 44.9991157 | BU29: 0.449991157 | BV29: 558.4007896 | BX29: 0.0904091132 | BZ29: 0.3076380061 | CA29: 0.08534286342 | CB29: 0.001113691515 | CE29: =IF(OR(MODE=1,MODE=2,MODE=3), BR29, IF(MODE_ILIM=4,#REF!,#REF!)) -> 72.73175392 | CF29: =IF(OR(MODE=1,MODE=2,MODE=3), BZ29, IF(MODE_ILIM=4,#REF!,#REF!)) -> 0.3076380061 | CG29: =IF(OR(MODE=1,MODE=2,MODE=3), CA29, IF(MODE_ILIM=4,#REF!,#REF!)) -> 0.08534286342 | CH29: =IF(OR(MODE=1,MODE=2,MODE=3), CB29, IF(MODE_ILIM=4,#REF!,#REF!)) -> 0.001113691515 | CI29: =(IF(OR(MODE=1,MODE=2,MODE=3), S29, IF(MODE_ILIM=4,#REF!,#REF!)))/1000 -> 558.4007896 | CJ29: =IF(OR(MODE=1,MODE=2,MODE=3), P29, IF(MODE_ILIM=4,#REF!,#REF!)) -> 149.3813459
A30: RCinESR | B30: ='Design Converter'!E39 -> 3 | C30: mW | D30: =B30/1000 -> 0.003 | E30: Input capacitor ESR | H30: 24 | I30: 0.072 | J30: 0.149379376 | K30: 0.149379376 | L30: 0 | M30: 39.66396761 | N30: 149.3798163 | O30: 1 | P30: 149.3798163 | Q30: 1.237740572e-06 | R30: 0.242782952 | S30: 582679.0848 | T30: 1.716210563e-06 | U30: 0 | V30: 0.00066 | W30: 0.08267248793 | X30: 0.001161905844 | Y30: 0 | Z30: 0.001162121889 | AA30: 0.04179878975 | AB30: 0.001747138825 | AC30: 0.001747138825 | AD30: 0.03732351472 | AE30: 4.179134253e-06 | AF30: 4.179134253e-06 | AG30: 0.04195337184 | AH30: 0.003256158007 | AI30: 0.001748037254 | AJ30: 30 | AK30: 52.07662316 | AL30: 0.1061340658 | AM30: 0.1073994089 | AN30: 0.215281512 | AO30: 0.2186781433 | AP30: 0.07123661174 | AQ30: 0.003805991139 | AR30: 0.004719700587 | AS30: 0 | AT30: 0.0004842049171 | AU30: 0.005203905504 | AV30: 0.009016666771 | AW30: 0.03203792404 | AX30: 0.08766046948 | AY30: 0.006467737841 | AZ30: 0.3218230174 | BA30: 0.3247364573 | BB30: 0.864 | BC30: 0.7268221604 | BD30: 0.002857345988 | BE30: 0.003207406691 | BF30: 0.05223216879 | BG30: 0.1811011269 | BH30: 0 | BI30: 0.0004073273888 | BJ30: 0.004377678057 | BK30: 0.0009774293009 | BL30: 0 | BM30: 3.515610401e-06 | BN30: 0.001469744462 | BO30: 0.07374255996 | BP30: 0.3203763031 | BQ30: 0.7268221604 | BR30: 72.68221604 | BS30: 72 | BT30: 46.81030997 | BU30: 0.4681030997 | BV30: 582.6790848 | BX30: 0.0903475352 | BZ30: 0.3218230174 | CA30: 0.08766046948 | CB30: 0.001162121889 | CE30: =IF(OR(MODE=1,MODE=2,MODE=3), BR30, IF(MODE_ILIM=4,#REF!,#REF!)) -> 72.68221604 | CF30: =IF(OR(MODE=1,MODE=2,MODE=3), BZ30, IF(MODE_ILIM=4,#REF!,#REF!)) -> 0.3218230174 | CG30: =IF(OR(MODE=1,MODE=2,MODE=3), CA30, IF(MODE_ILIM=4,#REF!,#REF!)) -> 0.08766046948 | CH30: =IF(OR(MODE=1,MODE=2,MODE=3), CB30, IF(MODE_ILIM=4,#REF!,#REF!)) -> 0.001162121889 | CI30: =(IF(OR(MODE=1,MODE=2,MODE=3), S30, IF(MODE_ILIM=4,#REF!,#REF!)))/1000 -> 582.6790848 | CJ30: =IF(OR(MODE=1,MODE=2,MODE=3), P30, IF(MODE_ILIM=4,#REF!,#REF!)) -> 149.3798163
A31: Cout | B31: ='Design Converter'!E24 -> 12 | C31: µF | D31: =B31/1000000 -> 1.2e-05 | E31: Output capacitance | H31: 25 | I31: 0.075 | J31: 0.14936875 | K31: 0.1493714065 | L31: 0.0006286046691 | M31: 149.3912588 | N31: 149.3912588 | O31: 1 | P31: 149.3912588 | Q31: 1.23762325e-06 | R31: 0.2518704023 | S31: 604488.9654 | T31: 1.654289916e-06 | U31: 0 | V31: 0.00066 | W31: 0.08624039832 | X31: 0.001264359071 | Y31: 0 | Z31: 0.0012646149 | AA31: 0.04257236547 | AB31: 0.001812406302 | AC31: 0.001812406302 | AD31: 0.03894123563 | AE31: 4.549259496e-06 | AF31: 4.549259496e-06 | AG31: 0.04328120281 | AH31: 0.003465535657 | AI31: 0.001813466896 | AJ31: 30 | AK31: 51.63459114 | AL31: 0.1119688866 | AM31: 0.1114194061 | AN31: 0.2252017596 | AO31: 0.2288237376 | AP31: 0.07349126197 | AQ31: 0.004050724189 | AR31: 0.00489636062 | AS31: 5.128484383e-05 | AT31: 0.0005171325159 | AU31: 0.00546477798 | AV31: 0.009523112344 | AW31: 0.03203792404 | AX31: 0.08974244068 | AY31: 0.006709827516 | AZ31: 0.3347991182 | BA31: 0.3378806886 | BB31: 0.9 | BC31: 0.7270490672 | BD31: 0.002925950863 | BE31: 0.003278453571 | BF31: 0.05203598759 | BG31: 0.1819252547 | BH31: 4.142955318e-05 | BI31: 0.0004177563481 | BJ31: 0.004414624147 | BK31: 0.001021390093 | BL31: 0 | BM31: 3.675038748e-06 | BN31: 0.001464120346 | BO31: 0.07249684198 | BP31: 0.3200254842 | BQ31: 0.7270490672 | BR31: 72.70490672 | BS31: 75 | BT31: 48.56455599 | BU31: 0.4856455599 | BV31: 604.4889654 | BX31: 0.09000819475 | BZ31: 0.3347991182 | CA31: 0.08974244068 | CB31: 0.0012646149 | CE31: =IF(OR(MODE=1,MODE=2,MODE=3), BR31, IF(MODE_ILIM=4,#REF!,#REF!)) -> 72.70490672 | CF31: =IF(OR(MODE=1,MODE=2,MODE=3), BZ31, IF(MODE_ILIM=4,#REF!,#REF!)) -> 0.3347991182 | CG31: =IF(OR(MODE=1,MODE=2,MODE=3), CA31, IF(MODE_ILIM=4,#REF!,#REF!)) -> 0.08974244068 | CH31: =IF(OR(MODE=1,MODE=2,MODE=3), CB31, IF(MODE_ILIM=4,#REF!,#REF!)) -> 0.0012646149 | CI31: =(IF(OR(MODE=1,MODE=2,MODE=3), S31, IF(MODE_ILIM=4,#REF!,#REF!)))/1000 -> 604.4889654 | CJ31: =IF(OR(MODE=1,MODE=2,MODE=3), P31, IF(MODE_ILIM=4,#REF!,#REF!)) -> 149.3912588
A32: RCoutESR | B32: ='Design Converter'!E26 -> 1 | C32: mW | D32: =B32 -> 1 | E32: Output capacitor ESR | H32: 26 | I32: 0.078 | J32: 0.1493435 | K32: 0.1523715128 | L32: 0.003641230116 | M32: 149.366005 | N32: 149.366005 | O32: 1 | P32: 149.366005 | Q32: 1.237131123e-06 | R32: 0.2519453523 | S32: 604668.8456 | T32: 1.653797789e-06 | U32: 0 | V32: 0.00066 | W32: 0.08886172574 | X32: 0.001342389071 | Y32: 0 | Z32: 0.001342677455 | AA32: 0.04257236547 | AB32: 0.001812406302 | AC32: 0.001812406302 | AD32: 0.04004088013 | AE32: 4.809816245e-06 | AF32: 4.809816245e-06 | AG32: 0.04460339525 | AH32: 0.003680506305 | AI32: 0.001814006537 | AJ32: 30 | AK32: 50.61372436 | AL32: 0.1133082903 | AM32: 0.1114525616 | AN32: 0.2265748585 | AO32: 0.2304226724 | AP32: 0.07573633799 | AQ32: 0.004301994669 | AR32: 0.004897817649 | AS32: 0.0001732013441 | AT32: 0.0005379918345 | AU32: 0.005609010828 | AV32: 0.009919424087 | AW32: 0.03203792404 | AX32: 0.08975961204 | AY32: 0.006711824186 | AZ32: 0.3368135327 | BA32: 0.3399734263 | BB32: 0.936 | BC32: 0.7335575967 | BD32: 0.003015590991 | BE32: 0.00337813717 | BF32: 0.05049753455 | BG32: 0.1775702015 | BH32: 0.0001357405574 | BI32: 0.0004216324756 | BJ32: 0.004395868058 | BK32: 0.001052050963 | BL32: 0 | BM32: 3.769526972e-06 | BN32: 0.001420410696 | BO32: 0.07034598855 | BP32: 0.3122369251 | BQ32: 0.7335575967 | BR32: 73.35575967 | BS32: 78 | BT32: 50.25474798 | BU32: 0.5025474798 | BV32: 604.6688456 | BX32: 0.08734708679 | BZ32: 0.3368135327 | CA32: 0.08975961204 | CB32: 0.001342677455 | CE32: =IF(OR(MODE=1,MODE=2,MODE=3), BR32, IF(MODE_ILIM=4,#REF!,#REF!)) -> 73.35575967 | CF32: =IF(OR(MODE=1,MODE=2,MODE=3), BZ32, IF(MODE_ILIM=4,#REF!,#REF!)) -> 0.3368135327 | CG32: =IF(OR(MODE=1,MODE=2,MODE=3), CA32, IF(MODE_ILIM=4,#REF!,#REF!)) -> 0.08975961204 | CH32: =IF(OR(MODE=1,MODE=2,MODE=3), CB32, IF(MODE_ILIM=4,#REF!,#REF!)) -> 0.001342677455 | CI32: =(IF(OR(MODE=1,MODE=2,MODE=3), S32, IF(MODE_ILIM=4,#REF!,#REF!)))/1000 -> 604.6688456 | CJ32: =IF(OR(MODE=1,MODE=2,MODE=3), P32, IF(MODE_ILIM=4,#REF!,#REF!)) -> 149.366005
A33: Controller | C33: Units | D33: Std Units | E33: Description | H33: 27 | I33: 0.081 | J33: 0.14931825 | K33: 0.155371619 | L33: 0.006653855563 | M33: 149.3407512 | N33: 149.3407512 | O33: 1 | P33: 149.3407512 | Q33: 1.23663922e-06 | R33: 0.2520203127 | S33: 604848.7505 | T33: 1.653305887e-06 | U33: 0 | V33: 0.00066 | W33: 0.09150631837 | X33: 0.001423479071 | Y33: 0 | Z33: 0.001423803352 | AA33: 0.04257236547 | AB33: 0.001812406302 | AC33: 0.001812406302 | AD33: 0.04115278313 | AE33: 5.080654677e-06 | AF33: 5.080654677e-06 | AG33: 0.04593765857 | AH33: 0.003903996678 | AI33: 0.001814546251 | AJ33: 30 | AK33: 49.63244204 | AL33: 0.1146484758 | AM33: 0.1114857217 | AN33: 0.2279487437 | AO33: 0.2320314465 | AP33: 0.07800191031 | AQ33: 0.004563223509 | AR33: 0.004899274879 | AS33: 0.0002951903842 | AT33: 0.0005588787372 | AU33: 0.005753344 | AV33: 0.01032586319 | AW33: 0.03203792404 | AX33: 0.08977678576 | AY33: 0.00671382113 | AZ33: 0.3388479166 | BA33: 0.3420892069 | BB33: 0.972 | BC33: 0.7396758111 | BD33: 0.003106868806 | BE33: 0.003479610946 | BF33: 0.04904741818 | BG33: 0.1734651975 | BH33: 0.0002246349659 | BI33: 0.0004252974108 | BJ33: 0.004378198961 | BK33: 0.001083243865 | BL33: 0 | BM33: 3.86629359e-06 | BN33: 0.00137921101 | BO33: 0.06831863871 | BP33: 0.3049121866 | BQ33: 0.7396758111 | BR33: 73.96758111 | BS33: 81 | BT33: 51.8750078 | BU33: 0.518750078 | BV33: 604.8487505 | BX33: 0.08483877739 | BZ33: 0.3388479166 | CA33: 0.08977678576 | CB33: 0.001423803352 | CE33: =IF(OR(MODE=1,MODE=2,MODE=3), BR33, IF(MODE_ILIM=4,#REF!,#REF!)) -> 73.96758111 | CF33: =IF(OR(MODE=1,MODE=2,MODE=3), BZ33, IF(MODE_ILIM=4,#REF!,#REF!)) -> 0.3388479166 | CG33: =IF(OR(MODE=1,MODE=2,MODE=3), CA33, IF(MODE_ILIM=4,#REF!,#REF!)) -> 0.08977678576 | CH33: =IF(OR(MODE=1,MODE=2,MODE=3), CB33, IF(MODE_ILIM=4,#REF!,#REF!)) -> 0.001423803352 | CI33: =(IF(OR(MODE=1,MODE=2,MODE=3), S33, IF(MODE_ILIM=4,#REF!,#REF!)))/1000 -> 604.8487505 | CJ33: =IF(OR(MODE=1,MODE=2,MODE=3), P33, IF(MODE_ILIM=4,#REF!,#REF!)) -> 149.3407512
A34: Deadtime1 | B34: 7 | C34: ns | D34: =B34/1000000000 -> 7e-09 | E34: PMOS off to NMOS on deadtime | H34: 28 | I34: 0.084 | J34: 0.149293 | K34: 0.1583717253 | L34: 0.009666481011 | M34: 149.3154974 | N34: 149.3154974 | O34: 1 | P34: 149.3154974 | Q34: 1.236147543e-06 | R34: 0.2520952834 | S34: 605028.6802 | T34: 1.65281421e-06 | U34: 0 | V34: 0.00066 | W34: 0.09417221619 | X34: 0.001507629071 | Y34: 0 | Z34: 0.00150799283 | AA34: 0.04257236547 | AB34: 0.001812406302 | AC34: 0.001812406302 | AD34: 0.04227600103 | AE34: 5.361780789e-06 | AF34: 5.361780789e-06 | AG34: 0.04728301387 | AH34: 0.00413601429 | AI34: 0.001815086041 | AJ34: 30 | AK34: 48.68848562 | AL34: 0.1159894433 | AM34: 0.1115188863 | AN34: 0.2293234156 | AO34: 0.2336500774 | AP34: 0.08028631675 | AQ34: 0.004834419493 | AR34: 0.00490073231 | AS34: 0.000417251979 | AT34: 0.0005797932404 | AU34: 0.005897777529 | AV34: 0.01074244246 | AW34: 0.03203792404 | AX34: 0.08979396185 | AY34: 0.00671581835 | AZ34: 0.3409023 | BA34: 0.344228061 | BB34: 1.008 | BC34: 0.7454363869 | BD34: 0.00319965387 | BE34: 0.003582727699 | BF34: 0.04767824158 | BG34: 0.1695893039 | BH34: 0.0003085662774 | BI34: 0.0004287688276 | BJ34: 0.004361525766 | BK34: 0.00111492219 | BL34: 0 | BM34: 3.965145336e-06 | BN34: 0.001340311116 | BO34: 0.06640445088 | BP34: 0.2980124373 | BQ34: 0.7454363869 | BR34: 74.54363869 | BS34: 84 | BT34: 53.42071425 | BU34: 0.5342071425 | BV34: 605.0286802 | BX34: 0.08247047192 | BZ34: 0.3409023 | CA34: 0.08979396185 | CB34: 0.00150799283 | CE34: =IF(OR(MODE=1,MODE=2,MODE=3), BR34, IF(MODE_ILIM=4,#REF!,#REF!)) -> 74.54363869 | CF34: =IF(OR(MODE=1,MODE=2,MODE=3), BZ34, IF(MODE_ILIM=4,#REF!,#REF!)) -> 0.3409023 | CG34: =IF(OR(MODE=1,MODE=2,MODE=3), CA34, IF(MODE_ILIM=4,#REF!,#REF!)) -> 0.08979396185 | CH34: =IF(OR(MODE=1,MODE=2,MODE=3), CB34, IF(MODE_ILIM=4,#REF!,#REF!)) -> 0.00150799283 | CI34: =(IF(OR(MODE=1,MODE=2,MODE=3), S34, IF(MODE_ILIM=4,#REF!,#REF!)))/1000 -> 605.0286802 | CJ34: =IF(OR(MODE=1,MODE=2,MODE=3), P34, IF(MODE_ILIM=4,#REF!,#REF!)) -> 149.3154974
A35: Deadtime2 | B35: 7 | C35: ns | D35: =B35/1000000000 -> 7e-09 | E35: NMOS off to PMOS on deadtime | H35: 29 | I35: 0.087 | J35: 0.14926775 | K35: 0.1613718316 | L35: 0.01267910646 | M35: 149.2902436 | N35: 149.2902436 | O35: 1 | P35: 149.2902436 | Q35: 1.235656091e-06 | R35: 0.2521702645 | S35: 605208.6347 | T35: 1.652322757e-06 | U35: 0 | V35: 0.00066 | W35: 0.09685766001 | X35: 0.001594839071 | Y35: 0 | Z35: 0.001595246137 | AA35: 0.04257236547 | AB35: 0.001812406302 | AC35: 0.001812406302 | AD35: 0.04340967855 | AE35: 5.653200576e-06 | AF35: 5.653200576e-06 | AG35: 0.04863858251 | AH35: 0.00437656666 | AI35: 0.001815625904 | AJ35: 30 | AK35: 47.77976515 | AL35: 0.1173311928 | AM35: 0.1115520556 | AN35: 0.2306988743 | AO35: 0.2352785826 | AP35: 0.0825880654 | AQ35: 0.00511559141 | AR35: 0.004902189941 | AS35: 0.0005393861436 | AT35: 0.00060073536 | AU35: 0.006042311445 | AV35: 0.01116917483 | AW35: 0.03203792404 | AX35: 0.08981114031 | AY35: 0.006717815845 | AZ35: 0.3429767136 | BA35: 0.3463900192 | BB35: 1.044 | BC35: 0.750868451 | BD35: 0.003293829975 | BE35: 0.003687356291 | BF35: 0.04638341129 | BG35: 0.1659238567 | BH35: 0.0003879387338 | BI35: 0.0004320624801 | BJ35: 0.004345767275 | BK35: 0.00114704439 | BL35: 0 | BM35: 4.065909923e-06 | BN35: 0.001303523671 | BO35: 0.06459420671 | BP35: 0.2915030634 | BQ35: 0.750868451 | BR35: 75.0868451 | BS35: 87 | BT35: 54.8884902 | BU35: 0.548884902 | BV35: 605.2086347 | BX35: 0.08023076548 | BZ35: 0.3429767136 | CA35: 0.08981114031 | CB35: 0.001595246137 | CE35: =IF(OR(MODE=1,MODE=2,MODE=3), BR35, IF(MODE_ILIM=4,#REF!,#REF!)) -> 75.0868451 | CF35: =IF(OR(MODE=1,MODE=2,MODE=3), BZ35, IF(MODE_ILIM=4,#REF!,#REF!)) -> 0.3429767136 | CG35: =IF(OR(MODE=1,MODE=2,MODE=3), CA35, IF(MODE_ILIM=4,#REF!,#REF!)) -> 0.08981114031 | CH35: =IF(OR(MODE=1,MODE=2,MODE=3), CB35, IF(MODE_ILIM=4,#REF!,#REF!)) -> 0.001595246137 | CI35: =(IF(OR(MODE=1,MODE=2,MODE=3), S35, IF(MODE_ILIM=4,#REF!,#REF!)))/1000 -> 605.2086347 | CJ35: =IF(OR(MODE=1,MODE=2,MODE=3), P35, IF(MODE_ILIM=4,#REF!,#REF!)) -> 149.2902436
A36: Sleep delay | B36: 5 | C36: µs | D36: =B36/1000000 -> 5e-06 | E36: Delay time to enter sleep mode | H36: 30 | I36: 0.09 | J36: 0.1492425 | K36: 0.1643719378 | L36: 0.0156917319 | M36: 149.2649898 | N36: 149.2649898 | O36: 1 | P36: 149.2649898 | Q36: 1.235164862e-06 | R36: 0.2522452558 | S36: 605388.614 | T36: 1.651831529e-06 | U36: 0 | V36: 0.00066 | W36: 0.0995610682 | X36: 0.001685109071 | Y36: 0 | Z36: 0.001685563529 | AA36: 0.04257236547 | AB36: 0.001812406302 | AC36: 0.001812406302 | AD36: 0.04455303967 | AE36: 5.954920032e-06 | AF36: 5.954920032e-06 | AG36: 0.05000357451 | AH36: 0.004625661308 | AI36: 0.001816165842 | AJ36: 30 | AK36: 46.90434384 | AL36: 0.1186737246 | AM36: 0.1115852293 | AN36: 0.2320751198 | AO36: 0.2369169798 | AP36: 0.08490581487 | AQ36: 0.005406748049 | AR36: 0.004903647774 | AS36: 0.0006615928929 | AT36: 0.0006217051124 | AU36: 0.006186945779 | AV36: 0.01160607337 | AW36: 0.03203792404 | AX36: 0.08982832113 | AY36: 0.006719813616 | AZ36: 0.3450711879 | BA36: 0.3485751127 | BB36: 1.08 | BC36: 0.7559980504 | BD36: 0.003389293265 | BE36: 0.00379337953 | BF36: 0.04515703104 | BG36: 0.1624521649 | BH36: 0.0004631138307 | BI36: 0.0004351924564 | BJ36: 0.004330850877 | BK36: 0.001179573308 | BL36: 0 | BM36: 4.168433273e-06 | BN36: 0.00126868114 | BO36: 0.06287966264 | BP36: 0.2853531114 | BQ36: 0.7559980504 | BR36: 75.59980504 | BS36: 90 | BT36: 56.27615304 | BU36: 0.5627615304 | BV36: 605.388614 | BX36: 0.0781094591 | BZ36: 0.3450711879 | CA36: 0.08982832113 | CB36: 0.001685563529 | CE36: =IF(OR(MODE=1,MODE=2,MODE=3), BR36, IF(MODE_ILIM=4,#REF!,#REF!)) -> 75.59980504 | CF36: =IF(OR(MODE=1,MODE=2,MODE=3), BZ36, IF(MODE_ILIM=4,#REF!,#REF!)) -> 0.3450711879 | CG36: =IF(OR(MODE=1,MODE=2,MODE=3), CA36, IF(MODE_ILIM=4,#REF!,#REF!)) -> 0.08982832113 | CH36: =IF(OR(MODE=1,MODE=2,MODE=3), CB36, IF(MODE_ILIM=4,#REF!,#REF!)) -> 0.001685563529 | CI36: =(IF(OR(MODE=1,MODE=2,MODE=3), S36, IF(MODE_ILIM=4,#REF!,#REF!)))/1000 -> 605.388614 | CJ36: =IF(OR(MODE=1,MODE=2,MODE=3), P36, IF(MODE_ILIM=4,#REF!,#REF!)) -> 149.2649898
A37: IQ(active) | B37: 660 | C37: µA | D37: =B37/1000000 -> 0.00066 | E37: LM5164 quiescent current - active state | H37: 31 | I37: 0.093 | J37: 0.14921725 | K37: 0.1673720441 | L37: 0.01870435735 | M37: 149.239736 | N37: 149.239736 | O37: 1 | P37: 149.239736 | Q37: 1.234673859e-06 | R37: 0.2523202575 | S37: 605568.6181 | T37: 1.651340525e-06 | U37: 0 | V37: 0.00066 | W37: 0.1022810163 | X37: 0.001778439071 | Y37: 0 | Z37: 0.001778945271 | AA37: 0.04257236547 | AB37: 0.001812406302 | AC37: 0.001812406302 | AD37: 0.04570537951 | AE37: 6.266945148e-06 | AF37: 6.266945148e-06 | AG37: 0.05137727837 | AH37: 0.004883305755 | AI37: 0.001816705854 | AJ37: 30 | AK37: 46.06042432 | AL37: 0.1200170389 | AM37: 0.1116184077 | AN37: 0.2334521524 | AO37: 0.2385652868 | AP37: 0.08723835703 | AQ37: 0.005707898203 | AR37: 0.004905105807 | AS37: 0.000783872242 | AT37: 0.0006427025136 | AU37: 0.006331680562 | AV37: 0.01205315127 | AW37: 0.03203792404 | AX37: 0.08984550433 | AY37: 0.006721811661 | AZ37: 0.3471857541 | BA37: 0.3507833726 | BB37: 1.116 | BC37: 0.7608485485 | BD37: 0.003485950641 | BE37: 0.003900692366 | BF37: 0.043993812 | BG37: 0.1591592574 | BH37: 0.0005344158222 | BI37: 0.000438171393 | BJ37: 0.004316711439 | BK37: 0.001212475615 | BL37: 0 | BM37: 4.272577168e-06 | BN37: 0.001235633248 | BO37: 0.06125342433 | BP37: 0.2795348169 | BQ37: 0.7608485485 | BR37: 76.08485485 | BS37: 93 | BT37: 57.58263522 | BU37: 0.5758263522 | BV37: 605.5686181 | BX37: 0.07609740455 | BZ37: 0.3471857541 | CA37: 0.08984550433 | CB37: 0.001778945271 | CE37: =IF(OR(MODE=1,MODE=2,MODE=3), BR37, IF(MODE_ILIM=4,#REF!,#REF!)) -> 76.08485485 | CF37: =IF(OR(MODE=1,MODE=2,MODE=3), BZ37, IF(MODE_ILIM=4,#REF!,#REF!)) -> 0.3471857541 | CG37: =IF(OR(MODE=1,MODE=2,MODE=3), CA37, IF(MODE_ILIM=4,#REF!,#REF!)) -> 0.08984550433 | CH37: =IF(OR(MODE=1,MODE=2,MODE=3), CB37, IF(MODE_ILIM=4,#REF!,#REF!)) -> 0.001778945271 | CI37: =(IF(OR(MODE=1,MODE=2,MODE=3), S37, IF(MODE_ILIM=4,#REF!,#REF!)))/1000 -> 605.5686181 | CJ37: =IF(OR(MODE=1,MODE=2,MODE=3), P37, IF(MODE_ILIM=4,#REF!,#REF!)) -> 149.239736
A38: IQ(sleep) | B38: 10 | C38: µA | D38: =B38/1000000 -> 1e-05 | E38: LM5164 quiescent current - sleep state | F38: QRR | G38: 2e-10 | H38: 32 | I38: =IF(PLOT_TYPE=1, H38/100*Iout, min_I*EXP(H38*rr/100)) -> 0.096 | J38: =IF(I38<Icrit, (Vin-(Rdcr+RdsonTop)*Iripple/2-Vout)/L*OnTime, (Vin-(Rdcr+RdsonTop)*I38-Vout)/L*OnTime) -> 0.149192 | K38: =IF(I38<Icrit, (Vin-(Rdcr+RdsonTop)*Iripple/2-Vout)/L*OnTime, I38+((Vin-(Rdcr+RdsonTop)*J38-Vout)/L*OnTime)/2) -> 0.1703721503 | L38: =IF(I38<Icrit, 0, I38-((Vin-(Rdcr+RdsonTop)*K38-Vout)/L*OnTime)/2) -> 0.0217169828 | M38: 149.2144822 | N38: =IF(I38<Icrit, 1000*SQRT((J38*CoutEsr)^2+(((J38/2)-I38)*(OnTime+OffTime)/Cout)^2), 1000*J38*SQRT(CoutEsr^2+(1/(8*Fsw*Cout))^2)) -> 149.2144822 | O38: 1 | P38: =IF(I38<Icrit, 1000*((N38/1000)*O38), 1000*J38*SQRT(CoutEsr^2+(1/(8*Fsw*Cout))^2)) -> 149.2144822 | Q38: =IF(I38<Icrit, L*J38/(Vout+J38/2*(RdsonBot+Rdcr)), L*J38/(Vout+I38*(RdsonBot+Rdcr))) -> 1.234183079e-06 | R38: 0.2523952696 | S38: =IF(I38<Icrit,I38/((OnTime+Q38)*J38/2),1/(OnTime+Q38)) -> 605748.647 | T38: 1.650849746e-06 | U38: 0 | V38: =S38*(T38*Iq_active+U38*Iq_sleep) -> 0.00066 | W38: 0.1050162192 | X38: =W38^2*Rdcr -> 0.001874829071 | Y38: =Core_Loss/1000*S38/$S$106 -> 0 | Z38: =(Y38+X38*(1+Ltc*(Ta-25)))/(1-X38*Ltc*ThetaCa) -> 0.001875391638 | AA38: 0.04257236547 | AB38: 0.001812406302 | AC38: 0.001812406302 | AD38: 0.04686605706 | AE38: 6.589281913e-06 | AF38: 6.589281913e-06 | AG38: 0.05275905213 | AH38: 0.005149507526 | AI38: 0.001817245941 | AJ38: 30 | AK38: =IF(I38<Icrit, Csw*Vin/Iripple*1000000000, Csw*Vin/(I38+Iripple/2)*1000000000) -> 45.24633625 | AL38: =IF(I38<Icrit, Vin*(I38+Iripple/2)*AK38/1000000000/2*S38, Vin*(I38-Iripple/2)*AJ38/1000000000/2*S38 + Vin*(I38+Iripple/2)*AK38/1000000000/2*S38) -> 0.1213611357 | AM38: =IF(I38<Icrit, Csw*(Vin)^2*S38/2, Csw*Vin^2*S38/2) -> 0.1116515906 | AN38: 0.2348299722 | AO38: =(AI38+AL38+AM38+AH38*(1+RdsonTopTc*(Ta-25)))/(1-AH38*RdsonTopTc*ThetaJA) -> 0.2402235216 | AP38: =IF(I38<Icrit,Iripple*SQRT((OffTime)*S38/3), SQRT(OffTime*S38*(I38^2+Iripple^2/12))) -> 0.08958460184 | AQ38: 0.006019050665 | AR38: =QgBot*S38*Vdd -> 0.004906564041 | AS38: =IF(I38<Icrit, Vin*Idss*R38, QrrBot*(I38-Iripple/2)/1*S38*Vin+Vin*Idss*R38) -> 0.0009062242059 | AT38: =IF(I38<Icrit, dead1*S38*(I38+Iripple/2)*((I38+Iripple/2)*BDserR+VSD), dead1*S38*(I38+Iripple/2)*((I38+Iripple/2)*BDserR+VSD)+dead2*S38*(I38-Iripple/2)*((I38-Iripple/2)*BDserR+VSD)) -> 0.0006637275798 | AU38: 0.006476515827 | AV38: =(AR38+AS38+AT38+AQ38*(1+RdsonBotTc*(Ta-25)))/(1-AQ38*RdsonBotTc*ThetaJA) -> 0.01251042185 | AW38: =Vin*V38+Vout*Ifb/0.8 -> 0.03203792404 | AX38: =(Vin-Vdd)*(S38*QgBot+S38*QgTop)+AW38 -> 0.08986268989 | AY38: =AI38+AR38 -> 0.006723809982 | AZ38: 0.3493204433 | BA38: =SUM(Z38,AC38,AF38,AZ38) -> 0.3530148305 | BB38: =Vout*I38 -> 1.152 | BC38: 0.7654409622 | BD38: 0.003583718415 | BE38: 0.004009200373 | BF38: =Vin*S38*(QgBot+QgTop)/($BB38+$BA38) -> 0.04288899652 | BG38: 0.1560316666 | BH38: 0.0006021363959 | BI38: 0.0004410106574 | BJ38: 0.00430329037 | BK38: =X38/($BB38+$BA38) -> 0.001245721327 | BL38: =Y38/($BB38+$BA38) -> 0 | BM38: 4.378217264e-06 | BN38: 0.001204244812 | BO38: 0.05970884011 | BP38: 0.2740232038 | BQ38: =BC38 -> 0.7654409622 | BR38: 76.54409622 | BS38: =I38*1000 -> 96 | BT38: 58.80788226 | BU38: 0.5880788226 | BV38: =S38/1000 -> 605.748647 | BX38: =AM38/($BB38+$BA38) -> 0.07418637236 | BZ38: 0.3493204433 | CA38: 0.08986268989 | CB38: 0.001875391638 | CE38: =IF(OR(MODE=1,MODE=2,MODE=3), BR38, IF(MODE_ILIM=4,#REF!,#REF!)) -> 76.54409622 | CF38: =IF(OR(MODE=1,MODE=2,MODE=3), BZ38, IF(MODE_ILIM=4,#REF!,#REF!)) -> 0.3493204433 | CG38: =IF(OR(MODE=1,MODE=2,MODE=3), CA38, IF(MODE_ILIM=4,#REF!,#REF!)) -> 0.08986268989 | CH38: =IF(OR(MODE=1,MODE=2,MODE=3), CB38, IF(MODE_ILIM=4,#REF!,#REF!)) -> 0.001875391638 | CI38: =(IF(OR(MODE=1,MODE=2,MODE=3), S38, IF(MODE_ILIM=4,#REF!,#REF!)))/1000 -> 605.748647 | CJ38: =IF(OR(MODE=1,MODE=2,MODE=3), P38, IF(MODE_ILIM=4,#REF!,#REF!)) -> 149.2144822
A39: High-side N-ch MOSFET | C39: Units | D39: Std Units | E39: Description | F39: QG_high | G39: 1.81e-09 | H39: 33 | I39: 0.099 | J39: 0.14916675 | K39: 0.1733722566 | L39: 0.02472960825 | M39: =IF(I39<Icrit, 1000*((((J39/2)-I39)*0.000002/Cout+Vout/306)), 1000*J39*SQRT(CoutEsr^2+(1/(8*Fsw*Cout))^2)) -> 149.1892283 | N39: 149.1892283 | O39: 1 | P39: 149.1892283 | Q39: 1.233692524e-06 | R39: 0.252470292 | S39: 605928.7007 | T39: =IF(1/S39-OnTime-Q39>Tsleep, OnTime+Q39+Tsleep, 1/S39) -> 1.65035919e-06 | U39: =IF(1/S39-OnTime-Q39>Tsleep, 1/S39-OnTime-Q39-Tsleep, 0) -> 0 | V39: 0.00066 | W39: =IF(I39<Icrit,Iripple*SQRT((OnTime+OffTime)*S39/3), SQRT(I39^2+Iripple^2/12)) -> 0.1077655154 | X39: 0.001974279071 | Y39: 0 | Z39: 0.001974902913 | AA39: =Iripple/SQRT(12)*SQRT((OnTime+Q39)*S39) -> 0.04257236547 | AB39: 0.001812406302 | AC39: 0.001812406302 | AD39: =SQRT($R39)*SQRT($I39^2*(1-R39)+(Iripple^2)/12) -> 0.0480344887 | AE39: 6.921936315e-06 | AF39: 6.921936315e-06 | AG39: =IF(I39<Icrit,Iripple*SQRT((OnTime)*S39/3), SQRT(OnTime*S39*(I39^2+Iripple^2/12))) -> 0.05414831558 | AH39: =RdsonTop*AG39^2 -> 0.005424274148 | AI39: =QgTop*S39*Vdd -> 0.001817786102 | AJ39: 30 | AK39: 44.46052536 | AL39: 0.1227060153 | AM39: 0.1116847781 | AN39: 0.2362085795 | AO39: 0.2418917021 | AP39: 0.0919435641 | AQ39: =RdsonBot*AP39^2 -> 0.006340214234 | AR39: 0.004908022476 | AS39: 0.0010286488 | AT39: 0.0006847803272 | AU39: 0.006621451603 | AV39: 0.01297789856 | AW39: 0.03203792404 | AX39: 0.08987987781 | AY39: 0.006725808578 | AZ39: 0.3514752871 | BA39: 0.3552695182 | BB39: 1.188 | BC39: 0.7697942491 | BD39: 0.003682521158 | BE39: 0.004118818445 | BF39: 0.04183829304 | BG39: 0.1530572442 | BH39: 0.0006665386618 | BI39: 0.0004437205032 | BJ39: 0.004290534819 | BK39: 0.001279283397 | BL39: 0 | BM39: 4.485241387e-06 | BN39: 0.001174393896 | BO39: 0.05823990998 | BP39: 0.2687957433 | BQ39: 0.7697942491 | BR39: 76.97942491 | BS39: 99 | BT39: 59.9527356 | BU39: 0.599527356 | BV39: 605.9287007 | BX39: 0.07236893932 | BZ39: 0.3514752871 | CA39: 0.08987987781 | CB39: 0.001974902913 | CE39: =IF(OR(MODE=1,MODE=2,MODE=3), BR39, IF(MODE_ILIM=4,#REF!,#REF!)) -> 76.97942491 | CF39: =IF(OR(MODE=1,MODE=2,MODE=3), BZ39, IF(MODE_ILIM=4,#REF!,#REF!)) -> 0.3514752871 | CG39: =IF(OR(MODE=1,MODE=2,MODE=3), CA39, IF(MODE_ILIM=4,#REF!,#REF!)) -> 0.08987987781 | CH39: =IF(OR(MODE=1,MODE=2,MODE=3), CB39, IF(MODE_ILIM=4,#REF!,#REF!)) -> 0.001974902913 | CI39: =(IF(OR(MODE=1,MODE=2,MODE=3), S39, IF(MODE_ILIM=4,#REF!,#REF!)))/1000 -> 605.9287007 | CJ39: =IF(OR(MODE=1,MODE=2,MODE=3), P39, IF(MODE_ILIM=4,#REF!,#REF!)) -> 149.1892283
A40: RdsonTop | B40: 1850 | C40: mW | D40: =B40/1000 -> 1.85 | E40: Drain-source resistance of high-side MOSFET @ VDD, 25°C | F40: QG_low | G40: 1.92e-09 | H40: 34 | I40: 0.102 | J40: 0.1491415 | K40: 0.1763723629 | L40: 0.02774223369 | M40: 149.1639745 | N40: 149.1639745 | O40: 1 | P40: 149.1639745 | Q40: 1.233202192e-06 | R40: 0.2525453247 | S40: 606108.7793 | T40: 1.649868859e-06 | U40: 0 | V40: 0.00066 | W40: 0.1105278531 | X40: 0.002076789071 | Y40: 0 | Z40: 0.002077479389 | AA40: 0.04257236547 | AB40: 0.001812406302 | AC40: 0.001812406302 | AD40: 0.04921014238 | AE40: 7.264914339e-06 | AF40: 7.264914339e-06 | AG40: 0.05554454335 | AH40: 0.005707613148 | AI40: 0.001818326338 | AJ40: 30 | AK40: 43.7015435 | AL40: 0.1240516777 | AM40: 0.1117179702 | AN40: 0.2375879743 | AO40: 0.2435698466 | AP40: 0.09431435175 | AQ40: 0.006671397709 | AR40: 0.004909481112 | AS40: 0.001151146038 | AT40: 0.000705860772 | AU40: 0.006766487922 | AV40: 0.01345559499 | AW40: 0.03203792404 | AX40: 0.08989706811 | AY40: 0.00672780745 | AZ40: 0.3536503171 | BA40: 0.3575474677 | BB40: 1.224 | BC40: 0.7739255539 | BD40: 0.003782290706 | BE40: 0.004229469683 | BF40: 0.04083782045 | BG40: 0.1502250038 | BH40: 0.0007278605679 | BI40: 0.0004463102034 | BJ40: 0.004278396988 | BK40: 0.001313137363 | BL40: 0 | BM40: 4.593548083e-06 | BN40: 0.001145970222 | BO40: 0.05684120771 | BP40: 0.2638320612 | BQ40: 0.7739255539 | BR40: 77.39255539 | BS40: 102 | BT40: 61.01880722 | BU40: 0.6101880722 | BV40: 606.1087793 | BX40: 0.07063839213 | BZ40: 0.3536503171 | CA40: 0.08989706811 | CB40: 0.002077479389 | CE40: =IF(OR(MODE=1,MODE=2,MODE=3), BR40, IF(MODE_ILIM=4,#REF!,#REF!)) -> 77.39255539 | CF40: =IF(OR(MODE=1,MODE=2,MODE=3), BZ40, IF(MODE_ILIM=4,#REF!,#REF!)) -> 0.3536503171 | CG40: =IF(OR(MODE=1,MODE=2,MODE=3), CA40, IF(MODE_ILIM=4,#REF!,#REF!)) -> 0.08989706811 | CH40: =IF(OR(MODE=1,MODE=2,MODE=3), CB40, IF(MODE_ILIM=4,#REF!,#REF!)) -> 0.002077479389 | CI40: =(IF(OR(MODE=1,MODE=2,MODE=3), S40, IF(MODE_ILIM=4,#REF!,#REF!)))/1000 -> 606.1087793 | CJ40: =IF(OR(MODE=1,MODE=2,MODE=3), P40, IF(MODE_ILIM=4,#REF!,#REF!)) -> 149.1639745
A41: RdsonTopTc | B41: 4800 | C41: ppm/°C | D41: =B41/1000000 -> 0.0048 | E41: Drain to Source Resistance Temp Co | F41: Qoss_hs | G41: 1.45e-10 | H41: 35 | I41: 0.105 | J41: 0.14911625 | K41: 0.1793724691 | L41: 0.03075485914 | M41: 149.1387207 | N41: 149.1387207 | O41: 1 | P41: 149.1387207 | Q41: 1.232712084e-06 | R41: 0.2526203678 | S41: 606288.8826 | T41: 1.649378751e-06 | U41: 0 | V41: 0.00066 | W41: 0.1133022785 | X41: 0.002182359071 | Y41: 0 | Z41: 0.002183121368 | AA41: 0.04257236547 | AB41: 0.001812406302 | AC41: 0.001812406302 | AD41: 0.05039253241 | AE41: 7.618221968e-06 | AF41: 7.618221968e-06 | AG41: 0.05694725894 | AH41: 0.005999532057 | AI41: 0.001818866648 | AJ41: =15*VIN_nom/24 -> 30 | AK41: 42.96803972 | AL41: 0.1253981233 | AM41: 0.1117511668 | AN41: 0.2389681568 | AO41: 0.2452579732 | AP41: 0.09669615568 | AQ41: 0.007012609892 | AR41: 0.004910939949 | AS41: 0.001273715936 | AT41: 0.0007269689304 | AU41: 0.006911624816 | AV41: 0.01394352485 | AW41: 0.03203792404 | AX41: 0.08991426078 | AY41: 0.006729806597 | AZ41: 0.3558455654 | BA41: 0.3598487113 | BB41: 1.26 | BC41: 0.7778504197 | BD41: 0.003882965322 | BE41: 0.004341084436 | BF41: 0.03988406009 | BG41: 0.147524985 | BH41: 0.0007863178378 | BI41: 0.0004487881648 | BJ41: 0.004266833543 | BK41: 0.001347261047 | BL41: 0 | BM41: 4.703045361e-06 | BN41: 0.001118873812 | BO41: 0.05550781388 | BP41: 0.2591136862 | BQ41: 0.7778504197 | BR41: 77.78504197 | BS41: 105 | BT41: 62.00835197 | BU41: 0.6200835197 | BV41: 606.2888826 | BX41: 0.06898864447 | BZ41: 0.3558455654 | CA41: 0.08991426078 | CB41: 0.002183121368 | CE41: =IF(OR(MODE=1,MODE=2,MODE=3), BR41, IF(MODE_ILIM=4,#REF!,#REF!)) -> 77.78504197 | CF41: =IF(OR(MODE=1,MODE=2,MODE=3), BZ41, IF(MODE_ILIM=4,#REF!,#REF!)) -> 0.3558455654 | CG41: =IF(OR(MODE=1,MODE=2,MODE=3), CA41, IF(MODE_ILIM=4,#REF!,#REF!)) -> 0.08991426078 | CH41: =IF(OR(MODE=1,MODE=2,MODE=3), CB41, IF(MODE_ILIM=4,#REF!,#REF!)) -> 0.002183121368 | CI41: =(IF(OR(MODE=1,MODE=2,MODE=3), S41, IF(MODE_ILIM=4,#REF!,#REF!)))/1000 -> 606.2888826 | CJ41: =IF(OR(MODE=1,MODE=2,MODE=3), P41, IF(MODE_ILIM=4,#REF!,#REF!)) -> 149.1387207
A42: QgTop | B42: 0.6 | C42: nC | D42: =B42/1000000000 -> 6e-10 | E42: Gate charge of high-side MOSFET @ VDD | H42: 36 | I42: 0.108 | J42: 0.149091 | K42: 0.1823725754 | L42: 0.03376748459 | M42: 149.1134669 | N42: 149.1134669 | O42: 1 | P42: 149.1134669 | Q42: 1.2322222e-06 | R42: 0.2526954212 | S42: 606469.0108 | T42: 1.648888867e-06 | U42: 0 | V42: 0.00066 | W42: 0.1160879249 | X42: 0.002290989071 | Y42: 0 | Z42: 0.00229182916 | AA42: 0.04257236547 | AB42: 0.001812406302 | AC42: 0.001812406302 | AD42: 0.05158121487 | AE42: 7.981865183e-06 | AF42: 7.981865183e-06 | AG42: 0.05835602939 | AH42: 0.006300038408 | AI42: 0.001819407032 | AJ42: 30 | AK42: 42.25875232 | AL42: 0.1267453521 | AM42: 0.1117843681 | AN42: 0.2403491272 | AO42: 0.2469561003 | AP42: 0.09908824073 | AQ42: 0.007363859588 | AR42: 0.004912398987 | AS42: 0.001396358509 | AT42: 0.0007481048185 | AU42: 0.007056862315 | AV42: 0.01444170197 | AW42: 0.03203792404 | AX42: 0.08993145581 | AY42: 0.00673180602 | AZ42: 0.3580610641 | BA42: 0.3621732815 | BB42: 1.296 | BC42: 0.7815829711 | BD42: 0.003984488955 | BE42: 0.004453599476 | BF42: 0.03897381445 | BG42: 0.1449481365 | BH42: 0.0008421065065 | BI42: 0.0004511620268 | BJ42: 0.004255805104 | BK42: 0.001381634294 | BL42: 0 | BM42: 4.813649618e-06 | BN42: 0.001093013814 | BO42: 0.05423525805 | BP42: 0.2546238329 | BQ42: 0.7815829711 | BR42: 78.15829711 | BS42: 108 | BT42: 62.92414287 | BU42: 0.6292414287 | BV42: 606.4690108 | BX42: 0.06741416553 | BZ42: 0.3580610641 | CA42: 0.08993145581 | CB42: 0.00229182916 | CE42: =IF(OR(MODE=1,MODE=2,MODE=3), BR42, IF(MODE_ILIM=4,#REF!,#REF!)) -> 78.15829711 | CF42: =IF(OR(MODE=1,MODE=2,MODE=3), BZ42, IF(MODE_ILIM=4,#REF!,#REF!)) -> 0.3580610641 | CG42: =IF(OR(MODE=1,MODE=2,MODE=3), CA42, IF(MODE_ILIM=4,#REF!,#REF!)) -> 0.08993145581 | CH42: =IF(OR(MODE=1,MODE=2,MODE=3), CB42, IF(MODE_ILIM=4,#REF!,#REF!)) -> 0.00229182916 | CI42: =(IF(OR(MODE=1,MODE=2,MODE=3), S42, IF(MODE_ILIM=4,#REF!,#REF!)))/1000 -> 606.4690108 | CJ42: =IF(OR(MODE=1,MODE=2,MODE=3), P42, IF(MODE_ILIM=4,#REF!,#REF!)) -> 149.1134669
A43: Coss | B43: 145 | C43: pF | D43: =B43/1000000000000 -> 1.45e-10 | E43: Capacitance (Coss) | H43: 37 | I43: 0.111 | J43: 0.14906575 | K43: 0.1853726816 | L43: 0.03678011004 | M43: 149.0882131 | N43: 149.0882131 | O43: 1 | P43: 149.0882131 | Q43: 1.231732539e-06 | R43: 0.2527704849 | S43: 606649.1638 | T43: 1.648399206e-06 | U43: 0 | V43: 0.00066 | W43: 0.1188840036 | X43: 0.002402679071 | Y43: 0 | Z43: 0.002403603085 | AA43: 0.04257236547 | AB43: 0.001812406302 | AC43: 0.001812406302 | AD43: 0.05277578347 | AE43: 8.355849964e-06 | AF43: 8.355849964e-06 | AG43: 0.05977046064 | AH43: 0.006609139734 | AI43: 0.001819947491 | AJ43: 30 | AK43: 41.57250152 | AL43: 0.1280933643 | AM43: 0.1118175739 | AN43: 0.2417308857 | AO43: 0.2486642465 | AP43: 0.1014899378 | AQ43: 0.007725155602 | AR43: 0.004913858227 | AS43: 0.001519073772 | AT43: 0.0007692684526 | AU43: 0.007202200452 | AV43: 0.01495014035 | AW43: 0.03203792404 | AX43: 0.08994865322 | AY43: 0.006733805718 | AZ43: 0.3602968458 | BA43: 0.3645212111 | BB43: 1.332 | BC43: 0.7851360722 | BD43: 0.004086810608 | BE43: 0.00456695728 | BF43: 0.03810417133 | BG43: 0.1424862148 | BH43: 0.0008954051162 | BI43: 0.0004534387472 | BJ43: 0.004245275806 | BK43: 0.001416238745 | BL43: 0 | BM43: 4.9252847e-06 | BN43: 0.001068307481 | BO43: 0.05301946868 | BP43: 0.2503472139 | BQ43: 0.7851360722 | BR43: 78.51360722 | BS43: 111 | BT43: 63.76935303 | BU43: 0.6376935303 | BV43: 606.6491638 | BX43: 0.06590991798 | BZ43: 0.3602968458 | CA43: 0.08994865322 | CB43: 0.002403603085 | CE43: =IF(OR(MODE=1,MODE=2,MODE=3), BR43, IF(MODE_ILIM=4,#REF!,#REF!)) -> 78.51360722 | CF43: =IF(OR(MODE=1,MODE=2,MODE=3), BZ43, IF(MODE_ILIM=4,#REF!,#REF!)) -> 0.3602968458 | CG43: =IF(OR(MODE=1,MODE=2,MODE=3), CA43, IF(MODE_ILIM=4,#REF!,#REF!)) -> 0.08994865322 | CH43: =IF(OR(MODE=1,MODE=2,MODE=3), CB43, IF(MODE_ILIM=4,#REF!,#REF!)) -> 0.002403603085 | CI43: =(IF(OR(MODE=1,MODE=2,MODE=3), S43, IF(MODE_ILIM=4,#REF!,#REF!)))/1000 -> 606.6491638 | CJ43: =IF(OR(MODE=1,MODE=2,MODE=3), P43, IF(MODE_ILIM=4,#REF!,#REF!)) -> 149.0882131
A44: Low-side N-ch MOSFET | C44: Units | D44: Std Units | E44: Description | H44: 38 | I44: 0.114 | J44: 0.1490405 | K44: 0.1883727879 | L44: 0.03979273548 | M44: 149.0629593 | N44: 149.0629593 | O44: 1 | P44: 149.0629593 | Q44: 1.231243102e-06 | R44: 0.252845559 | S44: 606829.3417 | T44: 1.647909769e-06 | U44: 0 | V44: 0.00066 | W44: 0.1216897954 | X44: 0.002517429071 | Y44: 0 | Z44: 0.002518443472 | AA44: 0.04257236547 | AB44: 0.001812406302 | AC44: 0.001812406302 | AD44: 0.05397586586 | AE44: 8.740182288e-06 | AF44: 8.740182288e-06 | AG44: 0.06119019341 | AH44: 0.006926843574 | AI44: 0.001820488025 | AJ44: 30 | AK44: 40.90818297 | AL44: 0.12944216 | AM44: 0.1118507843 | AN44: 0.2431134323 | AO44: 0.2503824304 | AP44: 0.1039006368 | AQ44: 0.008096506745 | AR44: 0.004915317667 | AS44: 0.00164186174 | AT44: 0.0007904598488 | AU44: 0.007347639256 | AV44: 0.01546885407 | AW44: 0.03203792404 | AX44: 0.08996585299 | AY44: 0.006735805692 | AZ44: 0.3625529432 | BA44: 0.3668925331 | BB44: 1.368 | BC44: 0.7885214639 | BD44: 0.004189883789 | BE44: 0.004681105408 | BF44: 0.03727247274 | BG44: 0.1401316956 | BH44: 0.0009463766248 | BI44: 0.0004556246763 | BJ44: 0.004235212911 | BK44: 0.001451057644 | BL44: 0 | BM44: 5.037881091e-06 | BN44: 0.001044679291 | BO44: 0.05185672961 | BP44: 0.2462698762 | BQ44: 0.7885214639 | BR44: 78.85214639 | BS44: 114 | BT44: 64.54744714 | BU44: 0.6454744714 | BV44: 606.8293417 | BX44: 0.0644713042 | BZ44: 0.3625529432 | CA44: 0.08996585299 | CB44: 0.002518443472 | CE44: =IF(OR(MODE=1,MODE=2,MODE=3), BR44, IF(MODE_ILIM=4,#REF!,#REF!)) -> 78.85214639 | CF44: =IF(OR(MODE=1,MODE=2,MODE=3), BZ44, IF(MODE_ILIM=4,#REF!,#REF!)) -> 0.3625529432 | CG44: =IF(OR(MODE=1,MODE=2,MODE=3), CA44, IF(MODE_ILIM=4,#REF!,#REF!)) -> 0.08996585299 | CH44: =IF(OR(MODE=1,MODE=2,MODE=3), CB44, IF(MODE_ILIM=4,#REF!,#REF!)) -> 0.002518443472 | CI44: =(IF(OR(MODE=1,MODE=2,MODE=3), S44, IF(MODE_ILIM=4,#REF!,#REF!)))/1000 -> 606.8293417 | CJ44: =IF(OR(MODE=1,MODE=2,MODE=3), P44, IF(MODE_ILIM=4,#REF!,#REF!)) -> 149.0629593
A45: RdsonBot | B45: 750 | C45: mW | D45: =B45/1000 -> 0.75 | E45: Drain-source resistance of low-side MOSFET @ VDD, 25°C | H45: 39 | I45: 0.117 | J45: 0.14901525 | K45: 0.1913728942 | L45: 0.04280536093 | M45: 149.0377055 | N45: 149.0377055 | O45: 1 | P45: 149.0377055 | Q45: 1.230753888e-06 | R45: 0.2529206435 | S45: 607009.5443 | T45: 1.647420554e-06 | U45: 0 | V45: 0.00066 | W45: 0.1245046437 | X45: 0.002635239071 | Y45: 0 | Z45: 0.002636350658 | AA45: 0.04257236547 | AB45: 0.001812406302 | AC45: 0.001812406302 | AD45: 0.05518112035 | AE45: 9.134868129e-06 | AF45: 9.134868129e-06 | AG45: 0.06261489964 | AH45: 0.007253157465 | AI45: 0.001821028633 | AJ45: 30 | AK45: 40.26476178 | AL45: 0.1307917395 | AM45: 0.1118839992 | AN45: 0.2444967674 | AO45: 0.2521106707 | AP45: 0.1063197807 | AQ45: 0.008477921829 | AR45: 0.004916777309 | AS45: 0.001764722428 | AT45: 0.0008116790233 | AU45: 0.00749317876 | AV45: 0.0159978574 | AW45: 0.03203792404 | AX45: 0.08998305514 | AY45: 0.006737805942 | AZ45: 0.3648293892 | BA45: 0.369287281 | BB45: 1.404 | BC45: 0.7917498845 | BD45: 0.004293666028 | BE45: 0.00479599596 | BF45: 0.0364762877 | BG45: 0.1378776975 | BH45: 0.0009951700701 | BI45: 0.0004577256218 | BJ45: 0.00422558648 | BK45: 0.001486075663 | BL45: 0 | BM45: 5.151375204e-06 | BN45: 0.001022060171 | BO45: 0.05074364211 | BP45: 0.2423790587 | BQ45: 0.7917498845 | BR45: 79.17498845 | BS45: 117 | BT45: 65.2620843 | BU45: 0.652620843 | BV45: 607.0095443 | BX45: 0.06309411927 | BZ45: 0.3648293892 | CA45: 0.08998305514 | CB45: 0.002636350658 | CE45: =IF(OR(MODE=1,MODE=2,MODE=3), BR45, IF(MODE_ILIM=4,#REF!,#REF!)) -> 79.17498845 | CF45: =IF(OR(MODE=1,MODE=2,MODE=3), BZ45, IF(MODE_ILIM=4,#REF!,#REF!)) -> 0.3648293892 | CG45: =IF(OR(MODE=1,MODE=2,MODE=3), CA45, IF(MODE_ILIM=4,#REF!,#REF!)) -> 0.08998305514 | CH45: =IF(OR(MODE=1,MODE=2,MODE=3), CB45, IF(MODE_ILIM=4,#REF!,#REF!)) -> 0.002636350658 | CI45: =(IF(OR(MODE=1,MODE=2,MODE=3), S45, IF(MODE_ILIM=4,#REF!,#REF!)))/1000 -> 607.0095443 | CJ45: =IF(OR(MODE=1,MODE=2,MODE=3), P45, IF(MODE_ILIM=4,#REF!,#REF!)) -> 149.0377055
A46: RdsonBotTc | B46: 4800 | C46: ppm/°C | D46: =B46/1000000 -> 0.0048 | E46: Drain To Source Resitance Temp Co | H46: 40 | I46: 0.12 | J46: 0.14899 | K46: 0.1943730004 | L46: 0.04581798638 | M46: 149.0124517 | N46: 149.0124517 | O46: 1 | P46: 149.0124517 | Q46: 1.230264896e-06 | R46: 0.2529957383 | S46: 607189.7719 | T46: 1.646931563e-06 | U46: 0 | V46: 0.00066 | W46: 0.1273279478 | X46: 0.002756109071 | Y46: 0 | Z46: 0.00275732499 | AA46: 0.04257236547 | AB46: 0.001812406302 | AC46: 0.001812406302 | AD46: 0.05639123295 | AE46: 9.539913462e-06 | AF46: 9.539913462e-06 | AG46: 0.06404427923 | AH46: 0.007588088948 | AI46: 0.001821569316 | AJ46: 30 | AK46: 39.64126718 | AL46: 0.1321421029 | AM46: 0.1119172188 | AN46: 0.2458808909 | AO46: 0.2538489863 | AP46: 0.10874686 | AQ46: 0.008869409667 | AR46: 0.004918237152 | AS46: 0.00188765585 | AT46: 0.0008329259924 | AU46: 0.007638818995 | AV46: 0.01653716468 | AW46: 0.03203792404 | AX46: 0.09000025966 | AY46: 0.006739806468 | AZ46: 0.3671262171 | BA46: 0.3717054883 | BB46: 1.44 | BC46: 0.7948311739 | BD46: 0.004398118455 | BE46: 0.004911585104 | BF46: 0.03571338858 | BG46: 0.1357179147 | BH46: 0.001041922025 | BI46: 0.0004597469058 | BJ46: 0.004216369076 | BK46: 0.001521278756 | BL46: 0 | BM46: 5.265708761e-06 | BN46: 0.001000386825 | BO46: 0.04967709169 | BP46: 0.2386630678 | BQ46: 0.7948311739 | BR46: 79.48311739 | BS46: 120 | BT46: 65.91703305 | BU46: 0.6591703305 | BV46: 607.1897719 | BX46: 0.06177450997 | BZ46: 0.3671262171 | CA46: 0.09000025966 | CB46: 0.00275732499 | CE46: =IF(OR(MODE=1,MODE=2,MODE=3), BR46, IF(MODE_ILIM=4,#REF!,#REF!)) -> 79.48311739 | CF46: =IF(OR(MODE=1,MODE=2,MODE=3), BZ46, IF(MODE_ILIM=4,#REF!,#REF!)) -> 0.3671262171 | CG46: =IF(OR(MODE=1,MODE=2,MODE=3), CA46, IF(MODE_ILIM=4,#REF!,#REF!)) -> 0.09000025966 | CH46: =IF(OR(MODE=1,MODE=2,MODE=3), CB46, IF(MODE_ILIM=4,#REF!,#REF!)) -> 0.00275732499 | CI46: =(IF(OR(MODE=1,MODE=2,MODE=3), S46, IF(MODE_ILIM=4,#REF!,#REF!)))/1000 -> 607.1897719 | CJ46: =IF(OR(MODE=1,MODE=2,MODE=3), P46, IF(MODE_ILIM=4,#REF!,#REF!)) -> 149.0124517
A47: QgBot | B47: 1.62 | C47: nC | D47: =B47/1000000000 -> 1.62e-09 | E47: Gate charge of low-side MOSFET at VDD | H47: 41 | I47: 0.123 | J47: 0.14896475 | K47: 0.1973731067 | L47: 0.04883061182 | M47: 148.9871979 | N47: 148.9871979 | O47: 1 | P47: 148.9871979 | Q47: 1.229776128e-06 | R47: 0.2530708434 | S47: 607370.0243 | T47: 1.646442794e-06 | U47: 0 | V47: 0.00066 | W47: 0.1301591576 | X47: 0.002880039071 | Y47: 0 | Z47: 0.002881366823 | AA47: 0.04257236547 | AB47: 0.001812406302 | AC47: 0.001812406302 | AD47: 0.05760591479 | AE47: 9.955324257e-06 | AF47: 9.955324257e-06 | AG47: 0.06547805726 | AH47: 0.007931645567 | AI47: 0.001822110073 | AJ47: 30 | AK47: 39.0367876 | AL47: 0.1334932503 | AM47: 0.1119504429 | AN47: 0.2472658032 | AO47: 0.2555973961 | AP47: 0.1111814078 | AQ47: 0.009270979075 | AR47: 0.004919697196 | AS47: 0.002010662023 | AT47: 0.0008542007722 | AU47: 0.007784559992 | AV47: 0.01708679044 | AW47: 0.03203792404 | AX47: 0.09001746656 | AY47: 0.006741807269 | AZ47: 0.3694434604 | BA47: 0.3741471888 | BB47: 1.476 | BC47: 0.7977743657 | BD47: 0.004503205437 | BE47: 0.005027832655 | BF47: 0.0349817302 | BG47: 0.1336465578 | BH47: 0.001086757873 | BI47: 0.0004616934141 | BJ47: 0.004207535508 | BK47: 0.001556654027 | BL47: 0 | BM47: 5.380828248e-06 | BN47: 0.0009796011437 | BO47: 0.04865421903 | BP47: 0.2351111679 | BQ47: 0.7977743657 | BR47: 79.77743657 | BS47: 123 | BT47: 66.5160989 | BU47: 0.665160989 | BV47: 607.3700243 | BX47: 0.06050893872 | BZ47: 0.3694434604 | CA47: 0.09001746656 | CB47: 0.002881366823 | CE47: =IF(OR(MODE=1,MODE=2,MODE=3), BR47, IF(MODE_ILIM=4,#REF!,#REF!)) -> 79.77743657 | CF47: =IF(OR(MODE=1,MODE=2,MODE=3), BZ47, IF(MODE_ILIM=4,#REF!,#REF!)) -> 0.3694434604 | CG47: =IF(OR(MODE=1,MODE=2,MODE=3), CA47, IF(MODE_ILIM=4,#REF!,#REF!)) -> 0.09001746656 | CH47: =IF(OR(MODE=1,MODE=2,MODE=3), CB47, IF(MODE_ILIM=4,#REF!,#REF!)) -> 0.002881366823 | CI47: =(IF(OR(MODE=1,MODE=2,MODE=3), S47, IF(MODE_ILIM=4,#REF!,#REF!)))/1000 -> 607.3700243 | CJ47: =IF(OR(MODE=1,MODE=2,MODE=3), P47, IF(MODE_ILIM=4,#REF!,#REF!)) -> 148.9871979
A48: VSD | B48: 0.8 | C48: V | D48: =B48 -> 0.8 | E48: Body diode forward voltage | H48: 42 | I48: 0.126 | J48: 0.1489395 | K48: 0.2003732129 | L48: 0.05184323727 | M48: 148.9619441 | N48: 148.9619441 | O48: 1 | P48: 148.9619441 | Q48: 1.229287582e-06 | R48: 0.253145959 | S48: 607550.3015 | T48: 1.645954249e-06 | U48: 0 | V48: 0.00066 | W48: 0.132997768 | X48: 0.003007029071 | Y48: 0 | Z48: 0.003008476524 | AA48: 0.04257236547 | AB48: 0.001812406302 | AC48: 0.001812406302 | AD48: 0.05882489973 | AE48: 1.038110648e-05 | AF48: 1.038110648e-05 | AG48: 0.06691598147 | AH48: 0.008283834865 | AI48: 0.001822650904 | AJ48: 30 | AK48: 38.45046624 | AL48: 0.1348451819 | AM48: 0.1119836716 | AN48: 0.2486515043 | AO48: 0.2573559192 | AP48: 0.1136229958 | AQ48: 0.009682638874 | AR48: 0.004921157442 | AS48: 0.002133740961 | AT48: 0.0008755033791 | AU48: 0.007930401782 | AV48: 0.01764674932 | AW48: 0.03203792404 | AX48: 0.09003467582 | AY48: 0.006743808347 | AZ48: 0.3717811527 | BA48: 0.3766124167 | BB48: 1.512 | BC48: 0.8005877684 | BD48: 0.004608894246 | BE48: 0.005144701713 | BF48: 0.03427943158 | BG48: 0.1316583022 | BH48: 0.001129792933 | BI48: 0.0004635696405 | BJ48: 0.004199062609 | BK48: 0.001592189612 | BL48: 0 | BM48: 5.49668444e-06 | BN48: 0.0009596496804 | BO48: 0.04767239431 | BP48: 0.2317134852 | BQ48: 0.8005877684 | BR48: 80.05877684 | BS48: 126 | BT48: 67.06306393 | BU48: 0.6706306393 | BV48: 607.5503015 | BX48: 0.05929415193 | BZ48: 0.3717811527 | CA48: 0.09003467582 | CB48: 0.003008476524 | CE48: =IF(OR(MODE=1,MODE=2,MODE=3), BR48, IF(MODE_ILIM=4,#REF!,#REF!)) -> 80.05877684 | CF48: =IF(OR(MODE=1,MODE=2,MODE=3), BZ48, IF(MODE_ILIM=4,#REF!,#REF!)) -> 0.3717811527 | CG48: =IF(OR(MODE=1,MODE=2,MODE=3), CA48, IF(MODE_ILIM=4,#REF!,#REF!)) -> 0.09003467582 | CH48: =IF(OR(MODE=1,MODE=2,MODE=3), CB48, IF(MODE_ILIM=4,#REF!,#REF!)) -> 0.003008476524 | CI48: =(IF(OR(MODE=1,MODE=2,MODE=3), S48, IF(MODE_ILIM=4,#REF!,#REF!)))/1000 -> 607.5503015 | CJ48: =IF(OR(MODE=1,MODE=2,MODE=3), P48, IF(MODE_ILIM=4,#REF!,#REF!)) -> 148.9619441
A49: BDserR | B49: 100 | C49: mW | D49: =B49*0.001 -> 0.1 | E49: Series resistance of body diode | H49: 43 | I49: 0.129 | J49: 0.14891425 | K49: 0.2033733192 | L49: 0.05485586272 | M49: 148.9366903 | N49: 148.9366903 | O49: 1 | P49: 148.9366903 | Q49: 1.228799259e-06 | R49: 0.2532210848 | S49: 607730.6036 | T49: 1.645465925e-06 | U49: 0 | V49: 0.00066 | W49: 0.1358433153 | X49: 0.003137079071 | Y49: 0 | Z49: 0.003138654465 | AA49: 0.04257236547 | AB49: 0.001812406302 | AC49: 0.001812406302 | AD49: 0.06004794226 | AE49: 1.081726611e-05 | AF49: 1.081726611e-05 | AG49: 0.06835782005 | AH49: 0.008644664391 | AI49: 0.001823191811 | AJ49: 30 | AK49: 37.88149701 | AL49: 0.1361978978 | AM49: 0.1120169049 | AN49: 0.2500379945 | AO49: 0.259124575 | AP49: 0.1160712303 | AQ49: 0.01010439788 | AR49: 0.004922617889 | AS49: 0.002256892679 | AT49: 0.0008968338291 | AU49: 0.008076344397 | AV49: 0.01821705608 | AW49: 0.03203792404 | AX49: 0.09005188746 | AY49: 0.0067458097 | AZ49: 0.3741393282 | BA49: 0.3791012062 | BB49: 1.548 | BC49: 0.8032790364 | BD49: 0.004715154781 | BE49: 0.00526215834 | BF49: 0.03360475979 | BG49: 0.1297482424 | BH49: 0.001171133447 | BI49: 0.0004653797248 | BJ49: 0.004190929034 | BK49: 0.001627874582 | BL49: 0 | BM49: 5.613231974e-06 | BN49: 0.0009404831963 | BO49: 0.04672919469 | BP49: 0.2284609233 | BQ49: 0.8032790364 | BR49: 80.32790364 | BS49: 129 | BT49: 67.56163785 | BU49: 0.6756163785 | BV49: 607.7306036 | BX49: 0.05812715206 | BZ49: 0.3741393282 | CA49: 0.09005188746 | CB49: 0.003138654465 | CE49: =IF(OR(MODE=1,MODE=2,MODE=3), BR49, IF(MODE_ILIM=4,#REF!,#REF!)) -> 80.32790364 | CF49: =IF(OR(MODE=1,MODE=2,MODE=3), BZ49, IF(MODE_ILIM=4,#REF!,#REF!)) -> 0.3741393282 | CG49: =IF(OR(MODE=1,MODE=2,MODE=3), CA49, IF(MODE_ILIM=4,#REF!,#REF!)) -> 0.09005188746 | CH49: =IF(OR(MODE=1,MODE=2,MODE=3), CB49, IF(MODE_ILIM=4,#REF!,#REF!)) -> 0.003138654465 | CI49: =(IF(OR(MODE=1,MODE=2,MODE=3), S49, IF(MODE_ILIM=4,#REF!,#REF!)))/1000 -> 607.7306036 | CJ49: =IF(OR(MODE=1,MODE=2,MODE=3), P49, IF(MODE_ILIM=4,#REF!,#REF!)) -> 148.9366903
A50: QrrBot | B50: 1.4 | C50: nC | D50: =B50*0.000000001 -> 1.4e-09 | E50: Reverse recovery charge of body diode at 100mA | H50: 44 | I50: 0.132 | J50: 0.148889 | K50: 0.2063734255 | L50: 0.05786848817 | M50: 148.9114365 | N50: 148.9114365 | O50: 1 | P50: 148.9114365 | Q50: 1.228311158e-06 | R50: 0.2532962211 | S50: 607910.9306 | T50: 1.644977824e-06 | U50: 0 | V50: 0.00066 | W50: 0.1386953723 | X50: 0.003270189071 | Y50: 0 | Z50: 0.003271901029 | AA50: 0.04257236547 | AB50: 0.001812406302 | AC50: 0.001812406302 | AD50: 0.06127481564 | AE50: 1.12638091e-05 | AF50: 1.12638091e-05 | AG50: 0.06980335968 | AH50: 0.009014141693 | AI50: 0.001823732792 | AJ50: 30 | AK50: 37.32912085 | AL50: 0.1375513983 | AM50: 0.1120501427 | AN50: 0.2514252739 | AO50: 0.2609033826 | AP50: 0.1185257493 | AQ50: 0.01053626493 | AR50: 0.004924078538 | AS50: 0.002380117192 | AT50: 0.0009181921386 | AU50: 0.008222387868 | AV50: 0.01879772564 | AW50: 0.03203792404 | AX50: 0.09006910147 | AY50: 0.006747811329 | AZ50: 0.3765180211 | BA50: 0.3816135922 | BB50: 1.584 | BC50: 0.8058552333 | BD50: 0.004821959307 | BE50: 0.00538017127 | BF50: 0.0329561156 | BG50: 0.1279118515 | BH50: 0.001210877459 | BI50: 0.0004671274874 | BJ50: 0.004183115085 | BK50: 0.001663698849 | BL50: 0 | BM50: 5.730428982e-06 | BN50: 0.0009220562522 | BO50: 0.04582238433 | BP50: 0.2253450875 | BQ50: 0.8058552333 | BR50: 80.58552333 | BS50: 132 | BT50: 68.01541938 | BU50: 0.6801541938 | BV50: 607.9109306 | BX50: 0.05700517292 | BZ50: 0.3765180211 | CA50: 0.09006910147 | CB50: 0.003271901029 | CE50: =IF(OR(MODE=1,MODE=2,MODE=3), BR50, IF(MODE_ILIM=4,#REF!,#REF!)) -> 80.58552333 | CF50: =IF(OR(MODE=1,MODE=2,MODE=3), BZ50, IF(MODE_ILIM=4,#REF!,#REF!)) -> 0.3765180211 | CG50: =IF(OR(MODE=1,MODE=2,MODE=3), CA50, IF(MODE_ILIM=4,#REF!,#REF!)) -> 0.09006910147 | CH50: =IF(OR(MODE=1,MODE=2,MODE=3), CB50, IF(MODE_ILIM=4,#REF!,#REF!)) -> 0.003271901029 | CI50: =(IF(OR(MODE=1,MODE=2,MODE=3), S50, IF(MODE_ILIM=4,#REF!,#REF!)))/1000 -> 607.9109306 | CJ50: =IF(OR(MODE=1,MODE=2,MODE=3), P50, IF(MODE_ILIM=4,#REF!,#REF!)) -> 148.9114365
A51: TrrBot | B51: 20 | C51: ns | D51: =B51*0.000000001 -> 2e-08 | E51: Reverse recovery time of body diode (not used) | H51: 45 | I51: 0.135 | J51: 0.14886375 | K51: 0.2093735317 | L51: 0.06088111361 | M51: 148.8861827 | N51: 148.8861827 | O51: 1 | P51: 148.8861827 | Q51: 1.227823279e-06 | R51: 0.2533713677 | S51: 608091.2824 | T51: 1.644489946e-06 | U51: 0 | V51: 0.00066 | W51: 0.1415535457 | X51: 0.003406359071 | Y51: 0 | Z51: 0.003408216609 | AA51: 0.04257236547 | AB51: 0.001812406302 | AC51: 0.001812406302 | AD51: 0.06250531021 | AE51: 1.172074141e-05 | AF51: 1.172074141e-05 | AG51: 0.07125240374 | AH51: 0.009392274323 | AI51: 0.001824273847 | AJ51: 30 | AK51: 36.79262231 | AL51: 0.1389056835 | AM51: 0.1120833852 | AN51: 0.2528133426 | AO51: 0.2626923616 | AP51: 0.1209862187 | AQ51: 0.01097824884 | AR51: 0.004925539387 | AS51: 0.002503414515 | AT51: 0.0009395783237 | AU51: 0.008368532226 | AV51: 0.01938877305 | AW51: 0.03203792404 | AX51: 0.09008631786 | AY51: 0.006749813235 | AZ51: 0.3789172658 | BA51: 0.3841496094 | BB51: 1.62 | BC51: 0.8083228879 | BD51: 0.004929282237 | BE51: 0.005498711661 | BF51: 0.0323320209 | BG51: 0.1261449452 | BH51: 0.001249115587 | BI51: 0.0004688164592 | BJ51: 0.004175602553 | BK51: 0.001699653087 | BL51: 0 | BM51: 5.848236757e-06 | BN51: 0.0009043268494 | BO51: 0.04494989667 | BP51: 0.2223582194 | BQ51: 0.8083228879 | BR51: 80.83228879 | BS51: 135 | BT51: 68.42786701 | BU51: 0.6842786701 | BV51: 608.0912824 | BX51: 0.05592565777 | BZ51: 0.3789172658 | CA51: 0.09008631786 | CB51: 0.003408216609 | CE51: =IF(OR(MODE=1,MODE=2,MODE=3), BR51, IF(MODE_ILIM=4,#REF!,#REF!)) -> 80.83228879 | CF51: =IF(OR(MODE=1,MODE=2,MODE=3), BZ51, IF(MODE_ILIM=4,#REF!,#REF!)) -> 0.3789172658 | CG51: =IF(OR(MODE=1,MODE=2,MODE=3), CA51, IF(MODE_ILIM=4,#REF!,#REF!)) -> 0.09008631786 | CH51: =IF(OR(MODE=1,MODE=2,MODE=3), CB51, IF(MODE_ILIM=4,#REF!,#REF!)) -> 0.003408216609 | CI51: =(IF(OR(MODE=1,MODE=2,MODE=3), S51, IF(MODE_ILIM=4,#REF!,#REF!)))/1000 -> 608.0912824 | CJ51: =IF(OR(MODE=1,MODE=2,MODE=3), P51, IF(MODE_ILIM=4,#REF!,#REF!)) -> 148.8861827
A52: Idss | B52: 0 | C52: μA | D52: =B52/1000000 -> 0 | E52: Leakage current of low-side device | H52: 46 | I52: 0.138 | J52: 0.1488385 | K52: 0.212373638 | L52: 0.06389373906 | M52: 148.8609289 | N52: 148.8609289 | O52: 1 | P52: 148.8609289 | Q52: 1.227335622e-06 | R52: 0.2534465246 | S52: 608271.6591 | T52: 1.644002289e-06 | U52: 0 | V52: 0.00066 | W52: 0.1444174723 | X52: 0.003545589071 | Y52: 0 | Z52: 0.003547601605 | AA52: 0.04257236547 | AB52: 0.001812406302 | AC52: 0.001812406302 | AD52: 0.06373923181 | AE52: 1.218806901e-05 | AF52: 1.218806901e-05 | AG52: 0.07270477078 | AH52: 0.009779069833 | AI52: 0.001824814977 | AJ52: 30 | AK52: 36.27132652 | AL52: 0.1402607536 | AM52: 0.1121166322 | AN52: 0.2542022008 | AO52: 0.2644915316 | AP52: 0.1234523305 | AQ52: 0.01143035843 | AR52: 0.004927000439 | AS52: 0.002626784664 | AT52: 0.0009609924006 | AU52: 0.008514777503 | AV52: 0.01999021349 | AW52: 0.03203792404 | AX52: 0.09010353662 | AY52: 0.006751815416 | AZ52: 0.3813370972 | BA52: 0.3867092931 | BB52: 1.656 | BC52: 0.8106880434 | BD52: 0.005037099929 | BE52: 0.005617752867 | BF52: 0.03173110741 | BG52: 0.1244436502 | BH52: 0.001285931715 | BI52: 0.0004704499088 | BJ52: 0.004168374586 | BK52: 0.001735728664 | BL52: 0 | BM52: 5.966619457e-06 | BN52: 0.0008872561104 | BO52: 0.04410981872 | BP52: 0.2194931368 | BQ52: 0.8106880434 | BR52: 81.06880434 | BS52: 138 | BT52: 68.80227773 | BU52: 0.6880227773 | BV52: 608.2716591 | BX52: 0.05488623985 | BZ52: 0.3813370972 | CA52: 0.09010353662 | CB52: 0.003547601605 | CE52: =IF(OR(MODE=1,MODE=2,MODE=3), BR52, IF(MODE_ILIM=4,#REF!,#REF!)) -> 81.06880434 | CF52: =IF(OR(MODE=1,MODE=2,MODE=3), BZ52, IF(MODE_ILIM=4,#REF!,#REF!)) -> 0.3813370972 | CG52: =IF(OR(MODE=1,MODE=2,MODE=3), CA52, IF(MODE_ILIM=4,#REF!,#REF!)) -> 0.09010353662 | CH52: =IF(OR(MODE=1,MODE=2,MODE=3), CB52, IF(MODE_ILIM=4,#REF!,#REF!)) -> 0.003547601605 | CI52: =(IF(OR(MODE=1,MODE=2,MODE=3), S52, IF(MODE_ILIM=4,#REF!,#REF!)))/1000 -> 608.2716591 | CJ52: =IF(OR(MODE=1,MODE=2,MODE=3), P52, IF(MODE_ILIM=4,#REF!,#REF!)) -> 148.8609289
A53: Csw | B53: 160 | C53: pF | D53: =B53/1000000000000 -> 1.6e-10 | E53: Effective SW node capacitance (CossHS + CossLS) | H53: 47 | I53: 0.141 | J53: 0.14881325 | K53: 0.2153737442 | L53: 0.06690636451 | M53: 148.8356751 | N53: 148.8356751 | O53: 1 | P53: 148.8356751 | Q53: 1.226848188e-06 | R53: 0.253521692 | S53: 608452.0607 | T53: 1.643514854e-06 | U53: 0 | V53: 0.00066 | W53: 0.1472868165 | X53: 0.003687879071 | Y53: 0 | Z53: 0.003690056428 | AA53: 0.04257236547 | AB53: 0.001812406302 | AC53: 0.001812406302 | AD53: 0.06497640049 | AE53: 1.266579786e-05 | AF53: 1.266579786e-05 | AG53: 0.07416029308 | AH53: 0.01017453578 | AI53: 0.001825356182 | AJ53: 30 | AK53: 35.76459631 | AL53: 0.1416166087 | AM53: 0.1121498838 | AN53: 0.2555918487 | AO53: 0.2663009123 | AP53: 0.1259238 | AQ53: 0.01189260255 | AR53: 0.004928461692 | AS53: 0.002750227653 | AT53: 0.0009824343857 | AU53: 0.00866112373 | AV53: 0.02060206228 | AW53: 0.03203792404 | AX53: 0.09012075776 | AY53: 0.006753817874 | AZ53: 0.3837775502 | BA53: 0.3892926787 | BB53: 1.692 | BC53: 0.8129563022 | BD53: 0.005145390513 | BE53: 0.005737270241 | BF53: 0.03115210669 | BG53: 0.122804376 | BH53: 0.001321403607 | BI53: 0.0004720308661 | BJ53: 0.004161415556 | BK53: 0.001771917573 | BL53: 0 | BM53: 6.085543851e-06 | BN53: 0.0008708079938 | BO53: 0.04330037706 | BP53: 0.2167431817 | BQ53: 0.8129563022 | BR53: 81.29563022 | BS53: 141 | BT53: 69.1417728 | BU53: 0.691417728 | BV53: 608.4520607 | BX53: 0.05388472509 | BZ53: 0.3837775502 | CA53: 0.09012075776 | CB53: 0.003690056428 | CE53: =IF(OR(MODE=1,MODE=2,MODE=3), BR53, IF(MODE_ILIM=4,#REF!,#REF!)) -> 81.29563022 | CF53: =IF(OR(MODE=1,MODE=2,MODE=3), BZ53, IF(MODE_ILIM=4,#REF!,#REF!)) -> 0.3837775502 | CG53: =IF(OR(MODE=1,MODE=2,MODE=3), CA53, IF(MODE_ILIM=4,#REF!,#REF!)) -> 0.09012075776 | CH53: =IF(OR(MODE=1,MODE=2,MODE=3), CB53, IF(MODE_ILIM=4,#REF!,#REF!)) -> 0.003690056428 | CI53: =(IF(OR(MODE=1,MODE=2,MODE=3), S53, IF(MODE_ILIM=4,#REF!,#REF!)))/1000 -> 608.4520607 | CJ53: =IF(OR(MODE=1,MODE=2,MODE=3), P53, IF(MODE_ILIM=4,#REF!,#REF!)) -> 148.8356751
A54: ThetaJA | B54: 41.1 | C54: °C/W | E54: Thermal resistance | H54: 48 | I54: 0.144 | J54: 0.148788 | K54: 0.2183738505 | L54: 0.06991898995 | M54: 148.8104213 | N54: 148.8104213 | O54: 1 | P54: 148.8104213 | Q54: 1.226360975e-06 | R54: 0.2535968697 | S54: 608632.4872 | T54: 1.643027642e-06 | U54: 0 | V54: 0.00066 | W54: 0.1501612676 | X54: 0.003833229071 | Y54: 0 | Z54: 0.003835581497 | AA54: 0.04257236547 | AB54: 0.001812406302 | AC54: 0.001812406302 | AD54: 0.06621664925 | AE54: 1.315393391e-05 | AF54: 1.315393391e-05 | AG54: 0.07561881548 | AH54: 0.01057867972 | AI54: 0.001825897462 | AJ54: 30 | AK54: 35.27182961 | AL54: 0.1429732489 | AM54: 0.11218314 | AN54: 0.2569822864 | AO54: 0.2681205235 | AP54: 0.1284003636 | AQ54: 0.01236499003 | AR54: 0.004929923146 | AS54: 0.002873743497 | AT54: 0.001003904295 | AU54: 0.008807570939 | AV54: 0.02122433487 | AW54: 0.03203792404 | AX54: 0.09013798127 | AY54: 0.006755820608 | AZ54: 0.3862386602 | BA54: 0.391899802 | BB54: 1.728 | BC54: 0.8151328654 | BD54: 0.005254133727 | BE54: 0.005857240951 | BF54: 0.03059384117 | BG54: 0.1212237891 | BH54: 0.001355603456 | BI54: 0.000473562144 | BJ54: 0.004154710959 | BK54: 0.001808212382 | BL54: 0 | BM54: 6.204979076e-06 | BN54: 0.0008549490407 | BO54: 0.04251992532 | BP54: 0.2141021732 | BQ54: 0.8151328654 | BR54: 81.51328654 | BS54: 144 | BT54: 69.44928918 | BU54: 0.6944928918 | BV54: 608.6324872 | BX54: 0.05291907662 | BZ54: 0.3862386602 | CA54: 0.09013798127 | CB54: 0.003835581497 | CE54: =IF(OR(MODE=1,MODE=2,MODE=3), BR54, IF(MODE_ILIM=4,#REF!,#REF!)) -> 81.51328654 | CF54: =IF(OR(MODE=1,MODE=2,MODE=3), BZ54, IF(MODE_ILIM=4,#REF!,#REF!)) -> 0.3862386602 | CG54: =IF(OR(MODE=1,MODE=2,MODE=3), CA54, IF(MODE_ILIM=4,#REF!,#REF!)) -> 0.09013798127 | CH54: =IF(OR(MODE=1,MODE=2,MODE=3), CB54, IF(MODE_ILIM=4,#REF!,#REF!)) -> 0.003835581497 | CI54: =(IF(OR(MODE=1,MODE=2,MODE=3), S54, IF(MODE_ILIM=4,#REF!,#REF!)))/1000 -> 608.6324872 | CJ54: =IF(OR(MODE=1,MODE=2,MODE=3), P54, IF(MODE_ILIM=4,#REF!,#REF!)) -> 148.8104213
A55: Inductor | C55: Units | D55: Std Units | E55: Description | H55: 49 | I55: 0.147 | J55: 0.14876275 | K55: 0.2213739568 | L55: 0.0729316154 | M55: 148.7851675 | N55: 148.7851675 | O55: 1 | P55: 148.7851675 | Q55: 1.225873984e-06 | R55: 0.2536720577 | S55: 608812.9386 | T55: 1.64254065e-06 | U55: 0 | V55: 0.00066 | W55: 0.1530405381 | X55: 0.003981639071 | Y55: 0 | Z55: 0.00398417724 | AA55: 0.04257236547 | AB55: 0.001812406302 | AC55: 0.001812406302 | AD55: 0.06745982292 | AE55: 1.365248312e-05 | AF55: 1.365248312e-05 | AG55: 0.07708019416 | AH55: 0.01099150921 | AI55: 0.001826438816 | AJ55: 30 | AK55: 34.7924571 | AL55: 0.1443306745 | AM55: 0.1122164008 | AN55: 0.2583735142 | AO55: 0.2699503852 | AP55: 0.1308817772 | AQ55: 0.01284752969 | AR55: 0.004931384803 | AS55: 0.002997332212 | AT55: 0.001025402145 | AU55: 0.00895411916 | AV55: 0.02185704686 | AW55: 0.03203792404 | AX55: 0.09015520716 | AY55: 0.006757823618 | AZ55: 0.3887204628 | BA55: 0.3945306988 | BB55: 1.764 | BC55: 0.8172225676 | BD55: 0.005363310778 | BE55: 0.005977643825 | BF55: 0.03005521616 | BG55: 0.1196987906 | BH55: 0.001388598371 | BI55: 0.0004750463572 | BJ55: 0.004148247308 | BK55: 0.001844606182 | BL55: 0 | BM55: 6.324896436e-06 | BN55: 0.0008396481473 | BO55: 0.04176693304 | BP55: 0.2115643657 | BQ55: 0.8172225676 | BR55: 81.72225676 | BS55: 147 | BT55: 69.72757576 | BU55: 0.6972757576 | BV55: 608.8129386 | BX55: 0.05198740092 | BZ55: 0.3887204628 | CA55: 0.09015520716 | CB55: 0.00398417724 | CE55: =IF(OR(MODE=1,MODE=2,MODE=3), BR55, IF(MODE_ILIM=4,#REF!,#REF!)) -> 81.72225676 | CF55: =IF(OR(MODE=1,MODE=2,MODE=3), BZ55, IF(MODE_ILIM=4,#REF!,#REF!)) -> 0.3887204628 | CG55: =IF(OR(MODE=1,MODE=2,MODE=3), CA55, IF(MODE_ILIM=4,#REF!,#REF!)) -> 0.09015520716 | CH55: =IF(OR(MODE=1,MODE=2,MODE=3), CB55, IF(MODE_ILIM=4,#REF!,#REF!)) -> 0.00398417724 | CI55: =(IF(OR(MODE=1,MODE=2,MODE=3), S55, IF(MODE_ILIM=4,#REF!,#REF!)))/1000 -> 608.8129386 | CJ55: =IF(OR(MODE=1,MODE=2,MODE=3), P55, IF(MODE_ILIM=4,#REF!,#REF!)) -> 148.7851675
A56: Ltc | B56: 4000 | C56: ppm | D56: =Ltc -> 0.004 | E56: Inductor DCR Temp Co | H56: 50 | I56: 0.15 | J56: 0.1487375 | K56: 0.224374063 | L56: 0.07594424085 | M56: 148.7599137 | N56: 148.7599137 | O56: 1 | P56: 148.7599137 | Q56: 1.225387214e-06 | R56: 0.2537472562 | S56: 608993.4149 | T56: 1.64205388e-06 | U56: 0 | V56: 0.00066 | W56: 0.1559243608 | X56: 0.004133109071 | Y56: 0 | Z56: 0.004135844095 | AA56: 0.04257236547 | AB56: 0.001812406302 | AC56: 0.001812406302 | AD56: 0.06870577716 | AE56: 1.416145145e-05 | AF56: 1.416145145e-05 | AG56: 0.07854429572 | AH56: 0.01141303182 | AI56: 0.001826980245 | AJ56: 30 | AK56: 34.32594 | AL56: 0.1456888856 | AM56: 0.1122496662 | AN56: 0.2597655321 | AO56: 0.2717905174 | AP56: 0.1333678141 | AQ56: 0.01334023039 | AR56: 0.00493284666 | AS56: 0.003120993812 | AT56: 0.001046927952 | AU56: 0.009100768425 | AV56: 0.02250021399 | AW56: 0.03203792404 | AX56: 0.09017243542 | AY56: 0.006759826905 | AZ56: 0.3912229937 | BA56: 0.3971854056 | BB56: 1.8 | BC56: 0.8192299091 | BD56: 0.005472904218 | BE56: 0.006098459207 | BF56: 0.0295352127 | BG56: 0.1182264963 | BH56: 0.001420450821 | BI56: 0.0004764859395 | BJ56: 0.00414201205 | BK56: 0.001881092538 | BL56: 0 | BM56: 6.445269211e-06 | BN56: 0.0008248763611 | BO56: 0.0410399756 | BP56: 0.2091244109 | BQ56: 0.8192299091 | BR56: 81.92299091 | BS56: 150 | BT56: 69.97919344 | BU56: 0.6997919344 | BV56: 608.9934149 | BX56: 0.05108793548 | BZ56: 0.3912229937 | CA56: 0.09017243542 | CB56: 0.004135844095 | CE56: =IF(OR(MODE=1,MODE=2,MODE=3), BR56, IF(MODE_ILIM=4,#REF!,#REF!)) -> 81.92299091 | CF56: =IF(OR(MODE=1,MODE=2,MODE=3), BZ56, IF(MODE_ILIM=4,#REF!,#REF!)) -> 0.3912229937 | CG56: =IF(OR(MODE=1,MODE=2,MODE=3), CA56, IF(MODE_ILIM=4,#REF!,#REF!)) -> 0.09017243542 | CH56: =IF(OR(MODE=1,MODE=2,MODE=3), CB56, IF(MODE_ILIM=4,#REF!,#REF!)) -> 0.004135844095 | CI56: =(IF(OR(MODE=1,MODE=2,MODE=3), S56, IF(MODE_ILIM=4,#REF!,#REF!)))/1000 -> 608.9934149 | CJ56: =IF(OR(MODE=1,MODE=2,MODE=3), P56, IF(MODE_ILIM=4,#REF!,#REF!)) -> 148.7599137
A57: ThetaCA | B57: 20 | C57: °C/W | D57: =ThetaCa -> 40 | E57: Inductor Core-to-Ambient thermal resistance | H57: 51 | I57: 0.153 | J57: 0.14871225 | K57: 0.2273741693 | L57: 0.0789568663 | M57: 148.7346599 | N57: 148.7346599 | O57: 1 | P57: 148.7346599 | Q57: 1.224900665e-06 | R57: 0.253822465 | S57: 609173.916 | T57: 1.641567332e-06 | U57: 0 | V57: 0.00066 | W57: 0.1588124879 | X57: 0.004287639071 | Y57: 0 | Z57: 0.004290582506 | AA57: 0.04257236547 | AB57: 0.001812406302 | AC57: 0.001812406302 | AD57: 0.06995437758 | AE57: 1.468084483e-05 | AF57: 1.468084483e-05 | AG57: 0.08001099624 | AH57: 0.01184325511 | AI57: 0.001827521748 | AJ57: 30 | AK57: 33.87176801 | AL57: 0.1470478824 | AM57: 0.1122829362 | AN57: 0.2611583404 | AO57: 0.2736409404 | AP57: 0.1358582642 | AQ57: 0.01384310095 | AR57: 0.00493430872 | AS57: 0.003244728313 | AT57: 0.001068481732 | AU57: 0.009247518766 | AV57: 0.02315385212 | AW57: 0.03203792404 | AX57: 0.09018966607 | AY57: 0.006761830468 | AZ57: 0.3937462891 | BA57: 0.3998639587 | BB57: 1.836 | BC57: 0.8211590839 | BD57: 0.005582897823 | BE57: 0.006219668824 | BF57: 0.02903288111 | BG57: 0.1168042176 | BH57: 0.001451219025 | BI57: 0.0004778831593 | BJ57: 0.004135993485 | BK57: 0.001917665453 | BL57: 0 | BM57: 6.566072489e-06 | BN57: 0.0008106066986 | BO57: 0.04033772525 | BP57: 0.2067773245 | BQ57: 0.8211590839 | BR57: 82.11590839 | BS57: 153 | BT57: 70.20651815 | BU57: 0.7020651815 | BV57: 609.173916 | BX57: 0.0502190376 | BZ57: 0.3937462891 | CA57: 0.09018966607 | CB57: 0.004290582506 | CE57: =IF(OR(MODE=1,MODE=2,MODE=3), BR57, IF(MODE_ILIM=4,#REF!,#REF!)) -> 82.11590839 | CF57: =IF(OR(MODE=1,MODE=2,MODE=3), BZ57, IF(MODE_ILIM=4,#REF!,#REF!)) -> 0.3937462891 | CG57: =IF(OR(MODE=1,MODE=2,MODE=3), CA57, IF(MODE_ILIM=4,#REF!,#REF!)) -> 0.09018966607 | CH57: =IF(OR(MODE=1,MODE=2,MODE=3), CB57, IF(MODE_ILIM=4,#REF!,#REF!)) -> 0.004290582506 | CI57: =(IF(OR(MODE=1,MODE=2,MODE=3), S57, IF(MODE_ILIM=4,#REF!,#REF!)))/1000 -> 609.173916 | CJ57: =IF(OR(MODE=1,MODE=2,MODE=3), P57, IF(MODE_ILIM=4,#REF!,#REF!)) -> 148.7346599
H58: 52 | I58: 0.156 | J58: 0.148687 | K58: 0.2303742755 | L58: 0.08196949174 | M58: 148.7094061 | N58: 148.7094061 | O58: 1 | P58: 148.7094061 | Q58: 1.224414338e-06 | R58: 0.2538976842 | S58: 609354.4421 | T58: 1.641081005e-06 | U58: 0 | V58: 0.00066 | W58: 0.1617046886 | X58: 0.004445229071 | Y58: 0 | Z58: 0.004448392931 | AA58: 0.04257236547 | AB58: 0.001812406302 | AC58: 0.001812406302 | AD58: 0.0712054989 | AE58: 1.521066922e-05 | AF58: 1.521066922e-05 | AG58: 0.08148018045 | AH58: 0.01228218664 | AI58: 0.001828063326 | AJ58: 30 | AK58: 33.42945753 | AL58: 0.148407665 | AM58: 0.1123162108 | AN58: 0.2625519391 | AO58: 0.2755016745 | AP58: 0.1383529315 | AQ58: 0.01435615023 | AR58: 0.004935770981 | AS58: 0.00336853573 | AT58: 0.001090063502 | AU58: 0.009394370213 | AV58: 0.02381797728 | AW58: 0.03203792404 | AX58: 0.09020689909 | AY58: 0.006763834308 | AZ58: 0.3962903852 | BA58: 0.4025663951 | BB58: 1.872 | BC58: 0.8230140057 | BD58: 0.005693276499 | BE58: 0.006341255676 | BF58: 0.02854733522 | BG58: 0.1154294461 | BH58: 0.00148095731 | BI58: 0.000479240133 | BJ58: 0.004130180694 | BK58: 0.001954319329 | BL58: 0 | BM58: 6.687283015e-06 | BN58: 0.00079681398 | BO58: 0.03965894303 | BP58: 0.2045184553 | BQ58: 0.8230140057 | BR58: 82.30140057 | BS58: 156 | BT58: 70.41174614 | BU58: 0.7041174614 | BV58: 609.3544421 | BX58: 0.04937917443 | BZ58: 0.3962903852 | CA58: 0.09020689909 | CB58: 0.004448392931 | CE58: =IF(OR(MODE=1,MODE=2,MODE=3), BR58, IF(MODE_ILIM=4,#REF!,#REF!)) -> 82.30140057 | CF58: =IF(OR(MODE=1,MODE=2,MODE=3), BZ58, IF(MODE_ILIM=4,#REF!,#REF!)) -> 0.3962903852 | CG58: =IF(OR(MODE=1,MODE=2,MODE=3), CA58, IF(MODE_ILIM=4,#REF!,#REF!)) -> 0.09020689909 | CH58: =IF(OR(MODE=1,MODE=2,MODE=3), CB58, IF(MODE_ILIM=4,#REF!,#REF!)) -> 0.004448392931 | CI58: =(IF(OR(MODE=1,MODE=2,MODE=3), S58, IF(MODE_ILIM=4,#REF!,#REF!)))/1000 -> 609.3544421 | CJ58: =IF(OR(MODE=1,MODE=2,MODE=3), P58, IF(MODE_ILIM=4,#REF!,#REF!)) -> 148.7094061
H59: 53 | I59: 0.159 | J59: 0.14866175 | K59: 0.2333743818 | L59: 0.08498211719 | M59: 148.6841522 | N59: 148.6841522 | O59: 1 | P59: 148.6841522 | Q59: 1.223928232e-06 | R59: 0.2539729138 | S59: 609534.9931 | T59: 1.640594898e-06 | U59: 0 | V59: 0.00066 | W59: 0.1646007482 | X59: 0.004605879071 | Y59: 0 | Z59: 0.004609275834 | AA59: 0.04257236547 | AB59: 0.001812406302 | AC59: 0.001812406302 | AD59: 0.07245902421 | AE59: 1.575093057e-05 | AF59: 1.575093057e-05 | AG59: 0.08295174105 | AH59: 0.01272983399 | AI59: 0.001828604979 | AJ59: 30 | AK59: 32.99854987 | AL59: 0.1497682336 | AM59: 0.1123494899 | AN59: 0.2639463285 | AO59: 0.2773727402 | AP59: 0.1408516339 | AQ59: 0.01487938707 | AR59: 0.004937233444 | AS59: 0.003492416078 | AT59: 0.001111673277 | AU59: 0.009541322799 | AV59: 0.0244926056 | AW59: 0.03203792404 | AX59: 0.09022413448 | AY59: 0.006765838424 | AZ59: 0.3988553188 | BA59: 0.4052927518 | BB59: 1.908 | BC59: 0.8247983306 | BD59: 0.005804026183 | BE59: 0.006463203929 | BF59: 0.02807774711 | BG59: 0.1140998381 | BH59: 0.001509716431 | BI59: 0.000480558838 | BJ59: 0.004124563479 | BK59: 0.001991048936 | BL59: 0 | BM59: 6.808879057e-06 | BN59: 0.0007834746816 | BO59: 0.03900247144 | BP59: 0.202343458 | BQ59: 0.8247983306 | BR59: 82.47983306 | BS59: 159 | BT59: 70.59690101 | BU59: 0.7059690101 | BV59: 609.5349931 | BX59: 0.04856691391 | BZ59: 0.3988553188 | CA59: 0.09022413448 | CB59: 0.004609275834 | CE59: =IF(OR(MODE=1,MODE=2,MODE=3), BR59, IF(MODE_ILIM=4,#REF!,#REF!)) -> 82.47983306 | CF59: =IF(OR(MODE=1,MODE=2,MODE=3), BZ59, IF(MODE_ILIM=4,#REF!,#REF!)) -> 0.3988553188 | CG59: =IF(OR(MODE=1,MODE=2,MODE=3), CA59, IF(MODE_ILIM=4,#REF!,#REF!)) -> 0.09022413448 | CH59: =IF(OR(MODE=1,MODE=2,MODE=3), CB59, IF(MODE_ILIM=4,#REF!,#REF!)) -> 0.004609275834 | CI59: =(IF(OR(MODE=1,MODE=2,MODE=3), S59, IF(MODE_ILIM=4,#REF!,#REF!)))/1000 -> 609.5349931 | CJ59: =IF(OR(MODE=1,MODE=2,MODE=3), P59, IF(MODE_ILIM=4,#REF!,#REF!)) -> 148.6841522
H60: 54 | I60: 0.162 | J60: 0.1486365 | K60: 0.2363744881 | L60: 0.08799474264 | M60: 148.6588984 | N60: 148.6588984 | O60: 1 | P60: 148.6588984 | Q60: 1.223442346e-06 | R60: 0.2540481538 | S60: 609715.5691 | T60: 1.640109013e-06 | U60: 0 | V60: 0.00066 | W60: 0.1675004666 | X60: 0.004769589071 | Y60: 0 | Z60: 0.004773231688 | AA60: 0.04257236547 | AB60: 0.001812406302 | AC60: 0.001812406302 | AD60: 0.07371484433 | AE60: 1.630163482e-05 | AF60: 1.630163482e-05 | AG60: 0.08442557801 | AH60: 0.01318620471 | AI60: 0.001829146707 | AJ60: 30 | AK60: 32.57860968 | AL60: 0.1511295884 | AM60: 0.1123827737 | AN60: 0.2653415088 | AO60: 0.2792541581 | AP60: 0.1433542015 | AQ60: 0.01541282032 | AR60: 0.004938696109 | AS60: 0.003616369372 | AT60: 0.001133311074 | AU60: 0.009688376555 | AV60: 0.02517775339 | AW60: 0.03203792404 | AX60: 0.09024137226 | AY60: 0.006767842816 | AZ60: 0.4014411266 | BA60: 0.4080430662 | BB60: 1.944 | BC60: 0.8265154784 | BD60: 0.005915133761 | BE60: 0.006585498819 | BF60: 0.02762334243 | BG60: 0.1128132017 | BH60: 0.001537543859 | BI60: 0.0004818411236 | BJ60: 0.004119132296 | BK60: 0.002027849379 | BL60: 0 | BM60: 6.930840279e-06 | BN60: 0.0007705668013 | BO60: 0.03836722786 | BP60: 0.2002482688 | BQ60: 0.8265154784 | BR60: 82.65154784 | BS60: 162 | BT60: 70.76384186 | BU60: 0.7076384186 | BV60: 609.7155691 | BX60: 0.04778091664 | BZ60: 0.4014411266 | CA60: 0.09024137226 | CB60: 0.004773231688 | CE60: =IF(OR(MODE=1,MODE=2,MODE=3), BR60, IF(MODE_ILIM=4,#REF!,#REF!)) -> 82.65154784 | CF60: =IF(OR(MODE=1,MODE=2,MODE=3), BZ60, IF(MODE_ILIM=4,#REF!,#REF!)) -> 0.4014411266 | CG60: =IF(OR(MODE=1,MODE=2,MODE=3), CA60, IF(MODE_ILIM=4,#REF!,#REF!)) -> 0.09024137226 | CH60: =IF(OR(MODE=1,MODE=2,MODE=3), CB60, IF(MODE_ILIM=4,#REF!,#REF!)) -> 0.004773231688 | CI60: =(IF(OR(MODE=1,MODE=2,MODE=3), S60, IF(MODE_ILIM=4,#REF!,#REF!)))/1000 -> 609.7155691 | CJ60: =IF(OR(MODE=1,MODE=2,MODE=3), P60, IF(MODE_ILIM=4,#REF!,#REF!)) -> 148.6588984
H61: 55 | I61: 0.165 | J61: 0.14861125 | K61: 0.2393745943 | L61: 0.09100736808 | M61: 148.6336446 | N61: 148.6336446 | O61: 1 | P61: 148.6336446 | Q61: 1.222956681e-06 | R61: 0.2541234041 | S61: 609896.1699 | T61: 1.639623348e-06 | U61: 0 | V61: 0.00066 | W61: 0.170403657 | X61: 0.004936359071 | Y61: 0 | Z61: 0.004940260976 | AA61: 0.04257236547 | AB61: 0.001812406302 | AC61: 0.001812406302 | AD61: 0.07497285713 | AE61: 1.686278792e-05 | AF61: 1.686278792e-05 | AG61: 0.08590159798 | AH61: 0.01365130639 | AI61: 0.00182968851 | AJ61: 30 | AK61: 32.16922352 | AL61: 0.1524917295 | AM61: 0.112416062 | AN61: 0.26673748 | AO61: 0.2811459489 | AP61: 0.1458604759 | AQ61: 0.01595645883 | AR61: 0.004940158976 | AS61: 0.003740395627 | AT61: 0.001154976909 | AU61: 0.009835531512 | AV61: 0.02587343708 | AW61: 0.03203792404 | AX61: 0.09025861242 | AY61: 0.006769847486 | AZ61: 0.4040478459 | BA61: 0.410817376 | BB61: 1.98 | BC61: 0.8281686506 | BD61: 0.006026586995 | BE61: 0.006708126571 | BF61: 0.02718339615 | BG61: 0.1115674843 | BH61: 0.00156448404 | BI61: 0.0004830887213 | BJ61: 0.004113878212 | BK61: 0.002064716076 | BL61: 0 | BM61: 7.053147633e-06 | BN61: 0.0007580697381 | BO61: 0.03775219861 | BP61: 0.1982290825 | BQ61: 0.8281686506 | BR61: 82.81686506 | BS61: 165 | BT61: 70.91427226 | BU61: 0.7091427226 | BV61: 609.8961699 | BX61: 0.04701992848 | BZ61: 0.4040478459 | CA61: 0.09025861242 | CB61: 0.004940260976 | CE61: =IF(OR(MODE=1,MODE=2,MODE=3), BR61, IF(MODE_ILIM=4,#REF!,#REF!)) -> 82.81686506 | CF61: =IF(OR(MODE=1,MODE=2,MODE=3), BZ61, IF(MODE_ILIM=4,#REF!,#REF!)) -> 0.4040478459 | CG61: =IF(OR(MODE=1,MODE=2,MODE=3), CA61, IF(MODE_ILIM=4,#REF!,#REF!)) -> 0.09025861242 | CH61: =IF(OR(MODE=1,MODE=2,MODE=3), CB61, IF(MODE_ILIM=4,#REF!,#REF!)) -> 0.004940260976 | CI61: =(IF(OR(MODE=1,MODE=2,MODE=3), S61, IF(MODE_ILIM=4,#REF!,#REF!)))/1000 -> 609.8961699 | CJ61: =IF(OR(MODE=1,MODE=2,MODE=3), P61, IF(MODE_ILIM=4,#REF!,#REF!)) -> 148.6336446
H62: 56 | I62: 0.168 | J62: 0.148586 | K62: 0.2423747006 | L62: 0.09401999353 | M62: 148.6083908 | N62: 148.6083908 | O62: 1 | P62: 148.6083908 | Q62: 1.222471237e-06 | R62: 0.2541986649 | S62: 610076.7957 | T62: 1.639137904e-06 | U62: 0 | V62: 0.00066 | W62: 0.1733101448 | X62: 0.005106189071 | Y62: 0 | Z62: 0.005110364189 | AA62: 0.04257236547 | AB62: 0.001812406302 | AC62: 0.001812406302 | AD62: 0.07623296705 | AE62: 1.74343958e-05 | AF62: 1.74343958e-05 | AG62: 0.08737971377 | AH62: 0.0141251466 | AI62: 0.001830230387 | AJ62: 30 | AK62: 31.76999845 | AL62: 0.153854657 | AM62: 0.112449355 | AN62: 0.2681342424 | AO62: 0.2830481334 | AP62: 0.148370309 | AQ62: 0.01651031145 | AR62: 0.004941622045 | AS62: 0.003864494858 | AT62: 0.001176670799 | AU62: 0.009982787701 | AV62: 0.02657967324 | AW62: 0.03203792404 | AX62: 0.09027585495 | AY62: 0.006771852432 | AZ62: 0.4066755141 | BA62: 0.413615719 | BB62: 2.016 | BC62: 0.8297608483 | BD62: 0.006138374451 | BE62: 0.006831074318 | BF62: 0.02675722866 | BG62: 0.1103607621 | BH62: 0.001590578637 | BI62: 0.000484303254 | BJ62: 0.004108792853 | BK62: 0.00210164473 | BL62: 0 | BM62: 7.175783257e-06 | BN62: 0.0007459641819 | BO62: 0.03715643353 | BP62: 0.1962823325 | BQ62: 0.8297608483 | BR62: 82.97608483 | BS62: 168 | BT62: 71.04974959 | BU62: 0.7104974959 | BV62: 610.0767957 | BX62: 0.0462827739 | BZ62: 0.4066755141 | CA62: 0.09027585495 | CB62: 0.005110364189 | CE62: =IF(OR(MODE=1,MODE=2,MODE=3), BR62, IF(MODE_ILIM=4,#REF!,#REF!)) -> 82.97608483 | CF62: =IF(OR(MODE=1,MODE=2,MODE=3), BZ62, IF(MODE_ILIM=4,#REF!,#REF!)) -> 0.4066755141 | CG62: =IF(OR(MODE=1,MODE=2,MODE=3), CA62, IF(MODE_ILIM=4,#REF!,#REF!)) -> 0.09027585495 | CH62: =IF(OR(MODE=1,MODE=2,MODE=3), CB62, IF(MODE_ILIM=4,#REF!,#REF!)) -> 0.005110364189 | CI62: =(IF(OR(MODE=1,MODE=2,MODE=3), S62, IF(MODE_ILIM=4,#REF!,#REF!)))/1000 -> 610.0767957 | CJ62: =IF(OR(MODE=1,MODE=2,MODE=3), P62, IF(MODE_ILIM=4,#REF!,#REF!)) -> 148.6083908
B63: 1500 | F63: Eff (%) | G63: Iout (mA) | H63: 57 | I63: 0.171 | J63: 0.14856075 | K63: 0.2453748068 | L63: 0.09703261898 | M63: 148.583137 | N63: 148.583137 | O63: 1 | P63: 148.583137 | Q63: 1.221986013e-06 | R63: 0.254273936 | S63: 610257.4464 | T63: 1.63865268e-06 | U63: 0 | V63: 0.00066 | W63: 0.1762197671 | X63: 0.005279079071 | Y63: 0 | Z63: 0.005283541829 | AA63: 0.04257236547 | AB63: 0.001812406302 | AC63: 0.001812406302 | AD63: 0.07749508458 | AE63: 1.80164644e-05 | AF63: 1.80164644e-05 | AG63: 0.08885984383 | AH63: 0.01460773292 | AI63: 0.001830772339 | AJ63: 30 | AK63: 31.3805608 | AL63: 0.1552183712 | AM63: 0.1124826525 | AN63: 0.2695317961 | AO63: 0.2849607327 | AP63: 0.1508835623 | AQ63: 0.01707438703 | AR63: 0.004943085316 | AS63: 0.00398866708 | AT63: 0.001198392759 | AU63: 0.01013014515 | AV63: 0.0272964786 | AW63: 0.03203792404 | AX63: 0.09029309987 | AY63: 0.006773857655 | AZ63: 0.4093241688 | BA63: 0.4164381334 | BB63: 2.052 | BC63: 0.8312948873 | BD63: 0.006250485441 | BE63: 0.006954330033 | BF63: 0.02634420227 | BG63: 0.10919123 | BH63: 0.00161586674 | BI63: 0.0004854862445 | BJ63: 0.00410386836 | BK63: 0.002138631307 | BL63: 0 | BM63: 7.298730382e-06 | BN63: 0.000734232014 | BO63: 0.03657904107 | BP63: 0.1944046723 | BQ63: 0.8312948873 | BR63: 83.12948873 | BS63: 171 | BT63: 71.17169461 | BU63: 0.7117169461 | BV63: 610.2574464 | BX63: 0.04556834988 | BZ63: 0.4093241688 | CA63: 0.09029309987 | CB63: 0.005283541829 | CE63: =IF(OR(MODE=1,MODE=2,MODE=3), BR63, IF(MODE_ILIM=4,#REF!,#REF!)) -> 83.12948873 | CF63: =IF(OR(MODE=1,MODE=2,MODE=3), BZ63, IF(MODE_ILIM=4,#REF!,#REF!)) -> 0.4093241688 | CG63: =IF(OR(MODE=1,MODE=2,MODE=3), CA63, IF(MODE_ILIM=4,#REF!,#REF!)) -> 0.09029309987 | CH63: =IF(OR(MODE=1,MODE=2,MODE=3), CB63, IF(MODE_ILIM=4,#REF!,#REF!)) -> 0.005283541829 | CI63: =(IF(OR(MODE=1,MODE=2,MODE=3), S63, IF(MODE_ILIM=4,#REF!,#REF!)))/1000 -> 610.2574464 | CJ63: =IF(OR(MODE=1,MODE=2,MODE=3), P63, IF(MODE_ILIM=4,#REF!,#REF!)) -> 148.583137
F64: =BR56 -> 81.92299091 | G64: =I56*1000 -> 150 | H64: 58 | I64: 0.174 | J64: 0.1485355 | K64: 0.2483749131 | L64: 0.1000452444 | M64: 148.5578832 | N64: 148.5578832 | O64: 1 | P64: 148.5578832 | Q64: 1.22150101e-06 | R64: 0.2543492175 | S64: 610438.122 | T64: 1.638167677e-06 | U64: 0 | V64: 0.00066 | W64: 0.1791323709 | X64: 0.005455029071 | Y64: 0 | Z64: 0.005459794405 | AA64: 0.04257236547 | AB64: 0.001812406302 | AC64: 0.001812406302 | AD64: 0.07875912574 | AE64: 1.860899966e-05 | AF64: 1.860899966e-05 | AG64: 0.09034191183 | AH64: 0.01509907291 | AI64: 0.001831314366 | AJ64: 30 | AK64: 31.00055502 | AL64: 0.1565828722 | AM64: 0.1125159546 | AN64: 0.2709301413 | AO64: 0.2868837678 | AP64: 0.1534001062 | AQ64: 0.01764869444 | AR64: 0.004944548788 | AS64: 0.004112912308 | AT64: 0.001220142807 | AU64: 0.0102776039 | AV64: 0.02802387002 | AW64: 0.03203792404 | AX64: 0.09031034717 | AY64: 0.006775863154 | AZ64: 0.4119938481 | BA64: 0.4192846578 | BB64: 2.088 | BC64: 0.8327734123 | BD64: 0.006362909964 | BE64: 0.007077882466 | BF64: 0.02594371807 | BG64: 0.1080571926 | BH64: 0.001640385066 | BI64: 0.0004866391228 | BJ64: 0.004099097353 | BK64: 0.002175672018 | BL64: 0 | BM64: 7.421973251e-06 | BN64: 0.0007228562168 | BO64: 0.0360191839 | BP64: 0.1925929588 | BQ64: 0.8327734123 | BR64: 83.27734123 | BS64: 174 | BT64: 71.28140092 | BU64: 0.7128140092 | BV64: 610.438122 | BX64: 0.04487562044 | BZ64: 0.4119938481 | CA64: 0.09031034717 | CB64: 0.005459794405 | CE64: =IF(OR(MODE=1,MODE=2,MODE=3), BR64, IF(MODE_ILIM=4,#REF!,#REF!)) -> 83.27734123 | CF64: =IF(OR(MODE=1,MODE=2,MODE=3), BZ64, IF(MODE_ILIM=4,#REF!,#REF!)) -> 0.4119938481 | CG64: =IF(OR(MODE=1,MODE=2,MODE=3), CA64, IF(MODE_ILIM=4,#REF!,#REF!)) -> 0.09031034717 | CH64: =IF(OR(MODE=1,MODE=2,MODE=3), CB64, IF(MODE_ILIM=4,#REF!,#REF!)) -> 0.005459794405 | CI64: =(IF(OR(MODE=1,MODE=2,MODE=3), S64, IF(MODE_ILIM=4,#REF!,#REF!)))/1000 -> 610.438122 | CJ64: =IF(OR(MODE=1,MODE=2,MODE=3), P64, IF(MODE_ILIM=4,#REF!,#REF!)) -> 148.5578832
F65: =BR81 -> 85.13581939 | G65: =I81*1000 -> 225 | H65: 59 | I65: 0.177 | J65: 0.14851025 | K65: 0.2513750194 | L65: 0.1030578699 | M65: 148.5326294 | N65: 148.5326294 | O65: 1 | P65: 148.5326294 | Q65: 1.221016226e-06 | R65: 0.2544245094 | S65: 610618.8226 | T65: 1.637682893e-06 | U65: 0 | V65: 0.00066 | W65: 0.1820478132 | X65: 0.005634039071 | Y65: 0 | Z65: 0.005639122437 | AA65: 0.04257236547 | AB65: 0.001812406302 | AC65: 0.001812406302 | AD65: 0.08002501176 | AE65: 1.921200752e-05 | AF65: 1.921200752e-05 | AG65: 0.09182584625 | AH65: 0.01559917417 | AI65: 0.001831856468 | AJ65: 30 | AK65: 30.62964255 | AL65: 0.1579481602 | AM65: 0.1125492614 | AN65: 0.2723292781 | AO65: 0.2888172599 | AP65: 0.1559198193 | AQ65: 0.01823324254 | AR65: 0.004946012463 | AS65: 0.004237230559 | AT65: 0.001241920957 | AU65: 0.01042516398 | AV65: 0.0287618645 | AW65: 0.03203792404 | AX65: 0.09032759685 | AY65: 0.006777868931 | AZ65: 0.4146845902 | BA65: 0.422155331 | BB65: 2.124 | BC65: 0.8341989093 | BD65: 0.006475638653 | BE65: 0.007201721081 | BF65: 0.02555521297 | BG65: 0.1069570559 | BH65: 0.001664168131 | BI65: 0.0004877632335 | BJ65: 0.004094472891 | BK65: 0.0022127633 | BL65: 0 | BM65: 7.545497043e-06 | BN65: 0.0007118207911 | BO65: 0.03547607475 | BP65: 0.1908442372 | BQ65: 0.8341989093 | BR65: 83.41989093 | BS65: 177 | BT65: 71.3800443 | BU65: 0.713800443 | BV65: 610.6188226 | BX65: 0.04420361162 | BZ65: 0.4146845902 | CA65: 0.09032759685 | CB65: 0.005639122437 | CE65: =IF(OR(MODE=1,MODE=2,MODE=3), BR65, IF(MODE_ILIM=4,#REF!,#REF!)) -> 83.41989093 | CF65: =IF(OR(MODE=1,MODE=2,MODE=3), BZ65, IF(MODE_ILIM=4,#REF!,#REF!)) -> 0.4146845902 | CG65: =IF(OR(MODE=1,MODE=2,MODE=3), CA65, IF(MODE_ILIM=4,#REF!,#REF!)) -> 0.09032759685 | CH65: =IF(OR(MODE=1,MODE=2,MODE=3), CB65, IF(MODE_ILIM=4,#REF!,#REF!)) -> 0.005639122437 | CI65: =(IF(OR(MODE=1,MODE=2,MODE=3), S65, IF(MODE_ILIM=4,#REF!,#REF!)))/1000 -> 610.6188226 | CJ65: =IF(OR(MODE=1,MODE=2,MODE=3), P65, IF(MODE_ILIM=4,#REF!,#REF!)) -> 148.5326294
F66: =BR106 -> 86.51426508 | G66: =I106*1000 -> 300 | H66: 60 | I66: 0.18 | J66: 0.148485 | K66: 0.2543751256 | L66: 0.1060704953 | M66: 148.5073756 | N66: 148.5073756 | O66: 1 | P66: 148.5073756 | Q66: 1.220531663e-06 | R66: 0.2544998117 | S66: 610799.5481 | T66: 1.63719833e-06 | U66: 0 | V66: 0.00066 | W66: 0.1849659598 | X66: 0.005816109071 | Y66: 0 | Z66: 0.005821526453 | AA66: 0.04257236547 | AB66: 0.001812406302 | AC66: 0.001812406302 | AD66: 0.0812926686 | AE66: 1.98254939e-05 | AF66: 1.98254939e-05 | AG66: 0.09331158 | AH66: 0.01610804428 | AI66: 0.001832398644 | AJ66: 30 | AK66: 30.26750086 | AL66: 0.1593142353 | AM66: 0.1125825727 | AN66: 0.2737292067 | AO66: 0.2907612306 | AP66: 0.1584425877 | AQ66: 0.01882804019 | AR66: 0.00494747634 | AS66: 0.004361621845 | AT66: 0.001263727228 | AU66: 0.01057282541 | AV66: 0.0295104792 | AW66: 0.03203792404 | AX66: 0.09034484891 | AY66: 0.006779874984 | AZ66: 0.4173964336 | BA66: 0.4250501919 | BB66: 2.16 | BC66: 0.835573718 | BD66: 0.006588662731 | BE66: 0.007325836011 | BF66: 0.0251781571 | BG66: 0.1058893199 | BH66: 0.001687248417 | BI66: 0.0004888598418 | BJ66: 0.004089988444 | BK66: 0.002249901797 | BL66: 0 | BM66: 7.669287801e-06 | BN66: 0.0007011106816 | BO66: 0.03494897282 | BP66: 0.189155727 | BQ66: 0.835573718 | BR66: 83.5573718 | BS66: 180 | BT66: 71.46869169 | BU66: 0.7146869169 | BV66: 610.7995481 | BX66: 0.04355140688 | BZ66: 0.4173964336 | CA66: 0.09034484891 | CB66: 0.005821526453 | CE66: =IF(OR(MODE=1,MODE=2,MODE=3), BR66, IF(MODE_ILIM=4,#REF!,#REF!)) -> 83.5573718 | CF66: =IF(OR(MODE=1,MODE=2,MODE=3), BZ66, IF(MODE_ILIM=4,#REF!,#REF!)) -> 0.4173964336 | CG66: =IF(OR(MODE=1,MODE=2,MODE=3), CA66, IF(MODE_ILIM=4,#REF!,#REF!)) -> 0.09034484891 | CH66: =IF(OR(MODE=1,MODE=2,MODE=3), CB66, IF(MODE_ILIM=4,#REF!,#REF!)) -> 0.005821526453 | CI66: =(IF(OR(MODE=1,MODE=2,MODE=3), S66, IF(MODE_ILIM=4,#REF!,#REF!)))/1000 -> 610.7995481 | CJ66: =IF(OR(MODE=1,MODE=2,MODE=3), P66, IF(MODE_ILIM=4,#REF!,#REF!)) -> 148.5073756
H67: 61 | I67: 0.183 | J67: 0.14845975 | K67: 0.2573752319 | L67: 0.1090831208 | M67: 148.4821218 | N67: 148.4821218 | O67: 1 | P67: 148.4821218 | Q67: 1.220047319e-06 | R67: 0.2545751244 | S67: 610980.2986 | T67: 1.636713986e-06 | U67: 0 | V67: 0.00066 | W67: 0.1878866847 | X67: 0.006001239071 | Y67: 0 | Z67: 0.006007006989 | AA67: 0.04257236547 | AB67: 0.001812406302 | AC67: 0.001812406302 | AD67: 0.08256202666 | AE67: 2.044946474e-05 | AF67: 2.044946474e-05 | AG67: 0.09479905011 | AH67: 0.01662569082 | AI67: 0.001832940896 | AJ67: 30 | AK67: 29.91382248 | AL67: 0.1606810978 | AM67: 0.1126158886 | AN67: 0.2751299273 | AO67: 0.2927157011 | AP67: 0.1609683043 | AQ67: 0.01943309625 | AR67: 0.004948940419 | AS67: 0.004486086184 | AT67: 0.001285561634 | AU67: 0.01072058824 | AV67: 0.03026973141 | AW67: 0.03203792404 | AX67: 0.09036210335 | AY67: 0.006781881315 | AZ67: 0.4201294172 | BA67: 0.4279692799 | BB67: 2.196 | BC67: 0.8369000418 | BD67: 0.00670197397 | BE67: 0.007450218003 | BF67: 0.02481205139 | BG67: 0.1048525718 | BH67: 0.001709656519 | BI67: 0.000489930139 | BJ67: 0.004085637861 | BK67: 0.002287084349 | BL67: 0 | BM67: 7.793332375e-06 | BN67: 0.0006907117076 | BO67: 0.03443718036 | BP67: 0.1875248094 | BQ67: 0.8369000418 | BR67: 83.69000418 | BS67: 183 | BT67: 71.54830972 | BU67: 0.7154830972 | BV67: 610.9802986 | BX67: 0.04291814295 | BZ67: 0.4201294172 | CA67: 0.09036210335 | CB67: 0.006007006989 | CE67: =IF(OR(MODE=1,MODE=2,MODE=3), BR67, IF(MODE_ILIM=4,#REF!,#REF!)) -> 83.69000418 | CF67: =IF(OR(MODE=1,MODE=2,MODE=3), BZ67, IF(MODE_ILIM=4,#REF!,#REF!)) -> 0.4201294172 | CG67: =IF(OR(MODE=1,MODE=2,MODE=3), CA67, IF(MODE_ILIM=4,#REF!,#REF!)) -> 0.09036210335 | CH67: =IF(OR(MODE=1,MODE=2,MODE=3), CB67, IF(MODE_ILIM=4,#REF!,#REF!)) -> 0.006007006989 | CI67: =(IF(OR(MODE=1,MODE=2,MODE=3), S67, IF(MODE_ILIM=4,#REF!,#REF!)))/1000 -> 610.9802986 | CJ67: =IF(OR(MODE=1,MODE=2,MODE=3), P67, IF(MODE_ILIM=4,#REF!,#REF!)) -> 148.4821218
H68: 62 | I68: 0.186 | J68: 0.1484345 | K68: 0.2603753381 | L68: 0.1120957462 | M68: 148.456868 | N68: 148.456868 | O68: 1 | P68: 148.456868 | Q68: 1.219563195e-06 | R68: 0.2546504475 | S68: 611161.0741 | T68: 1.636229862e-06 | U68: 0 | V68: 0.00066 | W68: 0.1908098695 | X68: 0.006189429071 | Y68: 0 | Z68: 0.006195564593 | AA68: 0.04257236547 | AB68: 0.001812406302 | AC68: 0.001812406302 | AD68: 0.08383302047 | AE68: 2.108392596e-05 | AF68: 2.108392596e-05 | AG68: 0.0962881974 | AH68: 0.01715212137 | AI68: 0.001833483222 | AJ68: 30 | AK68: 29.56831416 | AL68: 0.1620487476 | AM68: 0.1126492092 | AN68: 0.27653144 | AO68: 0.2946806932 | AP68: 0.1634968688 | AQ68: 0.02004841959 | AR68: 0.0049504047 | AS68: 0.004610623589 | AT68: 0.001307424193 | AU68: 0.01086845248 | AV68: 0.03103963857 | AW68: 0.03203792404 | AX68: 0.09037936017 | AY68: 0.006783887922 | AZ68: 0.4228835799 | BA68: 0.4309126347 | BB68: 2.232 | BC68: 0.8381799579 | BD68: 0.006815564647 | BE68: 0.007574858379 | BF68: 0.02445642535 | BG68: 0.1038454797 | BH68: 0.001731421275 | BI68: 0.0004909752485 | BJ68: 0.004081415342 | BK68: 0.002324307974 | BL68: 0 | BM68: 7.917618359e-06 | BN68: 0.0006806105009 | BO68: 0.03394003956 | BP68: 0.1859490156 | BQ68: 0.8381799579 | BR68: 83.81799579 | BS68: 186 | BT68: 71.61977294 | BU68: 0.7161977294 | BV68: 611.1610741 | BX68: 0.042303006 | BZ68: 0.4228835799 | CA68: 0.09037936017 | CB68: 0.006195564593 | CE68: =IF(OR(MODE=1,MODE=2,MODE=3), BR68, IF(MODE_ILIM=4,#REF!,#REF!)) -> 83.81799579 | CF68: =IF(OR(MODE=1,MODE=2,MODE=3), BZ68, IF(MODE_ILIM=4,#REF!,#REF!)) -> 0.4228835799 | CG68: =IF(OR(MODE=1,MODE=2,MODE=3), CA68, IF(MODE_ILIM=4,#REF!,#REF!)) -> 0.09037936017 | CH68: =IF(OR(MODE=1,MODE=2,MODE=3), CB68, IF(MODE_ILIM=4,#REF!,#REF!)) -> 0.006195564593 | CI68: =(IF(OR(MODE=1,MODE=2,MODE=3), S68, IF(MODE_ILIM=4,#REF!,#REF!)))/1000 -> 611.1610741 | CJ68: =IF(OR(MODE=1,MODE=2,MODE=3), P68, IF(MODE_ILIM=4,#REF!,#REF!)) -> 148.456868
H69: 63 | I69: 0.189 | J69: 0.14840925 | K69: 0.2633754444 | L69: 0.1151083717 | M69: 148.4316142 | N69: 148.4316142 | O69: 1 | P69: 148.4316142 | Q69: 1.219079291e-06 | R69: 0.254725781 | S69: 611341.8745 | T69: 1.635745958e-06 | U69: 0 | V69: 0.00066 | W69: 0.1937354028 | X69: 0.006380679071 | Y69: 0 | Z69: 0.006387199819 | AA69: 0.04257236547 | AB69: 0.001812406302 | AC69: 0.001812406302 | AD69: 0.08510558833 | AE69: 2.17288835e-05 | AF69: 2.17288835e-05 | AG69: 0.09777896622 | AH69: 0.01768734354 | AI69: 0.001834025623 | AJ69: 30 | AK69: 29.23069604 | AL69: 0.1634171851 | AM69: 0.1126825343 | AN69: 0.2779337451 | AO69: 0.2966562287 | AP69: 0.1660281867 | AQ69: 0.02067401908 | AR69: 0.004951869183 | AS69: 0.004735234077 | AT69: 0.00132931492 | AU69: 0.01101641818 | AV69: 0.03182021827 | AW69: 0.03203792404 | AX69: 0.09039661938 | AY69: 0.006785894807 | AZ69: 0.4256589612 | BA69: 0.4338802962 | BB69: 2.268 | BC69: 0.8394154261 | BD69: 0.006929427511 | BE69: 0.007699748992 | BF69: 0.02411083505 | BG69: 0.102866787 | BH69: 0.001752569899 | BI69: 0.00049199623 | BJ69: 0.004077315415 | BK69: 0.002361569859 | BL69: 0 | BM69: 8.042134038e-06 | BN69: 0.0006707944481 | BO69: 0.03345692979 | BP69: 0.1844260164 | BQ69: 0.8394154261 | BR69: 83.94154261 | BS69: 189 | BT69: 71.68387138 | BU69: 0.7168387138 | BV69: 611.3418745 | BX69: 0.04170522819 | BZ69: 0.4256589612 | CA69: 0.09039661938 | CB69: 0.006387199819 | CE69: =IF(OR(MODE=1,MODE=2,MODE=3), BR69, IF(MODE_ILIM=4,#REF!,#REF!)) -> 83.94154261 | CF69: =IF(OR(MODE=1,MODE=2,MODE=3), BZ69, IF(MODE_ILIM=4,#REF!,#REF!)) -> 0.4256589612 | CG69: =IF(OR(MODE=1,MODE=2,MODE=3), CA69, IF(MODE_ILIM=4,#REF!,#REF!)) -> 0.09039661938 | CH69: =IF(OR(MODE=1,MODE=2,MODE=3), CB69, IF(MODE_ILIM=4,#REF!,#REF!)) -> 0.006387199819 | CI69: =(IF(OR(MODE=1,MODE=2,MODE=3), S69, IF(MODE_ILIM=4,#REF!,#REF!)))/1000 -> 611.3418745 | CJ69: =IF(OR(MODE=1,MODE=2,MODE=3), P69, IF(MODE_ILIM=4,#REF!,#REF!)) -> 148.4316142
H70: 64 | I70: =IF(PLOT_TYPE=1, H70/100*Iout, min_I*EXP(H70*rr/100)) -> 0.192 | J70: =IF(I70<Icrit, (Vin-(Rdcr+RdsonTop)*Iripple/2-Vout)/L*OnTime, (Vin-(Rdcr+RdsonTop)*I70-Vout)/L*OnTime) -> 0.148384 | K70: =IF(I70<Icrit, (Vin-(Rdcr+RdsonTop)*Iripple/2-Vout)/L*OnTime, I70+((Vin-(Rdcr+RdsonTop)*J70-Vout)/L*OnTime)/2) -> 0.2663755507 | L70: =IF(I70<Icrit, 0, I70-((Vin-(Rdcr+RdsonTop)*K70-Vout)/L*OnTime)/2) -> 0.1181209971 | M70: 148.4063604 | N70: =IF(I70<Icrit, 1000*SQRT((J70*CoutEsr)^2+(((J70/2)-I70)*(OnTime+OffTime)/Cout)^2), 1000*J70*SQRT(CoutEsr^2+(1/(8*Fsw*Cout))^2)) -> 148.4063604 | O70: 1 | P70: =IF(I70<Icrit, 1000*((N70/1000)*O70), 1000*J70*SQRT(CoutEsr^2+(1/(8*Fsw*Cout))^2)) -> 148.4063604 | Q70: =IF(I70<Icrit, L*J70/(Vout+J70/2*(RdsonBot+Rdcr)), L*J70/(Vout+I70*(RdsonBot+Rdcr))) -> 1.218595606e-06 | R70: 0.2548011249 | S70: =IF(I70<Icrit,I70/((OnTime+Q70)*J70/2),1/(OnTime+Q70)) -> 611522.6999 | T70: 1.635262273e-06 | U70: 0 | V70: =S70*(T70*Iq_active+U70*Iq_sleep) -> 0.00066 | W70: 0.1966631798 | X70: =W70^2*Rdcr -> 0.006574989071 | Y70: =Core_Loss/1000*S70/$S$106 -> 0 | Z70: =(Y70+X70*(1+Ltc*(Ta-25)))/(1-X70*Ltc*ThetaCa) -> 0.006581913233 | AA70: 0.04257236547 | AB70: 0.001812406302 | AC70: 0.001812406302 | AD70: 0.08637967212 | AE70: 2.238434326e-05 | AF70: 2.238434326e-05 | AG70: 0.09927130419 | AH70: 0.01823136489 | AI70: 0.0018345681 | AJ70: 30 | AK70: =IF(I70<Icrit, Csw*Vin/Iripple*1000000000, Csw*Vin/(I70+Iripple/2)*1000000000) -> 28.90070088 | AL70: =IF(I70<Icrit, Vin*(I70+Iripple/2)*AK70/1000000000/2*S70, Vin*(I70-Iripple/2)*AJ70/1000000000/2*S70 + Vin*(I70+Iripple/2)*AK70/1000000000/2*S70) -> 0.1647864104 | AM70: =IF(I70<Icrit, Csw*(Vin)^2*S70/2, Csw*Vin^2*S70/2) -> 0.112715864 | AN70: 0.2793368426 | AO70: =(AI70+AL70+AM70+AH70*(1+RdsonTopTc*(Ta-25)))/(1-AH70*RdsonTopTc*ThetaJA) -> 0.2986423294 | AP70: =IF(I70<Icrit,Iripple*SQRT((OffTime)*S70/3), SQRT(OffTime*S70*(I70^2+Iripple^2/12))) -> 0.168562169 | AQ70: 0.0213099036 | AR70: =QgBot*S70*Vdd -> 0.004953333869 | AS70: =IF(I70<Icrit, Vin*Idss*R70, QrrBot*(I70-Iripple/2)/1*S70*Vin+Vin*Idss*R70) -> 0.004859917661 | AT70: =IF(I70<Icrit, dead1*S70*(I70+Iripple/2)*((I70+Iripple/2)*BDserR+VSD), dead1*S70*(I70+Iripple/2)*((I70+Iripple/2)*BDserR+VSD)+dead2*S70*(I70-Iripple/2)*((I70-Iripple/2)*BDserR+VSD)) -> 0.001351233832 | AU70: 0.01116448536 | AV70: =(AR70+AS70+AT70+AQ70*(1+RdsonBotTc*(Ta-25)))/(1-AQ70*RdsonBotTc*ThetaJA) -> 0.03261148824 | AW70: =Vin*V70+Vout*Ifb/0.8 -> 0.03203792404 | AX70: =(Vin-Vdd)*(S70*QgBot+S70*QgTop)+AW70 -> 0.09041388097 | AY70: =AI70+AR70 -> 0.006787901969 | AZ70: 0.4284556006 | BA70: =SUM(Z70,AC70,AF70,AZ70) -> 0.4368723045 | BB70: =Vout*I70 -> 2.304 | BC70: 0.8406082969 | BD70: 0.007043555751 | BE70: 0.00782488219 | BF70: =Vin*S70*(QgBot+QgTop)/($BB70+$BA70) -> 0.02377486131 | BG70: 0.1019153071 | BH70: 0.001773128085 | BI70: 0.0004929940842 | BJ70: 0.004073332911 | BK70: =X70/($BB70+$BA70) -> 0.002398867346 | BL70: =Y70/($BB70+$BA70) -> 0 | BM70: 8.166868346e-06 | BN70: 0.0006612516384 | BO70: 0.03298726497 | BP70: 0.1829536122 | BQ70: =BC70 -> 0.8406082969 | BR70: 84.06082969 | BS70: =I70*1000 -> 192 | BT70: 71.74131774 | BU70: 0.7174131774 | BV70: =S70/1000 -> 611.5226999 | BX70: =AM70/($BB70+$BA70) -> 0.04112408442 | BZ70: 0.4284556006 | CA70: 0.09041388097 | CB70: 0.006581913233 | CE70: =IF(OR(MODE=1,MODE=2,MODE=3), BR70, IF(MODE_ILIM=4,#REF!,#REF!)) -> 84.06082969 | CF70: =IF(OR(MODE=1,MODE=2,MODE=3), BZ70, IF(MODE_ILIM=4,#REF!,#REF!)) -> 0.4284556006 | CG70: =IF(OR(MODE=1,MODE=2,MODE=3), CA70, IF(MODE_ILIM=4,#REF!,#REF!)) -> 0.09041388097 | CH70: =IF(OR(MODE=1,MODE=2,MODE=3), CB70, IF(MODE_ILIM=4,#REF!,#REF!)) -> 0.006581913233 | CI70: =(IF(OR(MODE=1,MODE=2,MODE=3), S70, IF(MODE_ILIM=4,#REF!,#REF!)))/1000 -> 611.5226999 | CJ70: =IF(OR(MODE=1,MODE=2,MODE=3), P70, IF(MODE_ILIM=4,#REF!,#REF!)) -> 148.4063604
H71: 65 | I71: 0.195 | J71: 0.14835875 | K71: 0.2693756569 | L71: 0.1211336226 | M71: =IF(I71<Icrit, 1000*((((J71/2)-I71)*0.000002/Cout+Vout/306)), 1000*J71*SQRT(CoutEsr^2+(1/(8*Fsw*Cout))^2)) -> 148.3811066 | N71: 148.3811066 | O71: =ROUNDUP(M71/N71,0) -> 1 | P71: 148.3811066 | Q71: 1.21811214e-06 | R71: 0.2548764793 | S71: 611703.5502 | T71: =IF(1/S71-OnTime-Q71>Tsleep, OnTime+Q71+Tsleep, 1/S71) -> 1.634778807e-06 | U71: =IF(1/S71-OnTime-Q71>Tsleep, 1/S71-OnTime-Q71-Tsleep, 0) -> 0 | V71: 0.00066 | W71: =IF(I71<Icrit,Iripple*SQRT((OnTime+OffTime)*S71/3), SQRT(I71^2+Iripple^2/12)) -> 0.1995931018 | X71: 0.006772359071 | Y71: 0 | Z71: 0.006779705407 | AA71: =Iripple/SQRT(12)*SQRT((OnTime+Q71)*S71) -> 0.04257236547 | AB71: =RCoutEsr*AA71^2 -> 0.001812406302 | AC71: 0.001812406302 | AD71: =SQRT($R71)*SQRT($I71^2*(1-R71)+(Iripple^2)/12) -> 0.08765521697 | AE71: =RCinEsr*AD71^2 -> 2.305031119e-05 | AF71: 2.305031119e-05 | AG71: =IF(I71<Icrit,Iripple*SQRT((OnTime)*S71/3), SQRT(OnTime*S71*(I71^2+Iripple^2/12))) -> 0.1007651619 | AH71: =RdsonTop*AG71^2 -> 0.01878419304 | AI71: =QgTop*S71*Vdd -> 0.001835110651 | AJ71: 30 | AK71: 28.5780734 | AL71: 0.1661564236 | AM71: 0.1127491984 | AN71: =AI71+AL71+AM71 -> 0.2807407327 | AO71: 0.3006390174 | AP71: 0.1710987318 | AQ71: =RdsonBot*AP71^2 -> 0.02195608203 | AR71: 0.004954798757 | AS71: 0.004984674358 | AT71: 0.001373180945 | AU71: =AR71+AS71+AT71 -> 0.01131265406 | AV71: 0.03341346638 | AW71: 0.03203792404 | AX71: 0.09043114495 | AY71: 0.006789909408 | AZ71: 0.4312735382 | BA71: 0.4398887002 | BB71: 2.34 | BC71: 0.8417603193 | BD71: =(AO71-AN71)/($BB71+$BA71) -> 0.007157942963 | BE71: =(AV71-AU71)/($BB71+$BA71) -> 0.007950250783 | BF71: 0.02344810794 | BG71: =AN71/($BB71+$BA71) -> 0.1009899183 | BH71: =AS71/(BA71+BB71) -> 0.00179312012 | BI71: =AT71/($BB71+$BA71) -> 0.0004939697567 | BJ71: =AU71/($BB71+$BA71) -> 0.004069462946 | BK71: 0.002436197921 | BL71: 0 | BM71: =(AF71)/($BB71+$BA71) -> 8.291810815e-06 | BN71: =(AC71)/($BB71+$BA71) -> 0.0006519708152 | BO71: =AX71/($BB71+$BA71) -> 0.03253049122 | BP71: =SUM(BD71:BO71) -> 0.1815297246 | BQ71: 0.8417603193 | BR71: 84.17603193 | BS71: 195 | BT71: 71.79275395 | BU71: =BT71/100 -> 0.7179275395 | BV71: 611.7035502 | BX71: 0.04055888942 | BZ71: =AZ71 -> 0.4312735382 | CA71: =AX71 -> 0.09043114495 | CB71: =Z71 -> 0.006779705407 | CE71: =IF(OR(MODE=1,MODE=2,MODE=3), BR71, IF(MODE_ILIM=4,#REF!,#REF!)) -> 84.17603193 | CF71: =IF(OR(MODE=1,MODE=2,MODE=3), BZ71, IF(MODE_ILIM=4,#REF!,#REF!)) -> 0.4312735382 | CG71: =IF(OR(MODE=1,MODE=2,MODE=3), CA71, IF(MODE_ILIM=4,#REF!,#REF!)) -> 0.09043114495 | CH71: =IF(OR(MODE=1,MODE=2,MODE=3), CB71, IF(MODE_ILIM=4,#REF!,#REF!)) -> 0.006779705407 | CI71: =(IF(OR(MODE=1,MODE=2,MODE=3), S71, IF(MODE_ILIM=4,#REF!,#REF!)))/1000 -> 611.7035502 | CJ71: =IF(OR(MODE=1,MODE=2,MODE=3), P71, IF(MODE_ILIM=4,#REF!,#REF!)) -> 148.3811066
H72: 66 | I72: 0.198 | J72: 0.1483335 | K72: 0.2723757632 | L72: 0.124146248 | M72: 148.3558528 | N72: 148.3558528 | O72: 1 | P72: 148.3558528 | Q72: 1.217628893e-06 | R72: =OnTime*S72 -> 0.254951844 | S72: 611884.4256 | T72: 1.63429556e-06 | U72: 0 | V72: 0.00066 | W72: 0.2025250757 | X72: 0.006972789071 | Y72: 0 | Z72: 0.006980576926 | AA72: 0.04257236547 | AB72: 0.001812406302 | AC72: =AB72 -> 0.001812406302 | AD72: 0.08893217114 | AE72: 2.372679319e-05 | AF72: =AE72 -> 2.372679319e-05 | AG72: 0.102260493 | AH72: 0.01934583558 | AI72: 0.001835653277 | AJ72: 30 | AK72: 28.26256958 | AL72: 0.167527225 | AM72: 0.1127825373 | AN72: 0.2821454156 | AO72: 0.3026463149 | AP72: 0.1736377963 | AQ72: 0.02261256322 | AR72: 0.004956263847 | AS72: 0.005109504183 | AT72: 0.001395156275 | AU72: 0.01146092431 | AV72: 0.0342261707 | AW72: 0.03203792404 | AX72: 0.09044841131 | AY72: 0.006791917124 | AZ72: =AO72+AV72+AX72+AY72 -> 0.434112814 | BA72: 0.442929524 | BB72: 2.376 | BC72: 0.8428731473 | BD72: 0.007272583128 | BE72: 0.008075848012 | BF72: 0.02313020025 | BG72: 0.10008956 | BH72: 0.00181256897 | BI72: 0.0004949241418 | BJ72: 0.004065700901 | BK72: 0.002473559205 | BL72: 0 | BM72: 8.416951536e-06 | BN72: 0.0006429413317 | BO72: 0.03208608464 | BP72: 0.1801523875 | BQ72: 0.8428731473 | BR72: =100*BQ72 -> 84.28731473 | BS72: 198 | BT72: 71.83875737 | BU72: 0.7183875737 | BV72: 611.8844256 | BX72: 0.04000899503 | BZ72: 0.434112814 | CA72: 0.09044841131 | CB72: 0.006980576926 | CE72: =IF(OR(MODE=1,MODE=2,MODE=3), BR72, IF(MODE_ILIM=4,#REF!,#REF!)) -> 84.28731473 | CF72: =IF(OR(MODE=1,MODE=2,MODE=3), BZ72, IF(MODE_ILIM=4,#REF!,#REF!)) -> 0.434112814 | CG72: =IF(OR(MODE=1,MODE=2,MODE=3), CA72, IF(MODE_ILIM=4,#REF!,#REF!)) -> 0.09044841131 | CH72: =IF(OR(MODE=1,MODE=2,MODE=3), CB72, IF(MODE_ILIM=4,#REF!,#REF!)) -> 0.006980576926 | CI72: =(IF(OR(MODE=1,MODE=2,MODE=3), S72, IF(MODE_ILIM=4,#REF!,#REF!)))/1000 -> 611.8844256 | CJ72: =IF(OR(MODE=1,MODE=2,MODE=3), P72, IF(MODE_ILIM=4,#REF!,#REF!)) -> 148.3558528
H73: 67 | I73: 0.201 | J73: 0.14830825 | K73: 0.2753758694 | L73: 0.1271588735 | M73: 148.330599 | N73: 148.330599 | O73: 1 | P73: 148.330599 | Q73: 1.217145866e-06 | R73: 0.2550272191 | S73: 612065.3259 | T73: 1.633812532e-06 | U73: 0 | V73: 0.00066 | W73: 0.2054590137 | X73: 0.007176279071 | Y73: 0 | Z73: 0.00718452838 | AA73: 0.04257236547 | AB73: 0.001812406302 | AC73: 0.001812406302 | AD73: 0.09021048568 | AE73: 2.441379518e-05 | AF73: 2.441379518e-05 | AG73: 0.1037572533 | AH73: 0.0199163001 | AI73: 0.001836195978 | AJ73: =15*VIN_nom/24 -> 30 | AK73: 27.95395605 | AL73: 0.1688988146 | AM73: 0.1128158809 | AN73: 0.2835508915 | AO73: 0.3046642441 | AP73: 0.1761792878 | AQ73: 0.02327935608 | AR73: 0.00495772914 | AS73: 0.00523440715 | AT73: 0.00141715984 | AU73: 0.01160929613 | AV73: 0.03504961939 | AW73: 0.03203792404 | AX73: 0.09046568005 | AY73: 0.006793925118 | AZ73: 0.4369734686 | BA73: 0.4459948171 | BB73: 2.412 | BC73: =BB73/(BB73+BA73) -> 0.8439483464 | BD73: 0.007387470578 | BE73: 0.008201667518 | BF73: 0.02282078356 | BG73: 0.09921322802 | BH73: 0.001831496376 | BI73: 0.000495858086 | BJ73: 0.004062042401 | BK73: 0.002510948945 | BL73: 0 | BM73: 8.542281125e-06 | BN73: 0.0006341531102 | BO73: 0.03165354937 | BP73: 0.1788197402 | BQ73: 0.8439483464 | BR73: 84.39483464 | BS73: 201 | BT73: 71.8798463 | BU73: 0.718798463 | BV73: 612.0653259 | BX73: 0.03947378777 | BZ73: 0.4369734686 | CA73: 0.09046568005 | CB73: 0.00718452838 | CE73: =IF(OR(MODE=1,MODE=2,MODE=3), BR73, IF(MODE_ILIM=4,#REF!,#REF!)) -> 84.39483464 | CF73: =IF(OR(MODE=1,MODE=2,MODE=3), BZ73, IF(MODE_ILIM=4,#REF!,#REF!)) -> 0.4369734686 | CG73: =IF(OR(MODE=1,MODE=2,MODE=3), CA73, IF(MODE_ILIM=4,#REF!,#REF!)) -> 0.09046568005 | CH73: =IF(OR(MODE=1,MODE=2,MODE=3), CB73, IF(MODE_ILIM=4,#REF!,#REF!)) -> 0.00718452838 | CI73: =(IF(OR(MODE=1,MODE=2,MODE=3), S73, IF(MODE_ILIM=4,#REF!,#REF!)))/1000 -> 612.0653259 | CJ73: =IF(OR(MODE=1,MODE=2,MODE=3), P73, IF(MODE_ILIM=4,#REF!,#REF!)) -> 148.330599
H74: 68 | I74: 0.204 | J74: 0.148283 | K74: 0.2783759757 | L74: 0.1301714989 | M74: 148.3053452 | N74: 148.3053452 | O74: 1 | P74: 148.3053452 | Q74: 1.216663056e-06 | R74: 0.2551026047 | S74: 612246.2512 | T74: 1.633329723e-06 | U74: 0 | V74: 0.00066 | W74: 0.2083948327 | X74: 0.007382829071 | Y74: 0 | Z74: 0.007391560372 | AA74: 0.04257236547 | AB74: 0.001812406302 | AC74: 0.001812406302 | AD74: 0.09149011438 | AE74: 2.511132309e-05 | AF74: 2.511132309e-05 | AG74: 0.1052554016 | AH74: 0.02049559419 | AI74: 0.001836738754 | AJ74: 30 | AK74: 27.65200954 | AL74: 0.1702711927 | AM74: 0.112849229 | AN74: 0.2849571605 | AO74: 0.3066928275 | AP74: 0.1787231359 | AQ74: 0.02395646948 | AR74: 0.004959194635 | AS74: 0.005359383275 | AT74: 0.001439191654 | AU74: 0.01175776956 | AV74: 0.03588383077 | AW74: 0.03203792404 | AX74: 0.09048295118 | AY74: 0.006795933389 | AZ74: 0.4398555428 | BA74: 0.4490846208 | BB74: 2.448 | BC74: 0.8449873995 | BD74: 0.007502599982 | BE74: 0.008327703318 | BF74: 0.02251952189 | BG74: 0.0983599714 | BH74: 0.001849922932 | BI74: 0.0004967723911 | BJ74: 0.004058483304 | BK74: 0.002548365007 | BL74: 0 | BM74: 8.667790683e-06 | BN74: 0.0006255966046 | BO74: 0.0312324157 | BP74: 0.1775300203 | BQ74: 0.8449873995 | BR74: 84.49873995 | BS74: 204 | BT74: 71.91648518 | BU74: 0.7191648518 | BV74: 612.2462512 | BX74: 0.03895268651 | BZ74: 0.4398555428 | CA74: 0.09048295118 | CB74: 0.007391560372 | CE74: =IF(OR(MODE=1,MODE=2,MODE=3), BR74, IF(MODE_ILIM=4,#REF!,#REF!)) -> 84.49873995 | CF74: =IF(OR(MODE=1,MODE=2,MODE=3), BZ74, IF(MODE_ILIM=4,#REF!,#REF!)) -> 0.4398555428 | CG74: =IF(OR(MODE=1,MODE=2,MODE=3), CA74, IF(MODE_ILIM=4,#REF!,#REF!)) -> 0.09048295118 | CH74: =IF(OR(MODE=1,MODE=2,MODE=3), CB74, IF(MODE_ILIM=4,#REF!,#REF!)) -> 0.007391560372 | CI74: =(IF(OR(MODE=1,MODE=2,MODE=3), S74, IF(MODE_ILIM=4,#REF!,#REF!)))/1000 -> 612.2462512 | CJ74: =IF(OR(MODE=1,MODE=2,MODE=3), P74, IF(MODE_ILIM=4,#REF!,#REF!)) -> 148.3053452
H75: 69 | I75: 0.207 | J75: 0.14825775 | K75: 0.281376082 | L75: 0.1331841243 | M75: 148.2800914 | N75: 148.2800914 | O75: 1 | P75: 148.2800914 | Q75: 1.216180466e-06 | R75: 0.2551780006 | S75: 612427.2015 | T75: 1.632847133e-06 | U75: 0 | V75: 0.00066 | W75: 0.2113324544 | X75: 0.007592439071 | Y75: 0 | Z75: 0.00760167351 | AA75: 0.04257236547 | AB75: 0.001812406302 | AC75: 0.001812406302 | AD75: 0.09277101345 | AE75: 2.581938281e-05 | AF75: 2.581938281e-05 | AG75: 0.1067548986 | AH75: 0.02108372548 | AI75: 0.001837281605 | AJ75: 30 | AK75: 27.35651632 | AL75: 0.1716443593 | AM75: 0.1128825818 | AN75: 0.2863642227 | AO75: 0.3087320876 | AP75: 0.1812692741 | AQ75: 0.0246439123 | AR75: 0.004960660332 | AS75: 0.005484432572 | AT75: 0.001461251736 | AU75: 0.01190634464 | AV75: 0.03672882333 | AW75: 0.03203792404 | AX75: 0.0905002247 | AY75: 0.006797941937 | AZ75: 0.4427590776 | BA75: 0.4521989768 | BB75: 2.484 | BC75: 0.8459917123 | BD75: 0.007617966318 | BE75: 0.00845394978 | BF75: 0.02222609677 | BG75: 0.09752888854 | BH75: 0.001867868157 | BI75: 0.0004976678172 | BJ75: 0.004055019682 | BK75: 0.002585805367 | BL75: 0 | BM75: 8.793471769e-06 | BN75: 0.000617262766 | BO75: 0.03082223835 | BP75: 0.176281557 | BQ75: 0.8459917123 | BR75: 84.59917123 | BS75: 207 | BT75: 71.94908925 | BU75: 0.7194908925 | BV75: 612.4272015 | BX75: 0.03844514036 | BZ75: 0.4427590776 | CA75: 0.0905002247 | CB75: 0.00760167351 | CE75: =IF(OR(MODE=1,MODE=2,MODE=3), BR75, IF(MODE_ILIM=4,#REF!,#REF!)) -> 84.59917123 | CF75: =IF(OR(MODE=1,MODE=2,MODE=3), BZ75, IF(MODE_ILIM=4,#REF!,#REF!)) -> 0.4427590776 | CG75: =IF(OR(MODE=1,MODE=2,MODE=3), CA75, IF(MODE_ILIM=4,#REF!,#REF!)) -> 0.0905002247 | CH75: =IF(OR(MODE=1,MODE=2,MODE=3), CB75, IF(MODE_ILIM=4,#REF!,#REF!)) -> 0.00760167351 | CI75: =(IF(OR(MODE=1,MODE=2,MODE=3), S75, IF(MODE_ILIM=4,#REF!,#REF!)))/1000 -> 612.4272015 | CJ75: =IF(OR(MODE=1,MODE=2,MODE=3), P75, IF(MODE_ILIM=4,#REF!,#REF!)) -> 148.2800914
H76: 70 | I76: 0.21 | J76: 0.1482325 | K76: 0.2843761882 | L76: 0.1361967498 | M76: 148.2548376 | N76: 148.2548376 | O76: 1 | P76: 148.2548376 | Q76: 1.215698094e-06 | R76: 0.255253407 | S76: 612608.1769 | T76: 1.632364761e-06 | U76: 0 | V76: 0.00066 | W76: 0.2142718047 | X76: 0.007805109071 | Y76: 0 | Z76: 0.007814868415 | AA76: 0.04257236547 | AB76: 0.001812406302 | AC76: 0.001812406302 | AD76: 0.09405314149 | AE76: 2.653798027e-05 | AF76: 2.653798027e-05 | AG76: 0.1082557072 | AH76: 0.02168070155 | AI76: 0.001837824531 | AJ76: 30 | AK76: 27.06727169 | AL76: 0.1730183148 | AM76: 0.1129159392 | AN76: 0.2877720785 | AO76: 0.3107820473 | AP76: 0.1838176395 | AQ76: 0.02534169343 | AR76: 0.004962126232 | AS76: 0.005609555058 | AT76: 0.001483340099 | AU76: 0.01205502139 | AV76: 0.0375846157 | AW76: 0.03203792404 | AX76: 0.0905175006 | AY76: 0.006799950763 | AZ76: 0.4456841144 | BA76: 0.4553379271 | BB76: 2.52 | BC76: 0.846962618 | BD76: 0.007733564855 | BE76: 0.0085804016 | BF76: 0.0219402061 | BG76: 0.09671912419 | BH76: 0.00188535057 | BI76: 0.0004985450849 | BJ76: 0.004051647808 | BK76: 0.0026232681 | BL76: 0 | BM76: 8.919316368e-06 | BN76: 0.0006091430105 | BO76: 0.03042259495 | BP76: 0.1750727656 | BQ76: 0.846962618 | BR76: 84.6962618 | BS76: 210 | BT76: 71.97802873 | BU76: 0.7197802873 | BV76: 612.6081769 | BX76: 0.03795062676 | BZ76: 0.4456841144 | CA76: 0.0905175006 | CB76: 0.007814868415 | CE76: =IF(OR(MODE=1,MODE=2,MODE=3), BR76, IF(MODE_ILIM=4,#REF!,#REF!)) -> 84.6962618 | CF76: =IF(OR(MODE=1,MODE=2,MODE=3), BZ76, IF(MODE_ILIM=4,#REF!,#REF!)) -> 0.4456841144 | CG76: =IF(OR(MODE=1,MODE=2,MODE=3), CA76, IF(MODE_ILIM=4,#REF!,#REF!)) -> 0.0905175006 | CH76: =IF(OR(MODE=1,MODE=2,MODE=3), CB76, IF(MODE_ILIM=4,#REF!,#REF!)) -> 0.007814868415 | CI76: =(IF(OR(MODE=1,MODE=2,MODE=3), S76, IF(MODE_ILIM=4,#REF!,#REF!)))/1000 -> 612.6081769 | CJ76: =IF(OR(MODE=1,MODE=2,MODE=3), P76, IF(MODE_ILIM=4,#REF!,#REF!)) -> 148.2548376
H77: 71 | I77: 0.213 | J77: 0.14820725 | K77: 0.2873762945 | L77: 0.1392093752 | M77: 148.2295838 | N77: 148.2295838 | O77: 1 | P77: 148.2295838 | Q77: 1.21521594e-06 | R77: 0.2553288238 | S77: 612789.1772 | T77: 1.631882607e-06 | U77: 0 | V77: 0.00066 | W77: 0.2172128134 | X77: 0.008020839071 | Y77: 0 | Z77: 0.008031145716 | AA77: 0.04257236547 | AB77: 0.001812406302 | AC77: 0.001812406302 | AD77: 0.09533645923 | AE77: 2.726712138e-05 | AF77: 2.726712138e-05 | AG77: 0.1097577923 | AH77: 0.02228653001 | AI77: 0.001838367532 | AJ77: 30 | AK77: 26.78407952 | AL77: 0.1743930591 | AM77: 0.1129493011 | AN77: 0.2891807278 | AO77: 0.3128427293 | AP77: 0.1863681724 | AQ77: 0.02604982177 | AR77: 0.004963592335 | AS77: 0.005734750747 | AT77: 0.001505456763 | AU77: 0.01220379984 | AV77: 0.03845122666 | AW77: 0.03203792404 | AX77: 0.09053477889 | AY77: 0.006801959867 | AZ77: 0.4486306947 | BA77: 0.4585015138 | BB77: 2.556 | BC77: 0.8479013821 | BD77: 0.007849391134 | BE77: 0.008707053783 | BF77: 0.02166156309 | BG77: 0.09592986651 | BH77: 0.001902387748 | BI77: 0.0004994048786 | BJ77: 0.004048364145 | BK77: 0.002660751383 | BL77: 0 | BM77: 9.045316863e-06 | BN77: 0.0006012291896 | BO77: 0.03003308457 | BP77: 0.1739021417 | BQ77: 0.8479013821 | BR77: 84.79013821 | BS77: 213 | BT77: 72.00363264 | BU77: 0.7200363264 | BV77: 612.7891772 | BX77: 0.03746864967 | BZ77: 0.4486306947 | CA77: 0.09053477889 | CB77: 0.008031145716 | CE77: =IF(OR(MODE=1,MODE=2,MODE=3), BR77, IF(MODE_ILIM=4,#REF!,#REF!)) -> 84.79013821 | CF77: =IF(OR(MODE=1,MODE=2,MODE=3), BZ77, IF(MODE_ILIM=4,#REF!,#REF!)) -> 0.4486306947 | CG77: =IF(OR(MODE=1,MODE=2,MODE=3), CA77, IF(MODE_ILIM=4,#REF!,#REF!)) -> 0.09053477889 | CH77: =IF(OR(MODE=1,MODE=2,MODE=3), CB77, IF(MODE_ILIM=4,#REF!,#REF!)) -> 0.008031145716 | CI77: =(IF(OR(MODE=1,MODE=2,MODE=3), S77, IF(MODE_ILIM=4,#REF!,#REF!)))/1000 -> 612.7891772 | CJ77: =IF(OR(MODE=1,MODE=2,MODE=3), P77, IF(MODE_ILIM=4,#REF!,#REF!)) -> 148.2295838
H78: 72 | I78: 0.216 | J78: 0.148182 | K78: 0.2903764007 | L78: 0.1422220007 | M78: 148.20433 | N78: 148.20433 | O78: 1 | P78: 148.20433 | Q78: 1.214734005e-06 | R78: 0.255404251 | S78: 612970.2025 | T78: 1.631400672e-06 | U78: 0 | V78: 0.00066 | W78: 0.220155414 | X78: 0.008239629071 | Y78: 0 | Z78: 0.008250506049 | AA78: 0.04257236547 | AB78: 0.001812406302 | AC78: 0.001812406302 | AD78: 0.09662092946 | AE78: 2.800681203e-05 | AF78: 2.800681203e-05 | AG78: 0.1112611208 | AH78: 0.02290121847 | AI78: 0.001838910608 | AJ78: 30 | AK78: 26.5067518 | AL78: 0.1757685926 | AM78: 0.1129826677 | AN78: 0.2905901709 | AO78: 0.3149141566 | AP78: 0.1889208166 | AQ78: 0.0267683062 | AR78: 0.00496505864 | AS78: 0.005860019655 | AT78: 0.001527601741 | AU78: 0.01235268004 | AV78: 0.03932867513 | AW78: 0.03203792404 | AX78: 0.09055205957 | AY78: 0.006803969248 | AZ78: 0.4515988605 | BA78: 0.4616897797 | BB78: 2.592 | BC78: 0.8488092069 | BD78: 0.007965440954 | BE78: 0.008833901621 | BF78: 0.02138989534 | BG78: 0.09516034434 | BH78: 0.001918996387 | BI78: 0.0005002478482 | BJ78: 0.004045165334 | BK78: 0.002698253479 | BL78: 0 | BM78: 9.171466014e-06 | BN78: 0.0005935135632 | BO78: 0.02965332634 | BP78: 0.1727682567 | BQ78: 0.8488092069 | BR78: 84.88092069 | BS78: 216 | BT78: 72.02619221 | BU78: 0.7202619221 | BV78: 612.9702025 | BX78: 0.03699873788 | BZ78: 0.4515988605 | CA78: 0.09055205957 | CB78: 0.008250506049 | CE78: =IF(OR(MODE=1,MODE=2,MODE=3), BR78, IF(MODE_ILIM=4,#REF!,#REF!)) -> 84.88092069 | CF78: =IF(OR(MODE=1,MODE=2,MODE=3), BZ78, IF(MODE_ILIM=4,#REF!,#REF!)) -> 0.4515988605 | CG78: =IF(OR(MODE=1,MODE=2,MODE=3), CA78, IF(MODE_ILIM=4,#REF!,#REF!)) -> 0.09055205957 | CH78: =IF(OR(MODE=1,MODE=2,MODE=3), CB78, IF(MODE_ILIM=4,#REF!,#REF!)) -> 0.008250506049 | CI78: =(IF(OR(MODE=1,MODE=2,MODE=3), S78, IF(MODE_ILIM=4,#REF!,#REF!)))/1000 -> 612.9702025 | CJ78: =IF(OR(MODE=1,MODE=2,MODE=3), P78, IF(MODE_ILIM=4,#REF!,#REF!)) -> 148.20433
H79: 73 | I79: 0.219 | J79: 0.14815675 | K79: 0.293376507 | L79: 0.1452346261 | M79: 148.1790761 | N79: 148.1790761 | O79: 1 | P79: 148.1790761 | Q79: 1.214252287e-06 | R79: 0.2554796887 | S79: 613151.2529 | T79: 1.630918954e-06 | U79: 0 | V79: 0.00066 | W79: 0.2230995435 | X79: 0.008461479071 | Y79: 0 | Z79: 0.008472950062 | AA79: 0.04257236547 | AB79: 0.001812406302 | AC79: 0.001812406302 | AD79: 0.09790651688 | AE79: 2.875705814e-05 | AF79: 2.875705814e-05 | AG79: 0.1127656612 | AH79: 0.02352477454 | AI79: 0.001839453759 | AJ79: 30 | AK79: 26.23510825 | AL79: 0.1771449153 | AM79: 0.1130160389 | AN79: 0.292000408 | AO79: 0.3169963523 | AP79: 0.1914755185 | AQ79: 0.02749715563 | AR79: 0.004966525148 | AS79: 0.005985361796 | AT79: 0.001549775052 | AU79: 0.012501662 | AV79: 0.04021698022 | AW79: 0.03203792404 | AX79: 0.09056934264 | AY79: 0.006805978907 | AZ79: 0.4545886541 | BA79: 0.4649027675 | BB79: 2.628 | BC79: 0.8496872348 | BD79: 0.008081710353 | BE79: 0.008960940678 | BF79: 0.02112494392 | BG79: 0.09440982467 | BH79: 0.001935192357 | BI79: 0.0005010746112 | BJ79: 0.004042048178 | BK79: 0.002735772738 | BL79: 0 | BM79: 9.297756931e-06 | BN79: 0.0005859887744 | BO79: 0.02928295826 | BP79: 0.1716697523 | BQ79: 0.8496872348 | BR79: 84.96872348 | BS79: 219 | BT79: 72.04596387 | BU79: 0.7204596387 | BV79: 613.1512529 | BX79: 0.03654044353 | BZ79: 0.4545886541 | CA79: 0.09056934264 | CB79: 0.008472950062 | CE79: =IF(OR(MODE=1,MODE=2,MODE=3), BR79, IF(MODE_ILIM=4,#REF!,#REF!)) -> 84.96872348 | CF79: =IF(OR(MODE=1,MODE=2,MODE=3), BZ79, IF(MODE_ILIM=4,#REF!,#REF!)) -> 0.4545886541 | CG79: =IF(OR(MODE=1,MODE=2,MODE=3), CA79, IF(MODE_ILIM=4,#REF!,#REF!)) -> 0.09056934264 | CH79: =IF(OR(MODE=1,MODE=2,MODE=3), CB79, IF(MODE_ILIM=4,#REF!,#REF!)) -> 0.008472950062 | CI79: =(IF(OR(MODE=1,MODE=2,MODE=3), S79, IF(MODE_ILIM=4,#REF!,#REF!)))/1000 -> 613.1512529 | CJ79: =IF(OR(MODE=1,MODE=2,MODE=3), P79, IF(MODE_ILIM=4,#REF!,#REF!)) -> 148.1790761
H80: 74 | I80: 0.222 | J80: 0.1481315 | K80: 0.2963766133 | L80: 0.1482472516 | M80: 148.1538223 | N80: 148.1538223 | O80: 1 | P80: 148.1538223 | Q80: 1.213770788e-06 | R80: 0.2555551368 | S80: 613332.3282 | T80: 1.630437455e-06 | U80: 0 | V80: 0.00066 | W80: 0.2260451422 | X80: 0.008686389071 | Y80: 0 | Z80: 0.00869847841 | AA80: 0.04257236547 | AB80: 0.001812406302 | AC80: 0.001812406302 | AD80: 0.09919318796 | AE80: 2.951786562e-05 | AF80: 2.951786562e-05 | AG80: 0.1142713836 | AH80: 0.02415720584 | AI80: 0.001839996985 | AJ80: 30 | AK80: 25.96897587 | AL80: 0.1785220274 | AM80: 0.1130494147 | AN80: 0.2934114392 | AO80: 0.3190893398 | AP80: 0.1940322274 | AQ80: 0.02823637894 | AR80: 0.004967991859 | AS80: 0.006110777186 | AT80: 0.001571976711 | AU80: 0.01265074575 | AV80: 0.04111616115 | AW80: 0.03203792404 | AX80: 0.09058662809 | AY80: 0.006807988843 | AZ80: 0.4576001179 | BA80: 0.4681405204 | BB80: 2.664 | BC80: 0.8505365524 | BD80: 0.008198195594 | BE80: 0.00908816677 | BF80: 0.02086646256 | BG80: 0.09367761033 | BH80: 0.001950990751 | BI80: 0.0005018857552 | BJ80: 0.00403900964 | BK80: 0.002773307588 | BL80: 0 | BM80: 9.424183054e-06 | BN80: 0.0005786478257 | BO80: 0.02892163602 | BP80: 0.170605337 | BQ80: 0.8505365524 | BR80: 85.05365524 | BS80: 222 | BT80: 72.0631719 | BU80: 0.720631719 | BV80: 613.3323282 | BX80: 0.03609334064 | BZ80: 0.4576001179 | CA80: 0.09058662809 | CB80: 0.00869847841 | CE80: =IF(OR(MODE=1,MODE=2,MODE=3), BR80, IF(MODE_ILIM=4,#REF!,#REF!)) -> 85.05365524 | CF80: =IF(OR(MODE=1,MODE=2,MODE=3), BZ80, IF(MODE_ILIM=4,#REF!,#REF!)) -> 0.4576001179 | CG80: =IF(OR(MODE=1,MODE=2,MODE=3), CA80, IF(MODE_ILIM=4,#REF!,#REF!)) -> 0.09058662809 | CH80: =IF(OR(MODE=1,MODE=2,MODE=3), CB80, IF(MODE_ILIM=4,#REF!,#REF!)) -> 0.00869847841 | CI80: =(IF(OR(MODE=1,MODE=2,MODE=3), S80, IF(MODE_ILIM=4,#REF!,#REF!)))/1000 -> 613.3323282 | CJ80: =IF(OR(MODE=1,MODE=2,MODE=3), P80, IF(MODE_ILIM=4,#REF!,#REF!)) -> 148.1538223
H81: 75 | I81: 0.225 | J81: 0.14810625 | K81: 0.2993767195 | L81: 0.151259877 | M81: 148.1285685 | N81: 148.1285685 | O81: 1 | P81: 148.1285685 | Q81: 1.213289506e-06 | R81: 0.2556305953 | S81: 613513.4286 | T81: 1.629956173e-06 | U81: 0 | V81: 0.00066 | W81: 0.2289921534 | X81: 0.008914359071 | Y81: 0 | Z81: 0.00892709176 | AA81: 0.04257236547 | AB81: 0.001812406302 | AC81: 0.001812406302 | AD81: 0.1004809109 | AE81: 3.028924035e-05 | AF81: 3.028924035e-05 | AG81: 0.1157782596 | AH81: 0.02479851997 | AI81: 0.001840540286 | AJ81: 30 | AK81: 25.70818863 | AL81: 0.1798999292 | AM81: 0.1130827952 | AN81: 0.2948232646 | AO81: 0.3211931424 | AP81: 0.1965908951 | AQ81: 0.02898598504 | AR81: 0.004969458772 | AS81: 0.00623626584 | AT81: 0.001594206734 | AU81: 0.01279993135 | AV81: 0.04202623733 | AW81: 0.03203792404 | AX81: 0.09060391594 | AY81: 0.006809999058 | AZ81: 0.4606332947 | BA81: 0.471403082 | BB81: 2.7 | BC81: 0.8513581939 | BD81: 0.008314893151 | BE81: 0.009215575955 | BF81: 0.02061421688 | BG81: 0.09296303781 | BH81: 0.001966405934 | BI81: 0.0005026818391 | BJ81: 0.004036046827 | BK81: 0.002810856533 | BL81: 0 | BM81: 9.550738132e-06 | BN81: 0.0005714840578 | BO81: 0.02856903194 | BP81: 0.1695737817 | BQ81: 0.8513581939 | BR81: 85.13581939 | BS81: 225 | BT81: 72.07801075 | BU81: 0.7207801075 | BV81: 613.5134286 | BX81: 0.0356570238 | BZ81: 0.4606332947 | CA81: 0.09060391594 | CB81: 0.00892709176 | CE81: =IF(OR(MODE=1,MODE=2,MODE=3), BR81, IF(MODE_ILIM=4,#REF!,#REF!)) -> 85.13581939 | CF81: =IF(OR(MODE=1,MODE=2,MODE=3), BZ81, IF(MODE_ILIM=4,#REF!,#REF!)) -> 0.4606332947 | CG81: =IF(OR(MODE=1,MODE=2,MODE=3), CA81, IF(MODE_ILIM=4,#REF!,#REF!)) -> 0.09060391594 | CH81: =IF(OR(MODE=1,MODE=2,MODE=3), CB81, IF(MODE_ILIM=4,#REF!,#REF!)) -> 0.00892709176 | CI81: =(IF(OR(MODE=1,MODE=2,MODE=3), S81, IF(MODE_ILIM=4,#REF!,#REF!)))/1000 -> 613.5134286 | CJ81: =IF(OR(MODE=1,MODE=2,MODE=3), P81, IF(MODE_ILIM=4,#REF!,#REF!)) -> 148.1285685
H82: 76 | I82: 0.228 | J82: 0.148081 | K82: 0.3023768258 | L82: 0.1542725025 | M82: 148.1033147 | N82: 148.1033147 | O82: 1 | P82: 148.1033147 | Q82: 1.212808442e-06 | R82: 0.2557060642 | S82: 613694.554 | T82: 1.629475108e-06 | U82: 0 | V82: 0.00066 | W82: 0.2319405232 | X82: 0.009145389071 | Y82: 0 | Z82: 0.009158790784 | AA82: 0.04257236547 | AB82: 0.001812406302 | AC82: 0.001812406302 | AD82: 0.1017696553 | AE82: 3.107118824e-05 | AF82: 3.107118824e-05 | AG82: 0.1172862623 | AH82: 0.02544872455 | AI82: 0.001841083662 | AJ82: 30 | AK82: 25.4525871 | AL82: 0.1812786206 | AM82: 0.1131161802 | AN82: 0.2962358845 | AO82: 0.3233077836 | AP82: 0.1991514761 | AQ82: 0.02974598282 | AR82: 0.004970925888 | AS82: 0.006361827773 | AT82: 0.001616465138 | AU82: 0.0129492188 | AV82: 0.0429472283 | AW82: 0.03203792404 | AX82: 0.09062120617 | AY82: 0.00681200955 | AZ82: 0.4636882277 | BA82: 0.4746904959 | BB82: 2.736 | BC82: 0.8521531438 | BD82: 0.008431799699 | BE82: 0.009343164513 | BF82: 0.0203679837 | BG82: 0.09226547525 | BH82: 0.001981451585 | BI82: 0.0005034633953 | BJ82: 0.004033156985 | BK82: 0.002848418146 | BL82: 0 | BM82: 9.677416207e-06 | BN82: 0.0005644911287 | BO82: 0.02822483397 | BP82: 0.1685739158 | BQ82: 0.8521531438 | BR82: 85.21531438 | BS82: 228 | BT82: 72.09064698 | BU82: 0.7209064698 | BV82: 613.694554 | BX82: 0.03523110694 | BZ82: 0.4636882277 | CA82: 0.09062120617 | CB82: 0.009158790784 | CE82: =IF(OR(MODE=1,MODE=2,MODE=3), BR82, IF(MODE_ILIM=4,#REF!,#REF!)) -> 85.21531438 | CF82: =IF(OR(MODE=1,MODE=2,MODE=3), BZ82, IF(MODE_ILIM=4,#REF!,#REF!)) -> 0.4636882277 | CG82: =IF(OR(MODE=1,MODE=2,MODE=3), CA82, IF(MODE_ILIM=4,#REF!,#REF!)) -> 0.09062120617 | CH82: =IF(OR(MODE=1,MODE=2,MODE=3), CB82, IF(MODE_ILIM=4,#REF!,#REF!)) -> 0.009158790784 | CI82: =(IF(OR(MODE=1,MODE=2,MODE=3), S82, IF(MODE_ILIM=4,#REF!,#REF!)))/1000 -> 613.694554 | CJ82: =IF(OR(MODE=1,MODE=2,MODE=3), P82, IF(MODE_ILIM=4,#REF!,#REF!)) -> 148.1033147
H83: 77 | I83: 0.231 | J83: 0.14805575 | K83: 0.3053769321 | L83: 0.1572851279 | M83: 148.0780609 | N83: 148.0780609 | O83: 1 | P83: 148.0780609 | Q83: 1.212327595e-06 | R83: 0.2557815435 | S83: 613875.7045 | T83: 1.628994262e-06 | U83: 0 | V83: 0.00066 | W83: 0.2348902005 | X83: 0.009379479071 | Y83: 0 | Z83: 0.009393576168 | AA83: 0.04257236547 | AB83: 0.001812406302 | AC83: 0.001812406302 | AD83: 0.1030593926 | AE83: 3.186371519e-05 | AF83: 3.186371519e-05 | AG83: 0.1187953662 | AH83: 0.0261078272 | AI83: 0.001841627114 | AJ83: 30 | AK83: 25.20201813 | AL83: 0.182658102 | AM83: 0.1131495699 | AN83: 0.297649299 | AO83: 0.3254332873 | AP83: 0.2017139268 | AQ83: 0.0305163812 | AR83: 0.004972393207 | AS83: 0.006487463 | AT83: 0.00163875194 | AU83: 0.01309860815 | AV83: 0.04387915378 | AW83: 0.03203792404 | AX83: 0.09063849879 | AY83: 0.00681402032 | AZ83: 0.4667649602 | BA83: 0.4780028064 | BB83: 2.772 | BC83: 0.8529223404 | BD83: 0.0085489121 | BE83: 0.009470928938 | BF83: 0.02012755033 | BG83: 0.0915843206 | BH83: 0.001996140738 | BI83: 0.0005042309307 | BJ83: 0.004030337488 | BK83: 0.002885991068 | BL83: 0 | BM83: 9.804211592e-06 | BN83: 0.000557662996 | BO83: 0.02788874478 | BP83: 0.1676046242 | BQ83: 0.8529223404 | BR83: 85.29223404 | BS83: 231 | BT83: 72.10122091 | BU83: 0.7210122091 | BV83: 613.8757045 | BX83: 0.0348152222 | BZ83: 0.4667649602 | CA83: 0.09063849879 | CB83: 0.009393576168 | CE83: =IF(OR(MODE=1,MODE=2,MODE=3), BR83, IF(MODE_ILIM=4,#REF!,#REF!)) -> 85.29223404 | CF83: =IF(OR(MODE=1,MODE=2,MODE=3), BZ83, IF(MODE_ILIM=4,#REF!,#REF!)) -> 0.4667649602 | CG83: =IF(OR(MODE=1,MODE=2,MODE=3), CA83, IF(MODE_ILIM=4,#REF!,#REF!)) -> 0.09063849879 | CH83: =IF(OR(MODE=1,MODE=2,MODE=3), CB83, IF(MODE_ILIM=4,#REF!,#REF!)) -> 0.009393576168 | CI83: =(IF(OR(MODE=1,MODE=2,MODE=3), S83, IF(MODE_ILIM=4,#REF!,#REF!)))/1000 -> 613.8757045 | CJ83: =IF(OR(MODE=1,MODE=2,MODE=3), P83, IF(MODE_ILIM=4,#REF!,#REF!)) -> 148.0780609
H84: 78 | I84: 0.234 | J84: 0.1480305 | K84: 0.3083770383 | L84: 0.1602977534 | M84: 148.0528071 | N84: 148.0528071 | O84: 1 | P84: 148.0528071 | Q84: 1.211846965e-06 | R84: 0.2558570333 | S84: 614056.88 | T84: 1.628513632e-06 | U84: 0 | V84: 0.00066 | W84: 0.2378411367 | X84: 0.009616629071 | Y84: 0 | Z84: 0.009631448602 | AA84: 0.04257236547 | AB84: 0.001812406302 | AC84: 0.001812406302 | AD84: 0.1043500952 | AE84: 3.266682709e-05 | AF84: 3.266682709e-05 | AG84: 0.1203055469 | AH84: 0.02677583554 | AI84: 0.00184217064 | AJ84: 30 | AK84: 24.95633454 | AL84: 0.1840383735 | AM84: 0.1131829641 | AN84: 0.2990635082 | AO84: 0.3275696771 | AP84: 0.204278206 | AQ84: 0.03129718908 | AR84: 0.004973860728 | AS84: 0.006613171537 | AT84: 0.001661067155 | AU84: 0.01324809942 | AV84: 0.04482203361 | AW84: 0.03203792404 | AX84: 0.09065579381 | AY84: 0.006816031368 | AZ84: 0.4698635359 | BA84: 0.4813400576 | BB84: 2.808 | BC84: 0.8536666781 | BD84: 0.008666227393 | BE84: 0.009598865923 | BF84: 0.01989271404 | BG84: 0.09091899985 | BH84: 0.002010485818 | BI84: 0.000504984929 | BJ84: 0.004027585834 | BK84: 0.002923574001 | BL84: 0 | BM84: 9.931118861e-06 | BN84: 0.0005509938986 | BO84: 0.02756048089 | BP84: 0.1666648437 | BQ84: 0.8536666781 | BR84: 85.36666781 | BS84: 234 | BT84: 72.10984794 | BU84: 0.7210984794 | BV84: 614.05688 | BX84: 0.03440901887 | BZ84: 0.4698635359 | CA84: 0.09065579381 | CB84: 0.009631448602 | CE84: =IF(OR(MODE=1,MODE=2,MODE=3), BR84, IF(MODE_ILIM=4,#REF!,#REF!)) -> 85.36666781 | CF84: =IF(OR(MODE=1,MODE=2,MODE=3), BZ84, IF(MODE_ILIM=4,#REF!,#REF!)) -> 0.4698635359 | CG84: =IF(OR(MODE=1,MODE=2,MODE=3), CA84, IF(MODE_ILIM=4,#REF!,#REF!)) -> 0.09065579381 | CH84: =IF(OR(MODE=1,MODE=2,MODE=3), CB84, IF(MODE_ILIM=4,#REF!,#REF!)) -> 0.009631448602 | CI84: =(IF(OR(MODE=1,MODE=2,MODE=3), S84, IF(MODE_ILIM=4,#REF!,#REF!)))/1000 -> 614.05688 | CJ84: =IF(OR(MODE=1,MODE=2,MODE=3), P84, IF(MODE_ILIM=4,#REF!,#REF!)) -> 148.0528071
H85: 79 | I85: 0.237 | J85: 0.14800525 | K85: 0.3113771446 | L85: 0.1633103788 | M85: 148.0275533 | N85: 148.0275533 | O85: 1 | P85: 148.0275533 | Q85: 1.211366553e-06 | R85: 0.2559325336 | S85: 614238.0806 | T85: 1.62803322e-06 | U85: 0 | V85: 0.00066 | W85: 0.2407932854 | X85: 0.009856839071 | Y85: 0 | Z85: 0.009872408791 | AA85: 0.04257236547 | AB85: 0.001812406302 | AC85: 0.001812406302 | AD85: 0.1056417371 | AE85: 3.348052983e-05 | AF85: 3.348052983e-05 | AG85: 0.1218167813 | AH85: 0.0274527572 | AI85: 0.001842714242 | AJ85: 30 | AK85: 24.71539483 | AL85: 0.1854194351 | AM85: 0.113216363 | AN85: 0.3004785124 | AO85: 0.3297169772 | AP85: 0.2068442744 | AQ85: 0.03208841537 | AR85: 0.004975328453 | AS85: 0.006738953399 | AT85: 0.001683410801 | AU85: 0.01339769265 | AV85: 0.04577588783 | AW85: 0.03203792404 | AX85: 0.09067309121 | AY85: 0.006818042694 | AZ85: 0.4729839989 | BA85: 0.4847022945 | BB85: 2.844 | BC85: 0.8543870098 | BD85: 0.008783742784 | BE85: 0.009726972348 | BF85: 0.01966328139 | BG85: 0.09026896544 | BH85: 0.002024498679 | BI85: 0.0005057258511 | BJ85: 0.004024899636 | BK85: 0.002961165703 | BL85: 0 | BM85: 1.005813283e-05 | BN85: 0.0005444783407 | BO85: 0.0272397719 | BP85: 0.1657535602 | BQ85: 0.8543870098 | BR85: 85.43870098 | BS85: 237 | BT85: 72.11661955 | BU85: 0.7211661955 | BV85: 614.2380806 | BX85: 0.0340121624 | BZ85: 0.4729839989 | CA85: 0.09067309121 | CB85: 0.009872408791 | CE85: =IF(OR(MODE=1,MODE=2,MODE=3), BR85, IF(MODE_ILIM=4,#REF!,#REF!)) -> 85.43870098 | CF85: =IF(OR(MODE=1,MODE=2,MODE=3), BZ85, IF(MODE_ILIM=4,#REF!,#REF!)) -> 0.4729839989 | CG85: =IF(OR(MODE=1,MODE=2,MODE=3), CA85, IF(MODE_ILIM=4,#REF!,#REF!)) -> 0.09067309121 | CH85: =IF(OR(MODE=1,MODE=2,MODE=3), CB85, IF(MODE_ILIM=4,#REF!,#REF!)) -> 0.009872408791 | CI85: =(IF(OR(MODE=1,MODE=2,MODE=3), S85, IF(MODE_ILIM=4,#REF!,#REF!)))/1000 -> 614.2380806 | CJ85: =IF(OR(MODE=1,MODE=2,MODE=3), P85, IF(MODE_ILIM=4,#REF!,#REF!)) -> 148.0275533
H86: 80 | I86: 0.24 | J86: 0.14798 | K86: 0.3143772508 | L86: 0.1663230043 | M86: 148.0022995 | N86: 148.0022995 | O86: 1 | P86: 148.0022995 | Q86: 1.210886358e-06 | R86: 0.2560080442 | S86: 614419.3062 | T86: 1.627553024e-06 | U86: 0 | V86: 0.00066 | W86: 0.2437466026 | X86: 0.01010010907 | Y86: 0 | Z86: 0.01011645744 | AA86: 0.04257236547 | AB86: 0.001812406302 | AC86: 0.001812406302 | AD86: 0.1069342934 | AE86: 3.430482931e-05 | AF86: 3.430482931e-05 | AG86: 0.1233290474 | AH86: 0.02813859979 | AI86: 0.001843257919 | AJ86: 30 | AK86: 24.47906291 | AL86: 0.1868012872 | AM86: 0.1132497665 | AN86: 0.3018943117 | AO86: 0.3318752115 | AP86: 0.2094120945 | AQ86: 0.03289006899 | AR86: 0.00497679638 | AS86: 0.006864808601 | AT86: 0.001705782893 | AU86: 0.01354738787 | AV86: 0.0467407366 | AW86: 0.03203792404 | AX86: 0.09069039101 | AY86: 0.006820054299 | AZ86: 0.4761263934 | BA86: 0.488089562 | BB86: 2.88 | BC86: 0.8550841499 | BD86: 0.008901455636 | BE86: 0.00985524527 | BF86: 0.01943906777 | BG86: 0.08963369475 | BH86: 0.002038190634 | BI86: 0.0005064541372 | BJ86: 0.004022276613 | BK86: 0.002998764993 | BL86: 0 | BM86: 1.018524854e-05 | BN86: 0.0005381110771 | BO86: 0.02692635969 | BP86: 0.1648698058 | BQ86: 0.8550841499 | BR86: 85.50841499 | BS86: 240 | BT86: 72.12160404 | BU86: 0.7212160404 | BV86: 614.4193062 | BX86: 0.03362433345 | BZ86: 0.4761263934 | CA86: 0.09069039101 | CB86: 0.01011645744 | CE86: =IF(OR(MODE=1,MODE=2,MODE=3), BR86, IF(MODE_ILIM=4,#REF!,#REF!)) -> 85.50841499 | CF86: =IF(OR(MODE=1,MODE=2,MODE=3), BZ86, IF(MODE_ILIM=4,#REF!,#REF!)) -> 0.4761263934 | CG86: =IF(OR(MODE=1,MODE=2,MODE=3), CA86, IF(MODE_ILIM=4,#REF!,#REF!)) -> 0.09069039101 | CH86: =IF(OR(MODE=1,MODE=2,MODE=3), CB86, IF(MODE_ILIM=4,#REF!,#REF!)) -> 0.01011645744 | CI86: =(IF(OR(MODE=1,MODE=2,MODE=3), S86, IF(MODE_ILIM=4,#REF!,#REF!)))/1000 -> 614.4193062 | CJ86: =IF(OR(MODE=1,MODE=2,MODE=3), P86, IF(MODE_ILIM=4,#REF!,#REF!)) -> 148.0022995
H87: 81 | I87: 0.243 | J87: 0.14795475 | K87: 0.3173773571 | L87: 0.1693356297 | M87: 147.9770457 | N87: 147.9770457 | O87: 1 | P87: 147.9770457 | Q87: 1.210406379e-06 | R87: 0.2560835654 | S87: 614600.5569 | T87: 1.627073046e-06 | U87: 0 | V87: 0.00066 | W87: 0.2467010464 | X87: 0.01034643907 | Y87: 0 | Z87: 0.01036359528 | AA87: 0.04257236547 | AB87: 0.001812406302 | AC87: 0.001812406302 | AD87: 0.1082277405 | AE87: 3.513973141e-05 | AF87: 3.513973141e-05 | AG87: 0.1248423242 | AH87: 0.02883337095 | AI87: 0.001843801671 | AJ87: 30 | AK87: 24.24720786 | AL87: 0.1881839299 | AM87: 0.1132831746 | AN87: 0.3033109062 | AO87: 0.3340444044 | AP87: 0.2119816308 | AQ87: 0.03370215884 | AR87: 0.00497826451 | AS87: 0.006990737158 | AT87: 0.001728183448 | AU87: 0.01369718512 | AV87: 0.04771660027 | AW87: 0.03203792404 | AX87: 0.0907076932 | AY87: 0.006822066181 | AZ87: 0.479290764 | BA87: 0.4915019053 | BB87: 2.916 | BC87: 0.8557588759 | BD87: 0.009019363459 | BE87: 0.009983681916 | BF87: 0.01921989691 | BG87: 0.08901268866 | BH87: 0.002051572487 | BI87: 0.0005071702074 | BJ87: 0.004019714588 | BK87: 0.003036370737 | BL87: 0 | BM87: 1.031246127e-05 | BN87: 0.0005318870987 | BO87: 0.02661999779 | BP87: 0.1640126563 | BQ87: 0.8557588759 | BR87: 85.57588759 | BS87: 243 | BT87: 72.12484688 | BU87: 0.7212484688 | BV87: 614.6005569 | BX87: 0.03324522709 | BZ87: 0.479290764 | CA87: 0.0907076932 | CB87: 0.01036359528 | CE87: =IF(OR(MODE=1,MODE=2,MODE=3), BR87, IF(MODE_ILIM=4,#REF!,#REF!)) -> 85.57588759 | CF87: =IF(OR(MODE=1,MODE=2,MODE=3), BZ87, IF(MODE_ILIM=4,#REF!,#REF!)) -> 0.479290764 | CG87: =IF(OR(MODE=1,MODE=2,MODE=3), CA87, IF(MODE_ILIM=4,#REF!,#REF!)) -> 0.0907076932 | CH87: =IF(OR(MODE=1,MODE=2,MODE=3), CB87, IF(MODE_ILIM=4,#REF!,#REF!)) -> 0.01036359528 | CI87: =(IF(OR(MODE=1,MODE=2,MODE=3), S87, IF(MODE_ILIM=4,#REF!,#REF!)))/1000 -> 614.6005569 | CJ87: =IF(OR(MODE=1,MODE=2,MODE=3), P87, IF(MODE_ILIM=4,#REF!,#REF!)) -> 147.9770457
F88: Eff (%) | G88: Iout (mA) | H88: 82 | I88: 0.246 | J88: 0.1479295 | K88: 0.3203774634 | L88: 0.1723482552 | M88: 147.9517919 | N88: 147.9517919 | O88: 1 | P88: 147.9517919 | Q88: 1.209926617e-06 | R88: 0.2561590969 | S88: 614781.8326 | T88: 1.626593284e-06 | U88: 0 | V88: 0.00066 | W88: 0.2496565767 | X88: 0.01059582907 | Y88: 0 | Z88: 0.01061382303 | AA88: 0.04257236547 | AB88: 0.001812406302 | AC88: 0.001812406302 | AD88: 0.1095220556 | AE88: 3.598524202e-05 | AF88: 3.598524202e-05 | AG88: 0.1263565917 | AH88: 0.0295370783 | AI88: 0.001844345498 | AJ88: 30 | AK88: 24.01970366 | AL88: 0.1895673633 | AM88: 0.1133165874 | AN88: 0.3047282962 | AO88: 0.3362245803 | AP88: 0.2145528493 | AQ88: 0.03452469384 | AR88: 0.004979732844 | AS88: 0.007116739085 | AT88: 0.001750612482 | AU88: 0.01384708441 | AV88: 0.04870349933 | AW88: 0.03203792404 | AX88: 0.09072499778 | AY88: 0.006824078342 | AZ88: 0.4824771557 | BA88: 0.4949393703 | BB88: 2.952 | BC88: 0.8564119304 | BD88: 0.009137463906 | BE88: 0.01011227967 | BF88: 0.01900560034 | BG88: 0.08840547031 | BH88: 0.002064654559 | BI88: 0.0005078744632 | BJ88: 0.004017211481 | BK88: 0.003073981853 | BL88: 0 | BM88: 1.043976646e-05 | BN88: 0.0005258016192 | BO88: 0.02632045071 | BP88: 0.1631812287 | BQ88: 0.8564119304 | BR88: 85.64119304 | BS88: 246 | BT88: 72.12637078 | BU88: 0.7212637078 | BV88: 614.7818326 | BX88: 0.03287455195 | BZ88: 0.4824771557 | CA88: 0.09072499778 | CB88: 0.01061382303 | CE88: =IF(OR(MODE=1,MODE=2,MODE=3), BR88, IF(MODE_ILIM=4,#REF!,#REF!)) -> 85.64119304 | CF88: =IF(OR(MODE=1,MODE=2,MODE=3), BZ88, IF(MODE_ILIM=4,#REF!,#REF!)) -> 0.4824771557 | CG88: =IF(OR(MODE=1,MODE=2,MODE=3), CA88, IF(MODE_ILIM=4,#REF!,#REF!)) -> 0.09072499778 | CH88: =IF(OR(MODE=1,MODE=2,MODE=3), CB88, IF(MODE_ILIM=4,#REF!,#REF!)) -> 0.01061382303 | CI88: =(IF(OR(MODE=1,MODE=2,MODE=3), S88, IF(MODE_ILIM=4,#REF!,#REF!)))/1000 -> 614.7818326 | CJ88: =IF(OR(MODE=1,MODE=2,MODE=3), P88, IF(MODE_ILIM=4,#REF!,#REF!)) -> 147.9517919
F89: =BT51 -> 68.42786701 | G89: =I56*1000 -> 150 | H89: 83 | I89: 0.249 | J89: 0.14790425 | K89: 0.3233775696 | L89: 0.1753608806 | M89: 147.9265381 | N89: 147.9265381 | O89: 1 | P89: 147.9265381 | Q89: 1.209447072e-06 | R89: 0.2562346389 | S89: 614963.1334 | T89: 1.626113739e-06 | U89: 0 | V89: 0.00066 | W89: 0.2526131554 | X89: 0.01084827907 | Y89: 0 | Z89: 0.01086714144 | AA89: 0.04257236547 | AB89: 0.001812406302 | AC89: 0.001812406302 | AD89: 0.1108172174 | AE89: 3.684136702e-05 | AF89: 3.684136702e-05 | AG89: 0.1278718308 | AH89: 0.03024972947 | AI89: 0.0018448894 | AJ89: 30 | AK89: 23.79642899 | AL89: 0.1909515876 | AM89: 0.1133500047 | AN89: 0.3061464817 | AO89: 0.3384157637 | AP89: 0.2171257176 | AQ89: 0.03535768292 | AR89: 0.00498120138 | AS89: 0.007242814398 | AT89: 0.001773070012 | AU89: 0.01399708579 | AV89: 0.04970145443 | AW89: 0.03203792404 | AX89: 0.09074230475 | AY89: 0.006826090781 | AZ89: 0.4856856136 | BA89: 0.4984020027 | BB89: 2.988 | BC89: 0.8570440235 | BD89: 0.009255754761 | BE89: 0.01024103606 | BF89: 0.01879601705 | BG89: 0.08781158383 | BH89: 0.002077446718 | BI89: 0.0005085672882 | BJ89: 0.004014765302 | BK89: 0.003111597304 | BL89: 0 | BM89: 1.056715978e-05 | BN89: 0.0005198500634 | BO89: 0.0260274933 | BP89: 0.1623746788 | BQ89: 0.8570440235 | BR89: 85.70440235 | BS89: 249 | BT89: 72.1261755 | BU89: 0.721261755 | BV89: 614.9631334 | BX89: 0.0325120295 | BZ89: 0.4856856136 | CA89: 0.09074230475 | CB89: 0.01086714144 | CE89: =IF(OR(MODE=1,MODE=2,MODE=3), BR89, IF(MODE_ILIM=4,#REF!,#REF!)) -> 85.70440235 | CF89: =IF(OR(MODE=1,MODE=2,MODE=3), BZ89, IF(MODE_ILIM=4,#REF!,#REF!)) -> 0.4856856136 | CG89: =IF(OR(MODE=1,MODE=2,MODE=3), CA89, IF(MODE_ILIM=4,#REF!,#REF!)) -> 0.09074230475 | CH89: =IF(OR(MODE=1,MODE=2,MODE=3), CB89, IF(MODE_ILIM=4,#REF!,#REF!)) -> 0.01086714144 | CI89: =(IF(OR(MODE=1,MODE=2,MODE=3), S89, IF(MODE_ILIM=4,#REF!,#REF!)))/1000 -> 614.9631334 | CJ89: =IF(OR(MODE=1,MODE=2,MODE=3), P89, IF(MODE_ILIM=4,#REF!,#REF!)) -> 147.9265381
F90: =BT81 -> 72.07801075 | G90: =I81*1000 -> 225 | H90: 84 | I90: 0.252 | J90: 0.147879 | K90: 0.3263776759 | L90: 0.1783735061 | M90: 147.9012843 | N90: 147.9012843 | O90: 1 | P90: 147.9012843 | Q90: 1.208967743e-06 | R90: 0.2563101914 | S90: 615144.4593 | T90: 1.62563441e-06 | U90: 0 | V90: 0.00066 | W90: 0.2555707462 | X90: 0.01110378907 | Y90: 0 | Z90: 0.01112355124 | AA90: 0.04257236547 | AB90: 0.001812406302 | AC90: 0.001812406302 | AD90: 0.1121132051 | AE90: 3.77081123e-05 | AF90: 3.77081123e-05 | AG90: 0.1293880234 | AH90: 0.03097133211 | AI90: 0.001845433378 | AJ90: 30 | AK90: 23.57726697 | AL90: 0.1923366029 | AM90: 0.1133834267 | AN90: 0.307565463 | AO90: 0.3406179793 | AP90: 0.2197002048 | AQ90: 0.036201135 | AR90: 0.00498267012 | AS90: 0.007368963112 | AT90: 0.001795556054 | AU90: 0.01414718929 | AV90: 0.0507104864 | AW90: 0.03203792404 | AX90: 0.09075961412 | AY90: 0.006828103498 | AZ90: 0.4889161833 | BA90: 0.501889849 | BB90: 3.024 | BC90: 0.8576558343 | BD90: 0.009374233934 | BE90: 0.01036994877 | BF90: 0.01859099302 | BG90: 0.08723059319 | BH90: 0.002089958401 | BI90: 0.0005092490495 | BJ90: 0.00401237415 | BK90: 0.003149216098 | BL90: 0 | BM90: 1.069463707e-05 | BN90: 0.0005140280552 | BO90: 0.02574091024 | BP90: 0.1615921995 | BQ90: 0.8576558343 | BR90: 85.76558343 | BS90: 252 | BT90: 72.12423724 | BU90: 0.7212423724 | BV90: 615.1444593 | BX90: 0.03215739333 | BZ90: 0.4889161833 | CA90: 0.09075961412 | CB90: 0.01112355124 | CE90: =IF(OR(MODE=1,MODE=2,MODE=3), BR90, IF(MODE_ILIM=4,#REF!,#REF!)) -> 85.76558343 | CF90: =IF(OR(MODE=1,MODE=2,MODE=3), BZ90, IF(MODE_ILIM=4,#REF!,#REF!)) -> 0.4889161833 | CG90: =IF(OR(MODE=1,MODE=2,MODE=3), CA90, IF(MODE_ILIM=4,#REF!,#REF!)) -> 0.09075961412 | CH90: =IF(OR(MODE=1,MODE=2,MODE=3), CB90, IF(MODE_ILIM=4,#REF!,#REF!)) -> 0.01112355124 | CI90: =(IF(OR(MODE=1,MODE=2,MODE=3), S90, IF(MODE_ILIM=4,#REF!,#REF!)))/1000 -> 615.1444593 | CJ90: =IF(OR(MODE=1,MODE=2,MODE=3), P90, IF(MODE_ILIM=4,#REF!,#REF!)) -> 147.9012843
F91: =BT106 -> 71.0498949 | G91: =I106*1000 -> 300 | H91: 85 | I91: 0.255 | J91: 0.14785375 | K91: 0.3293777821 | L91: 0.1813861315 | M91: 147.8760305 | N91: 147.8760305 | O91: 1 | P91: 147.8760305 | Q91: 1.208488631e-06 | R91: 0.2563857543 | S91: 615325.8102 | T91: 1.625155297e-06 | U91: 0 | V91: 0.00066 | W91: 0.2585293142 | X91: 0.01136235907 | Y91: 0 | Z91: 0.01138305321 | AA91: 0.04257236547 | AB91: 0.001812406302 | AC91: 0.001812406302 | AD91: 0.1134099992 | AE91: 3.858548374e-05 | AF91: 3.858548374e-05 | AG91: 0.130905152 | AH91: 0.03170189383 | AI91: 0.001845977431 | AJ91: 30 | AK91: 23.36210502 | AL91: 0.1937224095 | AM91: 0.1134168533 | AN91: 0.3089852403 | AO91: 0.342831252 | AP91: 0.2222762815 | AQ91: 0.03705505899 | AR91: 0.004984139063 | AS91: 0.007495185242 | AT91: 0.001818070625 | AU91: 0.01429739493 | AV91: 0.05173061621 | AW91: 0.03203792404 | AX91: 0.09077692588 | AY91: 0.006830116493 | AZ91: 0.4921689106 | BA91: 0.5054029556 | BB91: 3.06 | BC91: 0.8582480124 | BD91: 0.009492899455 | BE91: 0.01049901561 | BF91: 0.01839038088 | BG91: 0.08666208115 | BH91: 0.002102198639 | BI91: 0.000509920098 | BJ91: 0.004010036203 | BK91: 0.003186837284 | BL91: 0 | BM91: 1.082219435e-05 | BN91: 0.0005083314073 | BO91: 0.02546049549 | BP91: 0.1608330184 | BQ91: 0.8582480124 | BR91: 85.82480124 | BS91: 255 | BT91: 72.12050778 | BU91: 0.7212050778 | BV91: 615.3258102 | BX91: 0.03181038854 | BZ91: 0.4921689106 | CA91: 0.09077692588 | CB91: 0.01138305321 | CE91: =IF(OR(MODE=1,MODE=2,MODE=3), BR91, IF(MODE_ILIM=4,#REF!,#REF!)) -> 85.82480124 | CF91: =IF(OR(MODE=1,MODE=2,MODE=3), BZ91, IF(MODE_ILIM=4,#REF!,#REF!)) -> 0.4921689106 | CG91: =IF(OR(MODE=1,MODE=2,MODE=3), CA91, IF(MODE_ILIM=4,#REF!,#REF!)) -> 0.09077692588 | CH91: =IF(OR(MODE=1,MODE=2,MODE=3), CB91, IF(MODE_ILIM=4,#REF!,#REF!)) -> 0.01138305321 | CI91: =(IF(OR(MODE=1,MODE=2,MODE=3), S91, IF(MODE_ILIM=4,#REF!,#REF!)))/1000 -> 615.3258102 | CJ91: =IF(OR(MODE=1,MODE=2,MODE=3), P91, IF(MODE_ILIM=4,#REF!,#REF!)) -> 147.8760305
H92: 86 | I92: 0.258 | J92: 0.1478285 | K92: 0.3323778884 | L92: 0.1843987569 | M92: 147.8507767 | N92: 147.8507767 | O92: 1 | P92: 147.8507767 | Q92: 1.208009734e-06 | R92: 0.2564613276 | S92: 615507.1862 | T92: 1.624676401e-06 | U92: 0 | V92: 0.00066 | W92: 0.2614888263 | X92: 0.01162398907 | Y92: 0 | Z92: 0.01164564809 | AA92: 0.04257236547 | AB92: 0.001812406302 | AC92: 0.001812406302 | AD92: 0.1147075807 | AE92: 3.94734872e-05 | AF92: 3.94734872e-05 | AG92: 0.1324232001 | AH92: 0.03244142228 | AI92: 0.001846521559 | AJ92: 30 | AK92: 23.15083462 | AL92: 0.1951090075 | AM92: 0.1134502846 | AN92: 0.3104058136 | AO92: 0.3450556069 | AP92: 0.2248539195 | AQ92: 0.03791946383 | AR92: 0.004985608209 | AS92: 0.007621480803 | AT92: 0.00184061374 | AU92: 0.01444770275 | AV92: 0.052761865 | AW92: 0.03203792404 | AX92: 0.09079424004 | AY92: 0.006832129767 | AZ92: 0.4954438417 | BA92: 0.5089413695 | BB92: 3.096 | BC92: 0.8588211798 | BD92: 0.009611749464 | BE92: 0.0106282345 | BF92: 0.01819403953 | BG92: 0.08610564827 | BH92: 0.002114176077 | BI92: 0.0005105807699 | BJ92: 0.004007749716 | BK92: 0.003224459951 | BL92: 0 | BM92: 1.094982779e-05 | BN92: 0.0005027561107 | BO92: 0.02518605179 | BP92: 0.160096396 | BQ92: 0.8588211798 | BR92: 85.88211798 | BS92: 258 | BT92: 72.22966227 | BU92: 0.7222966227 | BV92: 615.5071862 | BX92: 0.03147077107 | BZ92: 0.4954438417 | CA92: 0.09079424004 | CB92: 0.01164564809 | CE92: =IF(OR(MODE=1,MODE=2,MODE=3), BR92, IF(MODE_ILIM=4,#REF!,#REF!)) -> 85.88211798 | CF92: =IF(OR(MODE=1,MODE=2,MODE=3), BZ92, IF(MODE_ILIM=4,#REF!,#REF!)) -> 0.4954438417 | CG92: =IF(OR(MODE=1,MODE=2,MODE=3), CA92, IF(MODE_ILIM=4,#REF!,#REF!)) -> 0.09079424004 | CH92: =IF(OR(MODE=1,MODE=2,MODE=3), CB92, IF(MODE_ILIM=4,#REF!,#REF!)) -> 0.01164564809 | CI92: =(IF(OR(MODE=1,MODE=2,MODE=3), S92, IF(MODE_ILIM=4,#REF!,#REF!)))/1000 -> 615.5071862 | CJ92: =IF(OR(MODE=1,MODE=2,MODE=3), P92, IF(MODE_ILIM=4,#REF!,#REF!)) -> 147.8507767
H93: 87 | I93: 0.261 | J93: 0.14780325 | K93: 0.3353779947 | L93: 0.1874113824 | M93: 147.8255229 | N93: 147.8255229 | O93: 1 | P93: 147.8255229 | Q93: 1.207531054e-06 | R93: 0.2565369114 | S93: 615688.5874 | T93: 1.62419772e-06 | U93: 0 | V93: 0.00066 | W93: 0.2644492509 | X93: 0.01188867907 | Y93: 0 | Z93: 0.01191133668 | AA93: 0.04257236547 | AB93: 0.001812406302 | AC93: 0.001812406302 | AD93: 0.1160059317 | AE93: 4.037212858e-05 | AF93: 4.037212858e-05 | AG93: 0.1339421519 | AH93: 0.0331899251 | AI93: 0.001847065762 | AJ93: 30 | AK93: 22.94335113 | AL93: 0.196496397 | AM93: 0.1134837204 | AN93: 0.3118271832 | AO93: 0.3472910689 | AP93: 0.2274330918 | AQ93: 0.03879435844 | AR93: 0.004987077558 | AS93: 0.007747849811 | AT93: 0.001863185417 | AU93: 0.01459811279 | AV93: 0.05380425407 | AW93: 0.03203792404 | AX93: 0.09081155659 | AY93: 0.00683414332 | AZ93: 0.4987410229 | BA93: 0.512505138 | BB93: 3.132 | BC93: 0.8593759321 | BD93: 0.00973078221 | BE93: 0.01075760352 | BF93: 0.01800183383 | BG93: 0.08556091193 | BH93: 0.002125898995 | BI93: 0.0005112313871 | BJ93: 0.004005513021 | BK93: 0.003262083224 | BL93: 0 | BM93: 1.107753373e-05 | BN93: 0.0004972983254 | BO93: 0.02491739019 | BP93: 0.1593816242 | BQ93: 0.8593759321 | BR93: 85.93759321 | BS93: 261 | BT93: 72.36149365 | BU93: 0.7236149365 | BV93: 615.6885874 | BX93: 0.03113830716 | BZ93: 0.4987410229 | CA93: 0.09081155659 | CB93: 0.01191133668 | CE93: =IF(OR(MODE=1,MODE=2,MODE=3), BR93, IF(MODE_ILIM=4,#REF!,#REF!)) -> 85.93759321 | CF93: =IF(OR(MODE=1,MODE=2,MODE=3), BZ93, IF(MODE_ILIM=4,#REF!,#REF!)) -> 0.4987410229 | CG93: =IF(OR(MODE=1,MODE=2,MODE=3), CA93, IF(MODE_ILIM=4,#REF!,#REF!)) -> 0.09081155659 | CH93: =IF(OR(MODE=1,MODE=2,MODE=3), CB93, IF(MODE_ILIM=4,#REF!,#REF!)) -> 0.01191133668 | CI93: =(IF(OR(MODE=1,MODE=2,MODE=3), S93, IF(MODE_ILIM=4,#REF!,#REF!)))/1000 -> 615.6885874 | CJ93: =IF(OR(MODE=1,MODE=2,MODE=3), P93, IF(MODE_ILIM=4,#REF!,#REF!)) -> 147.8255229
H94: 88 | I94: 0.264 | J94: 0.147778 | K94: 0.3383781009 | L94: 0.1904240078 | M94: 147.8002691 | N94: 147.8002691 | O94: 1 | P94: 147.8002691 | Q94: 1.207052589e-06 | R94: 0.2566125057 | S94: 615870.0136 | T94: 1.623719256e-06 | U94: 0 | V94: 0.00066 | W94: 0.2674105576 | X94: 0.01215642907 | Y94: 0 | Z94: 0.01218011975 | AA94: 0.04257236547 | AB94: 0.001812406302 | AC94: 0.001812406302 | AD94: 0.117305035 | AE94: 4.128141374e-05 | AF94: 4.128141374e-05 | AG94: 0.1354619921 | AH94: 0.03394740994 | AI94: 0.001847610041 | AJ94: 30 | AK94: 22.73955365 | AL94: 0.1978845782 | AM94: 0.1135171609 | AN94: 0.3132493491 | AO94: 0.3495376635 | AP94: 0.2300137728 | AQ94: 0.03967975177 | AR94: 0.00498854711 | AS94: 0.00787429228 | AT94: 0.001885785671 | AU94: 0.01474862506 | AV94: 0.0548578049 | AW94: 0.03203792404 | AX94: 0.09082887554 | AY94: 0.006836157151 | AZ94: 0.5020605011 | BA94: 0.5160943086 | BB94: 3.168 | BC94: 0.8599128401 | BD94: 0.009849996043 | BE94: 0.01088712082 | BF94: 0.01781363428 | BG94: 0.08502750551 | BH94: 0.002137375328 | BI94: 0.0005118722577 | BJ94: 0.004003324515 | BK94: 0.003299706265 | BL94: 0 | BM94: 1.120530863e-05 | BN94: 0.000491954372 | BO94: 0.02465432965 | BP94: 0.1586880243 | BQ94: 0.8599128401 | BR94: 85.99128401 | BS94: 264 | BT94: 72.47731305 | BU94: 0.7247731305 | BV94: 615.8700136 | BX94: 0.0308127728 | BZ94: 0.5020605011 | CA94: 0.09082887554 | CB94: 0.01218011975 | CE94: =IF(OR(MODE=1,MODE=2,MODE=3), BR94, IF(MODE_ILIM=4,#REF!,#REF!)) -> 85.99128401 | CF94: =IF(OR(MODE=1,MODE=2,MODE=3), BZ94, IF(MODE_ILIM=4,#REF!,#REF!)) -> 0.5020605011 | CG94: =IF(OR(MODE=1,MODE=2,MODE=3), CA94, IF(MODE_ILIM=4,#REF!,#REF!)) -> 0.09082887554 | CH94: =IF(OR(MODE=1,MODE=2,MODE=3), CB94, IF(MODE_ILIM=4,#REF!,#REF!)) -> 0.01218011975 | CI94: =(IF(OR(MODE=1,MODE=2,MODE=3), S94, IF(MODE_ILIM=4,#REF!,#REF!)))/1000 -> 615.8700136 | CJ94: =IF(OR(MODE=1,MODE=2,MODE=3), P94, IF(MODE_ILIM=4,#REF!,#REF!)) -> 147.8002691
H95: 89 | I95: 0.267 | J95: 0.14775275 | K95: 0.3413782072 | L95: 0.1934366333 | M95: 147.7750153 | N95: 147.7750153 | O95: 1 | P95: 147.7750153 | Q95: 1.20657434e-06 | R95: 0.2566881104 | S95: 616051.4649 | T95: 1.623241007e-06 | U95: 0 | V95: 0.00066 | W95: 0.2703727174 | X95: 0.01242723907 | Y95: 0 | Z95: 0.0124519981 | AA95: 0.04257236547 | AB95: 0.001812406302 | AC95: 0.001812406302 | AD95: 0.1186048742 | AE95: 4.220134855e-05 | AF95: 4.220134855e-05 | AG95: 0.1369827064 | AH95: 0.03471388442 | AI95: 0.001848154395 | AJ95: 30 | AK95: 22.5393448 | AL95: 0.1992735513 | AM95: 0.113550606 | AN95: 0.3146723117 | AO95: 0.3517954161 | AP95: 0.2325959379 | AQ95: 0.04057565273 | AR95: 0.004990016866 | AS95: 0.008000808227 | AT95: 0.00190841452 | AU95: 0.01489923961 | AV95: 0.05592253911 | AW95: 0.03203792404 | AX95: 0.09084619688 | AY95: 0.00683817126 | AZ95: 0.5054023233 | BA95: 0.5197089291 | BB95: 3.204 | BC95: 0.8604324508 | BD95: 0.009969389409 | BE95: 0.01101678469 | BF95: 0.01762931672 | BG95: 0.08450507752 | BH95: 0.002148612681 | BI95: 0.0005125036775 | BJ95: 0.004001182664 | BK95: 0.003337328268 | BL95: 0 | BM95: 1.133314911e-05 | BN95: 0.000486720723 | BO95: 0.02439669658 | BP95: 0.1580149461 | BQ95: 0.8604324508 | BR95: 86.04324508 | BS95: 267 | BT95: 72.23023464 | BU95: 0.7223023464 | BV95: 616.0514649 | BX95: 0.03049395325 | BZ95: 0.5054023233 | CA95: 0.09084619688 | CB95: 0.0124519981 | CE95: =IF(OR(MODE=1,MODE=2,MODE=3), BR95, IF(MODE_ILIM=4,#REF!,#REF!)) -> 86.04324508 | CF95: =IF(OR(MODE=1,MODE=2,MODE=3), BZ95, IF(MODE_ILIM=4,#REF!,#REF!)) -> 0.5054023233 | CG95: =IF(OR(MODE=1,MODE=2,MODE=3), CA95, IF(MODE_ILIM=4,#REF!,#REF!)) -> 0.09084619688 | CH95: =IF(OR(MODE=1,MODE=2,MODE=3), CB95, IF(MODE_ILIM=4,#REF!,#REF!)) -> 0.0124519981 | CI95: =(IF(OR(MODE=1,MODE=2,MODE=3), S95, IF(MODE_ILIM=4,#REF!,#REF!)))/1000 -> 616.0514649 | CJ95: =IF(OR(MODE=1,MODE=2,MODE=3), P95, IF(MODE_ILIM=4,#REF!,#REF!)) -> 147.7750153
H96: 90 | I96: 0.27 | J96: 0.1477275 | K96: 0.3443783134 | L96: 0.1964492587 | M96: 147.7497615 | N96: 147.7497615 | O96: 1 | P96: 147.7497615 | Q96: 1.206096306e-06 | R96: 0.2567637256 | S96: 616232.9413 | T96: 1.622762973e-06 | U96: 0 | V96: 0.00066 | W96: 0.2733357026 | X96: 0.01270110907 | Y96: 0 | Z96: 0.01272697254 | AA96: 0.04257236547 | AB96: 0.001812406302 | AC96: 0.001812406302 | AD96: 0.1199054334 | AE96: 4.313193889e-05 | AF96: 4.313193889e-05 | AG96: 0.1385042808 | AH96: 0.03548935621 | AI96: 0.001848698824 | AJ96: 30 | AK96: 22.34263064 | AL96: 0.2006633165 | AM96: 0.1135840557 | AN96: 0.316096071 | AO96: 0.3540643522 | AP96: 0.2351795634 | AQ96: 0.04148207027 | AR96: 0.004991486825 | AS96: 0.008127397666 | AT96: 0.001931071979 | AU96: 0.01504995647 | AV96: 0.05699847851 | AW96: 0.03203792404 | AX96: 0.09086352062 | AY96: 0.006840185649 | AZ96: 0.508766537 | BA96: 0.5233490478 | BB96: 3.24 | BC96: 0.860935289 | BD96: 0.01008896084 | BE96: 0.0111465935 | BF96: 0.0174487621 | BG96: 0.08399329082 | BH96: 0.002159618351 | BI96: 0.0005131259298 | BJ96: 0.003999085995 | BK96: 0.00337494846 | BL96: 0 | BM96: 1.146105194e-05 | BN96: 0.0004815939949 | BO96: 0.0241443245 | BP96: 0.1573617655 | BQ96: 0.860935289 | BR96: 86.0935289 | BS96: 270 | BT96: 72.83499749 | BU96: 0.7283499749 | BV96: 616.2329413 | BX96: 0.03018164255 | BZ96: 0.508766537 | CA96: 0.09086352062 | CB96: 0.01272697254 | CE96: =IF(OR(MODE=1,MODE=2,MODE=3), BR96, IF(MODE_ILIM=4,#REF!,#REF!)) -> 86.0935289 | CF96: =IF(OR(MODE=1,MODE=2,MODE=3), BZ96, IF(MODE_ILIM=4,#REF!,#REF!)) -> 0.508766537 | CG96: =IF(OR(MODE=1,MODE=2,MODE=3), CA96, IF(MODE_ILIM=4,#REF!,#REF!)) -> 0.09086352062 | CH96: =IF(OR(MODE=1,MODE=2,MODE=3), CB96, IF(MODE_ILIM=4,#REF!,#REF!)) -> 0.01272697254 | CI96: =(IF(OR(MODE=1,MODE=2,MODE=3), S96, IF(MODE_ILIM=4,#REF!,#REF!)))/1000 -> 616.2329413 | CJ96: =IF(OR(MODE=1,MODE=2,MODE=3), P96, IF(MODE_ILIM=4,#REF!,#REF!)) -> 147.7497615
H97: 91 | I97: 0.273 | J97: 0.14770225 | K97: 0.3473784197 | L97: 0.1994618842 | M97: 147.7245077 | N97: 147.7245077 | O97: 1 | P97: 147.7245077 | Q97: 1.205618488e-06 | R97: 0.2568393512 | S97: 616414.4429 | T97: 1.622285155e-06 | U97: 0 | V97: 0.00066 | W97: 0.2762994866 | X97: 0.01297803907 | Y97: 0 | Z97: 0.01300504387 | AA97: 0.04257236547 | AB97: 0.001812406302 | AC97: 0.001812406302 | AD97: 0.1212066976 | AE97: 4.407319062e-05 | AF97: 4.407319062e-05 | AG97: 0.140026702 | AH97: 0.03627383294 | AI97: 0.001849243329 | AJ97: 30 | AK97: 22.14932045 | AL97: 0.2020538738 | AM97: 0.1136175101 | AN97: 0.3175206272 | AO97: 0.3563444977 | AP97: 0.2377646268 | AQ97: 0.04239901334 | AR97: 0.004992956987 | AS97: 0.008254060612 | AT97: 0.001953758066 | AU97: 0.01520077567 | AV97: 0.05808564506 | AW97: 0.03203792404 | AX97: 0.09088084676 | AY97: 0.006842200316 | AZ97: 0.5121531898 | BA97: 0.5270147132 | BB97: 3.276 | BC97: 0.8614218579 | BD97: 0.01020870897 | BE97: 0.01127654575 | BF97: 0.01727185614 | BG97: 0.08349182193 | BH97: 0.002170399337 | BI97: 0.0005137392866 | BJ97: 0.003997033094 | BK97: 0.003412566096 | BL97: 0 | BM97: 1.158901396e-05 | BN97: 0.0004765709414 | BO97: 0.02389705368 | BP97: 0.1567278842 | BQ97: 0.8614218579 | BR97: 86.14218579 | BS97: 273 | BT97: 73.30516817 | BU97: 0.7330516817 | BV97: 616.4144429 | BX97: 0.02987564306 | BZ97: 0.5121531898 | CA97: 0.09088084676 | CB97: 0.01300504387 | CE97: =IF(OR(MODE=1,MODE=2,MODE=3), BR97, IF(MODE_ILIM=4,#REF!,#REF!)) -> 86.14218579 | CF97: =IF(OR(MODE=1,MODE=2,MODE=3), BZ97, IF(MODE_ILIM=4,#REF!,#REF!)) -> 0.5121531898 | CG97: =IF(OR(MODE=1,MODE=2,MODE=3), CA97, IF(MODE_ILIM=4,#REF!,#REF!)) -> 0.09088084676 | CH97: =IF(OR(MODE=1,MODE=2,MODE=3), CB97, IF(MODE_ILIM=4,#REF!,#REF!)) -> 0.01300504387 | CI97: =(IF(OR(MODE=1,MODE=2,MODE=3), S97, IF(MODE_ILIM=4,#REF!,#REF!)))/1000 -> 616.4144429 | CJ97: =IF(OR(MODE=1,MODE=2,MODE=3), P97, IF(MODE_ILIM=4,#REF!,#REF!)) -> 147.7245077
H98: 92 | I98: 0.276 | J98: 0.147677 | K98: 0.350378526 | L98: 0.2024745096 | M98: 147.6992539 | N98: 147.6992539 | O98: 1 | P98: 147.6992539 | Q98: 1.205140886e-06 | R98: 0.2569149873 | S98: 616595.9695 | T98: 1.621807552e-06 | U98: 0 | V98: 0.00066 | W98: 0.2792640441 | X98: 0.01325802907 | Y98: 0 | Z98: 0.01328621291 | AA98: 0.04257236547 | AB98: 0.001812406302 | AC98: 0.001812406302 | AD98: 0.1225086522 | AE98: 4.50251096e-05 | AF98: 4.50251096e-05 | AG98: 0.1415499573 | AH98: 0.03706732227 | AI98: 0.001849787909 | AJ98: 30 | AK98: 21.95932664 | AL98: 0.2034452235 | AM98: 0.1136509691 | AN98: 0.3189459806 | AO98: 0.3586358784 | AP98: 0.2403511067 | AQ98: 0.04332649086 | AR98: 0.004994427353 | AS98: 0.008380797081 | AT98: 0.001976472796 | AU98: 0.01535169723 | AV98: 0.05918406089 | AW98: 0.03203792404 | AX98: 0.09089817529 | AY98: 0.006844215262 | AZ98: 0.5155623298 | BA98: 0.5307059741 | BB98: 3.312 | BC98: 0.8618926408 | BD98: 0.0103286325 | BE98: 0.01140664 | BF98: 0.01709848918 | BG98: 0.08300036034 | BH98: 0.002180962358 | BI98: 0.0005143440088 | BJ98: 0.003995022605 | BK98: 0.003450180462 | BL98: 0 | BM98: 1.171703219e-05 | BN98: 0.0004716484462 | BO98: 0.02365473078 | BP98: 0.1561127277 | BQ98: 0.8618926408 | BR98: 86.18926408 | BS98: 276 | BT98: 73.63845559 | BU98: 0.7363845559 | BV98: 616.5959695 | BX98: 0.02957576506 | BZ98: 0.5155623298 | CA98: 0.09089817529 | CB98: 0.01328621291 | CE98: =IF(OR(MODE=1,MODE=2,MODE=3), BR98, IF(MODE_ILIM=4,#REF!,#REF!)) -> 86.18926408 | CF98: =IF(OR(MODE=1,MODE=2,MODE=3), BZ98, IF(MODE_ILIM=4,#REF!,#REF!)) -> 0.5155623298 | CG98: =IF(OR(MODE=1,MODE=2,MODE=3), CA98, IF(MODE_ILIM=4,#REF!,#REF!)) -> 0.09089817529 | CH98: =IF(OR(MODE=1,MODE=2,MODE=3), CB98, IF(MODE_ILIM=4,#REF!,#REF!)) -> 0.01328621291 | CI98: =(IF(OR(MODE=1,MODE=2,MODE=3), S98, IF(MODE_ILIM=4,#REF!,#REF!)))/1000 -> 616.5959695 | CJ98: =IF(OR(MODE=1,MODE=2,MODE=3), P98, IF(MODE_ILIM=4,#REF!,#REF!)) -> 147.6992539
H99: 93 | I99: 0.279 | J99: 0.14765175 | K99: 0.3533786322 | L99: 0.2054871351 | M99: 147.674 | N99: 147.674 | O99: 1 | P99: 147.674 | Q99: 1.204663498e-06 | R99: 0.2569906339 | S99: 616777.5213 | T99: 1.621330164e-06 | U99: 0 | V99: 0.00066 | W99: 0.2822293505 | X99: 0.01354107907 | Y99: 0 | Z99: 0.0135704805 | AA99: 0.04257236547 | AB99: 0.001812406302 | AC99: 0.001812406302 | AD99: 0.1238112834 | AE99: 4.59877017e-05 | AF99: 4.59877017e-05 | AG99: 0.1430740346 | AH99: 0.03786983184 | AI99: 0.001850332564 | AJ99: 30 | AK99: 21.77256458 | AL99: 0.2048373658 | AM99: 0.1136844327 | AN99: 0.3203721311 | AO99: 0.3609385203 | AP99: 0.2429389821 | AQ99: 0.04426451178 | AR99: 0.004995897922 | AS99: 0.008507607089 | AT99: 0.001999216185 | AU99: 0.0155027212 | AV99: 0.06029374831 | AW99: 0.03203792404 | AX99: 0.09091550622 | AY99: 0.006846230486 | AZ99: 0.5189940054 | BA99: 0.5344228799 | BB99: 3.348 | BC99: 0.8623481016 | BD99: 0.01044873021 | BE99: 0.01153687491 | BF99: 0.01692855588 | BG99: 0.08251860784 | BH99: 0.002191313866 | BI99: 0.0005149403471 | BJ99: 0.003993053224 | BK99: 0.003487790869 | BL99: 0 | BM99: 1.184510372e-05 | BN99: 0.0004668235167 | BO99: 0.02341720854 | BP99: 0.1555157443 | BQ99: 0.8623481016 | BR99: 86.23481016 | BS99: 279 | BT99: 73.83241182 | BU99: 0.7383241182 | BV99: 616.7775213 | BX99: 0.02928182639 | BZ99: 0.5189940054 | CA99: 0.09091550622 | CB99: 0.0135704805 | CE99: =IF(OR(MODE=1,MODE=2,MODE=3), BR99, IF(MODE_ILIM=4,#REF!,#REF!)) -> 86.23481016 | CF99: =IF(OR(MODE=1,MODE=2,MODE=3), BZ99, IF(MODE_ILIM=4,#REF!,#REF!)) -> 0.5189940054 | CG99: =IF(OR(MODE=1,MODE=2,MODE=3), CA99, IF(MODE_ILIM=4,#REF!,#REF!)) -> 0.09091550622 | CH99: =IF(OR(MODE=1,MODE=2,MODE=3), CB99, IF(MODE_ILIM=4,#REF!,#REF!)) -> 0.0135704805 | CI99: =(IF(OR(MODE=1,MODE=2,MODE=3), S99, IF(MODE_ILIM=4,#REF!,#REF!)))/1000 -> 616.7775213 | CJ99: =IF(OR(MODE=1,MODE=2,MODE=3), P99, IF(MODE_ILIM=4,#REF!,#REF!)) -> 147.674
H100: 94 | I100: 0.282 | J100: 0.1476265 | K100: 0.3563787385 | L100: 0.2084997605 | M100: 147.6487462 | N100: 147.6487462 | O100: 1 | P100: 147.6487462 | Q100: 1.204186325e-06 | R100: 0.2570662909 | S100: 616959.0982 | T100: 1.620852992e-06 | U100: 0 | V100: 0.00066 | W100: 0.2851953827 | X100: 0.01382718907 | Y100: 0 | Z100: 0.01385784748 | AA100: 0.04257236547 | AB100: 0.001812406302 | AC100: 0.001812406302 | AD100: 0.1251145779 | AE100: 4.696097279e-05 | AF100: 4.696097279e-05 | AG100: 0.1445989221 | AH100: 0.03868136932 | AI100: 0.001850877295 | AJ100: 30 | AK100: 21.58895253 | AL100: 0.2062303008 | AM100: 0.113717901 | AN100: 0.3217990791 | AO100: 0.3632524498 | AP100: 0.2455282334 | AQ100: 0.04521308505 | AR100: 0.004997368695 | AS100: 0.008634490649 | AT100: 0.002021988251 | AU100: 0.0156538476 | AV100: 0.06141472977 | AW100: 0.03203792404 | AX100: 0.09093283955 | AY100: 0.00684824599 | AZ100: 0.5224482651 | BA100: 0.5381654799 | BB100: 3.384 | BC100: 0.8627886858 | BD100: 0.01056900097 | BE100: 0.01166724923 | BF100: 0.01676195506 | BG100: 0.08204627793 | BH100: 0.002201460059 | BI100: 0.000515528542 | BJ100: 0.003991123698 | BK100: 0.003525396657 | BL100: 0 | BM100: 1.197322577e-05 | BN100: 0.0004620932776 | BO100: 0.02318434549 | BP100: 0.1549364041 | BQ100: 0.8627886858 | BR100: 86.27886858 | BS100: 282 | BT100: 73.88440862 | BU100: 0.7388440862 | BV100: 616.9590982 | BX100: 0.02899365199 | BZ100: 0.5224482651 | CA100: 0.09093283955 | CB100: 0.01385784748 | CE100: =IF(OR(MODE=1,MODE=2,MODE=3), BR100, IF(MODE_ILIM=4,#REF!,#REF!)) -> 86.27886858 | CF100: =IF(OR(MODE=1,MODE=2,MODE=3), BZ100, IF(MODE_ILIM=4,#REF!,#REF!)) -> 0.5224482651 | CG100: =IF(OR(MODE=1,MODE=2,MODE=3), CA100, IF(MODE_ILIM=4,#REF!,#REF!)) -> 0.09093283955 | CH100: =IF(OR(MODE=1,MODE=2,MODE=3), CB100, IF(MODE_ILIM=4,#REF!,#REF!)) -> 0.01385784748 | CI100: =(IF(OR(MODE=1,MODE=2,MODE=3), S100, IF(MODE_ILIM=4,#REF!,#REF!)))/1000 -> 616.9590982 | CJ100: =IF(OR(MODE=1,MODE=2,MODE=3), P100, IF(MODE_ILIM=4,#REF!,#REF!)) -> 147.6487462
H101: 95 | I101: 0.285 | J101: 0.14760125 | K101: 0.3593788447 | L101: 0.211512386 | M101: 147.6234924 | N101: 147.6234924 | O101: 1 | P101: 147.6234924 | Q101: 1.203709367e-06 | R101: 0.2571419584 | S101: 617140.7002 | T101: 1.620376034e-06 | U101: 0 | V101: 0.00066 | W101: 0.2881621181 | X101: 0.01411635907 | Y101: 0 | Z101: 0.0141483147 | AA101: 0.04257236547 | AB101: 0.001812406302 | AC101: 0.001812406302 | AD101: 0.1264185228 | AE101: 4.794492871e-05 | AF101: 4.794492871e-05 | AG101: 0.1461246087 | AH101: 0.03950194236 | AI101: 0.001851422101 | AJ101: 30 | AK101: 21.40841144 | AL101: 0.2076240286 | AM101: 0.1137513739 | AN101: 0.3232268246 | AO101: 0.3655776931 | AP101: 0.2481188415 | AQ101: 0.04617221963 | AR101: 0.004998839672 | AS101: 0.008761447778 | AT101: 0.00204478901 | AU101: 0.01580507646 | AV101: 0.06254702793 | AW101: 0.03203792404 | AX101: 0.09095017528 | AY101: 0.006850261772 | AZ101: 0.5259251581 | BA101: 0.5419338241 | BB101: 3.42 | BC101: 0.8632148218 | BD101: 0.0106894437 | BE101: 0.01179776179 | BF101: 0.01659858946 | BG101: 0.08158309526 | BH101: 0.002211406896 | BI101: 0.000516108825 | BJ101: 0.003989232825 | BK101: 0.003562997187 | BL101: 0 | BM101: 1.210139564e-05 | BN101: 0.0004574549658 | BO101: 0.02295600566 | BP101: 0.154374198 | BQ101: 0.8632148218 | BR101: 86.32148218 | BS101: 285 | BT101: 73.79163615 | BU101: 0.7379163615 | BV101: 617.1407002 | BX101: 0.02871107366 | BZ101: 0.5259251581 | CA101: 0.09095017528 | CB101: 0.0141483147 | CE101: =IF(OR(MODE=1,MODE=2,MODE=3), BR101, IF(MODE_ILIM=4,#REF!,#REF!)) -> 86.32148218 | CF101: =IF(OR(MODE=1,MODE=2,MODE=3), BZ101, IF(MODE_ILIM=4,#REF!,#REF!)) -> 0.5259251581 | CG101: =IF(OR(MODE=1,MODE=2,MODE=3), CA101, IF(MODE_ILIM=4,#REF!,#REF!)) -> 0.09095017528 | CH101: =IF(OR(MODE=1,MODE=2,MODE=3), CB101, IF(MODE_ILIM=4,#REF!,#REF!)) -> 0.0141483147 | CI101: =(IF(OR(MODE=1,MODE=2,MODE=3), S101, IF(MODE_ILIM=4,#REF!,#REF!)))/1000 -> 617.1407002 | CJ101: =IF(OR(MODE=1,MODE=2,MODE=3), P101, IF(MODE_ILIM=4,#REF!,#REF!)) -> 147.6234924
H102: 96 | I102: =IF(PLOT_TYPE=1, H102/100*Iout, min_I*EXP(H102*rr/100)) -> 0.288 | J102: =IF(I102<Icrit, (Vin-(Rdcr+RdsonTop)*Iripple/2-Vout)/L*OnTime, (Vin-(Rdcr+RdsonTop)*I102-Vout)/L*OnTime) -> 0.147576 | K102: =IF(I102<Icrit, (Vin-(Rdcr+RdsonTop)*Iripple/2-Vout)/L*OnTime, I102+((Vin-(Rdcr+RdsonTop)*J102-Vout)/L*OnTime)/2) -> 0.362378951 | L102: =IF(I102<Icrit, 0, I102-((Vin-(Rdcr+RdsonTop)*K102-Vout)/L*OnTime)/2) -> 0.2145250114 | M102: 147.5982386 | N102: =IF(I102<Icrit, 1000*SQRT((J102*CoutEsr)^2+(((J102/2)-I102)*(OnTime+OffTime)/Cout)^2), 1000*J102*SQRT(CoutEsr^2+(1/(8*Fsw*Cout))^2)) -> 147.5982386 | O102: 1 | P102: =IF(I102<Icrit, 1000*((N102/1000)*O102), 1000*J102*SQRT(CoutEsr^2+(1/(8*Fsw*Cout))^2)) -> 147.5982386 | Q102: 1.203232624e-06 | R102: 0.2572176364 | S102: 617322.3274 | T102: 1.61989929e-06 | U102: 0 | V102: =S102*(T102*Iq_active+U102*Iq_sleep) -> 0.00066 | W102: 0.2911295353 | X102: =W102^2*Rdcr -> 0.01440858907 | Y102: =Core_Loss/1000*S102/$S$106 -> 0 | Z102: =(Y102+X102*(1+Ltc*(Ta-25)))/(1-X102*Ltc*ThetaCa) -> 0.01444188302 | AA102: 0.04257236547 | AB102: 0.001812406302 | AC102: 0.001812406302 | AD102: 0.1277231059 | AE102: 4.893957532e-05 | AF102: 4.893957532e-05 | AG102: 0.1476510836 | AH102: 0.04033155862 | AI102: 0.001851966982 | AJ102: 30 | AK102: 21.23086492 | AL102: =IF(I102<Icrit, Vin*(I102+Iripple/2)*AK102/1000000000/2*S102, Vin*(I102-Iripple/2)*AJ102/1000000000/2*S102 + Vin*(I102+Iripple/2)*AK102/1000000000/2*S102) -> 0.2090185495 | AM102: 0.1137848514 | AN102: 0.3246553679 | AO102: =(AI102+AL102+AM102+AH102*(1+RdsonTopTc*(Ta-25)))/(1-AH102*RdsonTopTc*ThetaJA) -> 0.3679142769 | AP102: 0.2507107881 | AQ102: 0.04714192445 | AR102: 0.005000310852 | AS102: =IF(I102<Icrit, Vin*Idss*R102, QrrBot*(I102-Iripple/2)/1*S102*Vin+Vin*Idss*R102) -> 0.008888478491 | AT102: 0.002067618479 | AU102: 0.01595640782 | AV102: =(AR102+AS102+AT102+AQ102*(1+RdsonBotTc*(Ta-25)))/(1-AQ102*RdsonBotTc*ThetaJA) -> 0.06369066558 | AW102: =Vin*V102+Vout*Ifb/0.8 -> 0.03203792404 | AX102: =(Vin-Vdd)*(S102*QgBot+S102*QgTop)+AW102 -> 0.09096751341 | AY102: 0.006852277834 | AZ102: 0.5294247337 | BA102: =SUM(Z102,AC102,AF102,AZ102) -> 0.5457279626 | BB102: 3.456 | BC102: 0.8636269213 | BD102: 0.01081005741 | BE102: 0.01192841148 | BF102: 0.01643836558 | BG102: 0.08112879508 | BH102: 0.002221160102 | BI102: 0.0005166814182 | BJ102: 0.003987379445 | BK102: 0.003600591846 | BL102: 0 | BM102: 1.222961075e-05 | BN102: 0.0004529059244 | BO102: 0.02273205832 | BP102: 0.1538286362 | BQ102: 0.8636269213 | BR102: 86.36269213 | BS102: 288 | BT102: 73.55112438 | BU102: 0.7355112438 | BV102: 617.3223274 | BX102: 0.02843392965 | BZ102: 0.5294247337 | CA102: 0.09096751341 | CB102: 0.01444188302 | CE102: =IF(OR(MODE=1,MODE=2,MODE=3), BR102, IF(MODE_ILIM=4,#REF!,#REF!)) -> 86.36269213 | CF102: =IF(OR(MODE=1,MODE=2,MODE=3), BZ102, IF(MODE_ILIM=4,#REF!,#REF!)) -> 0.5294247337 | CG102: =IF(OR(MODE=1,MODE=2,MODE=3), CA102, IF(MODE_ILIM=4,#REF!,#REF!)) -> 0.09096751341 | CH102: =IF(OR(MODE=1,MODE=2,MODE=3), CB102, IF(MODE_ILIM=4,#REF!,#REF!)) -> 0.01444188302 | CI102: =(IF(OR(MODE=1,MODE=2,MODE=3), S102, IF(MODE_ILIM=4,#REF!,#REF!)))/1000 -> 617.3223274 | CJ102: =IF(OR(MODE=1,MODE=2,MODE=3), P102, IF(MODE_ILIM=4,#REF!,#REF!)) -> 147.5982386
H103: 97 | I103: =IF(PLOT_TYPE=1, H103/100*Iout, min_I*EXP(H103*rr/100)) -> 0.291 | J103: 0.14755075 | K103: 0.3653790573 | L103: 0.2175376369 | M103: 147.5729848 | N103: 147.5729848 | O103: 1 | P103: 147.5729848 | Q103: 1.202756095e-06 | R103: 0.2572933249 | S103: 617503.9797 | T103: =IF(1/S103-OnTime-Q103>Tsleep, OnTime+Q103+Tsleep, 1/S103) -> 1.619422762e-06 | U103: 0 | V103: 0.00066 | W103: 0.2940976136 | X103: 0.01470387907 | Y103: 0 | Z103: 0.0147385533 | AA103: 0.04257236547 | AB103: 0.001812406302 | AC103: 0.001812406302 | AD103: 0.1290283154 | AE103: 4.994491849e-05 | AF103: 4.994491849e-05 | AG103: 0.1491783365 | AH103: =RdsonTop*AG103^2 -> 0.04117022576 | AI103: 0.001852511939 | AJ103: 30 | AK103: 21.05623908 | AL103: 0.2104138636 | AM103: 0.1138183335 | AN103: 0.326084709 | AO103: 0.3702622276 | AP103: 0.2533040557 | AQ103: =RdsonBot*AP103^2 -> 0.04812220848 | AR103: 0.005001782235 | AS103: 0.009015582803 | AT103: 0.002090476673 | AU103: 0.01610784171 | AV103: 0.06484566571 | AW103: 0.03203792404 | AX103: 0.09098485394 | AY103: 0.006854294174 | AZ103: 0.5329470414 | BA103: 0.549547946 | BB103: 3.492 | BC103: 0.8640253801 | BD103: 0.01093084115 | BE103: 0.01205919728 | BF103: 0.01628119348 | BG103: 0.08068312275 | BH103: 0.002230725188 | BI103: 0.0005172465354 | BJ103: 0.003985562445 | BK103: 0.003638180041 | BL103: 0 | BM103: 1.235786861e-05 | BN103: 0.0004484435979 | BO103: 0.02251237772 | BP103: 0.1532992481 | BQ103: 0.8640253801 | BR103: 86.40253801 | BS103: 291 | BT103: 73.15978801 | BU103: 0.7315978801 | BV103: 617.5039797 | BX103: 0.0281620644 | BZ103: 0.5329470414 | CA103: 0.09098485394 | CB103: 0.0147385533 | CE103: =IF(OR(MODE=1,MODE=2,MODE=3), BR103, IF(MODE_ILIM=4,#REF!,#REF!)) -> 86.40253801 | CF103: =IF(OR(MODE=1,MODE=2,MODE=3), BZ103, IF(MODE_ILIM=4,#REF!,#REF!)) -> 0.5329470414 | CG103: =IF(OR(MODE=1,MODE=2,MODE=3), CA103, IF(MODE_ILIM=4,#REF!,#REF!)) -> 0.09098485394 | CH103: =IF(OR(MODE=1,MODE=2,MODE=3), CB103, IF(MODE_ILIM=4,#REF!,#REF!)) -> 0.0147385533 | CI103: =(IF(OR(MODE=1,MODE=2,MODE=3), S103, IF(MODE_ILIM=4,#REF!,#REF!)))/1000 -> 617.5039797 | CJ103: =IF(OR(MODE=1,MODE=2,MODE=3), P103, IF(MODE_ILIM=4,#REF!,#REF!)) -> 147.5729848
H104: 98 | I104: =IF(PLOT_TYPE=1, H104/100*Iout, min_I*EXP(H104*rr/100)) -> 0.294 | J104: 0.1475255 | K104: 0.3683791635 | L104: 0.2205502623 | M104: 147.547731 | N104: 147.547731 | O104: 1 | P104: 147.547731 | Q104: 1.20227978e-06 | R104: 0.2573690238 | S104: 617685.6571 | T104: =IF(1/S104-OnTime-Q104>Tsleep, OnTime+Q104+Tsleep, 1/S104) -> 1.618946447e-06 | U104: 0 | V104: 0.00066 | W104: 0.2970663332 | X104: 0.01500222907 | Y104: 0 | Z104: 0.01503832642 | AA104: 0.04257236547 | AB104: 0.001812406302 | AC104: 0.001812406302 | AD104: 0.1303341399 | AE104: 5.096096406e-05 | AF104: 5.096096406e-05 | AG104: 0.1507063575 | AH104: =RdsonTop*AG104^2 -> 0.04201795144 | AI104: 0.001853056971 | AJ104: 30 | AK104: 20.88446242 | AL104: 0.211809971 | AM104: 0.1138518203 | AN104: 0.3275148483 | AO104: 0.3726215723 | AP104: 0.2558986275 | AQ104: =RdsonBot*AP104^2 -> 0.04911308067 | AR104: 0.005003253823 | AS104: 0.00914276073 | AT104: 0.002113363609 | AU104: 0.01625937816 | AV104: 0.06601205148 | AW104: 0.03203792404 | AX104: 0.09100219687 | AY104: 0.006856310794 | AZ104: 0.5364921314 | BA104: 0.5533938251 | BB104: 3.528 | BC104: 0.8644105791 | BD104: 0.01105179405 | BE104: 0.01219011824 | BF104: 0.01612698662 | BG104: 0.08024583324 | BH104: 0.002240107454 | BI104: 0.0005178043825 | BJ104: 0.003983780752 | BK104: 0.003675761202 | BL104: 0 | BM104: 1.24861668e-05 | BN104: 0.0004440655276 | BO104: 0.02229684288 | BP104: 0.1527855805 | BQ104: 0.8644105791 | BR104: 86.44105791 | BS104: 294 | BT104: 72.61449608 | BU104: 0.7261449608 | BV104: 617.6856571 | BX104: 0.02789532821 | BZ104: 0.5364921314 | CA104: 0.09100219687 | CB104: 0.01503832642 | CE104: =IF(OR(MODE=1,MODE=2,MODE=3), BR104, IF(MODE_ILIM=4,#REF!,#REF!)) -> 86.44105791 | CF104: =IF(OR(MODE=1,MODE=2,MODE=3), BZ104, IF(MODE_ILIM=4,#REF!,#REF!)) -> 0.5364921314 | CG104: =IF(OR(MODE=1,MODE=2,MODE=3), CA104, IF(MODE_ILIM=4,#REF!,#REF!)) -> 0.09100219687 | CH104: =IF(OR(MODE=1,MODE=2,MODE=3), CB104, IF(MODE_ILIM=4,#REF!,#REF!)) -> 0.01503832642 | CI104: =(IF(OR(MODE=1,MODE=2,MODE=3), S104, IF(MODE_ILIM=4,#REF!,#REF!)))/1000 -> 617.6856571 | CJ104: =IF(OR(MODE=1,MODE=2,MODE=3), P104, IF(MODE_ILIM=4,#REF!,#REF!)) -> 147.547731
H105: 99 | I105: =IF(PLOT_TYPE=1, H105/100*Iout, min_I*EXP(H105*rr/100)) -> 0.297 | J105: 0.14750025 | K105: 0.3713792698 | L105: 0.2235628878 | M105: 147.5224772 | N105: 147.5224772 | O105: 1 | P105: 147.5224772 | Q105: 1.20180368e-06 | R105: 0.2574447332 | S105: 617867.3597 | T105: =IF(1/S105-OnTime-Q105>Tsleep, OnTime+Q105+Tsleep, 1/S105) -> 1.618470347e-06 | U105: 0 | V105: 0.00066 | W105: 0.300035675 | X105: 0.01530363907 | Y105: 0 | Z105: 0.01534120327 | AA105: 0.04257236547 | AB105: 0.001812406302 | AC105: 0.001812406302 | AD105: 0.1316405686 | AE105: 5.198771788e-05 | AF105: 5.198771788e-05 | AG105: 0.152235137 | AH105: =RdsonTop*AG105^2 -> 0.04287474332 | AI105: 0.001853602079 | AJ105: 30 | AK105: 20.71546579 | AL105: 0.213206872 | AM105: 0.1138853117 | AN105: 0.3289457858 | AO105: 0.3749923378 | AP105: 0.2584944873 | AQ105: =RdsonBot*AP105^2 -> 0.05011454998 | AR105: 0.005004725614 | AS105: 0.009270012286 | AT105: 0.002136279304 | AU105: 0.0164110172 | AV105: 0.06718984621 | AW105: 0.03203792404 | AX105: 0.0910195422 | AY105: 0.006858327693 | AZ105: 0.5400600539 | BA105: 0.5572656512 | BB105: 3.564 | BC105: 0.8647828851 | BD105: 0.01117291529 | BE105: 0.01232117347 | BF105: 0.01597566171 | BG105: 0.0798166907 | BH105: 0.002249312 | BI105: 0.0005183551571 | BJ105: 0.003982033335 | BK105: 0.003713334778 | BL105: 0 | BM105: 1.261450299e-05 | BN105: 0.0004397693465 | BO105: 0.02208533735 | BP105: 0.1522871976 | BQ105: 0.8647828851 | BR105: 86.47828851 | BS105: 297 | BT105: 71.91216767 | BU105: 0.7191216767 | BV105: 617.8673597 | BX105: 0.02763357701 | BZ105: 0.5400600539 | CA105: 0.0910195422 | CB105: 0.01534120327 | CE105: =IF(OR(MODE=1,MODE=2,MODE=3), BR105, IF(MODE_ILIM=4,#REF!,#REF!)) -> 86.47828851 | CF105: =IF(OR(MODE=1,MODE=2,MODE=3), BZ105, IF(MODE_ILIM=4,#REF!,#REF!)) -> 0.5400600539 | CG105: =IF(OR(MODE=1,MODE=2,MODE=3), CA105, IF(MODE_ILIM=4,#REF!,#REF!)) -> 0.0910195422 | CH105: =IF(OR(MODE=1,MODE=2,MODE=3), CB105, IF(MODE_ILIM=4,#REF!,#REF!)) -> 0.01534120327 | CI105: =(IF(OR(MODE=1,MODE=2,MODE=3), S105, IF(MODE_ILIM=4,#REF!,#REF!)))/1000 -> 617.8673597 | CJ105: =IF(OR(MODE=1,MODE=2,MODE=3), P105, IF(MODE_ILIM=4,#REF!,#REF!)) -> 147.5224772
H106: 100 | I106: =IF(PLOT_TYPE=1, H106/100*Iout, min_I*EXP(H106*rr/100)) -> 0.3 | J106: 0.147475 | K106: 0.374379376 | L106: 0.2265755132 | M106: 147.4972234 | N106: 147.4972234 | O106: 1 | P106: 147.4972234 | Q106: 1.201327794e-06 | R106: 0.2575204531 | S106: 618049.0875 | T106: =IF(1/S106-OnTime-Q106>Tsleep, OnTime+Q106+Tsleep, 1/S106) -> 1.617994461e-06 | U106: 0 | V106: 0.00066 | W106: 0.3030056209 | X106: 0.01560810907 | Y106: 0 | Z106: 0.01564718475 | AA106: 0.04257236547 | AB106: 0.001812406302 | AC106: 0.001812406302 | AD106: 0.1329475909 | AE106: 5.30251858e-05 | AF106: 5.30251858e-05 | AG106: 0.1537646659 | AH106: =RdsonTop*AG106^2 -> 0.04374060907 | AI106: 0.001854147262 | AJ106: 30 | AK106: 20.54918225 | AL106: 0.2146045666 | AM106: 0.1139188078 | AN106: 0.3303775217 | AO106: 0.3773745513 | AP106: 0.2610916196 | AQ106: =RdsonBot*AP106^2 -> 0.05112662537 | AR106: 0.005006197609 | AS106: 0.009397337487 | AT106: 0.002159223774 | AU106: 0.01656275887 | AV106: 0.0683790734 | AW106: 0.03203792404 | AX106: 0.09103688993 | AY106: 0.006860344871 | AZ106: 0.5436508596 | BA106: 0.5611634758 | BB106: 3.6 | BC106: 0.8651426508 | BD106: 0.01129420412 | BE106: 0.01245236214 | BF106: 0.01582713853 | BG106: 0.07939546802 | BH106: 0.00225834374 | BI106: 0.00051889905 | BJ106: 0.003980319198 | BK106: 0.003750900238 | BL106: 0 | BM106: 1.274287495e-05 | BN106: 0.0004355527757 | BO106: 0.02187774897 | BP106: =SUM(BD106:BO106) -> 0.1518036797 | BQ106: 0.8651426508 | BR106: 86.51426508 | BS106: 300 | BT106: 71.0498949 | BU106: 0.710498949 | BV106: 618.0490875 | BX106: 0.02737667205 | BZ106: 0.5436508596 | CA106: 0.09103688993 | CB106: 0.01564718475 | CE106: =IF(OR(MODE=1,MODE=2,MODE=3), BR106, IF(MODE_ILIM=4,#REF!,#REF!)) -> 86.51426508 | CF106: =IF(OR(MODE=1,MODE=2,MODE=3), BZ106, IF(MODE_ILIM=4,#REF!,#REF!)) -> 0.5436508596 | CG106: =IF(OR(MODE=1,MODE=2,MODE=3), CA106, IF(MODE_ILIM=4,#REF!,#REF!)) -> 0.09103688993 | CH106: =IF(OR(MODE=1,MODE=2,MODE=3), CB106, IF(MODE_ILIM=4,#REF!,#REF!)) -> 0.01564718475 | CI106: =(IF(OR(MODE=1,MODE=2,MODE=3), S106, IF(MODE_ILIM=4,#REF!,#REF!)))/1000 -> 618.0490875 | CJ106: =IF(OR(MODE=1,MODE=2,MODE=3), P106, IF(MODE_ILIM=4,#REF!,#REF!)) -> 147.4972234
I107: =Losses!$E$5/1000 -> 0.5 | J107: 0.1457916667 | K107: 0.5743864601 | L107: 0.4274172097 | M107: 145.8136364 | N107: 145.8136364 | O107: 1 | P107: 145.8136364 | Q107: =IF(I107<Icrit, L*J107/(Vout+J107/2*(RdsonBot+Rdcr)), L*J107/(Vout+I107*(RdsonBot+Rdcr))) -> 1.170077582e-06 | R107: =OnTime*S107 -> 0.2625922023 | S107: =IF(I107<Icrit,I107/((OnTime+Q107)*J107/2),1/(OnTime+Q107)) -> 630221.2856 | T107: =IF(1/S107-OnTime-Q107>Tsleep, OnTime+Q107+Tsleep, 1/S107) -> 1.586744248e-06 | U107: =IF(1/S107-OnTime-Q107>Tsleep, 1/S107-OnTime-Q107-Tsleep, 0) -> 0 | V107: 0.00066 | W107: =IF(I107<Icrit,Iripple*SQRT((OnTime+OffTime)*S107/3), SQRT(I107^2+Iripple^2/12)) -> 0.5018091333 | X107: 0.04280810907 | Y107: 0 | Z107: 0.04310333665 | AA107: =Iripple/SQRT(12)*SQRT((OnTime+Q107)*S107) -> 0.04257236547 | AB107: =RCoutEsr*AA107^2 -> 0.001812406302 | AC107: =AB107 -> 0.001812406302 | AD107: =SQRT($R107)*SQRT($I107^2*(1-R107)+(Iripple^2)/12) -> 0.221100222 | AE107: =RCinEsr*AD107^2 -> 0.0001466559245 | AF107: =AE107 -> 0.0001466559245 | AG107: =IF(I107<Icrit,Iripple*SQRT((OnTime)*S107/3), SQRT(OnTime*S107*(I107^2+Iripple^2/12))) -> 0.2571458231 | AH107: =RdsonTop*AG107^2 -> 0.1223293525 | AI107: =QgTop*S107*Vdd -> 0.001890663857 | AJ107: 30 | AK107: =IF(I107<Icrit, Csw*Vin/Iripple*1000000000, Csw*Vin/(I107+Iripple/2)*1000000000) -> 13.38591255 | AL107: 0.3095829719 | AM107: =IF(I107<Icrit, Csw*(Vin)^2*S107/2, Csw*Vin^2*S107/2) -> 0.1161623874 | AN107: 0.4276360231 | AO107: 0.5635659896 | AP107: =IF(I107<Icrit,Iripple*SQRT((OffTime)*S107/3), SQRT(OffTime*S107*(I107^2+Iripple^2/12))) -> 0.4366322981 | AQ107: =RdsonBot*AP107^2 -> 0.1429858228 | AR107: =QgBot*S107*Vdd -> 0.005104792413 | AS107: 0.01805258789 | AT107: =IF(I107<Icrit, dead1*S107*(I107+Iripple/2)*((I107+Iripple/2)*BDserR+VSD), dead1*S107*(I107+Iripple/2)*((I107+Iripple/2)*BDserR+VSD)+dead2*S107*(I107-Iripple/2)*((I107-Iripple/2)*BDserR+VSD)) -> 0.003754613961 | AU107: 0.02691199426 | AV107: 0.1748294487 | AW107: 0.03203792404 | AX107: 0.09219884796 | AY107: =AI107+AR107 -> 0.00699545627 | AZ107: =AO107+AV107+AX107+AY107 -> 0.8375897425 | BA107: 0.8826521413 | BB107: =Vout*I107 -> 6 | BC107: =BB107/(BB107+BA107) -> 0.8717569734 | BD107: 0.01974964936 | BE107: 0.0214913454 | BF107: =Vin*S107*(QgBot+QgTop)/($BB107+$BA107) -> 0.009757340457 | BG107: 0.06213244754 | BH107: =AS107/(BA107+BB107) -> 0.002622911564 | BI107: =AT107/($BB107+$BA107) -> 0.0005455184838 | BJ107: 0.003910119778 | BK107: =X107/($BB107+$BA107) -> 0.006219711267 | BL107: =Y107/($BB107+$BA107) -> 0 | BM107: =(AF107)/($BB107+$BA107) -> 2.130805414e-05 | BN107: =(AC107)/($BB107+$BA107) -> 0.0002633296388 | BO107: 0.01339583144 | BP107: =SUM(BD107:BO107) -> 0.140109513 | BQ107: =BC107 -> 0.8717569734 | BR107: =100*BQ107 -> 87.17569734 | BS107: =I107*1000 -> 500 | BT107: 72.0498949 | BU107: =BT107/100 -> 0.720498949 | BV107: =S107/1000 -> 630.2212856 | BX107: =AM107/($BB107+$BA107) -> 0.01687756187 | BZ107: 0.8375897425 | CA107: 0.09219884796 | CB107: 0.04310333665 | CE107: =IF(OR(MODE=1,MODE=2,MODE=3), BR107, IF(MODE_ILIM=4,#REF!,#REF!)) -> 87.17569734 | CF107: =IF(OR(MODE=1,MODE=2,MODE=3), BZ107, IF(MODE_ILIM=4,#REF!,#REF!)) -> 0.8375897425 | CG107: =IF(OR(MODE=1,MODE=2,MODE=3), CA107, IF(MODE_ILIM=4,#REF!,#REF!)) -> 0.09219884796 | CH107: =IF(OR(MODE=1,MODE=2,MODE=3), CB107, IF(MODE_ILIM=4,#REF!,#REF!)) -> 0.04310333665 | CI107: =(IF(OR(MODE=1,MODE=2,MODE=3), S107, IF(MODE_ILIM=4,#REF!,#REF!)))/1000 -> 630.2212856 | CJ107: =IF(OR(MODE=1,MODE=2,MODE=3), P107, IF(MODE_ILIM=4,#REF!,#REF!)) -> 145.8136364
BD108: =IF(OR(MODE=1, MODE=2,MODE=3),Efficiency!BD107,IF(AND(MODE=4,MODE_ILIM=4),#REF!,#REF!)) -> 0.01974964936 | BE108: =IF(OR(MODE=1, MODE=2,MODE=3),Efficiency!BE107,IF(AND(MODE=4,MODE_ILIM=4),#REF!,#REF!)) -> 0.0214913454 | BG108: =IF(OR(MODE=1, MODE=2,MODE=3),Efficiency!BG107,IF(AND(MODE=4,MODE_ILIM=4),#REF!,#REF!)) -> 0.06213244754 | BJ108: =IF(OR(MODE=1, MODE=2,MODE=3),Efficiency!BJ107,IF(AND(MODE=4,MODE_ILIM=4),#REF!,#REF!)) -> 0.003910119778 | BK108: =IF(OR(MODE=1, MODE=2,MODE=3),Efficiency!BK107,IF(AND(MODE=4,MODE_ILIM=4),#REF!,#REF!)) -> 0.006219711267 | BL108: =IF(OR(MODE=1, MODE=2,MODE=3),Efficiency!BL107,IF(AND(MODE=4,MODE_ILIM=4),#REF!,#REF!)) -> 0 | BO108: =IF(OR(MODE=1, MODE=2,MODE=3),Efficiency!BO107,IF(AND(MODE=4,MODE_ILIM=4),#REF!,#REF!)) -> 0.01339583144
H109: 1e-05 | I109: A | J109: min_I | BC109: Load (A) | BD109: High-side MOSFET Rdson % | BE109: Low-side MOSFET Rdson % | BF109: Gate Drive (Qg) Loss from Vin % | BG109: High-side MOSFET Switching Loss % | BH109: Reverse Recovery & Leakage Loss % | BI109: Deadtime Loss % | BK109: Inductor Cu Loss % | BL109: Inductor Core Loss % | BM109: Cin ESR % | BN109: Cout ESR % | BO109: Quiescent Current Loss % | BP109: Total Loss % | BQ109: Overall Eff %
H110: =Iout -> 0.3 | I110: A | J110: max_I | BC110: =I107 -> 0.5 | BD110: =BD107 -> 0.01974964936 | BE110: =BE107 -> 0.0214913454 | BF110: 0.009757340457 | BG110: 0.06213244754 | BH110: 0.002622911564 | BI110: 0.0005455184838 | BK110: 0.006219711267 | BL110: 0 | BM110: 2.130805414e-05 | BN110: 0.0002633296388 | BO110: 0.01339583144 | BP110: 0.140109513 | BQ110: 0.8717569734
H111: =LOG(max_I/min_I,EXP(1)) -> 10.30895266 | J111: rr | BC111: 10mA | BD111: =BD70 -> 0.007043555751 | BE111: =BE70 -> 0.00782488219 | BF111: 0.02377486131 | BG111: 0.1019153071 | BH111: 0.001773128085 | BI111: 0.0004929940842 | BK111: 0.002398867346 | BL111: 0 | BM111: 8.166868346e-06 | BN111: 0.0006612516384 | BO111: 0.03298726497 | BP111: 0.1829536122 | BQ111: 0.8406082969
BC112: 50ma | BD112: =BD85 -> 0.008783742784 | BE112: =BE85 -> 0.009726972348 | BF112: 0.01966328139 | BG112: 0.09026896544 | BH112: 0.002024498679 | BI112: 0.0005057258511 | BK112: 0.002961165703 | BL112: 0 | BM112: 1.005813283e-05 | BN112: 0.0005444783407 | BO112: 0.0272397719 | BP112: 0.1657535602 | BQ112: 0.8543870098
BC113: 100mA | BD113: =BD91 -> 0.009492899455 | BE113: =BE91 -> 0.01049901561 | BF113: 0.01839038088 | BG113: 0.08666208115 | BH113: 0.002102198639 | BI113: 0.000509920098 | BK113: 0.003186837284 | BL113: 0 | BM113: 1.082219435e-05 | BN113: 0.0005083314073 | BO113: 0.02546049549 | BP113: 0.1608330184 | BQ113: 0.8582480124
BC114: 500mA | BD114: =BD106 -> 0.01129420412 | BE114: =BE106 -> 0.01245236214 | BF114: 0.01582713853 | BG114: 0.07939546802 | BH114: 0.00225834374 | BI114: 0.00051889905 | BK114: 0.003750900238 | BL114: 0 | BM114: 1.274287495e-05 | BN114: 0.0004355527757 | BO114: 0.02187774897 | BP114: 0.1518036797 | BQ114: 0.8651426508

Sheet Design EMI Filter
A1: LM5168/9 100V, Low IQ DC/DC Converter Design Tool
A7: Step 7: EMI Filter (Optional)
D8: Desired Maximum Noise Level, Vnoise(MAX) | E8: 50 | F8: dBmV
D9: EMI Filter Inductance, LF(EMI) | E9: 22 | F9: mH
D10: Minimum EMI Filter Capacitance | E10: ='Variable Mgmt'!M164 -> 0.1835826662 | F10: mF
D11: EMI Filter Capacitance, CF(EMI) | E11: 4.7 | F11: mF
D12: Minimum EMI Filter Damping Capacitance | E12: ='Variable Mgmt'!M168 -> 8.8 | F12: mF
D13: EMI Filter Damping Capacitance, CD(EMI) | E13: 10 | F13: mF
D14: Minimum Damping Capacitor ESR | E14: ='Variable Mgmt'!M169 -> 3.16227766 | F14: Ω
D15: Damping Capacitor ESR, ESR CD(EMI) | E15: 3.3 | F15: Ω
H29: EMI Filter BOM
H30: Count | I30: Ref Des | J30: Value | K30: Description | N30: Part Number | O30: MFR
H31: 1 | I31: LF(EMI) | J31: ='Variable Mgmt'!B298 -> 22µH | K31: ="Inductor, "&Lf_emi*1000000&" µH, "&ROUNDUP(Isat_min,2)&"A" -> Inductor, 22 µH, 0.51A | N31: Std | O31: Std
H32: 1 | I32: CF(EMI) | J32: ='Variable Mgmt'!B299 -> 4.7µF | K32: =IF(VIN_max>35, "Capacitor, Ceramic, "&'Variable Mgmt'!B299&", 120V, X7R, 10%", "Capacitor, Ceramic, "&'Variable Mgmt'!B299&", 50V, X7R, 10%") -> Capacitor, Ceramic, 4.7µF, 120V, X7R, 10% | N32: Std | O32: Std
H33: 1 | I33: CD(EMI) | J33: ='Variable Mgmt'!B300 -> 10µF | K33: =IF(VIN_max>35, "Capacitor, Electrolytic, "&'Variable Mgmt'!B300&", 120V, ESR>"&ESR_Cd&ohm, "Capacitor, Electrolytic, "&'Variable Mgmt'!B300&", 50V, ESR>"&ESR_Cd&ohm) -> Capacitor, Electrolytic, 10µF, 120V, ESR>3.3Ω | N33: Std | O33: Std

Sheet EVM (hidden)
A1: LM5163/4 100V, Low IQ DC/DC Converter Design Tool
B3: LM5164-Q1EVM-041 PCB Layout
O5: Top
O6: Layer
O31: Layer 2
O57: Layer 3
O84: Bottom
O85: Layer

Sheet BOM & Schematic (hidden)
A1: LM5163/4 100V Low IQ DC/DC Converter Design Tool
A28: ="VIN = "&Vin&" V, VOUT = "&Vout&" V, IOUT = "&Iout&" A "&'Variable Mgmt'!B35&" Converter" -> VIN = 48 V, VOUT = 12 V, IOUT = 0.3 A COT Converter
A29: Low IQ, High Efficiency, Synchronous Buck Converter BOM
A30: Count | B30: Ref Des | C30: Value | D30: Description | G30: Size | H30: Part Number | I30: MFR | J30: Footprint (mm) | K30: Area (mm2)
A31: =ROUNDUP('Design Converter'!E37/10,0) -> 1 | B31: CIN | C31: =Cin*1000000 -> 2.2 | D31: =IF(VIN_max>35, "Capacitor, Ceramic, "&'Variable Mgmt'!B257&", 100V, X7R, 10%", "Capacitor, Ceramic, "&'Variable Mgmt'!B257&", 50V, X7R, 10%") -> Capacitor, Ceramic, 2.2µF, 100V, X7R, 10% | G31: 5 | H31: Std | I31: Std | J31: =CHOOSE(G31,'Variable Mgmt'!T$41,'Variable Mgmt'!T$42,'Variable Mgmt'!T$43,'Variable Mgmt'!T$44,'Variable Mgmt'!T$45) -> 3.2 x 2.5 | K31: =CHOOSE(G31,'Variable Mgmt'!U$41,'Variable Mgmt'!U$42,'Variable Mgmt'!U$43,'Variable Mgmt'!U$44,'Variable Mgmt'!U$45) -> 8
A32: ='Variable Mgmt'!D252 -> 1 | B32: COUT | C32: ='Variable Mgmt'!F253 -> 22µF | D32: =CHOOSE(Cout_Voltage_Rating, "Capacitor, Ceramic, "&'Variable Mgmt'!F253&", 6.3V, X7R, 10%", "Capacitor, Ceramic, "&'Variable Mgmt'!F253&", 10V, X7R, 10%", "Capacitor, Ceramic, "&'Variable Mgmt'!F253&", 16V, X7R, 10%", "Capacitor, Ceramic, "&'Variable Mgmt'!F253&", 25V, X7R, 10%", "Capacitor, Ceramic, "&'Variable Mgmt'!F253&", 50V, X7R, 10%") -> Capacitor, Ceramic, 22µF, 16V, X7R, 10% | G32: 5 | H32: Std | I32: Std | J32: =CHOOSE(G32,'Variable Mgmt'!T$41,'Variable Mgmt'!T$42,'Variable Mgmt'!T$43,'Variable Mgmt'!T$44,'Variable Mgmt'!T$45) -> 3.2 x 2.5 | K32: =(CHOOSE(G32,'Variable Mgmt'!U$41,'Variable Mgmt'!U$42,'Variable Mgmt'!U$43,'Variable Mgmt'!U$44,'Variable Mgmt'!U$45))*A32 -> 8
A33: =CHOOSE(MODE, "-", "-", "1","-") -> - | B33: =CHOOSE(MODE,"-","-","Ca","-") -> - | C33: =CHOOSE(MODE, "-","-",'Variable Mgmt'!B293, "-") -> - | D33: =CHOOSE(MODE,"-","-", "Capacitor, Ceramic, "&'Variable Mgmt'!B293&", 16V, X7R, 10%", "-") -> - | G33: 1 | H33: =CHOOSE(MODE, "-", "-", "Std", "-") -> - | I33: =H33 -> - | J33: =CHOOSE(MODE,"","",CHOOSE(G33,'Variable Mgmt'!T$41,'Variable Mgmt'!T$42,'Variable Mgmt'!T$43,'Variable Mgmt'!T$44,'Variable Mgmt'!T$45),"") ->  | K33: =CHOOSE(MODE,"","",CHOOSE(G33,'Variable Mgmt'!U$41,'Variable Mgmt'!U$42,'Variable Mgmt'!U$43,'Variable Mgmt'!U$44,'Variable Mgmt'!U$45),"") -> 
A34: =CHOOSE(MODE, "-", "1", "1","-") -> 1 | B34: =CHOOSE(MODE,"-","Cff","Cb","-") -> Cff | C34: =CHOOSE(MODE, "-",'Variable Mgmt'!B290,'Variable Mgmt'!B290, "-") -> 56pF | D34: =CHOOSE(MODE,"-","Capacitor, Ceramic, "&'Variable Mgmt'!B290&", 50V, X7R, 10%", "Capacitor, Ceramic, "&'Variable Mgmt'!B290&", 50V, X7R, 10%", "-") -> Capacitor, Ceramic, 56pF, 50V, X7R, 10% | G34: 1 | H34: =CHOOSE(MODE, "-", "Std", "Std", "-") -> Std | I34: =H34 -> Std | J34: =CHOOSE(MODE,"",CHOOSE(G34,'Variable Mgmt'!T$41,'Variable Mgmt'!T$42,'Variable Mgmt'!T$43,'Variable Mgmt'!T$44,'Variable Mgmt'!T$45),CHOOSE(G34,'Variable Mgmt'!T$41,'Variable Mgmt'!T$42,'Variable Mgmt'!T$43,'Variable Mgmt'!T$44,'Variable Mgmt'!T$45),"") -> 1.0 x 0.5 | K34: =CHOOSE(MODE,"",CHOOSE(G34,'Variable Mgmt'!U$41,'Variable Mgmt'!U$42,'Variable Mgmt'!U$43,'Variable Mgmt'!U$44,'Variable Mgmt'!U$45),CHOOSE(G34,'Variable Mgmt'!U$41,'Variable Mgmt'!U$42,'Variable Mgmt'!U$43,'Variable Mgmt'!U$44,'Variable Mgmt'!U$45),"") -> 0.5
A35: 1 | B35: CBST | C35: 2.2nF | D35: Capacitor, Ceramic, 2.2nF, 25V, X7R, 10% | G35: 1 | H35: =CHOOSE(MODE, "-", "Std", "Std", "-") -> Std | I35: =H35 -> Std | J35: =CHOOSE(MODE,"",CHOOSE(G35,'Variable Mgmt'!T$41,'Variable Mgmt'!T$42,'Variable Mgmt'!T$43,'Variable Mgmt'!T$44,'Variable Mgmt'!T$45),CHOOSE(G35,'Variable Mgmt'!T$41,'Variable Mgmt'!T$42,'Variable Mgmt'!T$43,'Variable Mgmt'!T$44,'Variable Mgmt'!T$45),"") -> 1.0 x 0.5 | K35: =CHOOSE(MODE,"",CHOOSE(G35,'Variable Mgmt'!U$41,'Variable Mgmt'!U$42,'Variable Mgmt'!U$43,'Variable Mgmt'!U$44,'Variable Mgmt'!U$45),CHOOSE(G35,'Variable Mgmt'!U$41,'Variable Mgmt'!U$42,'Variable Mgmt'!U$43,'Variable Mgmt'!U$44,'Variable Mgmt'!U$45),"") -> 0.5
A37: 1 | B37: LF | C37: ='Design Converter'!E17 -> 100 | D37: ="Inductor, "&Lf*1000000&" µH, "&Rdcr*1000&" mΩ, >"&ROUNDUP(Isat_min,2)&"A" -> Inductor, 100 µH, 170 mΩ, >0.51A | G37: 4 | H37: Various | I37: Various | J37: =CHOOSE(G37,'Variable Mgmt'!T50,'Variable Mgmt'!T51,'Variable Mgmt'!T52,'Variable Mgmt'!T53,'Variable Mgmt'!T54,'Variable Mgmt'!T55,'Variable Mgmt'!T56) -> 6.0 x 6.0 | K37: =CHOOSE(G37,'Variable Mgmt'!U50,'Variable Mgmt'!U51,'Variable Mgmt'!U52,'Variable Mgmt'!U53,'Variable Mgmt'!U54,'Variable Mgmt'!U55,'Variable Mgmt'!U56) -> 36
K38: =IF(MODE_RSET=2,CHOOSE(G38,'Variable Mgmt'!U$41,'Variable Mgmt'!U$42,'Variable Mgmt'!U$43,'Variable Mgmt'!U$44,'Variable Mgmt'!U$45),"") -> 
A39: =CHOOSE(MODE, "1","1","1", "-") -> 1 | B39: RT | C39: =CHOOSE(MODE, 'Design Converter'!E13, 'Design Converter'!E13,'Design Converter'!E13,"-") -> 49.9 | D39: =C39 -> 49.9 | G39: 1 | H39: =CHOOSE(MODE, "Std","Std","Std","-") -> Std | I39: =H39 -> Std | J39: =CHOOSE(MODE,CHOOSE(G39,'Variable Mgmt'!T$41,'Variable Mgmt'!T$42,'Variable Mgmt'!T$43,'Variable Mgmt'!T$44,'Variable Mgmt'!T$45),CHOOSE(G39,'Variable Mgmt'!T$41,'Variable Mgmt'!T$42,'Variable Mgmt'!T$43,'Variable Mgmt'!T$44,'Variable Mgmt'!T$45),CHOOSE(G39,'Variable Mgmt'!T$41,'Variable Mgmt'!T$42,'Variable Mgmt'!T$43,'Variable Mgmt'!T$44,'Variable Mgmt'!T$45),"") -> 1.0 x 0.5 | K39: =CHOOSE(MODE,CHOOSE(G39,'Variable Mgmt'!U$41,'Variable Mgmt'!U$42,'Variable Mgmt'!U$43,'Variable Mgmt'!U$44,'Variable Mgmt'!U$45),CHOOSE(G39,'Variable Mgmt'!U$41,'Variable Mgmt'!U$42,'Variable Mgmt'!U$43,'Variable Mgmt'!U$44,'Variable Mgmt'!U$45),CHOOSE(G39,'Variable Mgmt'!U$41,'Variable Mgmt'!U$42,'Variable Mgmt'!U$43,'Variable Mgmt'!U$44,'Variable Mgmt'!U$45),"") -> 0.5
A40: 1 | B40: RFB1 | C40: =Rfb1_/1000 -> 453 | D40: 453 | G40: 1 | H40: =CHOOSE(MODE_VOUT,"-","Std") -> Std | I40: =H40 -> Std | J40: =(CHOOSE(MODE_VOUT,"",CHOOSE(G40,'Variable Mgmt'!T$41,'Variable Mgmt'!T$42,'Variable Mgmt'!T$43,'Variable Mgmt'!T$44,'Variable Mgmt'!T$45))) -> 1.0 x 0.5 | K40: =CHOOSE(MODE_VOUT,"",CHOOSE(G40,'Variable Mgmt'!U$41,'Variable Mgmt'!U$42,'Variable Mgmt'!U$43,'Variable Mgmt'!U$44,'Variable Mgmt'!U$45)) -> 0.5
A41: 1 | B41: RFB2 | C41: =Rfb2_u/1000 -> 49.9 | D41: 49.9 | G41: 1 | H41: =CHOOSE(MODE_VOUT,"-","Std") -> Std | I41: =H41 -> Std | J41: =CHOOSE(MODE_VOUT,"",CHOOSE(G41,'Variable Mgmt'!T$41,'Variable Mgmt'!T$42,'Variable Mgmt'!T$43,'Variable Mgmt'!T$44,'Variable Mgmt'!T$45)) -> 1.0 x 0.5 | K41: =CHOOSE(MODE_VOUT,"",CHOOSE(G41,'Variable Mgmt'!U$41,'Variable Mgmt'!U$42,'Variable Mgmt'!U$43,'Variable Mgmt'!U$44,'Variable Mgmt'!U$45)) -> 0.5
A42: =IF(MODE=3,"1","-") -> - | B42: =CHOOSE(MODE,"-","-","Ra","-") -> - | C42: ='Variable Mgmt'!F296 ->  | D42: ="Resistor, Chip, "&'Variable Mgmt'!B296&", 1/16W, 1%" -> Resistor, Chip, , 1/16W, 1% | G42: 1 | H42: =CHOOSE(MODE, "-", "-", "Std", "-") -> - | I42: =H42 -> - | J42: =CHOOSE(MODE,"","",CHOOSE(G42,'Variable Mgmt'!T$41,'Variable Mgmt'!T$42,'Variable Mgmt'!T$43,'Variable Mgmt'!T$44,'Variable Mgmt'!T$45),"") ->  | K42: =CHOOSE(MODE,"","",CHOOSE(G42,'Variable Mgmt'!U$41,'Variable Mgmt'!U$42,'Variable Mgmt'!U$43,'Variable Mgmt'!U$44,'Variable Mgmt'!U$45),"") -> 
A43: 1 | B43: RPGOOD | C43: 100 | D43: 100 | G43: 1 | H43: Std | I43: Std | J43: =CHOOSE(G43,'Variable Mgmt'!T$41,'Variable Mgmt'!T$42,'Variable Mgmt'!T$43,'Variable Mgmt'!T$44,'Variable Mgmt'!T$45) -> 1.0 x 0.5 | K43: =CHOOSE(G43,'Variable Mgmt'!U$41,'Variable Mgmt'!U$42,'Variable Mgmt'!U$43,'Variable Mgmt'!U$44,'Variable Mgmt'!U$45) -> 0.5
A44: =CHOOSE(MODE_UVLO, "1", "-") -> 1 | B44: RUV1 | C44: =CHOOSE(MODE_UVLO, 'Variable Mgmt'!H275, "-") -> 1M | D44: =CHOOSE(MODE_UVLO, "Resistor, Chip, "&'Variable Mgmt'!C275&", 1/16W, 1%", "-") -> Resistor, Chip, 1MΩ, 1/16W, 1% | G44: 2 | H44: =CHOOSE(MODE_UVLO,"Std","-") -> Std | I44: =H44 -> Std | J44: =CHOOSE(MODE_UVLO,CHOOSE(G44,'Variable Mgmt'!T$41,'Variable Mgmt'!T$42,'Variable Mgmt'!T$43,'Variable Mgmt'!T$44,'Variable Mgmt'!T$45),"") -> 1.6 x 0.8 | K44: =CHOOSE(MODE_UVLO,CHOOSE(G44,'Variable Mgmt'!U$41,'Variable Mgmt'!U$42,'Variable Mgmt'!U$43,'Variable Mgmt'!U$44,'Variable Mgmt'!U$45),"") -> 1.3
A45: =CHOOSE(MODE_UVLO, "1", "-") -> 1 | B45: RUV2 | C45: =CHOOSE(MODE_UVLO, 'Variable Mgmt'!H276, "-") -> 332k | D45: =CHOOSE(MODE_UVLO, "Resistor, Chip, "&'Variable Mgmt'!C276&", 1/16W, 1%", "-") -> Resistor, Chip, 332kΩ, 1/16W, 1% | G45: 1 | H45: =CHOOSE(MODE_UVLO,"Std","-") -> Std | I45: =H45 -> Std | J45: =CHOOSE(MODE_UVLO,CHOOSE(G45,'Variable Mgmt'!T$41,'Variable Mgmt'!T$42,'Variable Mgmt'!T$43,'Variable Mgmt'!T$44,'Variable Mgmt'!T$45),"") -> 1.0 x 0.5 | K45: =CHOOSE(MODE_UVLO,CHOOSE(G45,'Variable Mgmt'!U$41,'Variable Mgmt'!U$42,'Variable Mgmt'!U$43,'Variable Mgmt'!U$44,'Variable Mgmt'!U$45),"") -> 0.5
A46: 1 | B46: U1 | C46: =CHOOSE(VARIANT, "LM5163-Q1", "LM5164-Q1") -> LM5163-Q1 | D46: =CHOOSE(VARIANT, "IC, LM51643-Q1, Buck Converter, 6V–100V Input", "IC, LM5164-Q1, Buck Converter, 6V–100V Input") -> IC, LM51643-Q1, Buck Converter, 6V–100V Input | G46: SOIC-8 | H46: =CHOOSE(VARIANT, "LM5163QDDATQ1", "LM5164QDDATQ1") -> LM5163QDDATQ1 | I46: TI | J46: 5.0 x 6.0 | K46: 30
B48: ="Total Solution Size (padded by 15%) = "&ROUND(K48,1)&" mm^2 = "&ROUND(M48,3)&" in^2" -> Total Solution Size (padded by 15%) = 99.8 mm^2 = 0.155 in^2 | K48: =SUM(K31:K46)*1.15 -> 99.82 | M48: =K48/25.4/25.4 -> 0.1547213094
A50: NOTES:
A51: * Inductor saturation current should be higher than the peak inductor current setting for all operating temperatures *
A52: ** Effective input and output capacitances should be appropriately derated for applied voltage and temperature, particularly with ceramics **
A53: ***Estimated total solution size does not include EMI filter***

Sheet Schematic Mgmt (hidden)
A2: ='Variable Mgmt'!K27 -> SCH_COT2_LM5168

Sheet sch_frank (hidden)
A2: =CHOOSE(MODE,"cot1_sch","cot2_sch","cot3_sch") -> cot2_sch

Sheet Efficiency Plots (hidden)
A2: =IF(PLOT_TYPE=1, "EFF_LINEAR", "EFF_LOG") -> EFF_LINEAR
